Workbook

Sheet Welcome to Chhaya!
H7: Welcome to Chhaya!
H8: Chhaya is a tool to determine shading requirements for a building at a preliminary design phase. This is based upon an estimation of a buildings balance point; i.e. where the building needs neither heating or cooling, so the building is in balance with it's climate. Appropriate shading stratagies can extend this period, and thereby reduce a buildings cooling and heating requirements. The sunangles and shading reccomendations produced by this tool are not meant to be a substitute for a comprehensive energy analysis, and should be checked as the design progresses. To date, we have found this tool to be reasonably accurate and useful. We hope this helps you practice bioclimatic design!
D24: Chhaya (Sanskrit) A shade, shadow, copy; esoterically, the astral image or body of a person. Besides referring to the human astral form, the term is usually applied to the shadows or copies, -- the astral body-projections -- of the spiritual beings or pitris who played an important part in the early evolutionary development of humankind. In the first root-race, "the pure, celestial Being (Dhyan Chohan) and the great Pitris of various classes were commissioned -- the one to evolve their images (Chhaya), and make of them physical man, the others to inform and thus endow him with divine intelligence and the comprehension of the Mysteries of Creation" (SD 2:233n). This idea also appears in the Zohar: "'In the Tzalam (shadow image) of Elohim (the Pitris), was made Adam (man)' " (SD 2:137).

Sheet Instructions
C4: Instructions for Chhaya Data Input
C8: Weather Data Import
C9: 1 | D9: Copy the following address to your clipboard (or memorize it)
D10: http://apps1.eere.energy.gov/buildings/energyplus/cfm/weather_data.cfm
C11: 2 | D11: Go to the tab named "STAT" (Black tab).
C12: 3 | D12: Follow the steps by clicking the buttons (There is no button for step 2)
C14: Step 1 | D14: This clears the contents of the cells for import of a new weather file. This is essential
C16: Step 2 | D16: Go to Import Data/From Web. This will open up a web query box. Browse to your desired weather station and use the "STAT" option. Once this is selected, select the table and hit import (at the bottom right. Make sure you select $A$! As the destination cell. THIS IS IMPORTANT.
C65: Step 3 | D65: Press the step 3 Button to finish the weather file import. The import will not be complete without this.
C67: Step 4 | D67: For non- US weather files press this button
C69: Step 4 | D69: For US weather files press this button

Sheet STAT
A1: -EnergyPlus Weather Converter V7.1.0.010
A2: Statistics for SAU_Riyadh.404380_IWEC
A3: Location -- RIYADH - SAU
A4: {N | B4: 24 | C4: ｰ | D4: 42 | E4: '} | F4: {E | G4: 46 | H4: ｰ | I4: 47 | J4: '} | K4: {GMT | L4: 3 | M4: Hours}
A5: Elevation -- 612m above sea level
A6: Standard Pressure at Elevation -- 94186Pa
A7: Data Source -- IWEC Data
A9: WMO Station 404380
A11: - Displaying Design Conditions from "Climate Design Data 2009 ASHRAE Handbook"
A12: - ASHRAE design conditions are carefully generated from a period of record
A13: - (typically 30 years) to be representative of that location and to be suitable
A14: - for use in heating/cooling load calculations.
B16: Design Stat | C16: ColdestMonth | D16: DB996 | E16: DB990 | F16: DP996 | G16: HR_DP996 | H16: DB_DP996 | I16: DP990 | J16: HR_DP990 | K16: DB_DP990 | L16: WS004c | M16: DB_WS004c | N16: WS010c | O16: DB_WS010c | P16: WS_DB996 | Q16: WD_DB996
B17: Units | C17: {} | D17: {ｰC} | E17: {ｰC} | F17: {ｰC} | G17: {} | H17: {ｰC} | I17: {ｰC} | J17: {} | K17: {ｰC} | L17: {m/s} | M17: {ｰC} | N17: {m/s} | O17: {ｰC} | P17: {m/s} | Q17: {deg}
B18: Heating | C18: 1 | D18: 5.9 | E18: 7.2 | F18: -14 | G18: 1.2 | H18: 20.5 | I18: -11.1 | J18: 1.6 | K18: 24.3 | L18: 10 | M18: 15.9 | N18: 9.1 | O18: 16.8 | P18: 1.6 | Q18: 320
B20: Design Stat | C20: HottestMonth | D20: DBR | E20: DB004 | F20: WB_DB004 | G20: DB010 | H20: WB_DB010 | I20: DB020 | J20: WB_DB020 | K20: WB004 | L20: DB_WB004 | M20: WB010 | N20: DB_WB010 | O20: WB020 | P20: DB_WB020 | Q20: WS_DB004 | R20: WD_DB004 | S20: DP004 | T20: HR_DP004 | U20: DB_DP004 | V20: DP010 | W20: HR_DP010 | X20: DB_DP010 | Y20: DP020 | Z20: HR_DP020 | AA20: DB_DP020 | AB20: EN004 | AC20: DB_EN004 | AD20: EN010 | AE20: DB_EN010 | AF20: EN020 | AG20: DB_EN020 | AH20: #Hrs_8-4_&_DB-12.8/20.6
B21: Units | C21: {} | D21: {ｰC} | E21: {ｰC} | F21: {ｰC} | G21: {ｰC} | H21: {ｰC} | I21: {ｰC} | J21: {ｰC} | K21: {ｰC} | L21: {ｰC} | M21: {ｰC} | N21: {ｰC} | O21: {ｰC} | P21: {ｰC} | Q21: {m/s} | R21: {deg} | S21: {ｰC} | T21: {} | U21: {ｰC} | V21: {ｰC} | W21: {} | X21: {ｰC} | Y21: {ｰC} | Z21: {} | AA21: {ｰC} | AB21: {kJ/kg} | AC21: {ｰC} | AD21: {kJ/kg} | AE21: {ｰC} | AF21: {kJ/kg} | AG21: {ｰC} | AH21: {}
B22: Cooling | C22: 7 | D22: 13.5 | E22: 44.2 | F22: 18.7 | G22: 43.8 | H22: 18.5 | I22: 42.9 | J22: 18.2 | K22: 20.9 | L22: 36.4 | M22: 20 | N22: 36.6 | O22: 19.4 | P22: 37.2 | Q22: 4.5 | R22: 0 | S22: 17.2 | T22: 13.3 | U22: 22.3 | V22: 16.1 | W22: 12.3 | X22: 21.7 | Y22: 14.9 | Z22: 11.4 | AA22: 21.9 | AB22: 63.2 | AC22: 36.7 | AD22: 60.2 | AE22: 36.8 | AF22: 57.6 | AG22: 37.2 | AH22: 604
B24: Design Stat | C24: WS010 | D24: WS025 | E24: WS050 | F24: WBmax | G24: DBmin_mean | H24: DBmax_mean | I24: DBmin_stddev | J24: DBmax_stddev | K24: DBmin05years | L24: DBmax05years | M24: DBmin10years | N24: DBmax10years | O24: DBmin20years | P24: DBmax20years | Q24: DBmin50years | R24: DBmax50years
B25: Units | C25: {m/s} | D25: {m/s} | E25: {m/s} | F25: {ｰC} | G25: {ｰC} | H25: {ｰC} | I25: {ｰC} | J25: {ｰC} | K25: {ｰC} | L25: {ｰC} | M25: {ｰC} | N25: {ｰC} | O25: {ｰC} | P25: {ｰC} | Q25: {ｰC} | R25: {ｰC}
B26: Extremes | C26: 9.5 | D26: 8.3 | E26: 7.3 | F26: 25.5 | G26: 2.9 | H26: 46 | I26: 1.8 | J26: 0.8 | K26: 1.6 | L26: 46.6 | M26: 0.6 | N26: 47 | O26: -0.4 | P26: 47.4 | Q26: -1.7 | R26: 48
A28: - Displaying Monthly Design Conditions "Climate Design Data 2009 ASHRAE Handbook"
A29: - Monthly Optical Sky Depth Beam (taub) and Diffuse (taud)
C30: Jan | D30: Feb | E30: Mar | F30: Apr | G30: May | H30: Jun | I30: Jul | J30: Aug | K30: Sep | L30: Oct | M30: Nov | N30: Dec
B31: taub (beam) | C31: 0.424 | D31: 0.632 | E31: 0.699 | F31: 0.709 | G31: 0.744 | H31: 0.721 | I31: 0.766 | J31: 0.749 | K31: 0.642 | L31: 0.481 | M31: 0.499 | N31: 0.427
B32: taud (diffuse) | C32: 1.834 | D32: 1.379 | E32: 1.302 | F32: 1.3 | G32: 1.258 | H32: 1.267 | I32: 1.239 | J32: 1.254 | K32: 1.376 | L32: 1.687 | M32: 1.63 | N32: 1.827
B34: taub | C34: =Clear Sky Optical Depth for Beam Irradiance -> 
B35: taud | C35: =Clear Sky Optical Depth for Diffuse Irradiance -> 
A37: - Monthly Solar Irradiance Wh/mｲ (noon on 21st of month)
B38: ib (beam) | C38: 813 | D38: 661 | E38: 646 | F38: 656 | G38: 633 | H38: 644 | I38: 615 | J38: 622 | K38: 678 | L38: 781 | M38: 727 | N38: 789
B39: id (diffuse) | C39: 188 | D39: 310 | E39: 353 | F39: 363 | G39: 379 | H39: 373 | I39: 383 | J39: 375 | K39: 324 | L39: 227 | M39: 226 | N39: 183
B41: ib | C41: = Clear Sky Noon Beam Normal Irradiance on 21st Day
B42: id | C42: = Clear Sky Noon Diffuse Horizontal Irradiance on 21st Day
A44: - Monthly Drybulb and Mean Coincident Wetbulb Temperatures ｰC
C45: Jan | D45: Feb | E45: Mar | F45: Apr | G45: May | H45: Jun | I45: Jul | J45: Aug | K45: Sep | L45: Oct | M45: Nov | N45: Dec
B46: Drybulb 0.4% | C46: 27.8 | D46: 31 | E46: 34.6 | F46: 39.8 | G46: 43.2 | H46: 44.9 | I46: 46 | J46: 45.2 | K46: 43.1 | L46: 38.9 | M46: 33.2 | N46: 28.5
B47: Coincident Wetbulb 0.4% | C47: 14.4 | D47: 15.5 | E47: 16.2 | F47: 17.2 | G47: 17.9 | H47: 18.5 | I47: 19.2 | J47: 19.7 | K47: 18.5 | L47: 16.9 | M47: 16 | N47: 14.8
B48: Drybulb 2.0% | C48: 25.2 | D48: 28 | E48: 32.3 | F48: 37.8 | G48: 41.9 | H48: 43.8 | I48: 44.3 | J48: 44.2 | K48: 42 | L48: 37.2 | M48: 31.7 | N48: 26.9
B49: Coincident Wetbulb 2.0% | C49: 13.1 | D49: 14.1 | E49: 15.3 | F49: 17 | G49: 17.8 | H49: 18.1 | I49: 18.5 | J49: 19.1 | K49: 18.1 | L49: 16.4 | M49: 15.4 | N49: 14.3
B50: Drybulb 5.0% | C50: 23.1 | D50: 25.9 | E50: 30.5 | F50: 36 | G50: 40.8 | H50: 42.8 | I50: 43.8 | J50: 43.2 | K50: 41 | L50: 36.2 | M50: 30.1 | N50: 25
B51: Coincident Wetbulb 5.0% | C51: 12 | D51: 13.1 | E51: 14.7 | F51: 16.6 | G51: 17.7 | H51: 17.9 | I51: 18.3 | J51: 18.7 | K51: 17.8 | L51: 16.2 | M51: 15 | N51: 13.7
B52: Drybulb 10.% | C52: 21 | D52: 23.8 | E52: 28.2 | F52: 34 | G52: 39.2 | H52: 41.9 | I52: 42.9 | J52: 42.8 | K52: 39.9 | L52: 35.1 | M52: 28.2 | N52: 23
B53: Coincident Wetbulb 10.% | C53: 11.5 | D53: 12.4 | E53: 14 | F53: 16.1 | G53: 17.4 | H53: 17.5 | I53: 18 | J53: 18.5 | K53: 17.4 | L53: 16.1 | M53: 14.5 | N53: 13.3
B55: Drybulb 0.4% | C55: = 0.4% Monthly Design Drybulb Temperature
B56: Coincident Wetbulb 0.4% | C56: = 0.4% Monthly Mean Coincident Wetbulb Temperature
B57: Drybulb 2.0% | C57: = 2.0% Monthly Design Drybulb Temperature
B58: Coincident Wetbulb 2.0% | C58: = 2.0% Monthly Mean Coincident Wetbulb Temperature
B59: Drybulb 5.0% | C59: = 5.0% Monthly Design Drybulb Temperature
B60: Coincident Wetbulb 5.0% | C60: = 5.0% Monthly Mean Coincident Wetbulb Temperature
B61: Drybulb 10.% | C61: = 10.% Monthly Design Drybulb Temperature
B62: Coincident Wetbulb 10.% | C62: = 10.% Monthly Mean Coincident Wetbulb Temperature
A64: - Monthly Drybulb and Wetbulb Daily Ranges deltaｰC
C65: Jan | D65: Feb | E65: Mar | F65: Apr | G65: May | H65: Jun | I65: Jul | J65: Aug | K65: Sep | L65: Oct | M65: Nov | N65: Dec
B66: Drybulb | C66: 10.8 | D66: 11.4 | E66: 11.6 | F66: 12.2 | G66: 12.8 | H66: 13.8 | I66: 13.5 | J66: 13.5 | K66: 13.8 | L66: 13.4 | M66: 11.6 | N66: 10.7
B67: Drybulb range - DB 5% | C67: 14 | D67: 13.7 | E67: 14 | F67: 14.1 | G67: 14.1 | H67: 14.5 | I67: 14.1 | J67: 13.7 | K67: 14.3 | L67: 14.3 | M67: 13.5 | N67: 13.4
B68: Wetbulb range - DB 5% | C68: 6.7 | D68: 6.3 | E68: 5.9 | F68: 5.1 | G68: 4.8 | H68: 4.8 | I68: 4.7 | J68: 4.7 | K68: 5 | L68: 5.5 | M68: 5.6 | N68: 6
B70: Drybulb | C70: =Mean Daily Dry Bulb Temperature Range -> 
B71: Drybulb range - DB 5% | C71: = Mean Daily Dry Bulb Temperature Range Coincident with 5% Design Dry Bulb Temperature
B72: Wetbulb range - DB 5% | C72: = Mean Daily Wet Bulb Temperature Range Coincident with 5% Design Dry Bulb Temperature
A74: - Displaying Heating/Cooling Degree Days/Hours from "Climate Design Data 2009 ASHRAE Handbook"
A75: - Monthly Standard Heating/Cooling Degree Days/Hours
C76: Jan | D76: Feb | E76: Mar | F76: Apr | G76: May | H76: Jun | I76: Jul | J76: Aug | K76: Sep | L76: Oct | M76: Nov | N76: Dec
B77: HDD base 10ｰC | C77: 3 | D77: 1 | E77: 0 | F77: 0 | G77: 0 | H77: 0 | I77: 0 | J77: 0 | K77: 0 | L77: 0 | M77: 0 | N77: 2
B78: HDD base 18.3ｰC | C78: 124 | D78: 64 | E78: 17 | F78: 1 | G78: 0 | H78: 0 | I78: 0 | J78: 0 | K78: 0 | L78: 0 | M78: 11 | N78: 84
B80: CDD base 10ｰC | C80: 144 | D80: 192 | E80: 338 | F80: 497 | G80: 693 | H80: 748 | I80: 813 | J80: 806 | K80: 688 | L80: 556 | M80: 343 | N80: 193
B81: CDD base 18.3ｰC | C81: 6 | D81: 22 | E81: 96 | F81: 247 | G81: 434 | H81: 498 | I81: 554 | J81: 548 | K81: 438 | L81: 298 | M81: 104 | N81: 18
B83: CDH base 23.3ｰC | C83: 68 | D83: 204 | E83: 903 | F83: 3032 | G83: 6972 | H83: 8723 | I83: 9899 | J83: 9712 | K83: 7175 | L83: 3942 | M83: 914 | N83: 146
B84: CDH base 26.7ｰC | C84: 8 | D84: 47 | E84: 338 | F84: 1597 | G84: 4657 | H84: 6339 | I84: 7422 | J84: 7238 | K84: 4891 | L84: 2208 | M84: 300 | N84: 18
A86: - 6009 annual (standard) cooling degree-days (10ｰC baseline)
A87: - 6 annual (standard) heating degree-days (10ｰC baseline)
A89: - 3264 annual (standard) cooling degree-days (18.3ｰC baseline)
A90: - 301 annual (standard) heating degree-days (18.3ｰC baseline)
A92: - Monthly Statistics for Dry Bulb temperatures ｰC
C93: Jan | D93: Feb | E93: Mar | F93: Apr | G93: May | H93: Jun | I93: Jul | J93: Aug | K93: Sep | L93: Oct | M93: Nov | N93: Dec
B94: Maximum | C94: 28 | D94: 32 | E94: 34 | F94: 37 | G94: 41 | H94: 44 | I94: 45.2 | J94: 46 | K94: 41 | L94: 38 | M94: 33.3 | N94: 28
B95: Day:Hour | C95: 1.051388889 | D95: 1.135416667 | E95: 1.302777778 | F95: 0.8854166667 | G95: 19:16:00 | H95: 0.6777777778 | I95: 1.260416667 | J95: 6:15 | K95: 2:16 | L95: 3:16 | M95: 5:15 | N95: 1:14
B97: Minimum | C97: 4.6 | D97: 4 | E97: 9 | F97: 14.9 | G97: 22 | H97: 25.7 | I97: 25.2 | J97: 26.8 | K97: 24.2 | L97: 15.6 | M97: 10 | N97: 4
B98: Day:Hour | C98: 1:06 | D98: 9:07 | E98: 18:07:00 | F98: 9:06 | G98: 10:05:00 | H98: 0.5458333333 | I98: 7:06 | J98: 2:06 | K98: 17:06:00 | L98: 21:06:00 | M98: 1.128472222 | N98: 6:07
B100: Daily Avg | C100: 14 | D100: 16.7 | E100: 20.3 | F100: 25.9 | G100: 32.1 | H100: 35.2 | I100: 36.2 | J100: 36.4 | K100: 33 | L100: 27.6 | M100: 21.6 | N100: 14.9
A102: - Maximum Dry Bulb temperature of 46.0ｰC on Aug 6
A103: - Minimum Dry Bulb temperature of 4.0ｰC on Feb 9
A105: - Monthly Statistics for Extreme Dry Bulb temperatures ｰC
B106: #Days | C106: Jan | D106: Feb | E106: Mar | F106: Apr | G106: May | H106: Jun | I106: Jul | J106: Aug | K106: Sep | L106: Oct | M106: Nov | N106: Dec
B107: Max >= 32 | D107: 1 | E107: 1 | F107: 20 | G107: 29 | H107: 30 | I107: 31 | J107: 31 | K107: 30 | L107: 21 | M107: 4
B108: Max <= 0
B109: Min <= 0
B110: Min <=-18
A112: - Monthly Statistics for Dew Point temperatures ｰC
C113: Jan | D113: Feb | E113: Mar | F113: Apr | G113: May | H113: Jun | I113: Jul | J113: Aug | K113: Sep | L113: Oct | M113: Nov | N113: Dec
B114: Maximum | C114: 10 | D114: 18 | E114: 21 | F114: 18 | G114: 16.6 | H114: 19 | I114: 12 | J114: 13 | K114: 18 | L114: 20 | M114: 13 | N114: 17.2
B115: Day:Hour | C115: 7:12 | D115: 1.139583333 | E115: 11:18:00 | F115: 6:19 | G115: 1:06 | H115: 15:08:00 | I115: 1.128472222 | J115: 1.172916667 | K115: 18:05:00 | L115: 16:09:00 | M115: 6:02 | N115: 1.013888889
B117: Minimum | C117: -8 | D117: -22 | E117: -9.4 | F117: -16 | G117: -12 | H117: -20 | I117: -17 | J117: -8.8 | K117: -9 | L117: -13 | M117: -11.9 | N117: -10
B118: Day:Hour | C118: 5:18 | D118: 15:21:00 | E118: 0.5104166667 | F118: 21:04:00 | G118: 15:17:00 | H118: 13:17:00 | I118: 5:21 | J118: 3:01 | K118: 0.8402777778 | L118: 20:15:00 | M118: 1.250694444 | N118: 0.6784722222
B120: Daily Avg | C120: 0.9 | D120: -0.6 | E120: 0.7 | F120: 0.6 | G120: 0.5 | H120: 0.1 | I120: -3.5 | J120: -0.1 | K120: 2.1 | L120: 1.1 | M120: -0.9 | N120: 5.1
A122: - Maximum Dew Point temperature of 21.0ｰC on Mar 11
A123: - Minimum Dew Point temperature of -22.0ｰC on Feb 15
A125: - Average Hourly Statistics for Dry Bulb temperatures ｰC
C126: Jan | D126: Feb | E126: Mar | F126: Apr | G126: May | H126: Jun | I126: Jul | J126: Aug | K126: Sep | L126: Oct | M126: Nov | N126: Dec
B127: 0:01- 1:00 | C127: 11.6 | D127: 14.1 | E127: 17.9 | F127: 22.8 | G127: 29.2 | H127: 32 | I127: 32.7 | J127: 33 | K127: 29.9 | L127: 24.5 | M127: 18.4 | N127: 12.7
B128: 1:01- 2:00 | C128: 11.1 | D128: 13.5 | E128: 17.2 | F128: 22.2 | G128: 28.4 | H128: 31 | I128: 31.8 | J128: 32.1 | K128: 28.9 | L128: 23.8 | M128: 17.5 | N128: 12.3
B129: 2:01- 3:00 | C129: 10.8 | D129: 12.9 | E129: 16.5 | F129: 21.6 | G129: 27.8 | H129: 30.5 | I129: 31.2 | J129: 31.2 | K129: 28 | L129: 22.9 | M129: 16.8 | N129: 11.9
B130: 3:01- 4:00 | C130: 10.3 | D130: 12.3 | E130: 16 | F130: 20.8 | G130: 27.5 | H130: 29.9 | I130: 30.4 | J130: 30.5 | K130: 27.2 | L130: 22.5 | M130: 16.1 | N130: 11.4
B131: 4:01- 5:00 | C131: 9.7 | D131: 11.9 | E131: 15.5 | F131: 20.2 | G131: 26.7 | H131: 29.2 | I131: 30 | J131: 29.9 | K131: 26.8 | L131: 21.7 | M131: 15.3 | N131: 10.9
B132: 5:01- 6:00 | C132: 9.4 | D132: 11.5 | E132: 15.2 | F132: 19.8 | G132: 26 | H132: 28.6 | I132: 29.6 | J132: 29.4 | K132: 26.5 | L132: 21.2 | M132: 15.1 | N132: 10.9
B133: 6:01- 7:00 | C133: 9.4 | D133: 11.5 | E133: 15.2 | F133: 20.8 | G133: 27.1 | H133: 30.2 | I133: 31.1 | J133: 30.8 | K133: 27.6 | L133: 21.7 | M133: 14.9 | N133: 10.7
B134: 7:01- 8:00 | C134: 10.7 | D134: 12.8 | E134: 16.9 | F134: 22.6 | G134: 29.1 | H134: 32.2 | I134: 33.1 | J134: 33 | K134: 30.1 | L134: 23.9 | M134: 17.6 | N134: 11.6
B135: 8:01- 9:00 | C135: 12.2 | D135: 14.4 | E135: 18.1 | F135: 25 | G135: 30.7 | H135: 34.1 | I135: 35.5 | J135: 35.6 | K135: 32.4 | L135: 26.2 | M135: 20.3 | N135: 13.2
B136: 9:01-10:00 | C136: 13.8 | D136: 16.1 | E136: 19.7 | F136: 26.9 | G136: 32.4 | H136: 35.8 | I136: 37.6 | J136: 37.9 | K136: 34.4 | L136: 28.3 | M136: 22.5 | N136: 14.9
B137: 10:01-11:00 | C137: 15.2 | D137: 18 | E137: 21.1 | F137: 28.5 | G137: 33.8 | H137: 37.3 | I137: 39.2 | J137: 39.8 | K137: 35.8 | L137: 30 | M137: 24.5 | N137: 16.6
B138: 11:01-12:00 | C138: 16.6 | D138: 19.4 | E138: 22 | F138: 29.7 | G138: 34.9 | H138: 38.6 | I138: 40.2 | J138: 40.9 | K138: 36.8 | L138: 31.4 | M138: 25.9 | N138: 17.8
B139: 12:01-13:00 | C139: 17.7 | D139: 20.9 | E139: 24 | F139: 30.4 | G139: 36 | H139: 39.3 | I139: 41 | J139: 42 | K139: 37.8 | L139: 32.4 | M139: 27.1 | N139: 19
B140: 13:01-14:00 | C140: 18.6 | D140: 22 | E140: 24.9 | F140: 31.2 | G140: 36.8 | H140: 40.5 | I140: 41.9 | J140: 42.5 | K140: 38.4 | L140: 33.2 | M140: 27.6 | N140: 19.8
B141: 14:01-15:00 | C141: 18.9 | D141: 22.6 | E141: 25.5 | F141: 31.7 | G141: 37 | H141: 40.9 | I141: 42.4 | J141: 42.7 | K141: 38.8 | L141: 33.7 | M141: 28.3 | N141: 20.2
B142: 15:01-16:00 | C142: 19 | D142: 22.4 | E142: 25.7 | F142: 31.3 | G142: 37.1 | H142: 41 | I142: 42.3 | J142: 42.4 | K142: 38.7 | L142: 33.4 | M142: 27.8 | N142: 19.8
B143: 16:01-17:00 | C143: 18.4 | D143: 21.6 | E143: 25.1 | F143: 30.4 | G143: 37 | H143: 40.6 | I143: 42 | J143: 41.7 | K143: 37.9 | L143: 32.8 | M143: 26.9 | N143: 18.7
B144: 17:01-18:00 | C144: 17.4 | D144: 20.6 | E144: 24.4 | F144: 29.6 | G144: 36.3 | H144: 40.1 | I144: 41.2 | J144: 40.8 | K144: 37.3 | L144: 32 | M144: 25.5 | N144: 18
B145: 18:01-19:00 | C145: 16.4 | D145: 19.6 | E145: 23.5 | F145: 28.2 | G145: 35.4 | H145: 39 | I145: 39.8 | J145: 39.5 | K145: 36.3 | L145: 30.9 | M145: 24.4 | N145: 16.6
B146: 19:01-20:00 | C146: 15.3 | D146: 18.3 | E146: 22.1 | F146: 27.3 | G146: 34.1 | H146: 37.6 | I146: 37.8 | J146: 37.9 | K146: 35 | L146: 29.2 | M146: 23 | N146: 15.6
B147: 20:01-21:00 | C147: 14.6 | D147: 17.3 | E147: 21.3 | F147: 26.4 | G147: 33 | H147: 36.1 | I147: 36.2 | J147: 36.8 | K147: 33.6 | L147: 28.1 | M147: 22.1 | N147: 14.9
B148: 21:01-22:00 | C148: 13.8 | D148: 16.3 | E148: 20.4 | F148: 25.5 | G148: 32 | H148: 34.8 | I148: 34.7 | J148: 35.7 | K148: 32.6 | L148: 27 | M148: 21 | N148: 14.2
B149: 22:01-23:00 | C149: 13.1 | D149: 15.5 | E149: 19.6 | F149: 24.3 | G149: 31 | H149: 33.8 | I149: 33.9 | J149: 34.8 | K149: 31.6 | L149: 26.1 | M149: 19.9 | N149: 13.7
B150: 23:01-24:00 | C150: 12.6 | D150: 14.6 | E150: 18.8 | F150: 23.5 | G150: 30.1 | H150: 32.8 | I150: 33.2 | J150: 33.8 | K150: 30.7 | L150: 25.3 | M150: 19.2 | N150: 12.8
B151: Max Hour | C151: 16 | D151: 15 | E151: 16 | F151: 15 | G151: 16 | H151: 16 | I151: 15 | J151: 15 | K151: 15 | L151: 15 | M151: 15 | N151: 15
B152: Min Hour | C152: 7 | D152: 7 | E152: 6 | F152: 6 | G152: 6 | H152: 6 | I152: 6 | J152: 6 | K152: 6 | L152: 6 | M152: 7 | N152: 7
A154: - Average Hourly Statistics for Dew Point temperatures ｰC
C155: Jan | D155: Feb | E155: Mar | F155: Apr | G155: May | H155: Jun | I155: Jul | J155: Aug | K155: Sep | L155: Oct | M155: Nov | N155: Dec
B156: 0:01- 1:00 | C156: 1.3 | D156: 0.2 | E156: 0.6 | F156: 1 | G156: 1.4 | H156: 0.7 | I156: -3.2 | J156: -0.5 | K156: 2.3 | L156: 1.7 | M156: -0.9 | N156: 5.5
B157: 1:01- 2:00 | C157: 1.7 | D157: 0.2 | E157: 0.5 | F157: 1.2 | G157: 1.5 | H157: 19:12:00 | I157: -2.6 | J157: -0.7 | K157: 2.6 | L157: 1.8 | M157: -0.7 | N157: 5.2
B158: 2:01- 3:00 | C158: 1.2 | D158: 0.4 | E158: 0.6 | F158: 1 | G158: 1.9 | H158: 1.5 | I158: -2.5 | J158: -0.4 | K158: 3 | L158: 2 | M158: -0.6 | N158: 5.4
B159: 3:01- 4:00 | C159: 1 | D159: 0.8 | E159: 1.1 | F159: 1.2 | G159: 2.2 | H159: 1.5 | I159: -1.7 | J159: -0.2 | K159: 3.1 | L159: 2 | M159: -0.6 | N159: 5.2
B160: 4:01- 5:00 | C160: 0.9 | D160: 0.7 | E160: 1.3 | F160: 1.6 | G160: 2.4 | H160: 2.2 | I160: -2 | J160: 0.3 | K160: 3.4 | L160: 1.9 | M160: -0.7 | N160: 4.8
B161: 5:01- 6:00 | C161: 0.9 | D161: 0.7 | E161: 1.5 | F161: 1.9 | G161: 2.6 | H161: 2.5 | I161: -1.2 | J161: 0.5 | K161: 3.9 | L161: 2 | M161: -0.4 | N161: 5.1
B162: 6:01- 7:00 | C162: 1 | D162: 0.6 | E162: 1.7 | F162: 1.5 | G162: 2.6 | H162: 2.5 | I162: -1.5 | J162: 0.9 | K162: 3.4 | L162: 2.1 | M162: -0.5 | N162: 5
B163: 7:01- 8:00 | C163: 1 | D163: 0.5 | E163: 2.2 | F163: 2.3 | G163: 2.5 | H163: 2.2 | I163: -2.2 | J163: 1.2 | K163: 3.2 | L163: 3 | M163: 0.1 | N163: 5.2
B164: 8:01- 9:00 | C164: 1.2 | D164: 0.8 | E164: 1.9 | F164: 2.1 | G164: 2 | H164: 1.8 | I164: -3 | J164: 1.9 | K164: 2.8 | L164: 3.5 | M164: 0.4 | N164: 5.4
B165: 9:01-10:00 | C165: 1.2 | D165: 0.2 | E165: 1.6 | F165: 1.6 | G165: 1.1 | H165: 1.3 | I165: -2.5 | J165: 1.5 | K165: 2.5 | L165: 3.6 | M165: 0.5 | N165: 6.2
B166: 10:01-11:00 | C166: 1.1 | D166: -0.3 | E166: 1.3 | F166: 0.7 | G166: 12:00:00 | H166: 1 | I166: -2.9 | J166: 1 | K166: 2.2 | L166: 2.8 | M166: 02:24:00 | N166: 6.6
B167: 11:01-12:00 | C167: 0.7 | D167: -0.8 | E167: 1 | F167: 07:12:00 | G167: -0.3 | H167: 0.1 | I167: -3.1 | J167: 09:36:00 | K167: 1.7 | L167: 1.8 | M167: -0.4 | N167: 6.5
B168: 12:01-13:00 | C168: 1 | D168: -1.6 | E168: 0.9 | F168: 0.5 | G168: -0.9 | H168: -0.6 | I168: -3.9 | J168: -0.2 | K168: 1.2 | L168: 1 | M168: -0.8 | N168: 6.4
B169: 13:01-14:00 | C169: 0.8 | D169: -1.7 | E169: 0.6 | F169: -0.5 | G169: -1 | H169: -1.1 | I169: -4.3 | J169: 02:24:00 | K169: 1.2 | L169: 0.7 | M169: -0.8 | N169: 6.1
B170: 14:01-15:00 | C170: 0.4 | D170: -2 | E170: -0.1 | F170: -1.6 | G170: -1.6 | H170: -2.2 | I170: -5.3 | J170: -0.9 | K170: 0.9 | L170: -1 | M170: -2.1 | N170: 3.5
B171: 15:01-16:00 | C171: 0.5 | D171: -2.1 | E171: -0.2 | F171: -1.5 | G171: -1.8 | H171: -2.6 | I171: -5.9 | J171: -1.3 | K171: 1.1 | L171: -1.5 | M171: -2 | N171: 4.1
B172: 16:01-17:00 | C172: 0.2 | D172: -2.2 | E172: -0.6 | F172: -1.5 | G172: -1.8 | H172: -2.7 | I172: -6 | J172: -1.3 | K172: 1.3 | L172: -1.5 | M172: -2 | N172: 3.9
B173: 17:01-18:00 | C173: -0.2 | D173: -2.2 | E173: 0.3 | F173: -0.7 | G173: -1.5 | H173: -2.5 | I173: -5.6 | J173: -0.7 | K173: 1 | L173: -1.6 | M173: -2.1 | N173: 4.1
B174: 18:01-19:00 | C174: 0.3 | D174: -1.9 | E174: -0.1 | F174: -0.2 | G174: -1.4 | H174: -2.2 | I174: -5.1 | J174: -0.6 | K174: 1 | L174: -1.1 | M174: -1.3 | N174: 4.8
B175: 19:01-20:00 | C175: 0.5 | D175: -1.6 | E175: 0.1 | F175: -0.3 | G175: -0.4 | H175: -1.3 | I175: -4.6 | J175: -0.9 | K175: 1.2 | L175: -0.4 | M175: -1.5 | N175: 4.7
B176: 20:01-21:00 | C176: 0.9 | D176: -0.7 | E176: 0.2 | F176: 0.3 | G176: 0 | H176: -0.7 | I176: -4.4 | J176: -0.7 | K176: 1.7 | L176: 0.5 | M176: -1.6 | N176: 5
B177: 21:01-22:00 | C177: 1 | D177: -0.9 | E177: 0.2 | F177: 0.5 | G177: 0.1 | H177: -0.8 | I177: -4.1 | J177: -0.7 | K177: 1.4 | L177: 0.6 | M177: -1.4 | N177: 4.6
B178: 22:01-23:00 | C178: 1 | D178: -0.5 | E178: 0.2 | F178: 0.8 | G178: 0.3 | H178: -0.2 | I178: -3.8 | J178: -0.9 | K178: 1.7 | L178: 1.1 | M178: -1.1 | N178: 4.9
B179: 23:01-24:00 | C179: 1.2 | D179: -0.1 | E179: 0.8 | F179: 1 | G179: 1.1 | H179: 04:48:00 | I179: -3.4 | J179: -0.7 | K179: 2.1 | L179: 1.5 | M179: -0.8 | N179: 5.3
B180: Max Hour | C180: 2 | D180: 4 | E180: 8 | F180: 8 | G180: 7 | H180: 7 | I180: 6 | J180: 9 | K180: 6 | L180: 10 | M180: 10 | N180: 11
B181: Min Hour | C181: 18 | D181: 17 | E181: 17 | F181: 15 | G181: 16 | H181: 17 | I181: 17 | J181: 16 | K181: 15 | L181: 18 | M181: 15 | N181: 15
A183: - Monthly Statistics for Relative Humidity %
C184: Jan | D184: Feb | E184: Mar | F184: Apr | G184: May | H184: Jun | I184: Jul | J184: Aug | K184: Sep | L184: Oct | M184: Nov | N184: Dec
B185: Maximum | C185: 100 | D185: 89 | E185: 94 | F185: 78 | G185: 69 | H185: 44 | I185: 32 | J185: 28 | K185: 58 | L185: 84 | M185: 68 | N185: 100
B186: Day:Hour | C186: 8:23 | D186: 1.139583333 | E186: 11:18:00 | F186: 5:08 | G186: 1:06 | H186: 15:08:00 | I186: 1.129166667 | J186: 1.171527778 | K186: 18:07:00 | L186: 16:06:00 | M186: 6:02 | N186: 5:01
B188: Minimum | C188: 12 | D188: 5 | E188: 8 | F188: 3 | G188: 4 | H188: 1 | I188: 2 | J188: 4 | K188: 5 | L188: 5 | M188: 6 | N188: 8
B189: Day:Hour | C189: 1.0125 | D189: 15:19:00 | E189: 1.096527778 | F189: 14:16:00 | G189: 15:15:00 | H189: 13:17:00 | I189: 9:19 | J189: 3:13 | K189: 4:12 | L189: 10:15:00 | M189: 3:15 | N189: 16:17:00
B191: Daily Avg | C191: 43 | D191: 34 | E191: 30 | F191: 24 | G191: 15 | H191: 12 | I191: 8 | J191: 11 | K191: 16 | L191: 21 | M191: 24 | N191: 57
A193: - Average Hourly Relative Humidity %
C194: Jan | D194: Feb | E194: Mar | F194: Apr | G194: May | H194: Jun | I194: Jul | J194: Aug | K194: Sep | L194: Oct | M194: Nov | N194: Dec
B195: 0:01- 1:00 | C195: 50 | D195: 40 | E195: 34 | F195: 27 | G195: 17 | H195: 14 | I195: 10 | J195: 12 | K195: 18 | L195: 25 | M195: 28 | N195: 65
B196: 1:01- 2:00 | C196: 53 | D196: 41 | E196: 34 | F196: 28 | G196: 18 | H196: 15 | I196: 11 | J196: 12 | K196: 19 | L196: 26 | M196: 30 | N196: 65
B197: 2:01- 3:00 | C197: 53 | D197: 44 | E197: 35 | F197: 29 | G197: 20 | H197: 16 | I197: 12 | J197: 13 | K197: 21 | L197: 28 | M197: 32 | N197: 68
B198: 3:01- 4:00 | C198: 54 | D198: 47 | E198: 38 | F198: 31 | G198: 21 | H198: 17 | I198: 13 | J198: 14 | K198: 22 | L198: 29 | M198: 33 | N198: 69
B199: 4:01- 5:00 | C199: 56 | D199: 47 | E199: 40 | F199: 32 | G199: 22 | H199: 18 | I199: 13 | J199: 15 | K199: 24 | L199: 30 | M199: 34 | N199: 69
B200: 5:01- 6:00 | C200: 57 | D200: 48 | E200: 41 | F200: 34 | G200: 23 | H200: 19 | I200: 14 | J200: 16 | K200: 25 | L200: 31 | M200: 35 | N200: 70
B201: 6:01- 7:00 | C201: 57 | D201: 48 | E201: 42 | F201: 32 | G201: 22 | H201: 18 | I201: 12 | J201: 15 | K201: 23 | L201: 30 | M201: 36 | N201: 71
B202: 7:01- 8:00 | C202: 53 | D202: 44 | E202: 40 | F202: 31 | G202: 19 | H202: 16 | I202: 10 | J202: 14 | K202: 20 | L202: 29 | M202: 31 | N202: 67
B203: 8:01- 9:00 | C203: 48 | D203: 41 | E203: 36 | F203: 27 | G203: 17 | H203: 14 | I203: 9 | J203: 13 | K203: 17 | L203: 26 | M203: 27 | N203: 63
B204: 9:01-10:00 | C204: 43 | D204: 35 | E204: 33 | F204: 23 | G204: 15 | H204: 12 | I204: 8 | J204: 11 | K204: 15 | L204: 23 | M204: 24 | N204: 60
B205: 10:01-11:00 | C205: 40 | D205: 30 | E205: 29 | F205: 19 | G205: 13 | H205: 11 | I205: 7 | J205: 9 | K205: 14 | L205: 20 | M205: 21 | N205: 55
B206: 11:01-12:00 | C206: 36 | D206: 26 | E206: 27 | F206: 18 | G206: 12 | H206: 10 | I206: 7 | J206: 8 | K206: 12 | L206: 17 | M206: 19 | N206: 52
B207: 12:01-13:00 | C207: 34 | D207: 22 | E207: 23 | F207: 17 | G207: 10 | H207: 9 | I207: 6 | J207: 7 | K207: 11 | L207: 15 | M207: 17 | N207: 48
B208: 13:01-14:00 | C208: 32 | D208: 21 | E208: 22 | F208: 15 | G208: 10 | H208: 8 | I208: 5 | J208: 7 | K208: 10 | L208: 14 | M208: 16 | N208: 45
B209: 14:01-15:00 | C209: 31 | D209: 20 | E209: 20 | F209: 14 | G209: 9 | H209: 7 | I209: 5 | J209: 7 | K209: 10 | L209: 12 | M209: 14 | N209: 38
B210: 15:01-16:00 | C210: 30 | D210: 20 | E210: 20 | F210: 15 | G210: 9 | H210: 7 | I210: 5 | J210: 7 | K210: 10 | L210: 12 | M210: 15 | N210: 40
B211: 16:01-17:00 | C211: 31 | D211: 21 | E211: 20 | F211: 16 | G211: 9 | H211: 7 | I211: 5 | J211: 7 | K211: 11 | L211: 12 | M211: 15 | N211: 43
B212: 17:01-18:00 | C212: 32 | D212: 23 | E212: 23 | F212: 18 | G212: 9 | H212: 7 | I212: 5 | J212: 8 | K212: 11 | L212: 13 | M212: 16 | N212: 44
B213: 18:01-19:00 | C213: 35 | D213: 25 | E213: 23 | F213: 21 | G213: 10 | H213: 8 | I213: 6 | J213: 8 | K213: 11 | L213: 14 | M213: 19 | N213: 50
B214: 19:01-20:00 | C214: 38 | D214: 28 | E214: 26 | F214: 21 | G214: 11 | H214: 9 | I214: 7 | J214: 9 | K214: 12 | L214: 16 | M214: 20 | N214: 53
B215: 20:01-21:00 | C215: 41 | D215: 32 | E215: 28 | F215: 22 | G215: 13 | H215: 10 | I215: 7 | J215: 9 | K215: 14 | L215: 18 | M215: 21 | N215: 56
B216: 21:01-22:00 | C216: 43 | D216: 34 | E216: 29 | F216: 23 | G216: 13 | H216: 11 | I216: 8 | J216: 10 | K216: 14 | L216: 20 | M216: 23 | N216: 57
B217: 22:01-23:00 | C217: 46 | D217: 36 | E217: 30 | F217: 26 | G217: 14 | H217: 12 | I217: 9 | J217: 10 | K217: 15 | L217: 22 | M217: 25 | N217: 59
B218: 23:01-24:00 | C218: 47 | D218: 38 | E218: 33 | F218: 26 | G218: 16 | H218: 13 | I218: 10 | J218: 11 | K218: 17 | L218: 23 | M218: 27 | N218: 64
B219: Max Hour | C219: 7 | D219: 6 | E219: 7 | F219: 6 | G219: 6 | H219: 6 | I219: 6 | J219: 6 | K219: 6 | L219: 6 | M219: 7 | N219: 7
B220: Min Hour | C220: 16 | D220: 15 | E220: 16 | F220: 15 | G220: 16 | H220: 16 | I220: 16 | J220: 15 | K220: 15 | L220: 16 | M220: 15 | N220: 15
A222: - Monthly Indicators for Precipitation/Moisture (kPa)
C223: Jan | D223: Feb | E223: Mar | F223: Apr | G223: May | H223: Jun | I223: Jul | J223: Aug | K223: Sep | L223: Oct | M223: Nov | N223: Dec
C224: 0.6 | D224: 0.6 | E224: 0.6 | F224: 0.6 | G224: 0.6 | H224: 0.6 | I224: 0.4 | J224: 0.6 | K224: 0.7 | L224: 0.6 | M224: 0.5 | N224: 0.9
A226: - Monthly Statistics for Wind Chill/Heat Index temperatures ｰC **
C227: Jan | D227: Feb | E227: Mar | F227: Apr | G227: May | H227: Jun | I227: Jul | J227: Aug | K227: Sep | L227: Oct | M227: Nov | N227: Dec
B228: Minimum WC | C228: 0 | D228: 4 | N228: -4
B229: Day:Hour | C229: 8:23 | D229: 10:05:00 | N229: 5:09
B231: Average WC | C231: 6 | D231: 7 | N231: 5
B232: Avg Del WC | C232: 3 | D232: 1 | N232: 2
B233: # Hours WC | C233: 49 | D233: 29 | N233: 70
B235: Maximum HI | F235: 27 | G235: 28 | H235: 36 | K235: 31 | L235: 28
B236: Day:Hour | F236: 6:10 | G236: 1:08 | H236: 0.63125 | K236: 0.9659722222 | L236: 16:11:00
B238: Average HI | F238: 27 | G238: 28 | H238: 33 | K238: 29 | L238: 27
... 276 more rows

Sheet Operative BP
E2: =STAT!A2 -> Statistics for SAU_Riyadh.404380_IWEC | AD2: ~ Solar Analysis | CT2: Shading Coefficents from Overhang Projections | DO2: Add Verticals? | DU2: TRUE
D3: Chhaya - Heating & Cooling Season | P3: 30 | Q3: Building E-W axis | X3: SOUTH WINDOW SECTION | AP3: ='Incident angle'!BI3 -> South Transmitted | BD3: ='Incident angle'!BW3 -> East Transmitted | BR3: South Profile | CF3: East Profile | CT3: =IF($P$17>45,"East SC","South SC") -> South SC | DH3: =IF($P$17>45,"North SC","EastSC") -> EastSC | DU3: =IF(DU2,1,0) -> 1 | DW3: ='Profile angles'!AR3 -> Altitude | EK3: =DW3 -> Altitude
B4: HR | C4: Jan | D4: Feb | E4: Mar | F4: Apr | G4: May | H4: Jun | I4: Jul | J4: Aug | K4: Sep | L4: Oct | M4: Nov | N4: Dec | Q4: (N& S Façade) | X4: 7 | AA4: 0 | AB4: 1 | AC4: 2 | AD4: 3 | AE4: 4 | AF4: 5 | AG4: 6 | AH4: 7 | AI4: 8 | AJ4: 9 | AK4: 10 | AP4: ='Incident angle'!BI4 -> 0 | AQ4: ='Incident angle'!BJ4 -> Jan | AR4: ='Incident angle'!BK4 -> Feb | AS4: ='Incident angle'!BL4 -> Mar | AT4: ='Incident angle'!BM4 -> Apr | AU4: ='Incident angle'!BN4 -> May | AV4: ='Incident angle'!BO4 -> Jun | AW4: ='Incident angle'!BP4 -> Jul | AX4: ='Incident angle'!BQ4 -> Aug | AY4: ='Incident angle'!BR4 -> Sep | AZ4: ='Incident angle'!BS4 -> Oct | BA4: ='Incident angle'!BT4 -> Nov | BB4: ='Incident angle'!BU4 -> Dec | BC4: Average | BD4: ='Incident angle'!BW4 -> 0 | BE4: ='Incident angle'!BX4 -> Jan | BF4: ='Incident angle'!BY4 -> Feb | BG4: ='Incident angle'!BZ4 -> Mar | BH4: ='Incident angle'!CA4 -> Apr | BI4: ='Incident angle'!CB4 -> May | BJ4: ='Incident angle'!CC4 -> Jun | BK4: ='Incident angle'!CD4 -> Jul | BL4: ='Incident angle'!CE4 -> Aug | BM4: ='Incident angle'!CF4 -> Sep | BN4: ='Incident angle'!CG4 -> Oct | BO4: ='Incident angle'!CH4 -> Nov | BP4: ='Incident angle'!CI4 -> Dec | BQ4: Average | BR4: ='Profile angles'!B4 -> HR | BS4: ='Profile angles'!C4 -> Jan | BT4: ='Profile angles'!D4 -> Feb | BU4: ='Profile angles'!E4 -> Mar | BV4: ='Profile angles'!F4 -> Apr | BW4: ='Profile angles'!G4 -> May | BX4: ='Profile angles'!H4 -> Jun | BY4: ='Profile angles'!I4 -> Jul | BZ4: ='Profile angles'!J4 -> Aug | CA4: ='Profile angles'!K4 -> Sep | CB4: ='Profile angles'!L4 -> Oct | CC4: ='Profile angles'!M4 -> Nov | CD4: ='Profile angles'!N4 -> Dec | CE4: =TAN(BS5) -> 12.7252086 | CF4: ='Profile angles'!B33 -> HR | CG4: ='Profile angles'!C33 -> Jan | CH4: ='Profile angles'!D33 -> Feb | CI4: ='Profile angles'!E33 -> Mar | CJ4: ='Profile angles'!F33 -> Apr | CK4: ='Profile angles'!G33 -> May | CL4: ='Profile angles'!H33 -> Jun | CM4: ='Profile angles'!I33 -> Jul | CN4: ='Profile angles'!J33 -> Aug | CO4: ='Profile angles'!K33 -> Sep | CP4: ='Profile angles'!L33 -> Oct | CQ4: ='Profile angles'!M33 -> Nov | CR4: ='Profile angles'!N33 -> Dec | CT4: ='Profile angles'!AD4 -> HR | CU4: ='Profile angles'!AE4 -> Jan | CV4: ='Profile angles'!AF4 -> Feb | CW4: ='Profile angles'!AG4 -> Mar | CX4: ='Profile angles'!AH4 -> Apr | CY4: ='Profile angles'!AI4 -> May | CZ4: ='Profile angles'!AJ4 -> Jun | DA4: ='Profile angles'!AK4 -> Jul | DB4: ='Profile angles'!AL4 -> Aug | DC4: ='Profile angles'!AM4 -> Sep | DD4: ='Profile angles'!AN4 -> Oct | DE4: ='Profile angles'!AO4 -> Nov | DF4: ='Profile angles'!AP4 -> Dec | DH4: =CT4 -> HR | DI4: =CU4 -> Jan | DJ4: Feb | DK4: Mar | DL4: Apr | DM4: May | DN4: Jun | DO4: Jul | DP4: Aug | DQ4: Sep | DR4: Oct | DS4: Nov | DT4: Dec | DW4: ='Profile angles'!AR4 -> 0 | DX4: ='Profile angles'!AS4 -> Jan | DY4: ='Profile angles'!AT4 -> Feb | DZ4: ='Profile angles'!AU4 -> Mar | EA4: ='Profile angles'!AV4 -> Apr | EB4: ='Profile angles'!AW4 -> May | EC4: ='Profile angles'!AX4 -> Jun | ED4: ='Profile angles'!AY4 -> Jul | EE4: ='Profile angles'!AZ4 -> Aug | EF4: ='Profile angles'!BA4 -> Sep | EG4: ='Profile angles'!BB4 -> Oct | EH4: ='Profile angles'!BC4 -> Nov | EI4: ='Profile angles'!BD4 -> Dec
B5: 1 | C5: =IF($T$36="y",'Dry Bulb'!D5-C336,'Dry Bulb'!D5-C220) -> -10.09919321 | D5: =IF($T$36="y",'Dry Bulb'!E5-D336,'Dry Bulb'!E5-D220) -> -5.599193206 | E5: =IF($T$36="y",'Dry Bulb'!F5-E336,'Dry Bulb'!F5-E220) -> -5.759193206 | F5: =IF($T$36="y",'Dry Bulb'!G5-F336,'Dry Bulb'!G5-F220) -> 2.610556093 | G5: =IF($T$36="y",'Dry Bulb'!H5-G336,'Dry Bulb'!H5-G220) -> 14.58080679 | H5: =IF($T$36="y",'Dry Bulb'!I5-H336,'Dry Bulb'!I5-H220) -> 19.62080679 | I5: =IF($T$36="y",'Dry Bulb'!J5-I336,'Dry Bulb'!J5-I220) -> 20.88080679 | J5: =IF($T$36="y",'Dry Bulb'!K5-J336,'Dry Bulb'!K5-J220) -> 21.42080679 | K5: =IF($T$36="y",'Dry Bulb'!L5-K336,'Dry Bulb'!L5-K220) -> 15.84080679 | L5: =IF($T$36="y",'Dry Bulb'!M5-L336,'Dry Bulb'!M5-L220) -> 6.373498514 | M5: =IF($T$36="y",'Dry Bulb'!N5-M336,'Dry Bulb'!N5-M220) -> -7.128824289 | N5: =IF($T$36="y",'Dry Bulb'!O5-N336,'Dry Bulb'!O5-N220) -> -8.119193206 | R5: ` | X5: =X4*AC10 -> 7 | Y5: HEAD | AP5: ='Incident angle'!BI5 -> 1 | AQ5: ='Incident angle'!BJ5 -> 0 | AR5: ='Incident angle'!BK5 -> 0 | AS5: ='Incident angle'!BL5 -> 0 | AT5: ='Incident angle'!BM5 -> 0 | AU5: ='Incident angle'!BN5 -> 0 | AV5: ='Incident angle'!BO5 -> 0 | AW5: ='Incident angle'!BP5 -> 0 | AX5: ='Incident angle'!BQ5 -> 0 | AY5: ='Incident angle'!BR5 -> 0 | AZ5: ='Incident angle'!BS5 -> 0 | BA5: ='Incident angle'!BT5 -> 0 | BB5: ='Incident angle'!BU5 -> 0 | BC5: =AVERAGEIF(AS5:AZ28,">0") -> 319.3399318 | BD5: ='Incident angle'!BW5 -> 1 | BE5: ='Incident angle'!BX5 -> 0 | BF5: ='Incident angle'!BY5 -> 0 | BG5: ='Incident angle'!BZ5 -> 0 | BH5: ='Incident angle'!CA5 -> 0 | BI5: ='Incident angle'!CB5 -> 0 | BJ5: ='Incident angle'!CC5 -> 0 | BK5: ='Incident angle'!CD5 -> 0 | BL5: ='Incident angle'!CE5 -> 0 | BM5: ='Incident angle'!CF5 -> 0 | BN5: ='Incident angle'!CG5 -> 0 | BO5: ='Incident angle'!CH5 -> 0 | BP5: ='Incident angle'!CI5 -> 0 | BQ5: =AVERAGEIF(BG5:BN28,">0") -> 1847.441793 | BR5: ='Profile angles'!B5 -> 1 | BS5: =RADIANS('Profile angles'!C5) -> 1.492373321 | BT5: =RADIANS('Profile angles'!D5) -> 1.327348921 | BU5: =RADIANS('Profile angles'!E5) -> 1.139700002 | BV5: =RADIANS('Profile angles'!F5) -> 0.9262866187 | BW5: =RADIANS('Profile angles'!G5) -> 0.7754133292 | BX5: =RADIANS('Profile angles'!H5) -> 0.7210558079 | BY5: =RADIANS('Profile angles'!I5) -> 0.775005626 | BZ5: =RADIANS('Profile angles'!J5) -> 0.9234490993 | CA5: =RADIANS('Profile angles'!K5) -> 1.139700002 | CB5: =RADIANS('Profile angles'!L5) -> 1.33484066 | CC5: =RADIANS('Profile angles'!M5) -> 1.500983956 | CD5: =RADIANS('Profile angles'!N5) -> 1.559489451 | CE5: =TAN(BS6) -> 20.01872087 | CF5: ='Profile angles'!B34 -> 1 | CG5: =RADIANS('Profile angles'!C34) -> -1.399441038 | CH5: =RADIANS('Profile angles'!D34) -> -1.398722443 | CI5: =RADIANS('Profile angles'!E34) -> -1.353506719 | CJ5: =RADIANS('Profile angles'!F34) -> -1.285475101 | CK5: =RADIANS('Profile angles'!G34) -> -1.248594041 | CL5: =RADIANS('Profile angles'!H34) -> -1.264621229 | CM5: =RADIANS('Profile angles'!I34) -> -1.301791763 | CN5: =RADIANS('Profile angles'!J34) -> -1.303298802 | CO5: =RADIANS('Profile angles'!K34) -> -1.282258212 | CP5: =RADIANS('Profile angles'!L34) -> -1.270409941 | CQ5: =RADIANS('Profile angles'!M34) -> -1.297104038 | CR5: =RADIANS('Profile angles'!N34) -> -1.353086868 | CT5: ='Profile angles'!AD5 -> 1 | CU5: =(IF($AH$12<DEGREES(BS5),0+$AJ$16,1-((TAN(BS5)/TAN($AG$14))*(1-$AJ$16))))*(('Surface Solar Azimuth Angles'!BX4*$DU$3)+1-$DU$3) -> 0 | CV5: =(IF($AH$12<DEGREES(BT5),0+$AJ$16,1-((TAN(BT5)/TAN($AG$14))*(1-$AJ$16))))*(('Surface Solar Azimuth Angles'!BY4*$DU$3)+1-$DU$3) -> 0 | CW5: =(IF($AH$12<DEGREES(BU5),0+$AJ$16,1-((TAN(BU5)/TAN($AG$14))*(1-$AJ$16))))*(('Surface Solar Azimuth Angles'!BZ4*$DU$3)+1-$DU$3) -> 0 | CX5: =(IF($AH$12<DEGREES(BV5),0+$AJ$16,1-((TAN(BV5)/TAN($AG$14))*(1-$AJ$16))))*(('Surface Solar Azimuth Angles'!CA4*$DU$3)+1-$DU$3) -> 0.0552337272 | CY5: =(IF($AH$12<DEGREES(BW5),0+$AJ$16,1-((TAN(BW5)/TAN($AG$14))*(1-$AJ$16))))*(('Surface Solar Azimuth Angles'!CB4*$DU$3)+1-$DU$3) -> 0.2624912309 | CZ5: =(IF($AH$12<DEGREES(BX5),0+$AJ$16,1-((TAN(BX5)/TAN($AG$14))*(1-$AJ$16))))*(('Surface Solar Azimuth Angles'!CC4*$DU$3)+1-$DU$3) -> 0.3312939992 | DA5: =(IF($AH$12<DEGREES(BY5),0+$AJ$16,1-((TAN(BY5)/TAN($AG$14))*(1-$AJ$16))))*(('Surface Solar Azimuth Angles'!CD4*$DU$3)+1-$DU$3) -> 0.2719539504 | DB5: =(IF($AH$12<DEGREES(BZ5),0+$AJ$16,1-((TAN(BZ5)/TAN($AG$14))*(1-$AJ$16))))*(('Surface Solar Azimuth Angles'!CE4*$DU$3)+1-$DU$3) -> 0.06067490052 | DC5: =(IF($AH$12<DEGREES(CA5),0+$AJ$16,1-((TAN(CA5)/TAN($AG$14))*(1-$AJ$16))))*(('Surface Solar Azimuth Angles'!CF4*$DU$3)+1-$DU$3) -> 0 | DD5: =(IF($AH$12<DEGREES(CB5),0+$AJ$16,1-((TAN(CB5)/TAN($AG$14))*(1-$AJ$16))))*(('Surface Solar Azimuth Angles'!CG4*$DU$3)+1-$DU$3) -> 0 | DE5: =(IF($AH$12<DEGREES(CC5),0+$AJ$16,1-((TAN(CC5)/TAN($AG$14))*(1-$AJ$16))))*(('Surface Solar Azimuth Angles'!CH4*$DU$3)+1-$DU$3) -> 0 | DF5: =(IF($AH$12<DEGREES(CD5),0+$AJ$16,1-((TAN(CD5)/TAN($AG$14))*(1-$AJ$16))))*(('Surface Solar Azimuth Angles'!CI4*$DU$3)+1-$DU$3) -> 0 | DH5: =CT5 -> 1 | DI5: =(IF($AH$46<DEGREES(CG5),0+$AJ$50,1-((TAN(CG5)/TAN($AG$48))*(1-$AJ$50))))*(('Surface Solar Azimuth Angles'!CL4*$DU$3)+1-$DU$3) -> 3.452876074 | DJ5: =(IF($AH$46<DEGREES(CH5),0+$AJ$50,1-((TAN(CH5)/TAN($AG$48))*(1-$AJ$50))))*(('Surface Solar Azimuth Angles'!CM4*$DU$3)+1-$DU$3) -> 1.270849479 | DK5: =(IF($AH$46<DEGREES(CI5),0+$AJ$50,1-((TAN(CI5)/TAN($AG$48))*(1-$AJ$50))))*(('Surface Solar Azimuth Angles'!CN4*$DU$3)+1-$DU$3) -> 0 | DL5: =(IF($AH$46<DEGREES(CJ5),0+$AJ$50,1-((TAN(CJ5)/TAN($AG$48))*(1-$AJ$50))))*(('Surface Solar Azimuth Angles'!CO4*$DU$3)+1-$DU$3) -> 0 | DM5: =(IF($AH$46<DEGREES(CK5),0+$AJ$50,1-((TAN(CK5)/TAN($AG$48))*(1-$AJ$50))))*(('Surface Solar Azimuth Angles'!CP4*$DU$3)+1-$DU$3) -> 0 | DN5: =(IF($AH$46<DEGREES(CL5),0+$AJ$50,1-((TAN(CL5)/TAN($AG$48))*(1-$AJ$50))))*(('Surface Solar Azimuth Angles'!CQ4*$DU$3)+1-$DU$3) -> 0 | DO5: =(IF($AH$46<DEGREES(CM5),0+$AJ$50,1-((TAN(CM5)/TAN($AG$48))*(1-$AJ$50))))*(('Surface Solar Azimuth Angles'!CR4*$DU$3)+1-$DU$3) -> 0 | DP5: =(IF($AH$46<DEGREES(CN5),0+$AJ$50,1-((TAN(CN5)/TAN($AG$48))*(1-$AJ$50))))*(('Surface Solar Azimuth Angles'!CS4*$DU$3)+1-$DU$3) -> 0 | DQ5: =(IF($AH$46<DEGREES(CO5),0+$AJ$50,1-((TAN(CO5)/TAN($AG$48))*(1-$AJ$50))))*(('Surface Solar Azimuth Angles'!CT4*$DU$3)+1-$DU$3) -> 0.6804530027 | DR5: =(IF($AH$46<DEGREES(CP5),0+$AJ$50,1-((TAN(CP5)/TAN($AG$48))*(1-$AJ$50))))*(('Surface Solar Azimuth Angles'!CU4*$DU$3)+1-$DU$3) -> 1.797146528 | DS5: =(IF($AH$46<DEGREES(CQ5),0+$AJ$50,1-((TAN(CQ5)/TAN($AG$48))*(1-$AJ$50))))*(('Surface Solar Azimuth Angles'!CV4*$DU$3)+1-$DU$3) -> 2.746518921 | DT5: =(IF($AH$46<DEGREES(CR5),0+$AJ$50,1-((TAN(CR5)/TAN($AG$48))*(1-$AJ$50))))*(('Surface Solar Azimuth Angles'!CW4*$DU$3)+1-$DU$3) -> 3.61741039 | DW5: ='Profile angles'!AR5 -> 1 | DX5: ='Profile angles'!AS5 -> -79.23874526 | DY5: ='Profile angles'!AT5 -> -73.13589021 | DZ5: ='Profile angles'!AU5 -> -62.96975399 | EA5: ='Profile angles'!AV5 -> -51.10381574 | EB5: ='Profile angles'!AW5 -> -42.97242076 | EC5: ='Profile angles'!AX5 -> -40.25983897 | ED5: ='Profile angles'!AY5 -> -43.39732666 | EE5: ='Profile angles'!AZ5 -> -51.19481394 | EF5: ='Profile angles'!BA5 -> -61.30334442 | EG5: ='Profile angles'!BB5 -> -68.58875693 | EH5: ='Profile angles'!BC5 -> -73.86405782 | EI5: ='Profile angles'!BD5 -> -77.51039292 | EK5: =DW5 -> 1 | EL5: =DX5 -> -79.23874526 | EM5: -73.13589021 | EN5: -62.96975399 | EO5: -51.10381574 | EP5: -42.97242076 | EQ5: -40.25983897 | ER5: -43.39732666 | ES5: -51.19481394 | ET5: -61.30334442 | EU5: -68.58875693 | EV5: -73.86405782 | EW5: =EI5 -> -77.51039292
B6: 2 | C6: =IF($T$36="y",'Dry Bulb'!D6-C337,'Dry Bulb'!D6-C221) -> -10.99919321 | D6: =IF($T$36="y",'Dry Bulb'!E6-D337,'Dry Bulb'!E6-D221) -> -6.679193206 | E6: =IF($T$36="y",'Dry Bulb'!F6-E337,'Dry Bulb'!F6-E221) -> -7.019193206 | F6: =IF($T$36="y",'Dry Bulb'!G6-F337,'Dry Bulb'!G6-F221) -> 1.282458769 | G6: =IF($T$36="y",'Dry Bulb'!H6-G337,'Dry Bulb'!H6-G221) -> 13.14080679 | H6: =IF($T$36="y",'Dry Bulb'!I6-H337,'Dry Bulb'!I6-H221) -> 17.82080679 | I6: =IF($T$36="y",'Dry Bulb'!J6-I337,'Dry Bulb'!J6-I221) -> 19.26080679 | J6: =IF($T$36="y",'Dry Bulb'!K6-J337,'Dry Bulb'!K6-J221) -> 19.80080679 | K6: =IF($T$36="y",'Dry Bulb'!L6-K337,'Dry Bulb'!L6-K221) -> 14.04080679 | L6: =IF($T$36="y",'Dry Bulb'!M6-L337,'Dry Bulb'!M6-L221) -> 4.824051635 | M6: =IF($T$36="y",'Dry Bulb'!N6-M337,'Dry Bulb'!N6-M221) -> -6.479193206 | N6: =IF($T$36="y",'Dry Bulb'!O6-N337,'Dry Bulb'!O6-N221) -> -8.839193206 | P6: 30 | Q6: Building N-S Axis | W6: 10 | AC6: OVERHANG | AP6: ='Incident angle'!BI6 -> 2 | AQ6: ='Incident angle'!BJ6 -> 0 | AR6: ='Incident angle'!BK6 -> 0 | AS6: ='Incident angle'!BL6 -> 0 | AT6: ='Incident angle'!BM6 -> 0 | AU6: ='Incident angle'!BN6 -> 0 | AV6: ='Incident angle'!BO6 -> 0 | AW6: ='Incident angle'!BP6 -> 0 | AX6: ='Incident angle'!BQ6 -> 0 | AY6: ='Incident angle'!BR6 -> 0 | AZ6: ='Incident angle'!BS6 -> 0 | BA6: ='Incident angle'!BT6 -> 0 | BB6: ='Incident angle'!BU6 -> 0 | BC6: Max M-N | BD6: ='Incident angle'!BW6 -> 2 | BE6: ='Incident angle'!BX6 -> 0 | BF6: ='Incident angle'!BY6 -> 0 | BG6: ='Incident angle'!BZ6 -> 0 | BH6: ='Incident angle'!CA6 -> 0 | BI6: ='Incident angle'!CB6 -> 0 | BJ6: ='Incident angle'!CC6 -> 0 | BK6: ='Incident angle'!CD6 -> 0 | BL6: ='Incident angle'!CE6 -> 0 | BM6: ='Incident angle'!CF6 -> 0 | BN6: ='Incident angle'!CG6 -> 0 | BO6: ='Incident angle'!CH6 -> 0 | BP6: ='Incident angle'!CI6 -> 0 | BQ6: Max | BR6: ='Profile angles'!B6 -> 2 | BS6: =RADIANS('Profile angles'!C6) -> 1.520884573 | BT6: =RADIANS('Profile angles'!D6) -> 1.342916043 | BU6: =RADIANS('Profile angles'!E6) -> 1.139700002 | BV6: =RADIANS('Profile angles'!F6) -> 0.904369885 | BW6: =RADIANS('Profile angles'!G6) -> 0.7394311354 | BX6: =RADIANS('Profile angles'!H6) -> 0.6835402626 | BY6: =RADIANS('Profile angles'!I6) -> 0.7434435506 | BZ6: =RADIANS('Profile angles'!J6) -> 0.9023151498 | CA6: =RADIANS('Profile angles'!K6) -> 1.139700002 | CB6: =RADIANS('Profile angles'!L6) -> 1.359081745 | CC6: =RADIANS('Profile angles'!M6) -> 1.541839674 | CD6: =RADIANS('Profile angles'!N6) -> -1.542946372 | CE6: -78.54346487 | CF6: ='Profile angles'!B35 -> 2 | CG6: =RADIANS('Profile angles'!C35) -> -1.154921006 | CH6: =RADIANS('Profile angles'!D35) -> -1.136916401 | CI6: =RADIANS('Profile angles'!E35) -> -1.071800834 | CJ6: =RADIANS('Profile angles'!F35) -> -0.9794688004 | CK6: =RADIANS('Profile angles'!G35) -> -0.9216498219 | CL6: =RADIANS('Profile angles'!H35) -> -0.9262728412 | CM6: =RADIANS('Profile angles'!I35) -> -0.9705337535 | CN6: =RADIANS('Profile angles'!J35) -> -0.9958647179 | CO6: =RADIANS('Profile angles'!K35) -> -1.00301498 | CP6: =RADIANS('Profile angles'!L35) -> -1.011882407 | CQ6: =RADIANS('Profile angles'!M35) -> -1.054358351 | CR6: =RADIANS('Profile angles'!N35) -> -1.115723857 | CT6: ='Profile angles'!AD6 -> 2 | CU6: =(IF($AH$12<DEGREES(BS6),0+$AJ$16,1-((TAN(BS6)/TAN($AG$14))*(1-$AJ$16))))*(('Surface Solar Azimuth Angles'!BX5*$DU$3)+1-$DU$3) -> 0 | CV6: =(IF($AH$12<DEGREES(BT6),0+$AJ$16,1-((TAN(BT6)/TAN($AG$14))*(1-$AJ$16))))*(('Surface Solar Azimuth Angles'!BY5*$DU$3)+1-$DU$3) -> 0 | CW6: =(IF($AH$12<DEGREES(BU6),0+$AJ$16,1-((TAN(BU6)/TAN($AG$14))*(1-$AJ$16))))*(('Surface Solar Azimuth Angles'!BZ5*$DU$3)+1-$DU$3) -> 0 | CX6: =(IF($AH$12<DEGREES(BV6),0+$AJ$16,1-((TAN(BV6)/TAN($AG$14))*(1-$AJ$16))))*(('Surface Solar Azimuth Angles'!CA5*$DU$3)+1-$DU$3) -> 0.06299985151 | CY6: =(IF($AH$12<DEGREES(BW6),0+$AJ$16,1-((TAN(BW6)/TAN($AG$14))*(1-$AJ$16))))*(('Surface Solar Azimuth Angles'!CB5*$DU$3)+1-$DU$3) -> 0.236444199 | CZ6: =(IF($AH$12<DEGREES(BX6),0+$AJ$16,1-((TAN(BX6)/TAN($AG$14))*(1-$AJ$16))))*(('Surface Solar Azimuth Angles'!CC5*$DU$3)+1-$DU$3) -> 0.2982561016 | DA6: =(IF($AH$12<DEGREES(BY6),0+$AJ$16,1-((TAN(BY6)/TAN($AG$14))*(1-$AJ$16))))*(('Surface Solar Azimuth Angles'!CD5*$DU$3)+1-$DU$3) -> 0.2442491072 | DB6: =(IF($AH$12<DEGREES(BZ6),0+$AJ$16,1-((TAN(BZ6)/TAN($AG$14))*(1-$AJ$16))))*(('Surface Solar Azimuth Angles'!CE5*$DU$3)+1-$DU$3) -> 0.06704951093 | DC6: =(IF($AH$12<DEGREES(CA6),0+$AJ$16,1-((TAN(CA6)/TAN($AG$14))*(1-$AJ$16))))*(('Surface Solar Azimuth Angles'!CF5*$DU$3)+1-$DU$3) -> 0 | DD6: =(IF($AH$12<DEGREES(CB6),0+$AJ$16,1-((TAN(CB6)/TAN($AG$14))*(1-$AJ$16))))*(('Surface Solar Azimuth Angles'!CG5*$DU$3)+1-$DU$3) -> 0 | DE6: =(IF($AH$12<DEGREES(CC6),0+$AJ$16,1-((TAN(CC6)/TAN($AG$14))*(1-$AJ$16))))*(('Surface Solar Azimuth Angles'!CH5*$DU$3)+1-$DU$3) -> 0 | DF6: =(IF($AH$12<DEGREES(CD6),0+$AJ$16,1-((TAN(CD6)/TAN($AG$14))*(1-$AJ$16))))*(('Surface Solar Azimuth Angles'!CI5*$DU$3)+1-$DU$3) -> 0 | DH6: 2 | DI6: =(IF($AH$46<DEGREES(CG6),0+$AJ$50,1-((TAN(CG6)/TAN($AG$48))*(1-$AJ$50))))*(('Surface Solar Azimuth Angles'!CL5*$DU$3)+1-$DU$3) -> 2.225199939 | DJ6: =(IF($AH$46<DEGREES(CH6),0+$AJ$50,1-((TAN(CH6)/TAN($AG$48))*(1-$AJ$50))))*(('Surface Solar Azimuth Angles'!CM5*$DU$3)+1-$DU$3) -> 1.720630768 | DK6: =(IF($AH$46<DEGREES(CI6),0+$AJ$50,1-((TAN(CI6)/TAN($AG$48))*(1-$AJ$50))))*(('Surface Solar Azimuth Angles'!CN5*$DU$3)+1-$DU$3) -> 1.214390275 | DL6: =(IF($AH$46<DEGREES(CJ6),0+$AJ$50,1-((TAN(CJ6)/TAN($AG$48))*(1-$AJ$50))))*(('Surface Solar Azimuth Angles'!CO5*$DU$3)+1-$DU$3) -> 0.7846631003 | DM6: =(IF($AH$46<DEGREES(CK6),0+$AJ$50,1-((TAN(CK6)/TAN($AG$48))*(1-$AJ$50))))*(('Surface Solar Azimuth Angles'!CP5*$DU$3)+1-$DU$3) -> 0.4970450757 | DN6: =(IF($AH$46<DEGREES(CL6),0+$AJ$50,1-((TAN(CL6)/TAN($AG$48))*(1-$AJ$50))))*(('Surface Solar Azimuth Angles'!CQ5*$DU$3)+1-$DU$3) -> 0.3295859964 | DO6: =(IF($AH$46<DEGREES(CM6),0+$AJ$50,1-((TAN(CM6)/TAN($AG$48))*(1-$AJ$50))))*(('Surface Solar Azimuth Angles'!CR5*$DU$3)+1-$DU$3) -> 0.3857195795 | DP6: =(IF($AH$46<DEGREES(CN6),0+$AJ$50,1-((TAN(CN6)/TAN($AG$48))*(1-$AJ$50))))*(('Surface Solar Azimuth Angles'!CS5*$DU$3)+1-$DU$3) -> 0.7521981081 | DQ6: =(IF($AH$46<DEGREES(CO6),0+$AJ$50,1-((TAN(CO6)/TAN($AG$48))*(1-$AJ$50))))*(('Surface Solar Azimuth Angles'!CT5*$DU$3)+1-$DU$3) -> 1.240961595 | DR6: =(IF($AH$46<DEGREES(CP6),0+$AJ$50,1-((TAN(CP6)/TAN($AG$48))*(1-$AJ$50))))*(('Surface Solar Azimuth Angles'!CU5*$DU$3)+1-$DU$3) -> 1.622660562 | DS6: =(IF($AH$46<DEGREES(CQ6),0+$AJ$50,1-((TAN(CQ6)/TAN($AG$48))*(1-$AJ$50))))*(('Surface Solar Azimuth Angles'!CV5*$DU$3)+1-$DU$3) -> 2.004179673 | DT6: =(IF($AH$46<DEGREES(CR6),0+$AJ$50,1-((TAN(CR6)/TAN($AG$48))*(1-$AJ$50))))*(('Surface Solar Azimuth Angles'!CW5*$DU$3)+1-$DU$3) -> 2.162807363 | DW6: ='Profile angles'!AR6 -> 2 | DX6: ='Profile angles'!AS6 -> -66.03722188 | DY6: ='Profile angles'!AT6 -> -62.61026212 | DZ6: ='Profile angles'!AU6 -> -54.50560349 | EA6: ='Profile angles'!AV6 -> -44.03913842 | EB6: ='Profile angles'!AW6 -> -36.86790387 | EC6: ='Profile angles'!AX6 -> -34.78729021 | ED6: ='Profile angles'!AY6 -> -37.88788345 | EE6: ='Profile angles'!AZ6 -> -44.38878854 | EF6: ='Profile angles'!BA6 -> -51.81913703 | EG6: ='Profile angles'!BB6 -> -56.52177531 | EH6: ='Profile angles'!BC6 -> -60.37830881 | EI6: ='Profile angles'!BD6 -> -63.88965349 | EK6: =DW6 -> 2 | EL6: -66.03722188 | EM6: -62.61026212 | EN6: -54.50560349 | EO6: -44.03913842 | EP6: -36.86790387 | EQ6: -34.78729021 | ER6: -37.88788345 | ES6: -44.38878854 | ET6: -51.81913703 | EU6: -56.52177531 | EV6: -60.37830881 | EW6: -63.88965349
B7: 3 | C7: =IF($T$36="y",'Dry Bulb'!D7-C338,'Dry Bulb'!D7-C222) -> -11.53919321 | D7: =IF($T$36="y",'Dry Bulb'!E7-D338,'Dry Bulb'!E7-D222) -> -7.759193206 | E7: =IF($T$36="y",'Dry Bulb'!F7-E338,'Dry Bulb'!F7-E222) -> -8.279193206 | F7: =IF($T$36="y",'Dry Bulb'!G7-F338,'Dry Bulb'!G7-F222) -> -0.04563855626 | G7: =IF($T$36="y",'Dry Bulb'!H7-G338,'Dry Bulb'!H7-G222) -> 12.06080679 | H7: =IF($T$36="y",'Dry Bulb'!I7-H338,'Dry Bulb'!I7-H222) -> 16.92080679 | I7: =IF($T$36="y",'Dry Bulb'!J7-I338,'Dry Bulb'!J7-I222) -> 18.18080679 | J7: =IF($T$36="y",'Dry Bulb'!K7-J338,'Dry Bulb'!K7-J222) -> 18.18080679 | K7: =IF($T$36="y",'Dry Bulb'!L7-K338,'Dry Bulb'!L7-K222) -> 12.42080679 | L7: =IF($T$36="y",'Dry Bulb'!M7-L338,'Dry Bulb'!M7-L222) -> 2.831905648 | M7: =IF($T$36="y",'Dry Bulb'!N7-M338,'Dry Bulb'!N7-M222) -> -7.739193206 | N7: =IF($T$36="y",'Dry Bulb'!O7-N338,'Dry Bulb'!O7-N222) -> -9.559193206 | Q7: (E&W Façade) | AP7: ='Incident angle'!BI7 -> 3 | AQ7: ='Incident angle'!BJ7 -> 0 | AR7: ='Incident angle'!BK7 -> 0 | AS7: ='Incident angle'!BL7 -> 0 | AT7: ='Incident angle'!BM7 -> 0 | AU7: ='Incident angle'!BN7 -> 0 | AV7: ='Incident angle'!BO7 -> 0 | AW7: ='Incident angle'!BP7 -> 0 | AX7: ='Incident angle'!BQ7 -> 0 | AY7: ='Incident angle'!BR7 -> 0 | AZ7: ='Incident angle'!BS7 -> 0 | BA7: ='Incident angle'!BT7 -> 0 | BB7: ='Incident angle'!BU7 -> 0 | BC7: =MAX(AS5:AZ28) -> 459.6934212 | BD7: ='Incident angle'!BW7 -> 3 | BE7: ='Incident angle'!BX7 -> 0 | BF7: ='Incident angle'!BY7 -> 0 | BG7: ='Incident angle'!BZ7 -> 0 | BH7: ='Incident angle'!CA7 -> 0 | BI7: ='Incident angle'!CB7 -> 0 | BJ7: ='Incident angle'!CC7 -> 0 | BK7: ='Incident angle'!CD7 -> 0 | BL7: ='Incident angle'!CE7 -> 0 | BM7: ='Incident angle'!CF7 -> 0 | BN7: ='Incident angle'!CG7 -> 0 | BO7: ='Incident angle'!CH7 -> 0 | BP7: ='Incident angle'!CI7 -> 0 | BQ7: =MAX(BG5:BN28) -> 3826.08636 | BR7: ='Profile angles'!B7 -> 3 | BS7: =RADIANS('Profile angles'!C7) -> -1.558065211 | BT7: =RADIANS('Profile angles'!D7) -> 1.378440347 | BU7: =RADIANS('Profile angles'!E7) -> 1.139700002 | BV7: =RADIANS('Profile angles'!F7) -> 0.8570033997 | BW7: =RADIANS('Profile angles'!G7) -> 0.6644417973 | BX7: =RADIANS('Profile angles'!H7) -> 0.6053095682 | BY7: =RADIANS('Profile angles'!I7) -> 0.6756539377 | BZ7: =RADIANS('Profile angles'!J7) -> 0.8562266759 | CA7: =RADIANS('Profile angles'!K7) -> 1.139700002 | CB7: =RADIANS('Profile angles'!L7) -> 1.41029856 | CC7: =RADIANS('Profile angles'!M7) -> -1.516485014 | CD7: =RADIANS('Profile angles'!N7) -> -1.462090505 | CE7: -7.273668704 | CF7: ='Profile angles'!B36 -> 3 | CG7: =RADIANS('Profile angles'!C36) -> -0.9151663031 | CH7: =RADIANS('Profile angles'!D36) -> -0.8821622416 | CI7: =RADIANS('Profile angles'!E36) -> -0.8014439226 | CJ7: =RADIANS('Profile angles'!F36) -> -0.6925909044 | CK7: =RADIANS('Profile angles'!G36) -> -0.6220903131 | CL7: =RADIANS('Profile angles'!H36) -> -0.6189789536 | CM7: =RADIANS('Profile angles'!I36) -> -0.6660665884 | CN7: =RADIANS('Profile angles'!J36) -> -0.7074548258 | CO7: =RADIANS('Profile angles'!K36) -> -0.7359036106 | CP7: =RADIANS('Profile angles'!L36) -> -0.7613719877 | CQ7: =RADIANS('Profile angles'!M36) -> -0.8169092046 | CR7: =RADIANS('Profile angles'!N36) -> -0.8826580763 | CT7: ='Profile angles'!AD7 -> 3 | CU7: =(IF($AH$12<DEGREES(BS7),0+$AJ$16,1-((TAN(BS7)/TAN($AG$14))*(1-$AJ$16))))*(('Surface Solar Azimuth Angles'!BX6*$DU$3)+1-$DU$3) -> 0 | CV7: =(IF($AH$12<DEGREES(BT7),0+$AJ$16,1-((TAN(BT7)/TAN($AG$14))*(1-$AJ$16))))*(('Surface Solar Azimuth Angles'!BY6*$DU$3)+1-$DU$3) -> 0 | CW7: =(IF($AH$12<DEGREES(BU7),0+$AJ$16,1-((TAN(BU7)/TAN($AG$14))*(1-$AJ$16))))*(('Surface Solar Azimuth Angles'!BZ6*$DU$3)+1-$DU$3) -> 0 | CX7: =(IF($AH$12<DEGREES(BV7),0+$AJ$16,1-((TAN(BV7)/TAN($AG$14))*(1-$AJ$16))))*(('Surface Solar Azimuth Angles'!CA6*$DU$3)+1-$DU$3) -> 0.05836040249 | CY7: =(IF($AH$12<DEGREES(BW7),0+$AJ$16,1-((TAN(BW7)/TAN($AG$14))*(1-$AJ$16))))*(('Surface Solar Azimuth Angles'!CB6*$DU$3)+1-$DU$3) -> 0.2050189337 | CZ7: =(IF($AH$12<DEGREES(BX7),0+$AJ$16,1-((TAN(BX7)/TAN($AG$14))*(1-$AJ$16))))*(('Surface Solar Azimuth Angles'!CC6*$DU$3)+1-$DU$3) -> 0.2652001458 | DA7: =(IF($AH$12<DEGREES(BY7),0+$AJ$16,1-((TAN(BY7)/TAN($AG$14))*(1-$AJ$16))))*(('Surface Solar Azimuth Angles'!CD6*$DU$3)+1-$DU$3) -> 0.2151113978 | DB7: =(IF($AH$12<DEGREES(BZ7),0+$AJ$16,1-((TAN(BZ7)/TAN($AG$14))*(1-$AJ$16))))*(('Surface Solar Azimuth Angles'!CE6*$DU$3)+1-$DU$3) -> 0.06294267435 | DC7: =(IF($AH$12<DEGREES(CA7),0+$AJ$16,1-((TAN(CA7)/TAN($AG$14))*(1-$AJ$16))))*(('Surface Solar Azimuth Angles'!CF6*$DU$3)+1-$DU$3) -> 0 | DD7: =(IF($AH$12<DEGREES(CB7),0+$AJ$16,1-((TAN(CB7)/TAN($AG$14))*(1-$AJ$16))))*(('Surface Solar Azimuth Angles'!CG6*$DU$3)+1-$DU$3) -> 0 | DE7: =(IF($AH$12<DEGREES(CC7),0+$AJ$16,1-((TAN(CC7)/TAN($AG$14))*(1-$AJ$16))))*(('Surface Solar Azimuth Angles'!CH6*$DU$3)+1-$DU$3) -> 0 | DF7: =(IF($AH$12<DEGREES(CD7),0+$AJ$16,1-((TAN(CD7)/TAN($AG$14))*(1-$AJ$16))))*(('Surface Solar Azimuth Angles'!CI6*$DU$3)+1-$DU$3) -> 0 | DH7: 3 | DI7: =(IF($AH$46<DEGREES(CG7),0+$AJ$50,1-((TAN(CG7)/TAN($AG$48))*(1-$AJ$50))))*(('Surface Solar Azimuth Angles'!CL6*$DU$3)+1-$DU$3) -> 1.765372318 | DJ7: =(IF($AH$46<DEGREES(CH7),0+$AJ$50,1-((TAN(CH7)/TAN($AG$48))*(1-$AJ$50))))*(('Surface Solar Azimuth Angles'!CM6*$DU$3)+1-$DU$3) -> 1.524427708 | DK7: =(IF($AH$46<DEGREES(CI7),0+$AJ$50,1-((TAN(CI7)/TAN($AG$48))*(1-$AJ$50))))*(('Surface Solar Azimuth Angles'!CN6*$DU$3)+1-$DU$3) -> 1.234962215 | DL7: =(IF($AH$46<DEGREES(CJ7),0+$AJ$50,1-((TAN(CJ7)/TAN($AG$48))*(1-$AJ$50))))*(('Surface Solar Azimuth Angles'!CO6*$DU$3)+1-$DU$3) -> 0.9596223845 | DM7: =(IF($AH$46<DEGREES(CK7),0+$AJ$50,1-((TAN(CK7)/TAN($AG$48))*(1-$AJ$50))))*(('Surface Solar Azimuth Angles'!CP6*$DU$3)+1-$DU$3) -> 0.7755422154 | DN7: =(IF($AH$46<DEGREES(CL7),0+$AJ$50,1-((TAN(CL7)/TAN($AG$48))*(1-$AJ$50))))*(('Surface Solar Azimuth Angles'!CQ6*$DU$3)+1-$DU$3) -> 0.6926603771 | DO7: =(IF($AH$46<DEGREES(CM7),0+$AJ$50,1-((TAN(CM7)/TAN($AG$48))*(1-$AJ$50))))*(('Surface Solar Azimuth Angles'!CR6*$DU$3)+1-$DU$3) -> 0.7501065244 | DP7: =(IF($AH$46<DEGREES(CN7),0+$AJ$50,1-((TAN(CN7)/TAN($AG$48))*(1-$AJ$50))))*(('Surface Solar Azimuth Angles'!CS6*$DU$3)+1-$DU$3) -> 0.9518593498 | DQ7: =(IF($AH$46<DEGREES(CO7),0+$AJ$50,1-((TAN(CO7)/TAN($AG$48))*(1-$AJ$50))))*(('Surface Solar Azimuth Angles'!CT6*$DU$3)+1-$DU$3) -> 1.221933242 | DR7: =(IF($AH$46<DEGREES(CP7),0+$AJ$50,1-((TAN(CP7)/TAN($AG$48))*(1-$AJ$50))))*(('Surface Solar Azimuth Angles'!CU6*$DU$3)+1-$DU$3) -> 1.450578511 | DS7: =(IF($AH$46<DEGREES(CQ7),0+$AJ$50,1-((TAN(CQ7)/TAN($AG$48))*(1-$AJ$50))))*(('Surface Solar Azimuth Angles'!CV6*$DU$3)+1-$DU$3) -> 1.591603218 | DT7: =(IF($AH$46<DEGREES(CR7),0+$AJ$50,1-((TAN(CR7)/TAN($AG$48))*(1-$AJ$50))))*(('Surface Solar Azimuth Angles'!CW6*$DU$3)+1-$DU$3) -> 1.61494135 | DW7: ='Profile angles'!AR7 -> 3 | DX7: ='Profile angles'!AS7 -> -52.43137356 | DY7: ='Profile angles'!AT7 -> -49.7763649 | DZ7: ='Profile angles'!AU7 -> -43.00744409 | EA7: ='Profile angles'!AV7 -> -33.97069761 | EB7: ='Profile angles'!AW7 -> -27.87416662 | EC7: ='Profile angles'!AX7 -> -26.39740624 | ED7: ='Profile angles'!AY7 -> -29.29846158 | EE7: ='Profile angles'!AZ7 -> -34.48045872 | EF7: ='Profile angles'!BA7 -> -39.89507499 | EG7: ='Profile angles'!BB7 -> -43.2868923 | EH7: ='Profile angles'!BC7 -> -46.7575969 | EI7: ='Profile angles'!BD7 -> -50.32692672 | EK7: 3 | EL7: -52.43137356 | EM7: -49.7763649 | EN7: -43.00744409 | EO7: -33.97069761 | EP7: -27.87416662 | EQ7: -26.39740624 | ER7: -29.29846158 | ES7: -34.48045872 | ET7: -39.89507499 | EU7: -43.2868923 | EV7: -46.7575969 | EW7: -50.32692672
B8: 4 | C8: =IF($T$36="y",'Dry Bulb'!D8-C339,'Dry Bulb'!D8-C223) -> -12.43919321 | D8: =IF($T$36="y",'Dry Bulb'!E8-D339,'Dry Bulb'!E8-D223) -> -8.839193206 | E8: =IF($T$36="y",'Dry Bulb'!F8-E339,'Dry Bulb'!F8-E223) -> -9.179193206 | F8: =IF($T$36="y",'Dry Bulb'!G8-F339,'Dry Bulb'!G8-F223) -> -1.816434989 | G8: =IF($T$36="y",'Dry Bulb'!H8-G339,'Dry Bulb'!H8-G223) -> 11.52080679 | H8: =IF($T$36="y",'Dry Bulb'!I8-H339,'Dry Bulb'!I8-H223) -> 15.84080679 | I8: =IF($T$36="y",'Dry Bulb'!J8-I339,'Dry Bulb'!J8-I223) -> 16.74080679 | J8: =IF($T$36="y",'Dry Bulb'!K8-J339,'Dry Bulb'!K8-J223) -> 16.92080679 | K8: =IF($T$36="y",'Dry Bulb'!L8-K339,'Dry Bulb'!L8-K223) -> 10.98080679 | L8: =IF($T$36="y",'Dry Bulb'!M8-L339,'Dry Bulb'!M8-L223) -> 1.946507431 | M8: =IF($T$36="y",'Dry Bulb'!N8-M339,'Dry Bulb'!N8-M223) -> -8.999193206 | N8: =IF($T$36="y",'Dry Bulb'!O8-N339,'Dry Bulb'!O8-N223) -> -10.45919321 | T8: Floors | W8: Window Height | X8: 0 | AP8: ='Incident angle'!BI8 -> 4 | AQ8: ='Incident angle'!BJ8 -> 0 | AR8: ='Incident angle'!BK8 -> 0 | AS8: ='Incident angle'!BL8 -> 0 | AT8: ='Incident angle'!BM8 -> 0 | AU8: ='Incident angle'!BN8 -> 0 | AV8: ='Incident angle'!BO8 -> 0 | AW8: ='Incident angle'!BP8 -> 0 | AX8: ='Incident angle'!BQ8 -> 0 | AY8: ='Incident angle'!BR8 -> 0 | AZ8: ='Incident angle'!BS8 -> 0 | BA8: ='Incident angle'!BT8 -> 0 | BB8: ='Incident angle'!BU8 -> 0 | BC8: Av+Max/2 | BD8: ='Incident angle'!BW8 -> 4 | BE8: ='Incident angle'!BX8 -> 0 | BF8: ='Incident angle'!BY8 -> 0 | BG8: ='Incident angle'!BZ8 -> 0 | BH8: ='Incident angle'!CA8 -> 0 | BI8: ='Incident angle'!CB8 -> 0 | BJ8: ='Incident angle'!CC8 -> 0 | BK8: ='Incident angle'!CD8 -> 0 | BL8: ='Incident angle'!CE8 -> 0 | BM8: ='Incident angle'!CF8 -> 0 | BN8: ='Incident angle'!CG8 -> 0 | BO8: ='Incident angle'!CH8 -> 0 | BP8: ='Incident angle'!CI8 -> 0 | BQ8: Av+Max/2 | BR8: ='Profile angles'!B8 -> 4 | BS8: =RADIANS('Profile angles'!C8) -> -1.434170631 | BT8: =RADIANS('Profile angles'!D8) -> 1.45320179 | BU8: =RADIANS('Profile angles'!E8) -> 1.139700002 | BV8: =RADIANS('Profile angles'!F8) -> 0.7564189068 | BW8: =RADIANS('Profile angles'!G8) -> 0.516275439 | BX8: =RADIANS('Profile angles'!H8) -> 0.4555590077 | BY8: =RADIANS('Profile angles'!I8) -> 0.5422514004 | BZ8: =RADIANS('Profile angles'!J8) -> 0.7589538864 | CA8: =RADIANS('Profile angles'!K8) -> 1.139700002 | CB8: =RADIANS('Profile angles'!L8) -> 1.523100368 | CC8: =RADIANS('Profile angles'!M8) -> -1.350289996 | CD8: =RADIANS('Profile angles'!N8) -> -1.307372743 | CE8: -2.413873654 | CF8: ='Profile angles'!B37 -> 4 | CG8: =RADIANS('Profile angles'!C37) -> -0.6808562605 | CH8: =RADIANS('Profile angles'!D37) -> -0.635801516 | CI8: =RADIANS('Profile angles'!E37) -> -0.544048004 | CJ8: =RADIANS('Profile angles'!F37) -> -0.4258683333 | CK8: =RADIANS('Profile angles'!G37) -> -0.3497417035 | CL8: =RADIANS('Profile angles'!H37) -> -0.3425360175 | CM8: =RADIANS('Profile angles'!I37) -> -0.3895575245 | CN8: =RADIANS('Profile angles'!J37) -> -0.4394477548 | CO8: =RADIANS('Profile angles'!K37) -> -0.4815568133 | CP8: =RADIANS('Profile angles'!L37) -> -0.5188803882 | CQ8: =RADIANS('Profile angles'!M37) -> -0.5845679697 | CR8: =RADIANS('Profile angles'!N37) -> -0.6539876585 | CT8: ='Profile angles'!AD8 -> 4 | CU8: =(IF($AH$12<DEGREES(BS8),0+$AJ$16,1-((TAN(BS8)/TAN($AG$14))*(1-$AJ$16))))*(('Surface Solar Azimuth Angles'!BX7*$DU$3)+1-$DU$3) -> 0 | CV8: =(IF($AH$12<DEGREES(BT8),0+$AJ$16,1-((TAN(BT8)/TAN($AG$14))*(1-$AJ$16))))*(('Surface Solar Azimuth Angles'!BY7*$DU$3)+1-$DU$3) -> 0 | CW8: =(IF($AH$12<DEGREES(BU8),0+$AJ$16,1-((TAN(BU8)/TAN($AG$14))*(1-$AJ$16))))*(('Surface Solar Azimuth Angles'!BZ7*$DU$3)+1-$DU$3) -> 0 | CX8: =(IF($AH$12<DEGREES(BV8),0+$AJ$16,1-((TAN(BV8)/TAN($AG$14))*(1-$AJ$16))))*(('Surface Solar Azimuth Angles'!CA7*$DU$3)+1-$DU$3) -> 0 | CY8: =(IF($AH$12<DEGREES(BW8),0+$AJ$16,1-((TAN(BW8)/TAN($AG$14))*(1-$AJ$16))))*(('Surface Solar Azimuth Angles'!CB7*$DU$3)+1-$DU$3) -> 0.1337099701 | CZ8: =(IF($AH$12<DEGREES(BX8),0+$AJ$16,1-((TAN(BX8)/TAN($AG$14))*(1-$AJ$16))))*(('Surface Solar Azimuth Angles'!CC7*$DU$3)+1-$DU$3) -> 0.2056828723 | DA8: =(IF($AH$12<DEGREES(BY8),0+$AJ$16,1-((TAN(BY8)/TAN($AG$14))*(1-$AJ$16))))*(('Surface Solar Azimuth Angles'!CD7*$DU$3)+1-$DU$3) -> 0.1539390639 | DB8: =(IF($AH$12<DEGREES(BZ8),0+$AJ$16,1-((TAN(BZ8)/TAN($AG$14))*(1-$AJ$16))))*(('Surface Solar Azimuth Angles'!CE7*$DU$3)+1-$DU$3) -> 0 | DC8: =(IF($AH$12<DEGREES(CA8),0+$AJ$16,1-((TAN(CA8)/TAN($AG$14))*(1-$AJ$16))))*(('Surface Solar Azimuth Angles'!CF7*$DU$3)+1-$DU$3) -> 0 | DD8: =(IF($AH$12<DEGREES(CB8),0+$AJ$16,1-((TAN(CB8)/TAN($AG$14))*(1-$AJ$16))))*(('Surface Solar Azimuth Angles'!CG7*$DU$3)+1-$DU$3) -> 0 | DE8: =(IF($AH$12<DEGREES(CC8),0+$AJ$16,1-((TAN(CC8)/TAN($AG$14))*(1-$AJ$16))))*(('Surface Solar Azimuth Angles'!CH7*$DU$3)+1-$DU$3) -> 0 | DF8: =(IF($AH$12<DEGREES(CD8),0+$AJ$16,1-((TAN(CD8)/TAN($AG$14))*(1-$AJ$16))))*(('Surface Solar Azimuth Angles'!CI7*$DU$3)+1-$DU$3) -> 0 | DH8: 4 | DI8: =(IF($AH$46<DEGREES(CG8),0+$AJ$50,1-((TAN(CG8)/TAN($AG$48))*(1-$AJ$50))))*(('Surface Solar Azimuth Angles'!CL7*$DU$3)+1-$DU$3) -> 1.403295569 | DJ8: =(IF($AH$46<DEGREES(CH8),0+$AJ$50,1-((TAN(CH8)/TAN($AG$48))*(1-$AJ$50))))*(('Surface Solar Azimuth Angles'!CM7*$DU$3)+1-$DU$3) -> 1.379921956 | DK8: =(IF($AH$46<DEGREES(CI8),0+$AJ$50,1-((TAN(CI8)/TAN($AG$48))*(1-$AJ$50))))*(('Surface Solar Azimuth Angles'!CN7*$DU$3)+1-$DU$3) -> 1.173348682 | DL8: =(IF($AH$46<DEGREES(CJ8),0+$AJ$50,1-((TAN(CJ8)/TAN($AG$48))*(1-$AJ$50))))*(('Surface Solar Azimuth Angles'!CO7*$DU$3)+1-$DU$3) -> 0.9664010492 | DM8: =(IF($AH$46<DEGREES(CK8),0+$AJ$50,1-((TAN(CK8)/TAN($AG$48))*(1-$AJ$50))))*(('Surface Solar Azimuth Angles'!CP7*$DU$3)+1-$DU$3) -> 0.8272504193 | DN8: =(IF($AH$46<DEGREES(CL8),0+$AJ$50,1-((TAN(CL8)/TAN($AG$48))*(1-$AJ$50))))*(('Surface Solar Azimuth Angles'!CQ7*$DU$3)+1-$DU$3) -> 0.772170051 | DO8: =(IF($AH$46<DEGREES(CM8),0+$AJ$50,1-((TAN(CM8)/TAN($AG$48))*(1-$AJ$50))))*(('Surface Solar Azimuth Angles'!CR7*$DU$3)+1-$DU$3) -> 0.8217023192 | DP8: =(IF($AH$46<DEGREES(CN8),0+$AJ$50,1-((TAN(CN8)/TAN($AG$48))*(1-$AJ$50))))*(('Surface Solar Azimuth Angles'!CS7*$DU$3)+1-$DU$3) -> 0.9643357309 | DQ8: =(IF($AH$46<DEGREES(CO8),0+$AJ$50,1-((TAN(CO8)/TAN($AG$48))*(1-$AJ$50))))*(('Surface Solar Azimuth Angles'!CT7*$DU$3)+1-$DU$3) -> 1.15568837 | DR8: =(IF($AH$46<DEGREES(CP8),0+$AJ$50,1-((TAN(CP8)/TAN($AG$48))*(1-$AJ$50))))*(('Surface Solar Azimuth Angles'!CU7*$DU$3)+1-$DU$3) -> 1.324346293 | DS8: =(IF($AH$46<DEGREES(CQ8),0+$AJ$50,1-((TAN(CQ8)/TAN($AG$48))*(1-$AJ$50))))*(('Surface Solar Azimuth Angles'!CV7*$DU$3)+1-$DU$3) -> 1.293423154 | DT8: =(IF($AH$46<DEGREES(CR8),0+$AJ$50,1-((TAN(CR8)/TAN($AG$48))*(1-$AJ$50))))*(('Surface Solar Azimuth Angles'!CW7*$DU$3)+1-$DU$3) -> 1.309011587 | DW8: ='Profile angles'!AR8 -> 4 | DX8: ='Profile angles'!AS8 -> -38.83757178 | DY8: ='Profile angles'!AT8 -> -36.32513697 | DZ8: ='Profile angles'!AU8 -> -30.23387911 | EA8: ='Profile angles'!AV8 -> -22.2368916 | EB8: ='Profile angles'!AW8 -> -17.0585792 | EC8: ='Profile angles'!AX8 -> -16.08285304 | ED8: ='Profile angles'!AY8 -> -18.74022497 | EE8: ='Profile angles'!AZ8 -> -22.84111106 | EF8: ='Profile angles'!BA8 -> -26.93598583 | EG8: ='Profile angles'!BB8 -> -29.72049392 | EH8: ='Profile angles'!BC8 -> -33.20698694 | EI8: ='Profile angles'!BD8 -> -36.89352273 | EK8: 4 | EL8: -38.83757178 | EM8: -36.32513697 | EN8: -30.23387911 | EO8: -22.2368916 | EP8: -17.0585792 | EQ8: -16.08285304 | ER8: -18.74022497 | ES8: -22.84111106 | ET8: -26.93598583 | EU8: -29.72049392 | EV8: -33.20698694 | EW8: -36.89352273
B9: 5 | C9: =IF($T$36="y",'Dry Bulb'!D9-C340,'Dry Bulb'!D9-C224) -> -13.51919321 | D9: =IF($T$36="y",'Dry Bulb'!E9-D340,'Dry Bulb'!E9-D224) -> -9.559193206 | E9: =IF($T$36="y",'Dry Bulb'!F9-E340,'Dry Bulb'!F9-E224) -> -3.079193206 | F9: =IF($T$36="y",'Dry Bulb'!G9-F340,'Dry Bulb'!G9-F224) -> -3.144532314 | G9: =IF($T$36="y",'Dry Bulb'!H9-G340,'Dry Bulb'!H9-G224) -> 10.08080679 | H9: =IF($T$36="y",'Dry Bulb'!I9-H340,'Dry Bulb'!I9-H224) -> 14.58080679 | I9: =IF($T$36="y",'Dry Bulb'!J9-I340,'Dry Bulb'!J9-I224) -> 16.02080679 | J9: =IF($T$36="y",'Dry Bulb'!K9-J340,'Dry Bulb'!K9-J224) -> 15.84080679 | K9: =IF($T$36="y",'Dry Bulb'!L9-K340,'Dry Bulb'!L9-K224) -> 10.26080679 | L9: =IF($T$36="y",'Dry Bulb'!M9-L340,'Dry Bulb'!M9-L224) -> 0.1757109979 | M9: =IF($T$36="y",'Dry Bulb'!N9-M340,'Dry Bulb'!N9-M224) -> -3.439193206 | N9: =IF($T$36="y",'Dry Bulb'!O9-N340,'Dry Bulb'!O9-N224) -> -11.35919321 | P9: 15 | Q9: Building Height | T9: 1 | X9: 1 | AC9: Lab Override | AP9: ='Incident angle'!BI9 -> 5 | AQ9: ='Incident angle'!BJ9 -> 0 | AR9: ='Incident angle'!BK9 -> 0 | AS9: ='Incident angle'!BL9 -> 0 | AT9: ='Incident angle'!BM9 -> 0 | AU9: ='Incident angle'!BN9 -> 0 | AV9: ='Incident angle'!BO9 -> 0 | AW9: ='Incident angle'!BP9 -> 0 | AX9: ='Incident angle'!BQ9 -> 0 | AY9: ='Incident angle'!BR9 -> 0 | AZ9: ='Incident angle'!BS9 -> 0 | BA9: ='Incident angle'!BT9 -> 0 | BB9: ='Incident angle'!BU9 -> 0 | BC9: =AVERAGE(BC5,BC7) -> 389.5166765 | BD9: ='Incident angle'!BW9 -> 5 | BE9: ='Incident angle'!BX9 -> 0 | BF9: ='Incident angle'!BY9 -> 0 | BG9: ='Incident angle'!BZ9 -> 0 | BH9: ='Incident angle'!CA9 -> 0 | BI9: ='Incident angle'!CB9 -> 0 | BJ9: ='Incident angle'!CC9 -> 0 | BK9: ='Incident angle'!CD9 -> 0 | BL9: ='Incident angle'!CE9 -> 0 | BM9: ='Incident angle'!CF9 -> 0 | BN9: ='Incident angle'!CG9 -> 0 | BO9: ='Incident angle'!CH9 -> 0 | BP9: ='Incident angle'!CI9 -> 0 | BQ9: =AVERAGE(BQ5,BQ7) -> 2836.764077 | BR9: ='Profile angles'!B9 -> 5 | BS9: =RADIANS('Profile angles'!C9) -> -1.178047461 | BT9: =RADIANS('Profile angles'!D9) -> -1.506383769 | BU9: =RADIANS('Profile angles'!E9) -> 1.139700002 | BV9: =RADIANS('Profile angles'!F9) -> 0.5015878501 | BW9: =RADIANS('Profile angles'!G9) -> 0.2080737467 | BX9: =RADIANS('Profile angles'!H9) -> 0.1654956533 | BY9: =RADIANS('Profile angles'!I9) -> 0.2683182771 | BZ9: =RADIANS('Profile angles'!J9) -> 0.517283773 | CA9: =RADIANS('Profile angles'!K9) -> 1.139700002 | CB9: =RADIANS('Profile angles'!L9) -> -1.300761076 | CC9: =RADIANS('Profile angles'!M9) -> -0.9983276558 | CD9: =RADIANS('Profile angles'!N9) -> -1.007647471 | CE9: -0.7576169601 | CF9: ='Profile angles'!B38 -> 5 | CG9: =RADIANS('Profile angles'!C38) -> -0.4505717419 | CH9: =RADIANS('Profile angles'!D38) -> -0.3965008362 | CI9: =RADIANS('Profile angles'!E38) -> -0.2976624365 | CJ9: =RADIANS('Profile angles'!F38) -> -0.1755847846 | CK9: =RADIANS('Profile angles'!G38) -> -0.09870439314 | CL9: =RADIANS('Profile angles'!H38) -> -0.09014937202 | CM9: =RADIANS('Profile angles'!I38) -> -0.135621009 | CN9: =RADIANS('Profile angles'!J38) -> -0.1882915282 | CO9: =RADIANS('Profile angles'!K38) -> -0.2373188383 | CP9: =RADIANS('Profile angles'!L38) -> -0.2819294522 | CQ9: =RADIANS('Profile angles'!M38) -> -0.3550627459 | CR9: =RADIANS('Profile angles'!N38) -> -0.427859685 | CT9: ='Profile angles'!AD9 -> 5 | CU9: =(IF($AH$12<DEGREES(BS9),0+$AJ$16,1-((TAN(BS9)/TAN($AG$14))*(1-$AJ$16))))*(('Surface Solar Azimuth Angles'!BX8*$DU$3)+1-$DU$3) -> 0 | CV9: =(IF($AH$12<DEGREES(BT9),0+$AJ$16,1-((TAN(BT9)/TAN($AG$14))*(1-$AJ$16))))*(('Surface Solar Azimuth Angles'!BY8*$DU$3)+1-$DU$3) -> 0 | CW9: =(IF($AH$12<DEGREES(BU9),0+$AJ$16,1-((TAN(BU9)/TAN($AG$14))*(1-$AJ$16))))*(('Surface Solar Azimuth Angles'!BZ8*$DU$3)+1-$DU$3) -> 0 | CX9: =(IF($AH$12<DEGREES(BV9),0+$AJ$16,1-((TAN(BV9)/TAN($AG$14))*(1-$AJ$16))))*(('Surface Solar Azimuth Angles'!CA8*$DU$3)+1-$DU$3) -> 0 | CY9: =(IF($AH$12<DEGREES(BW9),0+$AJ$16,1-((TAN(BW9)/TAN($AG$14))*(1-$AJ$16))))*(('Surface Solar Azimuth Angles'!CB8*$DU$3)+1-$DU$3) -> 0 | CZ9: =(IF($AH$12<DEGREES(BX9),0+$AJ$16,1-((TAN(BX9)/TAN($AG$14))*(1-$AJ$16))))*(('Surface Solar Azimuth Angles'!CC8*$DU$3)+1-$DU$3) -> 0.06723898441 | DA9: =(IF($AH$12<DEGREES(BY9),0+$AJ$16,1-((TAN(BY9)/TAN($AG$14))*(1-$AJ$16))))*(('Surface Solar Azimuth Angles'!CD8*$DU$3)+1-$DU$3) -> 0 | DB9: =(IF($AH$12<DEGREES(BZ9),0+$AJ$16,1-((TAN(BZ9)/TAN($AG$14))*(1-$AJ$16))))*(('Surface Solar Azimuth Angles'!CE8*$DU$3)+1-$DU$3) -> 0 | DC9: =(IF($AH$12<DEGREES(CA9),0+$AJ$16,1-((TAN(CA9)/TAN($AG$14))*(1-$AJ$16))))*(('Surface Solar Azimuth Angles'!CF8*$DU$3)+1-$DU$3) -> 0 | DD9: =(IF($AH$12<DEGREES(CB9),0+$AJ$16,1-((TAN(CB9)/TAN($AG$14))*(1-$AJ$16))))*(('Surface Solar Azimuth Angles'!CG8*$DU$3)+1-$DU$3) -> 0 | DE9: =(IF($AH$12<DEGREES(CC9),0+$AJ$16,1-((TAN(CC9)/TAN($AG$14))*(1-$AJ$16))))*(('Surface Solar Azimuth Angles'!CH8*$DU$3)+1-$DU$3) -> 0 | DF9: =(IF($AH$12<DEGREES(CD9),0+$AJ$16,1-((TAN(CD9)/TAN($AG$14))*(1-$AJ$16))))*(('Surface Solar Azimuth Angles'!CI8*$DU$3)+1-$DU$3) -> 0 | DH9: 5 | DI9: =(IF($AH$46<DEGREES(CG9),0+$AJ$50,1-((TAN(CG9)/TAN($AG$48))*(1-$AJ$50))))*(('Surface Solar Azimuth Angles'!CL8*$DU$3)+1-$DU$3) -> 1.160967191 | DJ9: =(IF($AH$46<DEGREES(CH9),0+$AJ$50,1-((TAN(CH9)/TAN($AG$48))*(1-$AJ$50))))*(('Surface Solar Azimuth Angles'!CM8*$DU$3)+1-$DU$3) -> 1.234310228 | DK9: =(IF($AH$46<DEGREES(CI9),0+$AJ$50,1-((TAN(CI9)/TAN($AG$48))*(1-$AJ$50))))*(('Surface Solar Azimuth Angles'!CN8*$DU$3)+1-$DU$3) -> 1.100529308 | DL9: =(IF($AH$46<DEGREES(CJ9),0+$AJ$50,1-((TAN(CJ9)/TAN($AG$48))*(1-$AJ$50))))*(('Surface Solar Azimuth Angles'!CO8*$DU$3)+1-$DU$3) -> 0.9274637636 | DM9: =(IF($AH$46<DEGREES(CK9),0+$AJ$50,1-((TAN(CK9)/TAN($AG$48))*(1-$AJ$50))))*(('Surface Solar Azimuth Angles'!CP8*$DU$3)+1-$DU$3) -> 0.8109665389 | DN9: =(IF($AH$46<DEGREES(CL9),0+$AJ$50,1-((TAN(CL9)/TAN($AG$48))*(1-$AJ$50))))*(('Surface Solar Azimuth Angles'!CQ8*$DU$3)+1-$DU$3) -> 0.768955874 | DO9: =(IF($AH$46<DEGREES(CM9),0+$AJ$50,1-((TAN(CM9)/TAN($AG$48))*(1-$AJ$50))))*(('Surface Solar Azimuth Angles'!CR8*$DU$3)+1-$DU$3) -> 0.8134044152 | DP9: =(IF($AH$46<DEGREES(CN9),0+$AJ$50,1-((TAN(CN9)/TAN($AG$48))*(1-$AJ$50))))*(('Surface Solar Azimuth Angles'!CS8*$DU$3)+1-$DU$3) -> 0.9277310961 | DQ9: =(IF($AH$46<DEGREES(CO9),0+$AJ$50,1-((TAN(CO9)/TAN($AG$48))*(1-$AJ$50))))*(('Surface Solar Azimuth Angles'!CT8*$DU$3)+1-$DU$3) -> 1.081427938 | DR9: =(IF($AH$46<DEGREES(CP9),0+$AJ$50,1-((TAN(CP9)/TAN($AG$48))*(1-$AJ$50))))*(('Surface Solar Azimuth Angles'!CU8*$DU$3)+1-$DU$3) -> 1.126734006 | DS9: =(IF($AH$46<DEGREES(CQ9),0+$AJ$50,1-((TAN(CQ9)/TAN($AG$48))*(1-$AJ$50))))*(('Surface Solar Azimuth Angles'!CV8*$DU$3)+1-$DU$3) -> 1.07641209 | DT9: =(IF($AH$46<DEGREES(CR9),0+$AJ$50,1-((TAN(CR9)/TAN($AG$48))*(1-$AJ$50))))*(('Surface Solar Azimuth Angles'!CW8*$DU$3)+1-$DU$3) -> 1.090273285 | DW9: ='Profile angles'!AR9 -> 5 | DX9: ='Profile angles'!AS9 -> -25.37633392 | DY9: ='Profile angles'!AT9 -> -22.71038561 | DZ9: ='Profile angles'!AU9 -> -16.89709245 | EA9: ='Profile angles'!AV9 -> -9.581069307 | EB9: ='Profile angles'!AW9 -> -5.123126232 | EC9: ='Profile angles'!AX9 -> -4.545358278 | ED9: ='Profile angles'!AY9 -> -6.968831296 | EE9: ='Profile angles'!AZ9 -> -10.24198262 | EF9: ='Profile angles'!BA9 -> -13.51706338 | EG9: ='Profile angles'!BB9 -> -16.10438517 | EH9: ='Profile angles'!BC9 -> -19.83052845 | EI9: ='Profile angles'!BD9 -> -23.66453037 | EK9: 5 | EL9: -25.37633392 | EM9: -22.71038561 | EN9: -16.89709245 | EO9: -9.581069307 | EP9: -5.123126232 | EQ9: -4.545358278 | ER9: -6.968831296 | ES9: -10.24198262 | ET9: -13.51706338 | EU9: -16.10438517 | EV9: -19.83052845 | EW9: -23.66453037
B10: 6 | C10: =IF($T$36="y",'Dry Bulb'!D10-C341,'Dry Bulb'!D10-C225) -> -14.05919321 | D10: =IF($T$36="y",'Dry Bulb'!E10-D341,'Dry Bulb'!E10-D225) -> -10.27919321 | E10: =IF($T$36="y",'Dry Bulb'!F10-E341,'Dry Bulb'!F10-E225) -> -3.619193206 | F10: =IF($T$36="y",'Dry Bulb'!G10-F341,'Dry Bulb'!G10-F225) -> -3.868965672 | G10: =IF($T$36="y",'Dry Bulb'!H10-G341,'Dry Bulb'!H10-G225) -> 10.0712661 | H10: =IF($T$36="y",'Dry Bulb'!I10-H341,'Dry Bulb'!I10-H225) -> 13.95127433 | I10: =IF($T$36="y",'Dry Bulb'!J10-I341,'Dry Bulb'!J10-I225) -> 15.58683645 | J10: =IF($T$36="y",'Dry Bulb'!K10-J341,'Dry Bulb'!K10-J225) -> 15.10213651 | K10: =IF($T$36="y",'Dry Bulb'!L10-K341,'Dry Bulb'!L10-K225) -> 10.89310796 | L10: =IF($T$36="y",'Dry Bulb'!M10-L341,'Dry Bulb'!M10-L225) -> -0.9310367728 | M10: =IF($T$36="y",'Dry Bulb'!N10-M341,'Dry Bulb'!N10-M225) -> -3.799193206 | N10: =IF($T$36="y",'Dry Bulb'!O10-N341,'Dry Bulb'!O10-N225) -> -11.35919321 | X10: 2 | AC10: ='HVAC Dashboard'!AC34 -> 1 | AF10: Tanδ = | AH10: =IF(X5>0,W6/X5,99999999) -> 1.428571429 | AP10: ='Incident angle'!BI10 -> 6 | AQ10: ='Incident angle'!BJ10 -> 0 | AR10: ='Incident angle'!BK10 -> 0 | AS10: ='Incident angle'!BL10 -> 0 | AT10: ='Incident angle'!BM10 -> 0 | AU10: ='Incident angle'!BN10 -> 0 | AV10: ='Incident angle'!BO10 -> 0 | AW10: ='Incident angle'!BP10 -> 0 | AX10: ='Incident angle'!BQ10 -> 0 | AY10: ='Incident angle'!BR10 -> 0 | AZ10: ='Incident angle'!BS10 -> 0 | BA10: ='Incident angle'!BT10 -> 0 | BB10: ='Incident angle'!BU10 -> 0 | BC10: Max All | BD10: ='Incident angle'!BW10 -> 6 | BE10: ='Incident angle'!BX10 -> 0 | BF10: ='Incident angle'!BY10 -> 0 | BG10: ='Incident angle'!BZ10 -> 0 | BH10: ='Incident angle'!CA10 -> 85.29125468 | BI10: ='Incident angle'!CB10 -> 200.0406761 | BJ10: ='Incident angle'!CC10 -> 238.691484 | BK10: ='Incident angle'!CD10 -> 151.5599616 | BL10: ='Incident angle'!CE10 -> 85.4845809 | BM10: ='Incident angle'!CF10 -> 49.07615624 | BN10: ='Incident angle'!CG10 -> 0 | BO10: ='Incident angle'!CH10 -> 0 | BP10: ='Incident angle'!CI10 -> 0 | BR10: ='Profile angles'!B10 -> 6 | BS10: =RADIANS('Profile angles'!C10) -> -0.6483581668 | BT10: =RADIANS('Profile angles'!D10) -> -0.8864768764 | BU10: =RADIANS('Profile angles'!E10) -> 1.139700002 | BV10: =RADIANS('Profile angles'!F10) -> -0.3068314577 | BW10: =RADIANS('Profile angles'!G10) -> -0.3859127589 | BX10: =RADIANS('Profile angles'!H10) -> -0.3454895043 | BY10: =RADIANS('Profile angles'!I10) -> -0.2768167475 | BZ10: =RADIANS('Profile angles'!J10) -> -0.2394989719 | CA10: =RADIANS('Profile angles'!K10) -> 1.139700002 | CB10: =RADIANS('Profile angles'!L10) -> -0.2425098589 | CC10: =RADIANS('Profile angles'!M10) -> -0.3509228985 | CD10: =RADIANS('Profile angles'!N10) -> -0.4866930989 | CE10: 0.03213743528 | CF10: ='Profile angles'!B39 -> 6 | CG10: =RADIANS('Profile angles'!C39) -> -0.2209164505 | CH10: =RADIANS('Profile angles'!D39) -> -0.1607466225 | CI10: =RADIANS('Profile angles'!E39) -> -0.05802197175 | CJ10: =RADIANS('Profile angles'!F39) -> 0.06407872559 | CK10: =RADIANS('Profile angles'!G39) -> 0.1385056203 | CL10: =RADIANS('Profile angles'!H39) -> 0.1464864482 | CM10: =RADIANS('Profile angles'!I39) -> 0.1032161832 | CN10: =RADIANS('Profile angles'!J39) -> 0.05180107506 | CO10: =RADIANS('Profile angles'!K39) -> 0.001453508956 | CP10: =RADIANS('Profile angles'!L39) -> -0.04619108081 | CQ10: =RADIANS('Profile angles'!M39) -> -0.1242515111 | CR10: =RADIANS('Profile angles'!N39) -> -0.2005207227 | CT10: ='Profile angles'!AD10 -> 6 | CU10: =(IF($AH$12<DEGREES(BS10),0+$AJ$16,1-((TAN(BS10)/TAN($AG$14))*(1-$AJ$16))))*(('Surface Solar Azimuth Angles'!BX9*$DU$3)+1-$DU$3) -> 0 | CV10: =(IF($AH$12<DEGREES(BT10),0+$AJ$16,1-((TAN(BT10)/TAN($AG$14))*(1-$AJ$16))))*(('Surface Solar Azimuth Angles'!BY9*$DU$3)+1-$DU$3) -> 0 | CW10: =(IF($AH$12<DEGREES(BU10),0+$AJ$16,1-((TAN(BU10)/TAN($AG$14))*(1-$AJ$16))))*(('Surface Solar Azimuth Angles'!BZ9*$DU$3)+1-$DU$3) -> 0 | CX10: =(IF($AH$12<DEGREES(BV10),0+$AJ$16,1-((TAN(BV10)/TAN($AG$14))*(1-$AJ$16))))*(('Surface Solar Azimuth Angles'!CA9*$DU$3)+1-$DU$3) -> 0 | CY10: =(IF($AH$12<DEGREES(BW10),0+$AJ$16,1-((TAN(BW10)/TAN($AG$14))*(1-$AJ$16))))*(('Surface Solar Azimuth Angles'!CB9*$DU$3)+1-$DU$3) -> 0 | CZ10: =(IF($AH$12<DEGREES(BX10),0+$AJ$16,1-((TAN(BX10)/TAN($AG$14))*(1-$AJ$16))))*(('Surface Solar Azimuth Angles'!CC9*$DU$3)+1-$DU$3) -> 0 | DA10: =(IF($AH$12<DEGREES(BY10),0+$AJ$16,1-((TAN(BY10)/TAN($AG$14))*(1-$AJ$16))))*(('Surface Solar Azimuth Angles'!CD9*$DU$3)+1-$DU$3) -> 0 | DB10: =(IF($AH$12<DEGREES(BZ10),0+$AJ$16,1-((TAN(BZ10)/TAN($AG$14))*(1-$AJ$16))))*(('Surface Solar Azimuth Angles'!CE9*$DU$3)+1-$DU$3) -> 0 | DC10: =(IF($AH$12<DEGREES(CA10),0+$AJ$16,1-((TAN(CA10)/TAN($AG$14))*(1-$AJ$16))))*(('Surface Solar Azimuth Angles'!CF9*$DU$3)+1-$DU$3) -> 0 | DD10: =(IF($AH$12<DEGREES(CB10),0+$AJ$16,1-((TAN(CB10)/TAN($AG$14))*(1-$AJ$16))))*(('Surface Solar Azimuth Angles'!CG9*$DU$3)+1-$DU$3) -> 0 | DE10: =(IF($AH$12<DEGREES(CC10),0+$AJ$16,1-((TAN(CC10)/TAN($AG$14))*(1-$AJ$16))))*(('Surface Solar Azimuth Angles'!CH9*$DU$3)+1-$DU$3) -> 0 | DF10: =(IF($AH$12<DEGREES(CD10),0+$AJ$16,1-((TAN(CD10)/TAN($AG$14))*(1-$AJ$16))))*(('Surface Solar Azimuth Angles'!CI9*$DU$3)+1-$DU$3) -> 0 | DH10: 6 | DI10: =(IF($AH$46<DEGREES(CG10),0+$AJ$50,1-((TAN(CG10)/TAN($AG$48))*(1-$AJ$50))))*(('Surface Solar Azimuth Angles'!CL9*$DU$3)+1-$DU$3) -> 0.9665611701 | DJ10: =(IF($AH$46<DEGREES(CH10),0+$AJ$50,1-((TAN(CH10)/TAN($AG$48))*(1-$AJ$50))))*(('Surface Solar Azimuth Angles'!CM9*$DU$3)+1-$DU$3) -> 1.024710948 | DK10: =(IF($AH$46<DEGREES(CI10),0+$AJ$50,1-((TAN(CI10)/TAN($AG$48))*(1-$AJ$50))))*(('Surface Solar Azimuth Angles'!CN9*$DU$3)+1-$DU$3) -> 1.021028169 | DL10: =(IF($AH$46<DEGREES(CJ10),0+$AJ$50,1-((TAN(CJ10)/TAN($AG$48))*(1-$AJ$50))))*(('Surface Solar Azimuth Angles'!CO9*$DU$3)+1-$DU$3) -> 0.8641375436 | DM10: =(IF($AH$46<DEGREES(CK10),0+$AJ$50,1-((TAN(CK10)/TAN($AG$48))*(1-$AJ$50))))*(('Surface Solar Azimuth Angles'!CP9*$DU$3)+1-$DU$3) -> 0.7591573777 | DN10: =(IF($AH$46<DEGREES(CL10),0+$AJ$50,1-((TAN(CL10)/TAN($AG$48))*(1-$AJ$50))))*(('Surface Solar Azimuth Angles'!CQ9*$DU$3)+1-$DU$3) -> 0.7246548868 | DO10: =(IF($AH$46<DEGREES(CM10),0+$AJ$50,1-((TAN(CM10)/TAN($AG$48))*(1-$AJ$50))))*(('Surface Solar Azimuth Angles'!CR9*$DU$3)+1-$DU$3) -> 0.7668837282 | DP10: =(IF($AH$46<DEGREES(CN10),0+$AJ$50,1-((TAN(CN10)/TAN($AG$48))*(1-$AJ$50))))*(('Surface Solar Azimuth Angles'!CS9*$DU$3)+1-$DU$3) -> 0.8660301457 | DQ10: =(IF($AH$46<DEGREES(CO10),0+$AJ$50,1-((TAN(CO10)/TAN($AG$48))*(1-$AJ$50))))*(('Surface Solar Azimuth Angles'!CT9*$DU$3)+1-$DU$3) -> 0.9987939156 | DR10: =(IF($AH$46<DEGREES(CP10),0+$AJ$50,1-((TAN(CP10)/TAN($AG$48))*(1-$AJ$50))))*(('Surface Solar Azimuth Angles'!CU9*$DU$3)+1-$DU$3) -> 0.9317156208 | DS10: =(IF($AH$46<DEGREES(CQ10),0+$AJ$50,1-((TAN(CQ10)/TAN($AG$48))*(1-$AJ$50))))*(('Surface Solar Azimuth Angles'!CV9*$DU$3)+1-$DU$3) -> 0.8915670765 | DT10: =(IF($AH$46<DEGREES(CR10),0+$AJ$50,1-((TAN(CR10)/TAN($AG$48))*(1-$AJ$50))))*(('Surface Solar Azimuth Angles'!CW9*$DU$3)+1-$DU$3) -> 0.906473674 | DW10: ='Profile angles'!AR10 -> 6 | DX10: ='Profile angles'!AS10 -> -12.15144409 | DY10: ='Profile angles'!AT10 -> -9.131908056 | DZ10: ='Profile angles'!AU10 -> -3.323230903 | EA10: ='Profile angles'!AV10 -> 3.598581669 | EB10: ='Profile angles'!AW10 -> 7.511298722 | EC10: ='Profile angles'!AX10 -> 7.773859784 | ED10: ='Profile angles'!AY10 -> 5.558405394 | EE10: ='Profile angles'!AZ10 -> 2.903372302 | EF10: ='Profile angles'!BA10 -> 0.08327991007 | EG10: ='Profile angles'!BB10 -> -2.601590035 | EH10: ='Profile angles'!BC10 -> -6.741352257 | EI10: ='Profile angles'!BD10 -> -10.74339626 | EK10: 6 | EL10: -12.15144409 | EM10: -9.131908056 | EN10: -3.323230903 | EO10: 3.598581669 | EP10: 7.511298722 | EQ10: 7.773859784 | ER10: 5.558405394 | ES10: 2.903372302 | ET10: 0.08327991007 | EU10: -2.601590035 | EV10: -6.741352257 | EW10: -10.74339626
B11: 7 | C11: =IF($T$36="y",'Dry Bulb'!D11-C342,'Dry Bulb'!D11-C226) -> -13.93671429 | D11: =IF($T$36="y",'Dry Bulb'!E11-D342,'Dry Bulb'!E11-D226) -> -9.967031337 | E11: =IF($T$36="y",'Dry Bulb'!F11-E342,'Dry Bulb'!F11-E226) -> -2.718596779 | F11: =IF($T$36="y",'Dry Bulb'!G11-F342,'Dry Bulb'!G11-F226) -> 0.8827058963 | G11: =IF($T$36="y",'Dry Bulb'!H11-G342,'Dry Bulb'!H11-G226) -> 14.24224368 | H11: =IF($T$36="y",'Dry Bulb'!I11-H342,'Dry Bulb'!I11-H226) -> 20.09454452 | I11: =IF($T$36="y",'Dry Bulb'!J11-I342,'Dry Bulb'!J11-I226) -> 21.08272132 | J11: =IF($T$36="y",'Dry Bulb'!K11-J342,'Dry Bulb'!K11-J226) -> 20.22132767 | K11: =IF($T$36="y",'Dry Bulb'!L11-K342,'Dry Bulb'!L11-K226) -> 14.026273 | L11: =IF($T$36="y",'Dry Bulb'!M11-L342,'Dry Bulb'!M11-L226) -> 1.660432758 | M11: =IF($T$36="y",'Dry Bulb'!N11-M342,'Dry Bulb'!N11-M226) -> -3.715788721 | N11: =IF($T$36="y",'Dry Bulb'!O11-N342,'Dry Bulb'!O11-N226) -> -11.53445203 | P11: 0.05 | Q11: Walls U- Value | X11: 3 | AH11: δ= | AI11: =ATAN(AH10) -> 0.9600703624 | AP11: ='Incident angle'!BI11 -> 7 | AQ11: ='Incident angle'!BJ11 -> 0 | AR11: ='Incident angle'!BK11 -> 0 | AS11: ='Incident angle'!BL11 -> 0 | AT11: ='Incident angle'!BM11 -> 0 | AU11: ='Incident angle'!BN11 -> 0 | AV11: ='Incident angle'!BO11 -> 0 | AW11: ='Incident angle'!BP11 -> 0 | AX11: ='Incident angle'!BQ11 -> 0 | AY11: ='Incident angle'!BR11 -> 0 | AZ11: ='Incident angle'!BS11 -> 0 | BA11: ='Incident angle'!BT11 -> 0 | BB11: ='Incident angle'!BU11 -> 1.519164678 | BC11: =MAX(AQ5:BB28) -> 3190.346926 | BD11: ='Incident angle'!BW11 -> 7 | BE11: ='Incident angle'!BX11 -> 64.89851325 | BF11: ='Incident angle'!BY11 -> 165.4067703 | BG11: ='Incident angle'!BZ11 -> 477.2035317 | BH11: ='Incident angle'!CA11 -> 1430.207277 | BI11: ='Incident angle'!CB11 -> 1823.531369 | BJ11: ='Incident angle'!CC11 -> 1967.816776 | BK11: ='Incident angle'!CD11 -> 1633.029458 | BL11: ='Incident angle'!CE11 -> 1462.730997 | BM11: ='Incident angle'!CF11 -> 1232.206407 | BN11: ='Incident angle'!CG11 -> 786.7169426 | BO11: ='Incident angle'!CH11 -> 234.9489517 | BP11: ='Incident angle'!CI11 -> 96.37056538 | BR11: ='Profile angles'!B11 -> 7 | BS11: =RADIANS('Profile angles'!C11) -> 0.03212637812 | BT11: =RADIANS('Profile angles'!D11) -> 0.3040041799 | BU11: =RADIANS('Profile angles'!E11) -> 1.139700002 | BV11: =RADIANS('Profile angles'!F11) -> -1.267281866 | BW11: =RADIANS('Profile angles'!G11) -> -1.011613051 | BX11: =RADIANS('Profile angles'!H11) -> -0.9053750702 | BY11: =RADIANS('Profile angles'!I11) -> -0.9268916818 | BZ11: =RADIANS('Profile angles'!J11) -> -1.225841746 | CA11: =RADIANS('Profile angles'!K11) -> 1.139700002 | CB11: =RADIANS('Profile angles'!L11) -> 0.5676792259 | CC11: =RADIANS('Profile angles'!M11) -> 0.2389227257 | CD11: =RADIANS('Profile angles'!N11) -> 0.06615186264 | CE11: 0.469604885 | CF11: ='Profile angles'!B40 -> 7 | CG11: =RADIANS('Profile angles'!C40) -> 0.01321430591 | CH11: =RADIANS('Profile angles'!D40) -> 0.07647895234 | CI11: =RADIANS('Profile angles'!E40) -> 0.1802472843 | CJ11: =RADIANS('Profile angles'!F40) -> 0.2992650966 | CK11: =RADIANS('Profile angles'!G40) -> 0.3688607754 | CL11: =RADIANS('Profile angles'!H40) -> 0.3748460577 | CM11: =RADIANS('Profile angles'!I40) -> 0.3341083652 | CN11: =RADIANS('Profile angles'!J40) -> 0.2870038494 | CO11: =RADIANS('Profile angles'!K40) -> 0.2402602615 | CP11: =RADIANS('Profile angles'!L40) -> 0.1938557876 | CQ11: =RADIANS('Profile angles'!M40) -> 0.1135991105 | CR11: =RADIANS('Profile angles'!N40) -> 0.03355597584 | CT11: ='Profile angles'!AD11 -> 7 | CU11: =(IF($AH$12<DEGREES(BS11),0+$AJ$16,1-((TAN(BS11)/TAN($AG$14))*(1-$AJ$16))))*(('Surface Solar Azimuth Angles'!BX10*$DU$3)+1-$DU$3) -> 0 | CV11: =(IF($AH$12<DEGREES(BT11),0+$AJ$16,1-((TAN(BT11)/TAN($AG$14))*(1-$AJ$16))))*(('Surface Solar Azimuth Angles'!BY10*$DU$3)+1-$DU$3) -> 0 | CW11: =(IF($AH$12<DEGREES(BU11),0+$AJ$16,1-((TAN(BU11)/TAN($AG$14))*(1-$AJ$16))))*(('Surface Solar Azimuth Angles'!BZ10*$DU$3)+1-$DU$3) -> 0 | CX11: =(IF($AH$12<DEGREES(BV11),0+$AJ$16,1-((TAN(BV11)/TAN($AG$14))*(1-$AJ$16))))*(('Surface Solar Azimuth Angles'!CA10*$DU$3)+1-$DU$3) -> 0 | CY11: =(IF($AH$12<DEGREES(BW11),0+$AJ$16,1-((TAN(BW11)/TAN($AG$14))*(1-$AJ$16))))*(('Surface Solar Azimuth Angles'!CB10*$DU$3)+1-$DU$3) -> 0 | CZ11: =(IF($AH$12<DEGREES(BX11),0+$AJ$16,1-((TAN(BX11)/TAN($AG$14))*(1-$AJ$16))))*(('Surface Solar Azimuth Angles'!CC10*$DU$3)+1-$DU$3) -> 0 | DA11: =(IF($AH$12<DEGREES(BY11),0+$AJ$16,1-((TAN(BY11)/TAN($AG$14))*(1-$AJ$16))))*(('Surface Solar Azimuth Angles'!CD10*$DU$3)+1-$DU$3) -> 0 | DB11: =(IF($AH$12<DEGREES(BZ11),0+$AJ$16,1-((TAN(BZ11)/TAN($AG$14))*(1-$AJ$16))))*(('Surface Solar Azimuth Angles'!CE10*$DU$3)+1-$DU$3) -> 0 | DC11: =(IF($AH$12<DEGREES(CA11),0+$AJ$16,1-((TAN(CA11)/TAN($AG$14))*(1-$AJ$16))))*(('Surface Solar Azimuth Angles'!CF10*$DU$3)+1-$DU$3) -> 0 | DD11: =(IF($AH$12<DEGREES(CB11),0+$AJ$16,1-((TAN(CB11)/TAN($AG$14))*(1-$AJ$16))))*(('Surface Solar Azimuth Angles'!CG10*$DU$3)+1-$DU$3) -> 0 | DE11: =(IF($AH$12<DEGREES(CC11),0+$AJ$16,1-((TAN(CC11)/TAN($AG$14))*(1-$AJ$16))))*(('Surface Solar Azimuth Angles'!CH10*$DU$3)+1-$DU$3) -> 0 | DF11: =(IF($AH$12<DEGREES(CD11),0+$AJ$16,1-((TAN(CD11)/TAN($AG$14))*(1-$AJ$16))))*(('Surface Solar Azimuth Angles'!CI10*$DU$3)+1-$DU$3) -> 0.01262216893 | DH11: 7 | DI11: =(IF($AH$46<DEGREES(CG11),0+$AJ$50,1-((TAN(CG11)/TAN($AG$48))*(1-$AJ$50))))*(('Surface Solar Azimuth Angles'!CL10*$DU$3)+1-$DU$3) -> 0.7880986704 | DJ11: =(IF($AH$46<DEGREES(CH11),0+$AJ$50,1-((TAN(CH11)/TAN($AG$48))*(1-$AJ$50))))*(('Surface Solar Azimuth Angles'!CM10*$DU$3)+1-$DU$3) -> 0.8375127619 | DK11: =(IF($AH$46<DEGREES(CI11),0+$AJ$50,1-((TAN(CI11)/TAN($AG$48))*(1-$AJ$50))))*(('Surface Solar Azimuth Angles'!CN10*$DU$3)+1-$DU$3) -> 0.8533398312 | DL11: =(IF($AH$46<DEGREES(CJ11),0+$AJ$50,1-((TAN(CJ11)/TAN($AG$48))*(1-$AJ$50))))*(('Surface Solar Azimuth Angles'!CO10*$DU$3)+1-$DU$3) -> 0.7755105873 | DM11: =(IF($AH$46<DEGREES(CK11),0+$AJ$50,1-((TAN(CK11)/TAN($AG$48))*(1-$AJ$50))))*(('Surface Solar Azimuth Angles'!CP10*$DU$3)+1-$DU$3) -> 0.6751665441 | DN11: =(IF($AH$46<DEGREES(CL11),0+$AJ$50,1-((TAN(CL11)/TAN($AG$48))*(1-$AJ$50))))*(('Surface Solar Azimuth Angles'!CQ10*$DU$3)+1-$DU$3) -> 0.6459837233 | DO11: =(IF($AH$46<DEGREES(CM11),0+$AJ$50,1-((TAN(CM11)/TAN($AG$48))*(1-$AJ$50))))*(('Surface Solar Azimuth Angles'!CR10*$DU$3)+1-$DU$3) -> 0.6885806777 | DP11: =(IF($AH$46<DEGREES(CN11),0+$AJ$50,1-((TAN(CN11)/TAN($AG$48))*(1-$AJ$50))))*(('Surface Solar Azimuth Angles'!CS10*$DU$3)+1-$DU$3) -> 0.7792717305 | DQ11: =(IF($AH$46<DEGREES(CO11),0+$AJ$50,1-((TAN(CO11)/TAN($AG$48))*(1-$AJ$50))))*(('Surface Solar Azimuth Angles'!CT10*$DU$3)+1-$DU$3) -> 0.8049444858 | DR11: =(IF($AH$46<DEGREES(CP11),0+$AJ$50,1-((TAN(CP11)/TAN($AG$48))*(1-$AJ$50))))*(('Surface Solar Azimuth Angles'!CU10*$DU$3)+1-$DU$3) -> 0.746409681 | DS11: =(IF($AH$46<DEGREES(CQ11),0+$AJ$50,1-((TAN(CQ11)/TAN($AG$48))*(1-$AJ$50))))*(('Surface Solar Azimuth Angles'!CV10*$DU$3)+1-$DU$3) -> 0.7133784154 | DT11: =(IF($AH$46<DEGREES(CR11),0+$AJ$50,1-((TAN(CR11)/TAN($AG$48))*(1-$AJ$50))))*(('Surface Solar Azimuth Angles'!CW10*$DU$3)+1-$DU$3) -> 0.731608303 | DW11: ='Profile angles'!AR11 -> 7 | DX11: ='Profile angles'!AS11 -> 0.7002397336 | DY11: ='Profile angles'!AT11 -> 4.257251251 | DZ11: ='Profile angles'!AU11 -> 10.29209715 | EA11: ='Profile angles'!AV11 -> 17.07176431 | EB11: ='Profile angles'!AW11 -> 20.59199881 | EC11: ='Profile angles'!AX11 -> 20.6029444 | ED11: ='Profile angles'!AY11 -> 18.56752696 | EE11: ='Profile angles'!AZ11 -> 16.35731875 | EF11: ='Profile angles'!BA11 -> 13.68258886 | EG11: ='Profile angles'!BB11 -> 10.62690206 | EH11: ='Profile angles'!BC11 -> 5.898757502 | EI11: ='Profile angles'!BD11 -> 1.715145846 | EK11: 7 | EL11: 0.7002397336 | EM11: 4.257251251 | EN11: 10.29209715 | EO11: 17.07176431 | EP11: 20.59199881 | EQ11: 20.6029444 | ER11: 18.56752696 | ES11: 16.35731875 | ET11: 13.68258886 | EU11: 10.62690206 | EV11: 5.898757502 | EW11: 1.715145846
B12: 8 | C12: =IF($T$36="y",'Dry Bulb'!D12-C343,'Dry Bulb'!D12-C227) -> -9.376012287 | D12: =IF($T$36="y",'Dry Bulb'!E12-D343,'Dry Bulb'!E12-D227) -> -4.956852115 | E12: =IF($T$36="y",'Dry Bulb'!F12-E343,'Dry Bulb'!F12-E227) -> -3.267131489 | F12: =IF($T$36="y",'Dry Bulb'!G12-F343,'Dry Bulb'!G12-F227) -> 8.678945867 | G12: =IF($T$36="y",'Dry Bulb'!H12-G343,'Dry Bulb'!H12-G227) -> 20.8741999 | H12: =IF($T$36="y",'Dry Bulb'!I12-H343,'Dry Bulb'!I12-H227) -> 26.82095851 | I12: =IF($T$36="y",'Dry Bulb'!J12-I343,'Dry Bulb'!J12-I227) -> 28.21755679 | J12: =IF($T$36="y",'Dry Bulb'!K12-J343,'Dry Bulb'!K12-J227) -> 28.40635885 | K12: =IF($T$36="y",'Dry Bulb'!L12-K343,'Dry Bulb'!L12-K227) -> 22.32663715 | L12: =IF($T$36="y",'Dry Bulb'!M12-L343,'Dry Bulb'!M12-L227) -> 9.931430011 | M12: =IF($T$36="y",'Dry Bulb'!N12-M343,'Dry Bulb'!N12-M227) -> -2.664410694 | N12: =IF($T$36="y",'Dry Bulb'!O12-N343,'Dry Bulb'!O12-N227) -> -7.630075256 | X12: 4 | AF12: Profile Angle δ= | AH12: =DEGREES(AI11) -> 55.0079798 | AP12: ='Incident angle'!BI12 -> 8 | AQ12: ='Incident angle'!BJ12 -> 127.3013057 | AR12: ='Incident angle'!BK12 -> 0 | AS12: ='Incident angle'!BL12 -> 0 | AT12: ='Incident angle'!BM12 -> 0 | AU12: ='Incident angle'!BN12 -> 0 | AV12: ='Incident angle'!BO12 -> 0 | AW12: ='Incident angle'!BP12 -> 0 | AX12: ='Incident angle'!BQ12 -> 0 | AY12: ='Incident angle'!BR12 -> 0 | AZ12: ='Incident angle'!BS12 -> 0 | BA12: ='Incident angle'!BT12 -> 364.2388711 | BB12: ='Incident angle'!BU12 -> 311.0423689 | BD12: ='Incident angle'!BW12 -> 8 | BE12: ='Incident angle'!BX12 -> 1114.291684 | BF12: ='Incident angle'!BY12 -> 1580.267986 | BG12: ='Incident angle'!BZ12 -> 2274.256202 | BH12: ='Incident angle'!CA12 -> 3450.063221 | BI12: ='Incident angle'!CB12 -> 3430.08917 | BJ12: ='Incident angle'!CC12 -> 3624.425392 | BK12: ='Incident angle'!CD12 -> 3506.050404 | BL12: ='Incident angle'!CE12 -> 3701.469397 | BM12: ='Incident angle'!CF12 -> 3245.924359 | BN12: ='Incident angle'!CG12 -> 2588.984522 | BO12: ='Incident angle'!CH12 -> 1561.741512 | BP12: ='Incident angle'!CI12 -> 997.2815048 | BR12: ='Profile angles'!B12 -> 8 | BS12: =RADIANS('Profile angles'!C12) -> 0.4390372121 | BT12: =RADIANS('Profile angles'!D12) -> 0.7192181163 | BU12: =RADIANS('Profile angles'!E12) -> 1.139700002 | BV12: =RADIANS('Profile angles'!F12) -> 1.555680215 | BW12: =RADIANS('Profile angles'!G12) -> -1.350753413 | BX12: =RADIANS('Profile angles'!H12) -> -1.253806073 | BY12: =RADIANS('Profile angles'!I12) -> -1.307305141 | BZ12: =RADIANS('Profile angles'!J12) -> -1.568714181 | CA12: =RADIANS('Profile angles'!K12) -> 1.139700002 | CB12: =RADIANS('Profile angles'!L12) -> 0.7977743448 | CC12: =RADIANS('Profile angles'!M12) -> 0.5360253718 | CD12: =RADIANS('Profile angles'!N12) -> 0.4037531185 | CE12: 0.7298444316 | CF12: ='Profile angles'!B41 -> 8 | CG12: =RADIANS('Profile angles'!C41) -> 0.258335136 | CH12: =RADIANS('Profile angles'!D41) -> 0.3210561316 | CI12: =RADIANS('Profile angles'!E41) -> 0.4227167631 | CJ12: =RADIANS('Profile angles'!F41) -> 0.5354797677 | CK12: =RADIANS('Profile angles'!G41) -> 0.5980392228 | CL12: =RADIANS('Profile angles'!H41) -> 0.6008536183 | CM12: =RADIANS('Profile angles'!I41) -> 0.5629740216 | CN12: =RADIANS('Profile angles'!J41) -> 0.5228818128 | CO12: =RADIANS('Profile angles'!K41) -> 0.4845965242 | CP12: =RADIANS('Profile angles'!L41) -> 0.4442621994 | CQ12: =RADIANS('Profile angles'!M41) -> 0.3654605453 | CR12: =RADIANS('Profile angles'!N41) -> 0.2815137986 | CT12: ='Profile angles'!AD12 -> 8 | CU12: =(IF($AH$12<DEGREES(BS12),0+$AJ$16,1-((TAN(BS12)/TAN($AG$14))*(1-$AJ$16))))*(('Surface Solar Azimuth Angles'!BX11*$DU$3)+1-$DU$3) -> 0.07478251746 | CV12: =(IF($AH$12<DEGREES(BT12),0+$AJ$16,1-((TAN(BT12)/TAN($AG$14))*(1-$AJ$16))))*(('Surface Solar Azimuth Angles'!BY11*$DU$3)+1-$DU$3) -> 0 | CW12: =(IF($AH$12<DEGREES(BU12),0+$AJ$16,1-((TAN(BU12)/TAN($AG$14))*(1-$AJ$16))))*(('Surface Solar Azimuth Angles'!BZ11*$DU$3)+1-$DU$3) -> 0 | CX12: =(IF($AH$12<DEGREES(BV12),0+$AJ$16,1-((TAN(BV12)/TAN($AG$14))*(1-$AJ$16))))*(('Surface Solar Azimuth Angles'!CA11*$DU$3)+1-$DU$3) -> 0 | CY12: =(IF($AH$12<DEGREES(BW12),0+$AJ$16,1-((TAN(BW12)/TAN($AG$14))*(1-$AJ$16))))*(('Surface Solar Azimuth Angles'!CB11*$DU$3)+1-$DU$3) -> 0 | CZ12: =(IF($AH$12<DEGREES(BX12),0+$AJ$16,1-((TAN(BX12)/TAN($AG$14))*(1-$AJ$16))))*(('Surface Solar Azimuth Angles'!CC11*$DU$3)+1-$DU$3) -> 0 | DA12: =(IF($AH$12<DEGREES(BY12),0+$AJ$16,1-((TAN(BY12)/TAN($AG$14))*(1-$AJ$16))))*(('Surface Solar Azimuth Angles'!CD11*$DU$3)+1-$DU$3) -> 0 | DB12: =(IF($AH$12<DEGREES(BZ12),0+$AJ$16,1-((TAN(BZ12)/TAN($AG$14))*(1-$AJ$16))))*(('Surface Solar Azimuth Angles'!CE11*$DU$3)+1-$DU$3) -> 0 | DC12: =(IF($AH$12<DEGREES(CA12),0+$AJ$16,1-((TAN(CA12)/TAN($AG$14))*(1-$AJ$16))))*(('Surface Solar Azimuth Angles'!CF11*$DU$3)+1-$DU$3) -> 0 | DD12: =(IF($AH$12<DEGREES(CB12),0+$AJ$16,1-((TAN(CB12)/TAN($AG$14))*(1-$AJ$16))))*(('Surface Solar Azimuth Angles'!CG11*$DU$3)+1-$DU$3) -> 0 | DE12: =(IF($AH$12<DEGREES(CC12),0+$AJ$16,1-((TAN(CC12)/TAN($AG$14))*(1-$AJ$16))))*(('Surface Solar Azimuth Angles'!CH11*$DU$3)+1-$DU$3) -> 0.1307271458 | DF12: =(IF($AH$12<DEGREES(CD12),0+$AJ$16,1-((TAN(CD12)/TAN($AG$14))*(1-$AJ$16))))*(('Surface Solar Azimuth Angles'!CI11*$DU$3)+1-$DU$3) -> 0.1831939258 | DH12: 8 | DI12: =(IF($AH$46<DEGREES(CG12),0+$AJ$50,1-((TAN(CG12)/TAN($AG$48))*(1-$AJ$50))))*(('Surface Solar Azimuth Angles'!CL11*$DU$3)+1-$DU$3) -> 0.6047187975 | DJ12: =(IF($AH$46<DEGREES(CH12),0+$AJ$50,1-((TAN(CH12)/TAN($AG$48))*(1-$AJ$50))))*(('Surface Solar Azimuth Angles'!CM11*$DU$3)+1-$DU$3) -> 0.6484656531 | DK12: =(IF($AH$46<DEGREES(CI12),0+$AJ$50,1-((TAN(CI12)/TAN($AG$48))*(1-$AJ$50))))*(('Surface Solar Azimuth Angles'!CN11*$DU$3)+1-$DU$3) -> 0.654569849 | DL12: =(IF($AH$46<DEGREES(CJ12),0+$AJ$50,1-((TAN(CJ12)/TAN($AG$48))*(1-$AJ$50))))*(('Surface Solar Azimuth Angles'!CO11*$DU$3)+1-$DU$3) -> 0.6411308082 | DM12: =(IF($AH$46<DEGREES(CK12),0+$AJ$50,1-((TAN(CK12)/TAN($AG$48))*(1-$AJ$50))))*(('Surface Solar Azimuth Angles'!CP11*$DU$3)+1-$DU$3) -> 0.5461976553 | DN12: =(IF($AH$46<DEGREES(CL12),0+$AJ$50,1-((TAN(CL12)/TAN($AG$48))*(1-$AJ$50))))*(('Surface Solar Azimuth Angles'!CQ11*$DU$3)+1-$DU$3) -> 0.5225753537 | DO12: =(IF($AH$46<DEGREES(CM12),0+$AJ$50,1-((TAN(CM12)/TAN($AG$48))*(1-$AJ$50))))*(('Surface Solar Azimuth Angles'!CR11*$DU$3)+1-$DU$3) -> 0.5684489901 | DP12: =(IF($AH$46<DEGREES(CN12),0+$AJ$50,1-((TAN(CN12)/TAN($AG$48))*(1-$AJ$50))))*(('Surface Solar Azimuth Angles'!CS11*$DU$3)+1-$DU$3) -> 0.6537706279 | DQ12: =(IF($AH$46<DEGREES(CO12),0+$AJ$50,1-((TAN(CO12)/TAN($AG$48))*(1-$AJ$50))))*(('Surface Solar Azimuth Angles'!CT11*$DU$3)+1-$DU$3) -> 0.6012905913 | DR12: =(IF($AH$46<DEGREES(CP12),0+$AJ$50,1-((TAN(CP12)/TAN($AG$48))*(1-$AJ$50))))*(('Surface Solar Azimuth Angles'!CU11*$DU$3)+1-$DU$3) -> 0.5485318533 | DS12: =(IF($AH$46<DEGREES(CQ12),0+$AJ$50,1-((TAN(CQ12)/TAN($AG$48))*(1-$AJ$50))))*(('Surface Solar Azimuth Angles'!CV11*$DU$3)+1-$DU$3) -> 0.5222806782 | DT12: =(IF($AH$46<DEGREES(CR12),0+$AJ$50,1-((TAN(CR12)/TAN($AG$48))*(1-$AJ$50))))*(('Surface Solar Azimuth Angles'!CW11*$DU$3)+1-$DU$3) -> 0.546754514 | DW12: ='Profile angles'!AR12 -> 8 | DX12: ='Profile angles'!AS12 -> 12.96835954 | DY12: ='Profile angles'!AT12 -> 17.27030398 | DZ12: ='Profile angles'!AU12 -> 23.77374519 | EA12: ='Profile angles'!AV12 -> 30.67971944 | EB12: ='Profile angles'!AW12 -> 33.95981435 | EC12: ='Profile angles'!AX12 -> 33.77049475 | ED12: ='Profile angles'!AY12 -> 31.88774402 | EE12: ='Profile angles'!AZ12 -> 29.95890321 | EF12: ='Profile angles'!BA12 -> 27.09790022 | EG12: ='Profile angles'!BB12 -> 23.3509304 | EH12: ='Profile angles'!BC12 -> 17.83234746 | EI12: ='Profile angles'!BD12 -> 13.46784766 | EK12: 8 | EL12: 12.96835954 | EM12: 17.27030398 | EN12: 23.77374519 | EO12: 30.67971944 | EP12: 33.95981435 | EQ12: 33.77049475 | ER12: 31.88774402 | ES12: 29.95890321 | ET12: 27.09790022 | EU12: 23.3509304 | EV12: 17.83234746 | EW12: 13.46784766
B13: 9 | C13: =IF($T$36="y",'Dry Bulb'!D13-C344,'Dry Bulb'!D13-C228) -> -3.830747816 | D13: =IF($T$36="y",'Dry Bulb'!E13-D344,'Dry Bulb'!E13-D228) -> -0.2697520381 | E13: =IF($T$36="y",'Dry Bulb'!F13-E344,'Dry Bulb'!F13-E228) -> 0.09647053732 | F13: =IF($T$36="y",'Dry Bulb'!G13-F344,'Dry Bulb'!G13-F228) -> 13.82214931 | G13: =IF($T$36="y",'Dry Bulb'!H13-G344,'Dry Bulb'!H13-G228) -> 23.32089234 | H13: =IF($T$36="y",'Dry Bulb'!I13-H344,'Dry Bulb'!I13-H228) -> 29.82351179 | I13: =IF($T$36="y",'Dry Bulb'!J13-I344,'Dry Bulb'!J13-I228) -> 32.94307429 | J13: =IF($T$36="y",'Dry Bulb'!K13-J344,'Dry Bulb'!K13-J228) -> 33.32154067 | K13: =IF($T$36="y",'Dry Bulb'!L13-K344,'Dry Bulb'!L13-K228) -> 26.67100327 | L13: =IF($T$36="y",'Dry Bulb'!M13-L344,'Dry Bulb'!M13-L228) -> 15.77561872 | M13: =IF($T$36="y",'Dry Bulb'!N13-M344,'Dry Bulb'!N13-M228) -> 2.926576364 | N13: =IF($T$36="y",'Dry Bulb'!O13-N344,'Dry Bulb'!O13-N228) -> -2.784971453 | P13: 0.04 | Q13: Roof U-Value | X13: 5 | AP13: ='Incident angle'!BI13 -> 9 | AQ13: ='Incident angle'!BJ13 -> 811.4775722 | AR13: ='Incident angle'!BK13 -> 118.6041038 | AS13: ='Incident angle'!BL13 -> 0 | AT13: ='Incident angle'!BM13 -> 0 | AU13: ='Incident angle'!BN13 -> 0 | AV13: ='Incident angle'!BO13 -> 0 | AW13: ='Incident angle'!BP13 -> 0 | AX13: ='Incident angle'!BQ13 -> 0 | AY13: ='Incident angle'!BR13 -> 0 | AZ13: ='Incident angle'!BS13 -> 318.4263942 | BA13: ='Incident angle'!BT13 -> 1182.145114 | BB13: ='Incident angle'!BU13 -> 959.6028111 | BD13: ='Incident angle'!BW13 -> 9 | BE13: ='Incident angle'!BX13 -> 1937.749929 | BF13: ='Incident angle'!BY13 -> 2419.201035 | BG13: ='Incident angle'!BZ13 -> 2912.014826 | BH13: ='Incident angle'!CA13 -> 3360.415866 | BI13: ='Incident angle'!CB13 -> 3200.490327 | BJ13: ='Incident angle'!CC13 -> 3403.230808 | BK13: ='Incident angle'!CD13 -> 3720.923988 | BL13: ='Incident angle'!CE13 -> 3826.08636 | BM13: ='Incident angle'!CF13 -> 3354.212859 | BN13: ='Incident angle'!CG13 -> 2669.632934 | BO13: ='Incident angle'!CH13 -> 1917.496001 | BP13: ='Incident angle'!CI13 -> 1389.98044 | BR13: ='Profile angles'!B13 -> 9 | BS13: =RADIANS('Profile angles'!C13) -> 0.6304762633 | BT13: =RADIANS('Profile angles'!D13) -> 0.8549338832 | BU13: =RADIANS('Profile angles'!E13) -> 1.139700002 | BV13: =RADIANS('Profile angles'!F13) -> 1.436823413 | BW13: =RADIANS('Profile angles'!G13) -> -1.512890129 | BX13: =RADIANS('Profile angles'!H13) -> -1.434263764 | BY13: =RADIANS('Profile angles'!I13) -> -1.489575177 | BZ13: =RADIANS('Profile angles'!J13) -> 1.446335475 | CA13: =RADIANS('Profile angles'!K13) -> 1.139700002 | CB13: =RADIANS('Profile angles'!L13) -> 0.8871318119 | CC13: =RADIANS('Profile angles'!M13) -> 0.6779149268 | CD13: =RADIANS('Profile angles'!N13) -> 0.5783624759 | CE13: 0.8867663843 | CF13: ='Profile angles'!B42 -> 9 | CG13: =RADIANS('Profile angles'!C42) -> 0.5218161051 | CH13: =RADIANS('Profile angles'!D42) -> 0.5789532644 | CI13: =RADIANS('Profile angles'!E42) -> 0.6743232952 | CJ13: =RADIANS('Profile angles'!F42) -> 0.7769635129 | CK13: =RADIANS('Profile angles'!G42) -> 0.8300978093 | CL13: =RADIANS('Profile angles'!H42) -> 0.828689501 | CM13: =RADIANS('Profile angles'!I42) -> 0.7941434482 | CN13: =RADIANS('Profile angles'!J42) -> 0.7637613745 | CO13: =RADIANS('Profile angles'!K42) -> 0.7390887077 | CP13: =RADIANS('Profile angles'!L42) -> 0.7106237876 | CQ13: =RADIANS('Profile angles'!M42) -> 0.6387070204 | CR13: =RADIANS('Profile angles'!N42) -> 0.551590113 | CT13: ='Profile angles'!AD13 -> 9 | CU13: =(IF($AH$12<DEGREES(BS13),0+$AJ$16,1-((TAN(BS13)/TAN($AG$14))*(1-$AJ$16))))*(('Surface Solar Azimuth Angles'!BX12*$DU$3)+1-$DU$3) -> 0.178684185 | CV13: =(IF($AH$12<DEGREES(BT13),0+$AJ$16,1-((TAN(BT13)/TAN($AG$14))*(1-$AJ$16))))*(('Surface Solar Azimuth Angles'!BY12*$DU$3)+1-$DU$3) -> 0.02353385462 | CW13: =(IF($AH$12<DEGREES(BU13),0+$AJ$16,1-((TAN(BU13)/TAN($AG$14))*(1-$AJ$16))))*(('Surface Solar Azimuth Angles'!BZ12*$DU$3)+1-$DU$3) -> 0 | CX13: =(IF($AH$12<DEGREES(BV13),0+$AJ$16,1-((TAN(BV13)/TAN($AG$14))*(1-$AJ$16))))*(('Surface Solar Azimuth Angles'!CA12*$DU$3)+1-$DU$3) -> 0 | CY13: =(IF($AH$12<DEGREES(BW13),0+$AJ$16,1-((TAN(BW13)/TAN($AG$14))*(1-$AJ$16))))*(('Surface Solar Azimuth Angles'!CB12*$DU$3)+1-$DU$3) -> 0 | CZ13: =(IF($AH$12<DEGREES(BX13),0+$AJ$16,1-((TAN(BX13)/TAN($AG$14))*(1-$AJ$16))))*(('Surface Solar Azimuth Angles'!CC12*$DU$3)+1-$DU$3) -> 0 | DA13: =(IF($AH$12<DEGREES(BY13),0+$AJ$16,1-((TAN(BY13)/TAN($AG$14))*(1-$AJ$16))))*(('Surface Solar Azimuth Angles'!CD12*$DU$3)+1-$DU$3) -> 0 | DB13: =(IF($AH$12<DEGREES(BZ13),0+$AJ$16,1-((TAN(BZ13)/TAN($AG$14))*(1-$AJ$16))))*(('Surface Solar Azimuth Angles'!CE12*$DU$3)+1-$DU$3) -> 0 | DC13: =(IF($AH$12<DEGREES(CA13),0+$AJ$16,1-((TAN(CA13)/TAN($AG$14))*(1-$AJ$16))))*(('Surface Solar Azimuth Angles'!CF12*$DU$3)+1-$DU$3) -> 0 | DD13: =(IF($AH$12<DEGREES(CB13),0+$AJ$16,1-((TAN(CB13)/TAN($AG$14))*(1-$AJ$16))))*(('Surface Solar Azimuth Angles'!CG12*$DU$3)+1-$DU$3) -> 0.04040611214 | DE13: =(IF($AH$12<DEGREES(CC13),0+$AJ$16,1-((TAN(CC13)/TAN($AG$14))*(1-$AJ$16))))*(('Surface Solar Azimuth Angles'!CH12*$DU$3)+1-$DU$3) -> 0.1997559599 | DF13: =(IF($AH$12<DEGREES(CD13),0+$AJ$16,1-((TAN(CD13)/TAN($AG$14))*(1-$AJ$16))))*(('Surface Solar Azimuth Angles'!CI12*$DU$3)+1-$DU$3) -> 0.2549462131 | DH13: 9 | DI13: =(IF($AH$46<DEGREES(CG13),0+$AJ$50,1-((TAN(CG13)/TAN($AG$48))*(1-$AJ$50))))*(('Surface Solar Azimuth Angles'!CL12*$DU$3)+1-$DU$3) -> 0.3970023321 | DJ13: =(IF($AH$46<DEGREES(CH13),0+$AJ$50,1-((TAN(CH13)/TAN($AG$48))*(1-$AJ$50))))*(('Surface Solar Azimuth Angles'!CM12*$DU$3)+1-$DU$3) -> 0.4350153181 | DK13: =(IF($AH$46<DEGREES(CI13),0+$AJ$50,1-((TAN(CI13)/TAN($AG$48))*(1-$AJ$50))))*(('Surface Solar Azimuth Angles'!CN12*$DU$3)+1-$DU$3) -> 0.4247478798 | DL13: =(IF($AH$46<DEGREES(CJ13),0+$AJ$50,1-((TAN(CJ13)/TAN($AG$48))*(1-$AJ$50))))*(('Surface Solar Azimuth Angles'!CO12*$DU$3)+1-$DU$3) -> 0.3828669538 | DM13: =(IF($AH$46<DEGREES(CK13),0+$AJ$50,1-((TAN(CK13)/TAN($AG$48))*(1-$AJ$50))))*(('Surface Solar Azimuth Angles'!CP12*$DU$3)+1-$DU$3) -> 0.3329125895 | DN13: =(IF($AH$46<DEGREES(CL13),0+$AJ$50,1-((TAN(CL13)/TAN($AG$48))*(1-$AJ$50))))*(('Surface Solar Azimuth Angles'!CQ12*$DU$3)+1-$DU$3) -> 0.3197689056 | DO13: =(IF($AH$46<DEGREES(CM13),0+$AJ$50,1-((TAN(CM13)/TAN($AG$48))*(1-$AJ$50))))*(('Surface Solar Azimuth Angles'!CR12*$DU$3)+1-$DU$3) -> 0.3732839923 | DP13: =(IF($AH$46<DEGREES(CN13),0+$AJ$50,1-((TAN(CN13)/TAN($AG$48))*(1-$AJ$50))))*(('Surface Solar Azimuth Angles'!CS12*$DU$3)+1-$DU$3) -> 0.3999340017 | DQ13: =(IF($AH$46<DEGREES(CO13),0+$AJ$50,1-((TAN(CO13)/TAN($AG$48))*(1-$AJ$50))))*(('Surface Solar Azimuth Angles'!CT12*$DU$3)+1-$DU$3) -> 0.358166821 | DR13: =(IF($AH$46<DEGREES(CP13),0+$AJ$50,1-((TAN(CP13)/TAN($AG$48))*(1-$AJ$50))))*(('Surface Solar Azimuth Angles'!CU12*$DU$3)+1-$DU$3) -> 0.3140760181 | DS13: =(IF($AH$46<DEGREES(CQ13),0+$AJ$50,1-((TAN(CQ13)/TAN($AG$48))*(1-$AJ$50))))*(('Surface Solar Azimuth Angles'!CV12*$DU$3)+1-$DU$3) -> 0.2988209985 | DT13: =(IF($AH$46<DEGREES(CR13),0+$AJ$50,1-((TAN(CR13)/TAN($AG$48))*(1-$AJ$50))))*(('Surface Solar Azimuth Angles'!CW12*$DU$3)+1-$DU$3) -> 0.3335464395 | DW13: ='Profile angles'!AR13 -> 9 | DX13: ='Profile angles'!AS13 -> 24.30653824 | DY13: ='Profile angles'!AT13 -> 29.60745672 | DZ13: ='Profile angles'!AU13 -> 36.87799851 | EA13: ='Profile angles'!AV13 -> 44.26739887 | EB13: ='Profile angles'!AW13 -> 47.50386514 | EC13: ='Profile angles'!AX13 -> 47.16345799 | ED13: ='Profile angles'!AY13 -> 45.40312643 | EE13: ='Profile angles'!AZ13 -> 43.5563856 | EF13: ='Profile angles'!BA13 -> 40.04875689 | EG13: ='Profile angles'!BB13 -> 35.17053731 | EH13: ='Profile angles'!BC13 -> 28.62875316 | EI13: ='Profile angles'!BD13 -> 24.1209855 | EK13: 9 | EL13: 24.30653824 | EM13: 29.60745672 | EN13: 36.87799851 | EO13: 44.26739887 | EP13: 47.50386514 | EQ13: 47.16345799 | ER13: 45.40312643 | ES13: 43.5563856 | ET13: 40.04875689 | EU13: 35.17053731 | EV13: 28.62875316 | EW13: 24.1209855
B14: 10 | C14: =IF($T$36="y",'Dry Bulb'!D14-C345,'Dry Bulb'!D14-C229) -> -1.062045473 | D14: =IF($T$36="y",'Dry Bulb'!E14-D345,'Dry Bulb'!E14-D229) -> -5.579009997 | E14: =IF($T$36="y",'Dry Bulb'!F14-E345,'Dry Bulb'!F14-E229) -> -1.875027521 | F14: =IF($T$36="y",'Dry Bulb'!G14-F345,'Dry Bulb'!G14-F229) -> 10.62494601 | G14: =IF($T$36="y",'Dry Bulb'!H14-G345,'Dry Bulb'!H14-G229) -> 20.34080679 | H14: =IF($T$36="y",'Dry Bulb'!I14-H345,'Dry Bulb'!I14-H229) -> 26.46080679 | I14: =IF($T$36="y",'Dry Bulb'!J14-I345,'Dry Bulb'!J14-I229) -> 29.71671204 | J14: =IF($T$36="y",'Dry Bulb'!K14-J345,'Dry Bulb'!K14-J229) -> 31.09791836 | K14: =IF($T$36="y",'Dry Bulb'!L14-K345,'Dry Bulb'!L14-K229) -> 24.75903174 | L14: =IF($T$36="y",'Dry Bulb'!M14-L345,'Dry Bulb'!M14-L229) -> 14.38201057 | M14: =IF($T$36="y",'Dry Bulb'!N14-M345,'Dry Bulb'!N14-M229) -> 6.528509164 | N14: =IF($T$36="y",'Dry Bulb'!O14-N345,'Dry Bulb'!O14-N229) -> 0.2572124081 | X14: 6 | AG14: =RADIANS(AH12) -> 0.9600703624 | AP14: ='Incident angle'!BI14 -> 10 | AQ14: ='Incident angle'!BJ14 -> 1506.604311 | AR14: ='Incident angle'!BK14 -> 314.8318934 | AS14: ='Incident angle'!BL14 -> 0 | AT14: ='Incident angle'!BM14 -> 0 | AU14: ='Incident angle'!BN14 -> 0 | AV14: ='Incident angle'!BO14 -> 0 | AW14: ='Incident angle'!BP14 -> 0 | AX14: ='Incident angle'!BQ14 -> 0 | AY14: ='Incident angle'!BR14 -> 0 | AZ14: ='Incident angle'!BS14 -> 389.84763 | BA14: ='Incident angle'!BT14 -> 1971.806435 | BB14: ='Incident angle'!BU14 -> 1748.16863 | BD14: ='Incident angle'!BW14 -> 10 | BE14: ='Incident angle'!BX14 -> 1183.649345 | BF14: ='Incident angle'!BY14 -> 1497.437685 | BG14: ='Incident angle'!BZ14 -> 1259.116827 | BH14: ='Incident angle'!CA14 -> 97.57076964 | BI14: ='Incident angle'!CB14 -> 0 | BJ14: ='Incident angle'!CC14 -> 0 | BK14: ='Incident angle'!CD14 -> 8.427791038 | BL14: ='Incident angle'!CE14 -> 454.1619922 | BM14: ='Incident angle'!CF14 -> 433.5569408 | BN14: ='Incident angle'!CG14 -> 363.2127224 | BO14: ='Incident angle'!CH14 -> 456.0817334 | BP14: ='Incident angle'!CI14 -> 591.9742945 | BR14: ='Profile angles'!B14 -> 10 | BS14: =RADIANS('Profile angles'!C14) -> 0.7254554153 | BT14: =RADIANS('Profile angles'!D14) -> 0.9144032921 | BU14: =RADIANS('Profile angles'!E14) -> 1.139700002 | BV14: =RADIANS('Profile angles'!F14) -> 1.382018638 | BW14: =RADIANS('Profile angles'!G14) -> 1.546947313 | BX14: =RADIANS('Profile angles'!H14) -> -1.528497488 | BY14: =RADIANS('Profile angles'!I14) -> 1.560476855 | BZ14: =RADIANS('Profile angles'!J14) -> 1.388309159 | CA14: =RADIANS('Profile angles'!K14) -> 1.139700002 | CB14: =RADIANS('Profile angles'!L14) -> 0.9290049663 | CC14: =RADIANS('Profile angles'!M14) -> 0.7495213445 | CD14: =RADIANS('Profile angles'!N14) -> 0.6695850596 | CE14: 0.9752534006 | CF14: ='Profile angles'!B43 -> 10 | CG14: =RADIANS('Profile angles'!C43) -> 0.810391447 | CH14: =RADIANS('Profile angles'!D43) -> 0.8548990658 | CI14: =RADIANS('Profile angles'!E43) -> 0.9383140971 | CJ14: =RADIANS('Profile angles'!F43) -> 1.026082814 | CK14: =RADIANS('Profile angles'!G43) -> 1.067210813 | CL14: =RADIANS('Profile angles'!H43) -> 1.060662629 | CM14: =RADIANS('Profile angles'!I43) -> 1.03010372 | CN14: =RADIANS('Profile angles'!J43) -> 1.012130642 | CO14: =RADIANS('Profile angles'!K43) -> 1.006360069 | CP14: =RADIANS('Profile angles'!L43) -> 0.9963309955 | CQ14: =RADIANS('Profile angles'!M43) -> 0.9389468741 | CR14: =RADIANS('Profile angles'!N43) -> 0.8512824956 | CT14: ='Profile angles'!AD14 -> 10 | CU14: =(IF($AH$12<DEGREES(BS14),0+$AJ$16,1-((TAN(BS14)/TAN($AG$14))*(1-$AJ$16))))*(('Surface Solar Azimuth Angles'!BX13*$DU$3)+1-$DU$3) -> 0.219306854 | CV14: =(IF($AH$12<DEGREES(BT14),0+$AJ$16,1-((TAN(BT14)/TAN($AG$14))*(1-$AJ$16))))*(('Surface Solar Azimuth Angles'!BY13*$DU$3)+1-$DU$3) -> 0.03975929896 | CW14: =(IF($AH$12<DEGREES(BU14),0+$AJ$16,1-((TAN(BU14)/TAN($AG$14))*(1-$AJ$16))))*(('Surface Solar Azimuth Angles'!BZ13*$DU$3)+1-$DU$3) -> 0 | CX14: =(IF($AH$12<DEGREES(BV14),0+$AJ$16,1-((TAN(BV14)/TAN($AG$14))*(1-$AJ$16))))*(('Surface Solar Azimuth Angles'!CA13*$DU$3)+1-$DU$3) -> 0 | CY14: =(IF($AH$12<DEGREES(BW14),0+$AJ$16,1-((TAN(BW14)/TAN($AG$14))*(1-$AJ$16))))*(('Surface Solar Azimuth Angles'!CB13*$DU$3)+1-$DU$3) -> 0 | CZ14: =(IF($AH$12<DEGREES(BX14),0+$AJ$16,1-((TAN(BX14)/TAN($AG$14))*(1-$AJ$16))))*(('Surface Solar Azimuth Angles'!CC13*$DU$3)+1-$DU$3) -> 0 | DA14: =(IF($AH$12<DEGREES(BY14),0+$AJ$16,1-((TAN(BY14)/TAN($AG$14))*(1-$AJ$16))))*(('Surface Solar Azimuth Angles'!CD13*$DU$3)+1-$DU$3) -> 0 | DB14: =(IF($AH$12<DEGREES(BZ14),0+$AJ$16,1-((TAN(BZ14)/TAN($AG$14))*(1-$AJ$16))))*(('Surface Solar Azimuth Angles'!CE13*$DU$3)+1-$DU$3) -> 0 | DC14: =(IF($AH$12<DEGREES(CA14),0+$AJ$16,1-((TAN(CA14)/TAN($AG$14))*(1-$AJ$16))))*(('Surface Solar Azimuth Angles'!CF13*$DU$3)+1-$DU$3) -> 0 | DD14: =(IF($AH$12<DEGREES(CB14),0+$AJ$16,1-((TAN(CB14)/TAN($AG$14))*(1-$AJ$16))))*(('Surface Solar Azimuth Angles'!CG13*$DU$3)+1-$DU$3) -> 0.03590657959 | DE14: =(IF($AH$12<DEGREES(CC14),0+$AJ$16,1-((TAN(CC14)/TAN($AG$14))*(1-$AJ$16))))*(('Surface Solar Azimuth Angles'!CH13*$DU$3)+1-$DU$3) -> 0.2298011488 | DF14: =(IF($AH$12<DEGREES(CD14),0+$AJ$16,1-((TAN(CD14)/TAN($AG$14))*(1-$AJ$16))))*(('Surface Solar Azimuth Angles'!CI13*$DU$3)+1-$DU$3) -> 0.2912610986 | DH14: 10 | DI14: =(IF($AH$46<DEGREES(CG14),0+$AJ$50,1-((TAN(CG14)/TAN($AG$48))*(1-$AJ$50))))*(('Surface Solar Azimuth Angles'!CL13*$DU$3)+1-$DU$3) -> 0.1503664008 | DJ14: =(IF($AH$46<DEGREES(CH14),0+$AJ$50,1-((TAN(CH14)/TAN($AG$48))*(1-$AJ$50))))*(('Surface Solar Azimuth Angles'!CM13*$DU$3)+1-$DU$3) -> 0.172848542 | DK14: =(IF($AH$46<DEGREES(CI14),0+$AJ$50,1-((TAN(CI14)/TAN($AG$48))*(1-$AJ$50))))*(('Surface Solar Azimuth Angles'!CN13*$DU$3)+1-$DU$3) -> 0.1244538672 | DL14: =(IF($AH$46<DEGREES(CJ14),0+$AJ$50,1-((TAN(CJ14)/TAN($AG$48))*(1-$AJ$50))))*(('Surface Solar Azimuth Angles'!CO13*$DU$3)+1-$DU$3) -> 0.008140253019 | DM14: =(IF($AH$46<DEGREES(CK14),0+$AJ$50,1-((TAN(CK14)/TAN($AG$48))*(1-$AJ$50))))*(('Surface Solar Azimuth Angles'!CP13*$DU$3)+1-$DU$3) -> 0 | DN14: =(IF($AH$46<DEGREES(CL14),0+$AJ$50,1-((TAN(CL14)/TAN($AG$48))*(1-$AJ$50))))*(('Surface Solar Azimuth Angles'!CQ13*$DU$3)+1-$DU$3) -> 0 | DO14: =(IF($AH$46<DEGREES(CM14),0+$AJ$50,1-((TAN(CM14)/TAN($AG$48))*(1-$AJ$50))))*(('Surface Solar Azimuth Angles'!CR13*$DU$3)+1-$DU$3) -> 0.0006134427378 | DP14: =(IF($AH$46<DEGREES(CN14),0+$AJ$50,1-((TAN(CN14)/TAN($AG$48))*(1-$AJ$50))))*(('Surface Solar Azimuth Angles'!CS13*$DU$3)+1-$DU$3) -> 0.03421641155 | DQ14: =(IF($AH$46<DEGREES(CO14),0+$AJ$50,1-((TAN(CO14)/TAN($AG$48))*(1-$AJ$50))))*(('Surface Solar Azimuth Angles'!CT13*$DU$3)+1-$DU$3) -> 0.03333679296 | DR14: =(IF($AH$46<DEGREES(CP14),0+$AJ$50,1-((TAN(CP14)/TAN($AG$48))*(1-$AJ$50))))*(('Surface Solar Azimuth Angles'!CU13*$DU$3)+1-$DU$3) -> 0.03088113139 | DS14: =(IF($AH$46<DEGREES(CQ14),0+$AJ$50,1-((TAN(CQ14)/TAN($AG$48))*(1-$AJ$50))))*(('Surface Solar Azimuth Angles'!CV13*$DU$3)+1-$DU$3) -> 0.0479585234 | DT14: =(IF($AH$46<DEGREES(CR14),0+$AJ$50,1-((TAN(CR14)/TAN($AG$48))*(1-$AJ$50))))*(('Surface Solar Azimuth Angles'!CW13*$DU$3)+1-$DU$3) -> 0.08798445463 | DW14: ='Profile angles'!AR14 -> 10 | DX14: ='Profile angles'!AS14 -> 34.13049864 | DY14: ='Profile angles'!AT14 -> 40.71694946 | DZ14: ='Profile angles'!AU14 -> 49.13064045 | EA14: ='Profile angles'!AV14 -> 57.57364211 | EB14: ='Profile angles'!AW14 -> 61.12399552 | EC14: ='Profile angles'!AX14 -> 60.70179184 | ED14: ='Profile angles'!AY14 -> 59.01686062 | EE14: ='Profile angles'!AZ14 -> 56.90516468 | EF14: ='Profile angles'!BA14 -> 51.95406447 | EG14: ='Profile angles'!BB14 -> 45.32618407 | EH14: ='Profile angles'!BC14 -> 37.566871 | EI14: ='Profile angles'!BD14 -> 33.04159126 | EK14: 10 | EL14: 34.13049864 | EM14: 40.71694946 | EN14: 49.13064045 | EO14: 57.57364211 | EP14: 61.12399552 | EQ14: 60.70179184 | ER14: 59.01686062 | ES14: 56.90516468 | ET14: 51.95406447 | EU14: 45.32618407 | EV14: 37.566871 | EW14: 33.04159126
B15: 11 | C15: =IF($T$36="y",'Dry Bulb'!D15-C346,'Dry Bulb'!D15-C230) -> 0.4140820581 | D15: =IF($T$36="y",'Dry Bulb'!E15-D346,'Dry Bulb'!E15-D230) -> -5.114570359 | E15: =IF($T$36="y",'Dry Bulb'!F15-E346,'Dry Bulb'!F15-E230) -> -1.152386327 | F15: =IF($T$36="y",'Dry Bulb'!G15-F346,'Dry Bulb'!G15-F230) -> 13.32080679 | G15: =IF($T$36="y",'Dry Bulb'!H15-G346,'Dry Bulb'!H15-G230) -> 22.86080679 | H15: =IF($T$36="y",'Dry Bulb'!I15-H346,'Dry Bulb'!I15-H230) -> 29.16080679 | I15: =IF($T$36="y",'Dry Bulb'!J15-I346,'Dry Bulb'!J15-I230) -> 32.58080679 | J15: =IF($T$36="y",'Dry Bulb'!K15-J346,'Dry Bulb'!K15-J230) -> 33.66080679 | K15: =IF($T$36="y",'Dry Bulb'!L15-K346,'Dry Bulb'!L15-K230) -> 26.46080679 | L15: =IF($T$36="y",'Dry Bulb'!M15-L346,'Dry Bulb'!M15-L230) -> 16.50128449 | M15: =IF($T$36="y",'Dry Bulb'!N15-M346,'Dry Bulb'!N15-M230) -> 11.40865245 | N15: =IF($T$36="y",'Dry Bulb'!O15-N346,'Dry Bulb'!O15-N230) -> -3.476538962 | P15: 75 | Q15: Thermostat Setpoint | T15: 68 | X15: 7 | AP15: ='Incident angle'!BI15 -> 11 | AQ15: ='Incident angle'!BJ15 -> 2137.131731 | AR15: ='Incident angle'!BK15 -> 246.1920311 | AS15: ='Incident angle'!BL15 -> 0 | AT15: ='Incident angle'!BM15 -> 0 | AU15: ='Incident angle'!BN15 -> 0 | AV15: ='Incident angle'!BO15 -> 0 | AW15: ='Incident angle'!BP15 -> 0 | AX15: ='Incident angle'!BQ15 -> 0 | AY15: ='Incident angle'!BR15 -> 0 | AZ15: ='Incident angle'!BS15 -> 254.5931202 | BA15: ='Incident angle'!BT15 -> 2668.002195 | BB15: ='Incident angle'!BU15 -> 2449.428917 | BD15: ='Incident angle'!BW15 -> 11 | BE15: ='Incident angle'!BX15 -> 0 | BF15: ='Incident angle'!BY15 -> 0 | BG15: ='Incident angle'!BZ15 -> 0 | BH15: ='Incident angle'!CA15 -> 0 | BI15: ='Incident angle'!CB15 -> 0 | BJ15: ='Incident angle'!CC15 -> 0 | BK15: ='Incident angle'!CD15 -> 0 | BL15: ='Incident angle'!CE15 -> 0 | BM15: ='Incident angle'!CF15 -> 0 | BN15: ='Incident angle'!CG15 -> 0 | BO15: ='Incident angle'!CH15 -> 0 | BP15: ='Incident angle'!CI15 -> 0 | BR15: ='Profile angles'!B15 -> 11 | BS15: =RADIANS('Profile angles'!C15) -> 0.7728705025 | BT15: =RADIANS('Profile angles'!D15) -> 0.9427998278 | BU15: =RADIANS('Profile angles'!E15) -> 1.139700002 | BV15: =RADIANS('Profile angles'!F15) -> 1.356053121 | BW15: =RADIANS('Profile angles'!G15) -> 1.506980924 | BX15: =RADIANS('Profile angles'!H15) -> 1.565808387 | BY15: =RADIANS('Profile angles'!I15) -> 1.514916661 | BZ15: =RADIANS('Profile angles'!J15) -> 1.360673106 | CA15: =RADIANS('Profile angles'!K15) -> 1.139700002 | CB15: =RADIANS('Profile angles'!L15) -> 0.948205342 | CC15: =RADIANS('Profile angles'!M15) -> 0.7835419681 | CD15: =RADIANS('Profile angles'!N15) -> 0.7150732585 | CE15: 1.011981356 | CF15: ='Profile angles'!B44 -> 11 | CG15: =RADIANS('Profile angles'!C44) -> 1.12682722 | CH15: =RADIANS('Profile angles'!D44) -> 1.15019492 | CI15: =RADIANS('Profile angles'!E44) -> 1.214942736 | CJ15: =RADIANS('Profile angles'!F44) -> 1.282767575 | CK15: =RADIANS('Profile angles'!G44) -> 1.309480008 | CL15: =RADIANS('Profile angles'!H44) -> 1.297124884 | CM15: =RADIANS('Profile angles'!I44) -> 1.271292825 | CN15: =RADIANS('Profile angles'!J44) -> 1.268076591 | CO15: =RADIANS('Profile angles'!K44) -> 1.285731003 | CP15: =RADIANS('Profile angles'!L44) -> 1.300093062 | CQ15: =RADIANS('Profile angles'!M44) -> 1.265885648 | CR15: =RADIANS('Profile angles'!N44) -> 1.182920836 | CT15: ='Profile angles'!AD15 -> 11 | CU15: =(IF($AH$12<DEGREES(BS15),0+$AJ$16,1-((TAN(BS15)/TAN($AG$14))*(1-$AJ$16))))*(('Surface Solar Azimuth Angles'!BX14*$DU$3)+1-$DU$3) -> 0.2437247162 | CV15: =(IF($AH$12<DEGREES(BT15),0+$AJ$16,1-((TAN(BT15)/TAN($AG$14))*(1-$AJ$16))))*(('Surface Solar Azimuth Angles'!BY14*$DU$3)+1-$DU$3) -> 0.02482773066 | CW15: =(IF($AH$12<DEGREES(BU15),0+$AJ$16,1-((TAN(BU15)/TAN($AG$14))*(1-$AJ$16))))*(('Surface Solar Azimuth Angles'!BZ14*$DU$3)+1-$DU$3) -> 0 | CX15: =(IF($AH$12<DEGREES(BV15),0+$AJ$16,1-((TAN(BV15)/TAN($AG$14))*(1-$AJ$16))))*(('Surface Solar Azimuth Angles'!CA14*$DU$3)+1-$DU$3) -> 0 | CY15: =(IF($AH$12<DEGREES(BW15),0+$AJ$16,1-((TAN(BW15)/TAN($AG$14))*(1-$AJ$16))))*(('Surface Solar Azimuth Angles'!CB14*$DU$3)+1-$DU$3) -> 0 | CZ15: =(IF($AH$12<DEGREES(BX15),0+$AJ$16,1-((TAN(BX15)/TAN($AG$14))*(1-$AJ$16))))*(('Surface Solar Azimuth Angles'!CC14*$DU$3)+1-$DU$3) -> 0 | DA15: =(IF($AH$12<DEGREES(BY15),0+$AJ$16,1-((TAN(BY15)/TAN($AG$14))*(1-$AJ$16))))*(('Surface Solar Azimuth Angles'!CD14*$DU$3)+1-$DU$3) -> 0 | DB15: =(IF($AH$12<DEGREES(BZ15),0+$AJ$16,1-((TAN(BZ15)/TAN($AG$14))*(1-$AJ$16))))*(('Surface Solar Azimuth Angles'!CE14*$DU$3)+1-$DU$3) -> 0 | DC15: =(IF($AH$12<DEGREES(CA15),0+$AJ$16,1-((TAN(CA15)/TAN($AG$14))*(1-$AJ$16))))*(('Surface Solar Azimuth Angles'!CF14*$DU$3)+1-$DU$3) -> 0 | DD15: =(IF($AH$12<DEGREES(CB15),0+$AJ$16,1-((TAN(CB15)/TAN($AG$14))*(1-$AJ$16))))*(('Surface Solar Azimuth Angles'!CG14*$DU$3)+1-$DU$3) -> 0.02003493807 | DE15: =(IF($AH$12<DEGREES(CC15),0+$AJ$16,1-((TAN(CC15)/TAN($AG$14))*(1-$AJ$16))))*(('Surface Solar Azimuth Angles'!CH14*$DU$3)+1-$DU$3) -> 0.2551533721 | DF15: =(IF($AH$12<DEGREES(CD15),0+$AJ$16,1-((TAN(CD15)/TAN($AG$14))*(1-$AJ$16))))*(('Surface Solar Azimuth Angles'!CI14*$DU$3)+1-$DU$3) -> 0.3225642789 | DH15: 11 | DI15: =(IF($AH$46<DEGREES(CG15),0+$AJ$50,1-((TAN(CG15)/TAN($AG$48))*(1-$AJ$50))))*(('Surface Solar Azimuth Angles'!CL14*$DU$3)+1-$DU$3) -> 0 | DJ15: =(IF($AH$46<DEGREES(CH15),0+$AJ$50,1-((TAN(CH15)/TAN($AG$48))*(1-$AJ$50))))*(('Surface Solar Azimuth Angles'!CM14*$DU$3)+1-$DU$3) -> 0 | DK15: =(IF($AH$46<DEGREES(CI15),0+$AJ$50,1-((TAN(CI15)/TAN($AG$48))*(1-$AJ$50))))*(('Surface Solar Azimuth Angles'!CN14*$DU$3)+1-$DU$3) -> 0 | DL15: =(IF($AH$46<DEGREES(CJ15),0+$AJ$50,1-((TAN(CJ15)/TAN($AG$48))*(1-$AJ$50))))*(('Surface Solar Azimuth Angles'!CO14*$DU$3)+1-$DU$3) -> 0 | DM15: =(IF($AH$46<DEGREES(CK15),0+$AJ$50,1-((TAN(CK15)/TAN($AG$48))*(1-$AJ$50))))*(('Surface Solar Azimuth Angles'!CP14*$DU$3)+1-$DU$3) -> 0 | DN15: =(IF($AH$46<DEGREES(CL15),0+$AJ$50,1-((TAN(CL15)/TAN($AG$48))*(1-$AJ$50))))*(('Surface Solar Azimuth Angles'!CQ14*$DU$3)+1-$DU$3) -> 0 | DO15: =(IF($AH$46<DEGREES(CM15),0+$AJ$50,1-((TAN(CM15)/TAN($AG$48))*(1-$AJ$50))))*(('Surface Solar Azimuth Angles'!CR14*$DU$3)+1-$DU$3) -> 0 | DP15: =(IF($AH$46<DEGREES(CN15),0+$AJ$50,1-((TAN(CN15)/TAN($AG$48))*(1-$AJ$50))))*(('Surface Solar Azimuth Angles'!CS14*$DU$3)+1-$DU$3) -> 0 | DQ15: =(IF($AH$46<DEGREES(CO15),0+$AJ$50,1-((TAN(CO15)/TAN($AG$48))*(1-$AJ$50))))*(('Surface Solar Azimuth Angles'!CT14*$DU$3)+1-$DU$3) -> 0 | DR15: =(IF($AH$46<DEGREES(CP15),0+$AJ$50,1-((TAN(CP15)/TAN($AG$48))*(1-$AJ$50))))*(('Surface Solar Azimuth Angles'!CU14*$DU$3)+1-$DU$3) -> 0 | DS15: =(IF($AH$46<DEGREES(CQ15),0+$AJ$50,1-((TAN(CQ15)/TAN($AG$48))*(1-$AJ$50))))*(('Surface Solar Azimuth Angles'!CV14*$DU$3)+1-$DU$3) -> 0 | DT15: =(IF($AH$46<DEGREES(CR15),0+$AJ$50,1-((TAN(CR15)/TAN($AG$48))*(1-$AJ$50))))*(('Surface Solar Azimuth Angles'!CW14*$DU$3)+1-$DU$3) -> 0 | DW15: ='Profile angles'!AR15 -> 11 | DX15: ='Profile angles'!AS15 -> 41.49933848 | DY15: ='Profile angles'!AT15 -> 49.5433564 | DZ15: ='Profile angles'!AU15 -> 59.40200953 | EA15: ='Profile angles'!AV15 -> 69.80182987 | EB15: ='Profile angles'!AW15 -> 74.62587005 | EC15: ='Profile angles'!AX15 -> 74.31742795 | ED15: ='Profile angles'!AY15 -> 72.57720287 | EE15: ='Profile angles'!AZ15 -> 69.28388599 | EF15: ='Profile angles'!BA15 -> 61.39325117 | EG15: ='Profile angles'!BB15 -> 52.417947 | EH15: ='Profile angles'!BC15 -> 43.55095259 | EI15: ='Profile angles'!BD15 -> 39.29701135 | EK15: 11 | EL15: 41.49933848 | EM15: 49.5433564 | EN15: 59.40200953 | EO15: 69.80182987 | EP15: 74.62587005 | EQ15: 74.31742795 | ER15: 72.57720287 | ES15: 69.28388599 | ET15: 61.39325117 | EU15: 52.417947 | EV15: 43.55095259 | EW15: 39.29701135
B16: 12 | C16: =IF($T$36="y",'Dry Bulb'!D16-C347,'Dry Bulb'!D16-C231) -> -3.077687353 | D16: =IF($T$36="y",'Dry Bulb'!E16-D347,'Dry Bulb'!E16-D231) -> -4.670002591 | E16: =IF($T$36="y",'Dry Bulb'!F16-E347,'Dry Bulb'!F16-E231) -> 0.8397596603 | F16: =IF($T$36="y",'Dry Bulb'!G16-F347,'Dry Bulb'!G16-F231) -> 15.48080679 | G16: =IF($T$36="y",'Dry Bulb'!H16-G347,'Dry Bulb'!H16-G231) -> 24.84080679 | H16: =IF($T$36="y",'Dry Bulb'!I16-H347,'Dry Bulb'!I16-H231) -> 31.50080679 | I16: =IF($T$36="y",'Dry Bulb'!J16-I347,'Dry Bulb'!J16-I231) -> 34.38080679 | J16: =IF($T$36="y",'Dry Bulb'!K16-J347,'Dry Bulb'!K16-J231) -> 35.64080679 | K16: =IF($T$36="y",'Dry Bulb'!L16-K347,'Dry Bulb'!L16-K231) -> 28.26080679 | L16: =IF($T$36="y",'Dry Bulb'!M16-L347,'Dry Bulb'!M16-L231) -> 18.91701379 | M16: =IF($T$36="y",'Dry Bulb'!N16-M347,'Dry Bulb'!N16-M231) -> 15.49333481 | N16: =IF($T$36="y",'Dry Bulb'!O16-N347,'Dry Bulb'!O16-N231) -> -0.1602899886 | X16: 8 | AB16: Transmittance of Shade Material | AJ16: 0 | AP16: ='Incident angle'!BI16 -> 12 | AQ16: ='Incident angle'!BJ16 -> 2660.770414 | AR16: ='Incident angle'!BK16 -> 129.9921969 | AS16: ='Incident angle'!BL16 -> 0 | AT16: ='Incident angle'!BM16 -> 0 | AU16: ='Incident angle'!BN16 -> 0 | AV16: ='Incident angle'!BO16 -> 0 | AW16: ='Incident angle'!BP16 -> 0 | AX16: ='Incident angle'!BQ16 -> 0 | AY16: ='Incident angle'!BR16 -> 0 | AZ16: ='Incident angle'!BS16 -> 199.3426806 | BA16: ='Incident angle'!BT16 -> 3190.346926 | BB16: ='Incident angle'!BU16 -> 3062.096342 | BD16: ='Incident angle'!BW16 -> 12 | BE16: ='Incident angle'!BX16 -> 0 | BF16: ='Incident angle'!BY16 -> 0 | BG16: ='Incident angle'!BZ16 -> 0 | BH16: ='Incident angle'!CA16 -> 0 | BI16: ='Incident angle'!CB16 -> 0 | BJ16: ='Incident angle'!CC16 -> 0 | BK16: ='Incident angle'!CD16 -> 0 | BL16: ='Incident angle'!CE16 -> 0 | BM16: ='Incident angle'!CF16 -> 0 | BN16: ='Incident angle'!CG16 -> 0 | BO16: ='Incident angle'!CH16 -> 0 | BP16: ='Incident angle'!CI16 -> 0 | BR16: ='Profile angles'!B16 -> 12 | BS16: =RADIANS('Profile angles'!C16) -> 0.7913530963 | BT16: =RADIANS('Profile angles'!D16) -> 0.9539310656 | BU16: =RADIANS('Profile angles'!E16) -> 1.139700002 | BV16: =RADIANS('Profile angles'!F16) -> 1.347464119 | BW16: =RADIANS('Profile angles'!G16) -> 1.49404736 | BX16: =RADIANS('Profile angles'!H16) -> 1.549232894 | BY16: =RADIANS('Profile angles'!I16) -> 1.498048297 | BZ16: =RADIANS('Profile angles'!J16) -> 1.351062286 | CA16: =RADIANS('Profile angles'!K16) -> 1.139700002 | CB16: =RADIANS('Profile angles'!L16) -> 0.9528310287 | CC16: =RADIANS('Profile angles'!M16) -> 0.7922440306 | CD16: =RADIANS('Profile angles'!N16) -> 0.7303138646 | CE16: 1.003262352 | CF16: ='Profile angles'!B45 -> 12 | CG16: =RADIANS('Profile angles'!C45) -> 1.465257231 | CH16: =RADIANS('Profile angles'!D45) -> 1.460360229 | CI16: =RADIANS('Profile angles'!E45) -> 1.500536497 | CJ16: =RADIANS('Profile angles'!F45) -> 1.544381097 | CK16: =RADIANS('Profile angles'!G45) -> 1.555062909 | CL16: =RADIANS('Profile angles'!H45) -> 1.536631166 | CM16: =RADIANS('Profile angles'!I45) -> 1.516162504 | CN16: =RADIANS('Profile angles'!J45) -> 1.529123084 | CO16: =RADIANS('Profile angles'!K45) -> 1.569035325 | CP16: =RADIANS('Profile angles'!L45) -> 1.527320677 | CQ16: =RADIANS('Profile angles'!M45) -> 1.532386992 | CR16: =RADIANS('Profile angles'!N45) -> 1.537600907 | CT16: ='Profile angles'!AD16 -> 12 | CU16: =(IF($AH$12<DEGREES(BS16),0+$AJ$16,1-((TAN(BS16)/TAN($AG$14))*(1-$AJ$16))))*(('Surface Solar Azimuth Angles'!BX15*$DU$3)+1-$DU$3) -> 0.2759823122 | CV16: =(IF($AH$12<DEGREES(BT16),0+$AJ$16,1-((TAN(BT16)/TAN($AG$14))*(1-$AJ$16))))*(('Surface Solar Azimuth Angles'!BY15*$DU$3)+1-$DU$3) -> 0.01194170851 | CW16: =(IF($AH$12<DEGREES(BU16),0+$AJ$16,1-((TAN(BU16)/TAN($AG$14))*(1-$AJ$16))))*(('Surface Solar Azimuth Angles'!BZ15*$DU$3)+1-$DU$3) -> 0 | CX16: =(IF($AH$12<DEGREES(BV16),0+$AJ$16,1-((TAN(BV16)/TAN($AG$14))*(1-$AJ$16))))*(('Surface Solar Azimuth Angles'!CA15*$DU$3)+1-$DU$3) -> 0 | CY16: =(IF($AH$12<DEGREES(BW16),0+$AJ$16,1-((TAN(BW16)/TAN($AG$14))*(1-$AJ$16))))*(('Surface Solar Azimuth Angles'!CB15*$DU$3)+1-$DU$3) -> 0 | CZ16: =(IF($AH$12<DEGREES(BX16),0+$AJ$16,1-((TAN(BX16)/TAN($AG$14))*(1-$AJ$16))))*(('Surface Solar Azimuth Angles'!CC15*$DU$3)+1-$DU$3) -> 0 | DA16: =(IF($AH$12<DEGREES(BY16),0+$AJ$16,1-((TAN(BY16)/TAN($AG$14))*(1-$AJ$16))))*(('Surface Solar Azimuth Angles'!CD15*$DU$3)+1-$DU$3) -> 0 | DB16: =(IF($AH$12<DEGREES(BZ16),0+$AJ$16,1-((TAN(BZ16)/TAN($AG$14))*(1-$AJ$16))))*(('Surface Solar Azimuth Angles'!CE15*$DU$3)+1-$DU$3) -> 0 | DC16: =(IF($AH$12<DEGREES(CA16),0+$AJ$16,1-((TAN(CA16)/TAN($AG$14))*(1-$AJ$16))))*(('Surface Solar Azimuth Angles'!CF15*$DU$3)+1-$DU$3) -> 0 | DD16: =(IF($AH$12<DEGREES(CB16),0+$AJ$16,1-((TAN(CB16)/TAN($AG$14))*(1-$AJ$16))))*(('Surface Solar Azimuth Angles'!CG15*$DU$3)+1-$DU$3) -> 0.01478526543 | DE16: =(IF($AH$12<DEGREES(CC16),0+$AJ$16,1-((TAN(CC16)/TAN($AG$14))*(1-$AJ$16))))*(('Surface Solar Azimuth Angles'!CH15*$DU$3)+1-$DU$3) -> 0.2846938477 | DF16: =(IF($AH$12<DEGREES(CD16),0+$AJ$16,1-((TAN(CD16)/TAN($AG$14))*(1-$AJ$16))))*(('Surface Solar Azimuth Angles'!CI15*$DU$3)+1-$DU$3) -> 0.3676136247 | DH16: 12 | DI16: =(IF($AH$46<DEGREES(CG16),0+$AJ$50,1-((TAN(CG16)/TAN($AG$48))*(1-$AJ$50))))*(('Surface Solar Azimuth Angles'!CL15*$DU$3)+1-$DU$3) -> 0 | DJ16: =(IF($AH$46<DEGREES(CH16),0+$AJ$50,1-((TAN(CH16)/TAN($AG$48))*(1-$AJ$50))))*(('Surface Solar Azimuth Angles'!CM15*$DU$3)+1-$DU$3) -> 0 | DK16: =(IF($AH$46<DEGREES(CI16),0+$AJ$50,1-((TAN(CI16)/TAN($AG$48))*(1-$AJ$50))))*(('Surface Solar Azimuth Angles'!CN15*$DU$3)+1-$DU$3) -> 0 | DL16: =(IF($AH$46<DEGREES(CJ16),0+$AJ$50,1-((TAN(CJ16)/TAN($AG$48))*(1-$AJ$50))))*(('Surface Solar Azimuth Angles'!CO15*$DU$3)+1-$DU$3) -> 0 | DM16: =(IF($AH$46<DEGREES(CK16),0+$AJ$50,1-((TAN(CK16)/TAN($AG$48))*(1-$AJ$50))))*(('Surface Solar Azimuth Angles'!CP15*$DU$3)+1-$DU$3) -> 0 | DN16: =(IF($AH$46<DEGREES(CL16),0+$AJ$50,1-((TAN(CL16)/TAN($AG$48))*(1-$AJ$50))))*(('Surface Solar Azimuth Angles'!CQ15*$DU$3)+1-$DU$3) -> 0 | DO16: =(IF($AH$46<DEGREES(CM16),0+$AJ$50,1-((TAN(CM16)/TAN($AG$48))*(1-$AJ$50))))*(('Surface Solar Azimuth Angles'!CR15*$DU$3)+1-$DU$3) -> 0 | DP16: =(IF($AH$46<DEGREES(CN16),0+$AJ$50,1-((TAN(CN16)/TAN($AG$48))*(1-$AJ$50))))*(('Surface Solar Azimuth Angles'!CS15*$DU$3)+1-$DU$3) -> 0 | DQ16: =(IF($AH$46<DEGREES(CO16),0+$AJ$50,1-((TAN(CO16)/TAN($AG$48))*(1-$AJ$50))))*(('Surface Solar Azimuth Angles'!CT15*$DU$3)+1-$DU$3) -> 0 | DR16: =(IF($AH$46<DEGREES(CP16),0+$AJ$50,1-((TAN(CP16)/TAN($AG$48))*(1-$AJ$50))))*(('Surface Solar Azimuth Angles'!CU15*$DU$3)+1-$DU$3) -> 0 | DS16: =(IF($AH$46<DEGREES(CQ16),0+$AJ$50,1-((TAN(CQ16)/TAN($AG$48))*(1-$AJ$50))))*(('Surface Solar Azimuth Angles'!CV15*$DU$3)+1-$DU$3) -> 0 | DT16: =(IF($AH$46<DEGREES(CR16),0+$AJ$50,1-((TAN(CR16)/TAN($AG$48))*(1-$AJ$50))))*(('Surface Solar Azimuth Angles'!CW15*$DU$3)+1-$DU$3) -> 0 | DW16: ='Profile angles'!AR16 -> 12 | DX16: ='Profile angles'!AS16 -> 45.1775238 | DY16: ='Profile angles'!AT16 -> 54.32906847 | DZ16: ='Profile angles'!AU16 -> 65.04737181 | EA16: ='Profile angles'!AV16 -> 77.12058196 | EB16: ='Profile angles'!AW16 -> 85.51186905 | EC16: ='Profile angles'!AX16 -> 87.6857067 | ED16: ='Profile angles'!AY16 -> 84.79391235 | EE16: ='Profile angles'!AZ16 -> 77.19973615 | EF16: ='Profile angles'!BA16 -> 65.29984057 | EG16: ='Profile angles'!BB16 -> 54.54260724 | EH16: ='Profile angles'!BC16 -> 45.37051786 | EI16: ='Profile angles'!BD16 -> 41.83131843 | EK16: 12 | EL16: 45.1775238 | EM16: 54.32906847 | EN16: 65.04737181 | EO16: 77.12058196 | EP16: 85.51186905 | EQ16: 87.6857067 | ER16: 84.79391235 | ES16: 77.19973615 | ET16: 65.29984057 | EU16: 54.54260724 | EV16: 45.37051786 | EW16: 41.83131843
B17: 13 | C17: =IF($T$36="y",'Dry Bulb'!D17-C348,'Dry Bulb'!D17-C232) -> -1.30641068 | D17: =IF($T$36="y",'Dry Bulb'!E17-D348,'Dry Bulb'!E17-D232) -> -1.284294054 | E17: =IF($T$36="y",'Dry Bulb'!F17-E348,'Dry Bulb'!F17-E232) -> 5.266750743 | F17: =IF($T$36="y",'Dry Bulb'!G17-F348,'Dry Bulb'!G17-F232) -> 16.74080679 | G17: =IF($T$36="y",'Dry Bulb'!H17-G348,'Dry Bulb'!H17-G232) -> 26.82080679 | H17: =IF($T$36="y",'Dry Bulb'!I17-H348,'Dry Bulb'!I17-H232) -> 32.76080679 | I17: =IF($T$36="y",'Dry Bulb'!J17-I348,'Dry Bulb'!J17-I232) -> 35.82080679 | J17: =IF($T$36="y",'Dry Bulb'!K17-J348,'Dry Bulb'!K17-J232) -> 37.62080679 | K17: =IF($T$36="y",'Dry Bulb'!L17-K348,'Dry Bulb'!L17-K232) -> 30.06080679 | L17: =IF($T$36="y",'Dry Bulb'!M17-L348,'Dry Bulb'!M17-L232) -> 20.93631633 | M17: =IF($T$36="y",'Dry Bulb'!N17-M348,'Dry Bulb'!N17-M232) -> 15.86315534 | N17: =IF($T$36="y",'Dry Bulb'!O17-N348,'Dry Bulb'!O17-N232) -> -0.5047757519 | P17: =Q18-45 -> 0 | Q17: South Surface Azimuth | X17: 9 | AP17: ='Incident angle'!BI17 -> 13 | AQ17: ='Incident angle'!BJ17 -> 2550.173141 | AR17: ='Incident angle'!BK17 -> 164.6805833 | AS17: ='Incident angle'!BL17 -> 0 | AT17: ='Incident angle'!BM17 -> 0 | AU17: ='Incident angle'!BN17 -> 0 | AV17: ='Incident angle'!BO17 -> 0 | AW17: ='Incident angle'!BP17 -> 0 | AX17: ='Incident angle'!BQ17 -> 0 | AY17: ='Incident angle'!BR17 -> 0 | AZ17: ='Incident angle'!BS17 -> 315.5456179 | BA17: ='Incident angle'!BT17 -> 2682.411937 | BB17: ='Incident angle'!BU17 -> 2806.192148 | BD17: ='Incident angle'!BW17 -> 13 | BE17: ='Incident angle'!BX17 -> 0 | BF17: ='Incident angle'!BY17 -> 0 | BG17: ='Incident angle'!BZ17 -> 0 | BH17: ='Incident angle'!CA17 -> 0 | BI17: ='Incident angle'!CB17 -> 0 | BJ17: ='Incident angle'!CC17 -> 0 | BK17: ='Incident angle'!CD17 -> 0 | BL17: ='Incident angle'!CE17 -> 0 | BM17: ='Incident angle'!CF17 -> 0 | BN17: ='Incident angle'!CG17 -> 0 | BO17: ='Incident angle'!CH17 -> 0 | BP17: ='Incident angle'!CI17 -> 0 | BR17: ='Profile angles'!B17 -> 13 | BS17: =RADIANS('Profile angles'!C17) -> 0.7870266818 | BT17: =RADIANS('Profile angles'!D17) -> 0.9520510817 | BU17: =RADIANS('Profile angles'!E17) -> 1.139700002 | BV17: =RADIANS('Profile angles'!F17) -> 1.353113384 | BW17: =RADIANS('Profile angles'!G17) -> 1.503986674 | BX17: =RADIANS('Profile angles'!H17) -> 1.558344195 | BY17: =RADIANS('Profile angles'!I17) -> 1.504394377 | BZ17: =RADIANS('Profile angles'!J17) -> 1.355950904 | CA17: =RADIANS('Profile angles'!K17) -> 1.139700002 | CB17: =RADIANS('Profile angles'!L17) -> 0.9445593435 | CC17: =RADIANS('Profile angles'!M17) -> 0.778416047 | CD17: =RADIANS('Profile angles'!N17) -> 0.7199105522 | CE17: 0.9476297721 | CF17: ='Profile angles'!B46 -> 13 | CG17: =RADIANS('Profile angles'!C46) -> -1.331864871 | CH17: =RADIANS('Profile angles'!D46) -> -1.366627011 | CI17: =RADIANS('Profile angles'!E46) -> -1.353506719 | CJ17: =RADIANS('Profile angles'!F46) -> -1.335110155 | CK17: =RADIANS('Profile angles'!G46) -> -1.340732189 | CL17: =RADIANS('Profile angles'!H46) -> -1.365041357 | CM17: =RADIANS('Profile angles'!I46) -> -1.379822745 | CN17: =RADIANS('Profile angles'!J46) -> -1.350659537 | CO17: =RADIANS('Profile angles'!K46) -> -1.282258212 | CP17: =RADIANS('Profile angles'!L46) -> -1.214910117 | CQ17: =RADIANS('Profile angles'!M46) -> -1.191281776 | CR17: =RADIANS('Profile angles'!N46) -> -1.247096453 | CT17: ='Profile angles'!AD17 -> 13 | CU17: =(IF($AH$12<DEGREES(BS17),0+$AJ$16,1-((TAN(BS17)/TAN($AG$14))*(1-$AJ$16))))*(('Surface Solar Azimuth Angles'!BX16*$DU$3)+1-$DU$3) -> 0.2613385229 | CV17: =(IF($AH$12<DEGREES(BT17),0+$AJ$16,1-((TAN(BT17)/TAN($AG$14))*(1-$AJ$16))))*(('Surface Solar Azimuth Angles'!BY16*$DU$3)+1-$DU$3) -> 0.01442277052 | CW17: =(IF($AH$12<DEGREES(BU17),0+$AJ$16,1-((TAN(BU17)/TAN($AG$14))*(1-$AJ$16))))*(('Surface Solar Azimuth Angles'!BZ16*$DU$3)+1-$DU$3) -> 0 | CX17: =(IF($AH$12<DEGREES(BV17),0+$AJ$16,1-((TAN(BV17)/TAN($AG$14))*(1-$AJ$16))))*(('Surface Solar Azimuth Angles'!CA16*$DU$3)+1-$DU$3) -> 0 | CY17: =(IF($AH$12<DEGREES(BW17),0+$AJ$16,1-((TAN(BW17)/TAN($AG$14))*(1-$AJ$16))))*(('Surface Solar Azimuth Angles'!CB16*$DU$3)+1-$DU$3) -> 0 | CZ17: =(IF($AH$12<DEGREES(BX17),0+$AJ$16,1-((TAN(BX17)/TAN($AG$14))*(1-$AJ$16))))*(('Surface Solar Azimuth Angles'!CC16*$DU$3)+1-$DU$3) -> 0 | DA17: =(IF($AH$12<DEGREES(BY17),0+$AJ$16,1-((TAN(BY17)/TAN($AG$14))*(1-$AJ$16))))*(('Surface Solar Azimuth Angles'!CD16*$DU$3)+1-$DU$3) -> 0 | DB17: =(IF($AH$12<DEGREES(BZ17),0+$AJ$16,1-((TAN(BZ17)/TAN($AG$14))*(1-$AJ$16))))*(('Surface Solar Azimuth Angles'!CE16*$DU$3)+1-$DU$3) -> 0 | DC17: =(IF($AH$12<DEGREES(CA17),0+$AJ$16,1-((TAN(CA17)/TAN($AG$14))*(1-$AJ$16))))*(('Surface Solar Azimuth Angles'!CF16*$DU$3)+1-$DU$3) -> 0 | DD17: =(IF($AH$12<DEGREES(CB17),0+$AJ$16,1-((TAN(CB17)/TAN($AG$14))*(1-$AJ$16))))*(('Surface Solar Azimuth Angles'!CG16*$DU$3)+1-$DU$3) -> 0.02400338116 | DE17: =(IF($AH$12<DEGREES(CC17),0+$AJ$16,1-((TAN(CC17)/TAN($AG$14))*(1-$AJ$16))))*(('Surface Solar Azimuth Angles'!CH16*$DU$3)+1-$DU$3) -> 0.2488004776 | DF17: =(IF($AH$12<DEGREES(CD17),0+$AJ$16,1-((TAN(CD17)/TAN($AG$14))*(1-$AJ$16))))*(('Surface Solar Azimuth Angles'!CI16*$DU$3)+1-$DU$3) -> 0.3293579007 | DH17: 13 | DI17: =(IF($AH$46<DEGREES(CG17),0+$AJ$50,1-((TAN(CG17)/TAN($AG$48))*(1-$AJ$50))))*(('Surface Solar Azimuth Angles'!CL16*$DU$3)+1-$DU$3) -> 0 | DJ17: =(IF($AH$46<DEGREES(CH17),0+$AJ$50,1-((TAN(CH17)/TAN($AG$48))*(1-$AJ$50))))*(('Surface Solar Azimuth Angles'!CM16*$DU$3)+1-$DU$3) -> 0 | DK17: =(IF($AH$46<DEGREES(CI17),0+$AJ$50,1-((TAN(CI17)/TAN($AG$48))*(1-$AJ$50))))*(('Surface Solar Azimuth Angles'!CN16*$DU$3)+1-$DU$3) -> 0 | DL17: =(IF($AH$46<DEGREES(CJ17),0+$AJ$50,1-((TAN(CJ17)/TAN($AG$48))*(1-$AJ$50))))*(('Surface Solar Azimuth Angles'!CO16*$DU$3)+1-$DU$3) -> 1.887336871 | DM17: =(IF($AH$46<DEGREES(CK17),0+$AJ$50,1-((TAN(CK17)/TAN($AG$48))*(1-$AJ$50))))*(('Surface Solar Azimuth Angles'!CP16*$DU$3)+1-$DU$3) -> 3.053027257 | DN17: =(IF($AH$46<DEGREES(CL17),0+$AJ$50,1-((TAN(CL17)/TAN($AG$48))*(1-$AJ$50))))*(('Surface Solar Azimuth Angles'!CQ16*$DU$3)+1-$DU$3) -> 3.759225041 | DO17: =(IF($AH$46<DEGREES(CM17),0+$AJ$50,1-((TAN(CM17)/TAN($AG$48))*(1-$AJ$50))))*(('Surface Solar Azimuth Angles'!CR16*$DU$3)+1-$DU$3) -> 3.397764759 | DP17: =(IF($AH$46<DEGREES(CN17),0+$AJ$50,1-((TAN(CN17)/TAN($AG$48))*(1-$AJ$50))))*(('Surface Solar Azimuth Angles'!CS16*$DU$3)+1-$DU$3) -> 1.886357149 | DQ17: =(IF($AH$46<DEGREES(CO17),0+$AJ$50,1-((TAN(CO17)/TAN($AG$48))*(1-$AJ$50))))*(('Surface Solar Azimuth Angles'!CT16*$DU$3)+1-$DU$3) -> 0.6804530027 | DR17: =(IF($AH$46<DEGREES(CP17),0+$AJ$50,1-((TAN(CP17)/TAN($AG$48))*(1-$AJ$50))))*(('Surface Solar Azimuth Angles'!CU16*$DU$3)+1-$DU$3) -> 0.07053759855 | DS17: =(IF($AH$46<DEGREES(CQ17),0+$AJ$50,1-((TAN(CQ17)/TAN($AG$48))*(1-$AJ$50))))*(('Surface Solar Azimuth Angles'!CV16*$DU$3)+1-$DU$3) -> 0 | DT17: =(IF($AH$46<DEGREES(CR17),0+$AJ$50,1-((TAN(CR17)/TAN($AG$48))*(1-$AJ$50))))*(('Surface Solar Azimuth Angles'!CW16*$DU$3)+1-$DU$3) -> 0 | DW17: ='Profile angles'!AR17 -> 13 | DX17: ='Profile angles'!AS17 -> 44.26251681 | DY17: ='Profile angles'!AT17 -> 53.44264955 | DZ17: ='Profile angles'!AU17 -> 62.96975399 | EA17: ='Profile angles'!AV17 -> 71.91865717 | EB17: ='Profile angles'!AW17 -> 76.31042969 | EC17: ='Profile angles'!AX17 -> 78.19073119 | ED17: ='Profile angles'!AY17 -> 78.44528681 | EE17: ='Profile angles'!AZ17 -> 72.64341275 | EF17: ='Profile angles'!BA17 -> 61.30334442 | EG17: ='Profile angles'!BB17 -> 50.87909697 | EH17: ='Profile angles'!BC17 -> 42.54259966 | EI17: ='Profile angles'!BD17 -> 40.0724679 | EK17: 13 | EL17: 44.26251681 | EM17: 53.44264955 | EN17: 62.96975399 | EO17: 71.91865717 | EP17: 76.31042969 | EQ17: 78.19073119 | ER17: 78.44528681 | ES17: 72.64341275 | ET17: 61.30334442 | EU17: 50.87909697 | EV17: 42.54259966 | EW17: 40.0724679
B18: 14 | C18: =IF($T$36="y",'Dry Bulb'!D18-C349,'Dry Bulb'!D18-C233) -> -2.777430749 | D18: =IF($T$36="y",'Dry Bulb'!E18-D349,'Dry Bulb'!E18-D233) -> 1.454868839 | E18: =IF($T$36="y",'Dry Bulb'!F18-E349,'Dry Bulb'!F18-E233) -> 7.25889673 | F18: =IF($T$36="y",'Dry Bulb'!G18-F349,'Dry Bulb'!G18-F233) -> 18.18080679 | G18: =IF($T$36="y",'Dry Bulb'!H18-G349,'Dry Bulb'!H18-G233) -> 28.26080679 | H18: =IF($T$36="y",'Dry Bulb'!I18-H349,'Dry Bulb'!I18-H233) -> 34.92080679 | I18: =IF($T$36="y",'Dry Bulb'!J18-I349,'Dry Bulb'!J18-I233) -> 37.44080679 | J18: =IF($T$36="y",'Dry Bulb'!K18-J349,'Dry Bulb'!K18-J233) -> 38.52080679 | K18: =IF($T$36="y",'Dry Bulb'!L18-K349,'Dry Bulb'!L18-K233) -> 31.14080679 | L18: =IF($T$36="y",'Dry Bulb'!M18-L349,'Dry Bulb'!M18-L233) -> 23.94399229 | M18: =IF($T$36="y",'Dry Bulb'!N18-M349,'Dry Bulb'!N18-M233) -> 16.99285206 | N18: =IF($T$36="y",'Dry Bulb'!O18-N349,'Dry Bulb'!O18-N233) -> 0.6223449359 | Q18: 45 | X18: 10 | AP18: ='Incident angle'!BI18 -> 14 | AQ18: ='Incident angle'!BJ18 -> 2071.119462 | AR18: ='Incident angle'!BK18 -> 325.9309758 | AS18: ='Incident angle'!BL18 -> 0 | AT18: ='Incident angle'!BM18 -> 0 | AU18: ='Incident angle'!BN18 -> 0 | AV18: ='Incident angle'!BO18 -> 0 | AW18: ='Incident angle'!BP18 -> 0 | AX18: ='Incident angle'!BQ18 -> 0 | AY18: ='Incident angle'!BR18 -> 0 | AZ18: ='Incident angle'!BS18 -> 459.6934212 | BA18: ='Incident angle'!BT18 -> 2064.490231 | BB18: ='Incident angle'!BU18 -> 2259.489721 | BD18: ='Incident angle'!BW18 -> 14 | BE18: ='Incident angle'!BX18 -> 0 | BF18: ='Incident angle'!BY18 -> 0 | BG18: ='Incident angle'!BZ18 -> 0 | BH18: ='Incident angle'!CA18 -> 0 | BI18: ='Incident angle'!CB18 -> 0 | BJ18: ='Incident angle'!CC18 -> 0 | BK18: ='Incident angle'!CD18 -> 0 | BL18: ='Incident angle'!CE18 -> 0 | BM18: ='Incident angle'!CF18 -> 0 | BN18: ='Incident angle'!CG18 -> 0 | BO18: ='Incident angle'!CH18 -> 0 | BP18: ='Incident angle'!CI18 -> 0 | BR18: ='Profile angles'!B18 -> 14 | BS18: =RADIANS('Profile angles'!C18) -> 0.7585154301 | BT18: =RADIANS('Profile angles'!D18) -> 0.9364839599 | BU18: =RADIANS('Profile angles'!E18) -> 1.139700002 | BV18: =RADIANS('Profile angles'!F18) -> 1.375030118 | BW18: =RADIANS('Profile angles'!G18) -> 1.539968868 | BX18: =RADIANS('Profile angles'!H18) -> -1.545732913 | BY18: =RADIANS('Profile angles'!I18) -> 1.535956453 | BZ18: =RADIANS('Profile angles'!J18) -> 1.377084853 | CA18: =RADIANS('Profile angles'!K18) -> 1.139700002 | CB18: =RADIANS('Profile angles'!L18) -> 0.9203182584 | CC18: =RADIANS('Profile angles'!M18) -> 0.737560329 | CD18: =RADIANS('Profile angles'!N18) -> 0.6807537219 | CE18: 0.8352571338 | CF18: ='Profile angles'!B47 -> 14 | CG18: =RADIANS('Profile angles'!C47) -> -1.000592721 | CH18: =RADIANS('Profile angles'!D47) -> -1.060044529 | CI18: =RADIANS('Profile angles'!E47) -> -1.071800834 | CJ18: =RADIANS('Profile angles'!F47) -> -1.077146645 | CK18: =RADIANS('Profile angles'!G47) -> -1.097901263 | CL18: =RADIANS('Profile angles'!H47) -> -1.127498796 | CM18: =RADIANS('Profile angles'!I47) -> -1.136703183 | CN18: =RADIANS('Profile angles'!J47) -> -1.092712098 | CO18: =RADIANS('Profile angles'!K47) -> -1.00301498 | CP18: =RADIANS('Profile angles'!L47) -> -0.9156351372 | CQ18: =RADIANS('Profile angles'!M47) -> -0.8697725416 | CR18: =RADIANS('Profile angles'!N47) -> -0.9101295749 | CT18: ='Profile angles'!AD18 -> 14 | CU18: =(IF($AH$12<DEGREES(BS18),0+$AJ$16,1-((TAN(BS18)/TAN($AG$14))*(1-$AJ$16))))*(('Surface Solar Azimuth Angles'!BX17*$DU$3)+1-$DU$3) -> 0.234369797 | CV18: =(IF($AH$12<DEGREES(BT18),0+$AJ$16,1-((TAN(BT18)/TAN($AG$14))*(1-$AJ$16))))*(('Surface Solar Azimuth Angles'!BY17*$DU$3)+1-$DU$3) -> 0.03007900601 | CW18: =(IF($AH$12<DEGREES(BU18),0+$AJ$16,1-((TAN(BU18)/TAN($AG$14))*(1-$AJ$16))))*(('Surface Solar Azimuth Angles'!BZ17*$DU$3)+1-$DU$3) -> 0 | CX18: =(IF($AH$12<DEGREES(BV18),0+$AJ$16,1-((TAN(BV18)/TAN($AG$14))*(1-$AJ$16))))*(('Surface Solar Azimuth Angles'!CA17*$DU$3)+1-$DU$3) -> 0 | CY18: =(IF($AH$12<DEGREES(BW18),0+$AJ$16,1-((TAN(BW18)/TAN($AG$14))*(1-$AJ$16))))*(('Surface Solar Azimuth Angles'!CB17*$DU$3)+1-$DU$3) -> 0 | CZ18: =(IF($AH$12<DEGREES(BX18),0+$AJ$16,1-((TAN(BX18)/TAN($AG$14))*(1-$AJ$16))))*(('Surface Solar Azimuth Angles'!CC17*$DU$3)+1-$DU$3) -> 0 | DA18: =(IF($AH$12<DEGREES(BY18),0+$AJ$16,1-((TAN(BY18)/TAN($AG$14))*(1-$AJ$16))))*(('Surface Solar Azimuth Angles'!CD17*$DU$3)+1-$DU$3) -> 0 | DB18: =(IF($AH$12<DEGREES(BZ18),0+$AJ$16,1-((TAN(BZ18)/TAN($AG$14))*(1-$AJ$16))))*(('Surface Solar Azimuth Angles'!CE17*$DU$3)+1-$DU$3) -> 0 | DC18: =(IF($AH$12<DEGREES(CA18),0+$AJ$16,1-((TAN(CA18)/TAN($AG$14))*(1-$AJ$16))))*(('Surface Solar Azimuth Angles'!CF17*$DU$3)+1-$DU$3) -> 0 | DD18: =(IF($AH$12<DEGREES(CB18),0+$AJ$16,1-((TAN(CB18)/TAN($AG$14))*(1-$AJ$16))))*(('Surface Solar Azimuth Angles'!CG17*$DU$3)+1-$DU$3) -> 0.03966344064 | DE18: =(IF($AH$12<DEGREES(CC18),0+$AJ$16,1-((TAN(CC18)/TAN($AG$14))*(1-$AJ$16))))*(('Surface Solar Azimuth Angles'!CH17*$DU$3)+1-$DU$3) -> 0.2243977486 | DF18: =(IF($AH$12<DEGREES(CD18),0+$AJ$16,1-((TAN(CD18)/TAN($AG$14))*(1-$AJ$16))))*(('Surface Solar Azimuth Angles'!CI17*$DU$3)+1-$DU$3) -> 0.2967700429 | DH18: 14 | DI18: =(IF($AH$46<DEGREES(CG18),0+$AJ$50,1-((TAN(CG18)/TAN($AG$48))*(1-$AJ$50))))*(('Surface Solar Azimuth Angles'!CL17*$DU$3)+1-$DU$3) -> 0.3429787974 | DJ18: =(IF($AH$46<DEGREES(CH18),0+$AJ$50,1-((TAN(CH18)/TAN($AG$48))*(1-$AJ$50))))*(('Surface Solar Azimuth Angles'!CM17*$DU$3)+1-$DU$3) -> 0.7112973468 | DK18: =(IF($AH$46<DEGREES(CI18),0+$AJ$50,1-((TAN(CI18)/TAN($AG$48))*(1-$AJ$50))))*(('Surface Solar Azimuth Angles'!CN17*$DU$3)+1-$DU$3) -> 1.214390275 | DL18: =(IF($AH$46<DEGREES(CJ18),0+$AJ$50,1-((TAN(CJ18)/TAN($AG$48))*(1-$AJ$50))))*(('Surface Solar Azimuth Angles'!CO17*$DU$3)+1-$DU$3) -> 1.725321671 | DM18: =(IF($AH$46<DEGREES(CK18),0+$AJ$50,1-((TAN(CK18)/TAN($AG$48))*(1-$AJ$50))))*(('Surface Solar Azimuth Angles'!CP17*$DU$3)+1-$DU$3) -> 2.107279639 | DN18: =(IF($AH$46<DEGREES(CL18),0+$AJ$50,1-((TAN(CL18)/TAN($AG$48))*(1-$AJ$50))))*(('Surface Solar Azimuth Angles'!CQ17*$DU$3)+1-$DU$3) -> 2.203892982 | DO18: =(IF($AH$46<DEGREES(CM18),0+$AJ$50,1-((TAN(CM18)/TAN($AG$48))*(1-$AJ$50))))*(('Surface Solar Azimuth Angles'!CR17*$DU$3)+1-$DU$3) -> 2.208017066 | DP18: =(IF($AH$46<DEGREES(CN18),0+$AJ$50,1-((TAN(CN18)/TAN($AG$48))*(1-$AJ$50))))*(('Surface Solar Azimuth Angles'!CS17*$DU$3)+1-$DU$3) -> 1.749434485 | DQ18: =(IF($AH$46<DEGREES(CO18),0+$AJ$50,1-((TAN(CO18)/TAN($AG$48))*(1-$AJ$50))))*(('Surface Solar Azimuth Angles'!CT17*$DU$3)+1-$DU$3) -> 1.240961595 | DR18: =(IF($AH$46<DEGREES(CP18),0+$AJ$50,1-((TAN(CP18)/TAN($AG$48))*(1-$AJ$50))))*(('Surface Solar Azimuth Angles'!CU17*$DU$3)+1-$DU$3) -> 0.8990318494 | DS18: =(IF($AH$46<DEGREES(CQ18),0+$AJ$50,1-((TAN(CQ18)/TAN($AG$48))*(1-$AJ$50))))*(('Surface Solar Azimuth Angles'!CV17*$DU$3)+1-$DU$3) -> 0.595447566 | DT18: =(IF($AH$46<DEGREES(CR18),0+$AJ$50,1-((TAN(CR18)/TAN($AG$48))*(1-$AJ$50))))*(('Surface Solar Azimuth Angles'!CW17*$DU$3)+1-$DU$3) -> 0.3644050886 | DW18: ='Profile angles'!AR18 -> 14 | DX18: ='Profile angles'!AS18 -> 39.00164371 | DY18: ='Profile angles'!AT18 -> 47.23656925 | DZ18: ='Profile angles'!AU18 -> 54.50560349 | EA18: ='Profile angles'!AV18 -> 60.16727543 | EB18: ='Profile angles'!AW18 -> 62.86296123 | EC18: ='Profile angles'!AX18 -> 64.57001081 | ED18: ='Profile angles'!AY18 -> 65.06662196 | EE18: ='Profile angles'!AZ18 -> 61.0105442 | EF18: ='Profile angles'!BA18 -> 51.81913703 | EG18: ='Profile angles'!BB18 -> 42.7598983 | EH18: ='Profile angles'!BC18 -> 35.79176215 | EI18: ='Profile angles'!BD18 -> 34.42790928 | EK18: 14 | EL18: 39.00164371 | EM18: 47.23656925 | EN18: 54.50560349 | EO18: 60.16727543 | EP18: 62.86296123 | EQ18: 64.57001081 | ER18: 65.06662196 | ES18: 61.0105442 | ET18: 51.81913703 | EU18: 42.7598983 | EV18: 35.79176215 | EW18: 34.42790928
B19: 15 | C19: =IF($T$36="y",'Dry Bulb'!D19-C350,'Dry Bulb'!D19-C234) -> 0.355123079 | D19: =IF($T$36="y",'Dry Bulb'!E19-D350,'Dry Bulb'!E19-D234) -> 7.126081002 | E19: =IF($T$36="y",'Dry Bulb'!F19-E350,'Dry Bulb'!F19-E234) -> 13.56094135 | F19: =IF($T$36="y",'Dry Bulb'!G19-F350,'Dry Bulb'!G19-F234) -> 24.25113203 | G19: =IF($T$36="y",'Dry Bulb'!H19-G350,'Dry Bulb'!H19-G234) -> 33.60162031 | H19: =IF($T$36="y",'Dry Bulb'!I19-H350,'Dry Bulb'!I19-H234) -> 39.16782164 | I19: =IF($T$36="y",'Dry Bulb'!J19-I350,'Dry Bulb'!J19-I234) -> 41.77034907 | J19: =IF($T$36="y",'Dry Bulb'!K19-J350,'Dry Bulb'!K19-J234) -> 44.42565826 | K19: =IF($T$36="y",'Dry Bulb'!L19-K350,'Dry Bulb'!L19-K234) -> 39.26585623 | L19: =IF($T$36="y",'Dry Bulb'!M19-L350,'Dry Bulb'!M19-L234) -> 30.45913757 | M19: =IF($T$36="y",'Dry Bulb'!N19-M350,'Dry Bulb'!N19-M234) -> 20.64771907 | N19: =IF($T$36="y",'Dry Bulb'!O19-N350,'Dry Bulb'!O19-N234) -> 3.290782474 | AB19: SILL | AP19: ='Incident angle'!BI19 -> 15 | AQ19: ='Incident angle'!BJ19 -> 1452.546942 | AR19: ='Incident angle'!BK19 -> 364.4611036 | AS19: ='Incident angle'!BL19 -> 0 | AT19: ='Incident angle'!BM19 -> 0 | AU19: ='Incident angle'!BN19 -> 0 | AV19: ='Incident angle'!BO19 -> 0 | AW19: ='Incident angle'!BP19 -> 0 | AX19: ='Incident angle'!BQ19 -> 0 | AY19: ='Incident angle'!BR19 -> 0 | AZ19: ='Incident angle'!BS19 -> 297.9306586 | BA19: ='Incident angle'!BT19 -> 1293.499777 | BB19: ='Incident angle'!BU19 -> 1490.309922 | BD19: ='Incident angle'!BW19 -> 15 | BE19: ='Incident angle'!BX19 -> 0 | BF19: ='Incident angle'!BY19 -> 0 | BG19: ='Incident angle'!BZ19 -> 0 | BH19: ='Incident angle'!CA19 -> 0 | BI19: ='Incident angle'!CB19 -> 0 | BJ19: ='Incident angle'!CC19 -> 0 | BK19: ='Incident angle'!CD19 -> 0 | BL19: ='Incident angle'!CE19 -> 0 | BM19: ='Incident angle'!CF19 -> 0 | BN19: ='Incident angle'!CG19 -> 0 | BO19: ='Incident angle'!CH19 -> 0 | BP19: ='Incident angle'!CI19 -> 0 | BR19: ='Profile angles'!B19 -> 15 | BS19: =RADIANS('Profile angles'!C19) -> 0.6958725602 | BT19: =RADIANS('Profile angles'!D19) -> 0.9009596565 | BU19: =RADIANS('Profile angles'!E19) -> 1.139700002 | BV19: =RADIANS('Profile angles'!F19) -> 1.422396603 | BW19: =RADIANS('Profile angles'!G19) -> -1.526634448 | BX19: =RADIANS('Profile angles'!H19) -> -1.467502219 | BY19: =RADIANS('Profile angles'!I19) -> -1.537846588 | BZ19: =RADIANS('Profile angles'!J19) -> 1.423173327 | CA19: =RADIANS('Profile angles'!K19) -> 1.139700002 | CB19: =RADIANS('Profile angles'!L19) -> 0.8691014435 | CC19: =RADIANS('Profile angles'!M19) -> 0.6542923632 | CD19: =RADIANS('Profile angles'!N19) -> 0.599897854 | CE19: 0.6437627129 | CF19: ='Profile angles'!B48 -> 15 | CG19: =RADIANS('Profile angles'!C48) -> -0.6948677053 | CH19: =RADIANS('Profile angles'!D48) -> -0.7703598791 | CI19: =RADIANS('Profile angles'!E48) -> -0.8014439226 | CJ19: =RADIANS('Profile angles'!F48) -> -0.8264149601 | CK19: =RADIANS('Profile angles'!G48) -> -0.860091088 | CL19: =RADIANS('Profile angles'!H48) -> -0.8941999653 | CM19: =RADIANS('Profile angles'!I48) -> -0.8983485012 | CN19: =RADIANS('Profile angles'!J48) -> -0.8418193258 | CO19: =RADIANS('Profile angles'!K48) -> -0.7359036106 | CP19: =RADIANS('Profile angles'!L48) -> -0.6353756032 | CQ19: =RADIANS('Profile angles'!M48) -> -0.5757927032 | CR19: =RADIANS('Profile angles'!N48) -> -0.6044646481 | CT19: ='Profile angles'!AD19 -> 15 | CU19: =(IF($AH$12<DEGREES(BS19),0+$AJ$16,1-((TAN(BS19)/TAN($AG$14))*(1-$AJ$16))))*(('Surface Solar Azimuth Angles'!BX18*$DU$3)+1-$DU$3) -> 0.2072353755 | CV19: =(IF($AH$12<DEGREES(BT19),0+$AJ$16,1-((TAN(BT19)/TAN($AG$14))*(1-$AJ$16))))*(('Surface Solar Azimuth Angles'!BY18*$DU$3)+1-$DU$3) -> 0.04058212182 | CW19: =(IF($AH$12<DEGREES(BU19),0+$AJ$16,1-((TAN(BU19)/TAN($AG$14))*(1-$AJ$16))))*(('Surface Solar Azimuth Angles'!BZ18*$DU$3)+1-$DU$3) -> 0 | CX19: =(IF($AH$12<DEGREES(BV19),0+$AJ$16,1-((TAN(BV19)/TAN($AG$14))*(1-$AJ$16))))*(('Surface Solar Azimuth Angles'!CA18*$DU$3)+1-$DU$3) -> 0 | CY19: =(IF($AH$12<DEGREES(BW19),0+$AJ$16,1-((TAN(BW19)/TAN($AG$14))*(1-$AJ$16))))*(('Surface Solar Azimuth Angles'!CB18*$DU$3)+1-$DU$3) -> 0 | CZ19: =(IF($AH$12<DEGREES(BX19),0+$AJ$16,1-((TAN(BX19)/TAN($AG$14))*(1-$AJ$16))))*(('Surface Solar Azimuth Angles'!CC18*$DU$3)+1-$DU$3) -> 0 | DA19: =(IF($AH$12<DEGREES(BY19),0+$AJ$16,1-((TAN(BY19)/TAN($AG$14))*(1-$AJ$16))))*(('Surface Solar Azimuth Angles'!CD18*$DU$3)+1-$DU$3) -> 0 | DB19: =(IF($AH$12<DEGREES(BZ19),0+$AJ$16,1-((TAN(BZ19)/TAN($AG$14))*(1-$AJ$16))))*(('Surface Solar Azimuth Angles'!CE18*$DU$3)+1-$DU$3) -> 0 | DC19: =(IF($AH$12<DEGREES(CA19),0+$AJ$16,1-((TAN(CA19)/TAN($AG$14))*(1-$AJ$16))))*(('Surface Solar Azimuth Angles'!CF18*$DU$3)+1-$DU$3) -> 0 | DD19: =(IF($AH$12<DEGREES(CB19),0+$AJ$16,1-((TAN(CB19)/TAN($AG$14))*(1-$AJ$16))))*(('Surface Solar Azimuth Angles'!CG18*$DU$3)+1-$DU$3) -> 0.0339656752 | DE19: =(IF($AH$12<DEGREES(CC19),0+$AJ$16,1-((TAN(CC19)/TAN($AG$14))*(1-$AJ$16))))*(('Surface Solar Azimuth Angles'!CH18*$DU$3)+1-$DU$3) -> 0.1895226407 | DF19: =(IF($AH$12<DEGREES(CD19),0+$AJ$16,1-((TAN(CD19)/TAN($AG$14))*(1-$AJ$16))))*(('Surface Solar Azimuth Angles'!CI18*$DU$3)+1-$DU$3) -> 0.2631416932 | DH19: 15 | DI19: =(IF($AH$46<DEGREES(CG19),0+$AJ$50,1-((TAN(CG19)/TAN($AG$48))*(1-$AJ$50))))*(('Surface Solar Azimuth Angles'!CL18*$DU$3)+1-$DU$3) -> 0.751596421 | DJ19: =(IF($AH$46<DEGREES(CH19),0+$AJ$50,1-((TAN(CH19)/TAN($AG$48))*(1-$AJ$50))))*(('Surface Solar Azimuth Angles'!CM18*$DU$3)+1-$DU$3) -> 0.9742368069 | DK19: =(IF($AH$46<DEGREES(CI19),0+$AJ$50,1-((TAN(CI19)/TAN($AG$48))*(1-$AJ$50))))*(('Surface Solar Azimuth Angles'!CN18*$DU$3)+1-$DU$3) -> 1.234962215 | DL19: =(IF($AH$46<DEGREES(CJ19),0+$AJ$50,1-((TAN(CJ19)/TAN($AG$48))*(1-$AJ$50))))*(('Surface Solar Azimuth Angles'!CO18*$DU$3)+1-$DU$3) -> 1.517352254 | DM19: =(IF($AH$46<DEGREES(CK19),0+$AJ$50,1-((TAN(CK19)/TAN($AG$48))*(1-$AJ$50))))*(('Surface Solar Azimuth Angles'!CP18*$DU$3)+1-$DU$3) -> 1.653498917 | DN19: =(IF($AH$46<DEGREES(CL19),0+$AJ$50,1-((TAN(CL19)/TAN($AG$48))*(1-$AJ$50))))*(('Surface Solar Azimuth Angles'!CQ18*$DU$3)+1-$DU$3) -> 1.634386384 | DO19: =(IF($AH$46<DEGREES(CM19),0+$AJ$50,1-((TAN(CM19)/TAN($AG$48))*(1-$AJ$50))))*(('Surface Solar Azimuth Angles'!CR18*$DU$3)+1-$DU$3) -> 1.717240836 | DP19: =(IF($AH$46<DEGREES(CN19),0+$AJ$50,1-((TAN(CN19)/TAN($AG$48))*(1-$AJ$50))))*(('Surface Solar Azimuth Angles'!CS18*$DU$3)+1-$DU$3) -> 1.532647391 | DQ19: =(IF($AH$46<DEGREES(CO19),0+$AJ$50,1-((TAN(CO19)/TAN($AG$48))*(1-$AJ$50))))*(('Surface Solar Azimuth Angles'!CT18*$DU$3)+1-$DU$3) -> 1.221933242 | DR19: =(IF($AH$46<DEGREES(CP19),0+$AJ$50,1-((TAN(CP19)/TAN($AG$48))*(1-$AJ$50))))*(('Surface Solar Azimuth Angles'!CU18*$DU$3)+1-$DU$3) -> 0.9929485182 | DS19: =(IF($AH$46<DEGREES(CQ19),0+$AJ$50,1-((TAN(CQ19)/TAN($AG$48))*(1-$AJ$50))))*(('Surface Solar Azimuth Angles'!CV18*$DU$3)+1-$DU$3) -> 0.801480519 | DT19: =(IF($AH$46<DEGREES(CR19),0+$AJ$50,1-((TAN(CR19)/TAN($AG$48))*(1-$AJ$50))))*(('Surface Solar Azimuth Angles'!CW18*$DU$3)+1-$DU$3) -> 0.7002606608 | DW19: ='Profile angles'!AR19 -> 15 | DX19: ='Profile angles'!AS19 -> 30.54113357 | DY19: ='Profile angles'!AT19 -> 37.57470188 | DZ19: ='Profile angles'!AU19 -> 43.00744409 | EA19: ='Profile angles'!AV19 -> 46.97875087 | EB19: ='Profile angles'!AW19 -> 49.2423013 | EC19: ='Profile angles'!AX19 -> 51.00254283 | ED19: ='Profile angles'!AY19 -> 51.44767318 | EE19: ='Profile angles'!AZ19 -> 47.84317163 | EF19: ='Profile angles'!BA19 -> 39.89507499 | EG19: ='Profile angles'!BB19 -> 32.03815651 | EH19: ='Profile angles'!BC19 -> 26.35905703 | EI19: ='Profile angles'!BD19 -> 25.92029549 | EK19: 15 | EL19: 30.54113357 | EM19: 37.57470188 | EN19: 43.00744409 | EO19: 46.97875087 | EP19: 49.2423013 | EQ19: 51.00254283 | ER19: 51.44767318 | ES19: 47.84317163 | ET19: 39.89507499 | EU19: 32.03815651 | EV19: 26.35905703 | EW19: 25.92029549
B20: 16 | C20: =IF($T$36="y",'Dry Bulb'!D20-C351,'Dry Bulb'!D20-C235) -> 0.782503408 | D20: =IF($T$36="y",'Dry Bulb'!E20-D351,'Dry Bulb'!E20-D235) -> 8.792794473 | E20: =IF($T$36="y",'Dry Bulb'!F20-E351,'Dry Bulb'!F20-E235) -> 17.42187919 | F20: =IF($T$36="y",'Dry Bulb'!G20-F351,'Dry Bulb'!G20-F235) -> 27.37112978 | G20: =IF($T$36="y",'Dry Bulb'!H20-G351,'Dry Bulb'!H20-G235) -> 38.18293161 | H20: =IF($T$36="y",'Dry Bulb'!I20-H351,'Dry Bulb'!I20-H235) -> 44.88526165 | I20: =IF($T$36="y",'Dry Bulb'!J20-I351,'Dry Bulb'!J20-I235) -> 47.4632282 | J20: =IF($T$36="y",'Dry Bulb'!K20-J351,'Dry Bulb'!K20-J235) -> 48.95159339 | K20: =IF($T$36="y",'Dry Bulb'!L20-K351,'Dry Bulb'!L20-K235) -> 41.47643287 | L20: =IF($T$36="y",'Dry Bulb'!M20-L351,'Dry Bulb'!M20-L235) -> 29.80761551 | M20: =IF($T$36="y",'Dry Bulb'!N20-M351,'Dry Bulb'!N20-M235) -> 17.66903334 | N20: =IF($T$36="y",'Dry Bulb'!O20-N351,'Dry Bulb'!O20-N235) -> 1.357962426 | P20: =ABS(15*STAT!L4) -> 45 | Q20: Local Time Meridian | X20: WEST WINDOW SECTION | AP20: ='Incident angle'!BI20 -> 16 | AQ20: ='Incident angle'!BJ20 -> 713.6597548 | AR20: ='Incident angle'!BK20 -> 10.37664226 | AS20: ='Incident angle'!BL20 -> 0 | AT20: ='Incident angle'!BM20 -> 0 | AU20: ='Incident angle'!BN20 -> 0 | AV20: ='Incident angle'!BO20 -> 0 | AW20: ='Incident angle'!BP20 -> 0 | AX20: ='Incident angle'!BQ20 -> 0 | AY20: ='Incident angle'!BR20 -> 0 | AZ20: ='Incident angle'!BS20 -> 0 | BA20: ='Incident angle'!BT20 -> 381.9598066 | BB20: ='Incident angle'!BU20 -> 690.595946 | BD20: ='Incident angle'!BW20 -> 16 | BE20: ='Incident angle'!BX20 -> 0 | BF20: ='Incident angle'!BY20 -> 0 | BG20: ='Incident angle'!BZ20 -> 0 | BH20: ='Incident angle'!CA20 -> 0 | BI20: ='Incident angle'!CB20 -> 0 | BJ20: ='Incident angle'!CC20 -> 0 | BK20: ='Incident angle'!CD20 -> 0 | BL20: ='Incident angle'!CE20 -> 0 | BM20: ='Incident angle'!CF20 -> 0 | BN20: ='Incident angle'!CG20 -> 0 | BO20: ='Incident angle'!CH20 -> 0 | BP20: ='Incident angle'!CI20 -> 0 | BR20: ='Profile angles'!B20 -> 16 | BS20: =RADIANS('Profile angles'!C20) -> 0.5719779803 | BT20: =RADIANS('Profile angles'!D20) -> 0.8261982134 | BU20: =RADIANS('Profile angles'!E20) -> 1.139700002 | BV20: =RADIANS('Profile angles'!F20) -> 1.522981096 | BW20: =RADIANS('Profile angles'!G20) -> -1.378468089 | BX20: =RADIANS('Profile angles'!H20) -> -1.317751658 | BY20: =RADIANS('Profile angles'!I20) -> -1.404444051 | BZ20: =RADIANS('Profile angles'!J20) -> 1.520446117 | CA20: =RADIANS('Profile angles'!K20) -> 1.139700002 | CB20: =RADIANS('Profile angles'!L20) -> 0.7562996352 | CC20: =RADIANS('Profile angles'!M20) -> 0.4880973452 | CD20: =RADIANS('Profile angles'!N20) -> 0.4451800923 | CE20: 0.3267952796 | CF20: ='Profile angles'!B49 -> 16 | CG20: =RADIANS('Profile angles'!C49) -> -0.4166974022 | CH20: =RADIANS('Profile angles'!D49) -> -0.5001507798 | CI20: =RADIANS('Profile angles'!E49) -> -0.544048004 | CJ20: =RADIANS('Profile angles'!F49) -> -0.583514289 | CK20: =RADIANS('Profile angles'!G49) -> -0.6274655636 | CL20: =RADIANS('Profile angles'!H49) -> -0.6653374808 | CM20: =RADIANS('Profile angles'!I49) -> -0.6652382392 | CN20: =RADIANS('Profile angles'!J49) -> -0.5987247394 | CO20: =RADIANS('Profile angles'!K49) -> -0.4815568133 | CP20: =RADIANS('Profile angles'!L49) -> -0.3738841236 | CQ20: =RADIANS('Profile angles'!M49) -> -0.3078964449 | CR20: =RADIANS('Profile angles'!N49) -> -0.3294141666 | CT20: ='Profile angles'!AD20 -> 16 | CU20: =(IF($AH$12<DEGREES(BS20),0+$AJ$16,1-((TAN(BS20)/TAN($AG$14))*(1-$AJ$16))))*(('Surface Solar Azimuth Angles'!BX19*$DU$3)+1-$DU$3) -> 0.1498544472 | CV20: =(IF($AH$12<DEGREES(BT20),0+$AJ$16,1-((TAN(BT20)/TAN($AG$14))*(1-$AJ$16))))*(('Surface Solar Azimuth Angles'!BY19*$DU$3)+1-$DU$3) -> 0.001732478349 | CW20: =(IF($AH$12<DEGREES(BU20),0+$AJ$16,1-((TAN(BU20)/TAN($AG$14))*(1-$AJ$16))))*(('Surface Solar Azimuth Angles'!BZ19*$DU$3)+1-$DU$3) -> 0 | CX20: =(IF($AH$12<DEGREES(BV20),0+$AJ$16,1-((TAN(BV20)/TAN($AG$14))*(1-$AJ$16))))*(('Surface Solar Azimuth Angles'!CA19*$DU$3)+1-$DU$3) -> 0 | CY20: =(IF($AH$12<DEGREES(BW20),0+$AJ$16,1-((TAN(BW20)/TAN($AG$14))*(1-$AJ$16))))*(('Surface Solar Azimuth Angles'!CB19*$DU$3)+1-$DU$3) -> 0 | CZ20: =(IF($AH$12<DEGREES(BX20),0+$AJ$16,1-((TAN(BX20)/TAN($AG$14))*(1-$AJ$16))))*(('Surface Solar Azimuth Angles'!CC19*$DU$3)+1-$DU$3) -> 0 | DA20: =(IF($AH$12<DEGREES(BY20),0+$AJ$16,1-((TAN(BY20)/TAN($AG$14))*(1-$AJ$16))))*(('Surface Solar Azimuth Angles'!CD19*$DU$3)+1-$DU$3) -> 0 | DB20: =(IF($AH$12<DEGREES(BZ20),0+$AJ$16,1-((TAN(BZ20)/TAN($AG$14))*(1-$AJ$16))))*(('Surface Solar Azimuth Angles'!CE19*$DU$3)+1-$DU$3) -> 0 | DC20: =(IF($AH$12<DEGREES(CA20),0+$AJ$16,1-((TAN(CA20)/TAN($AG$14))*(1-$AJ$16))))*(('Surface Solar Azimuth Angles'!CF19*$DU$3)+1-$DU$3) -> 0 | DD20: =(IF($AH$12<DEGREES(CB20),0+$AJ$16,1-((TAN(CB20)/TAN($AG$14))*(1-$AJ$16))))*(('Surface Solar Azimuth Angles'!CG19*$DU$3)+1-$DU$3) -> 0 | DE20: =(IF($AH$12<DEGREES(CC20),0+$AJ$16,1-((TAN(CC20)/TAN($AG$14))*(1-$AJ$16))))*(('Surface Solar Azimuth Angles'!CH19*$DU$3)+1-$DU$3) -> 0.1038035791 | DF20: =(IF($AH$12<DEGREES(CD20),0+$AJ$16,1-((TAN(CD20)/TAN($AG$14))*(1-$AJ$16))))*(('Surface Solar Azimuth Angles'!CI19*$DU$3)+1-$DU$3) -> 0.2012595395 | DH20: 16 | DI20: =(IF($AH$46<DEGREES(CG20),0+$AJ$50,1-((TAN(CG20)/TAN($AG$48))*(1-$AJ$50))))*(('Surface Solar Azimuth Angles'!CL19*$DU$3)+1-$DU$3) -> 0.83050074 | DJ20: =(IF($AH$46<DEGREES(CH20),0+$AJ$50,1-((TAN(CH20)/TAN($AG$48))*(1-$AJ$50))))*(('Surface Solar Azimuth Angles'!CM19*$DU$3)+1-$DU$3) -> 0.9935145964 | DK20: =(IF($AH$46<DEGREES(CI20),0+$AJ$50,1-((TAN(CI20)/TAN($AG$48))*(1-$AJ$50))))*(('Surface Solar Azimuth Angles'!CN19*$DU$3)+1-$DU$3) -> 1.173348682 | DL20: =(IF($AH$46<DEGREES(CJ20),0+$AJ$50,1-((TAN(CJ20)/TAN($AG$48))*(1-$AJ$50))))*(('Surface Solar Azimuth Angles'!CO19*$DU$3)+1-$DU$3) -> 1.374068686 | DM20: =(IF($AH$46<DEGREES(CK20),0+$AJ$50,1-((TAN(CK20)/TAN($AG$48))*(1-$AJ$50))))*(('Surface Solar Azimuth Angles'!CP19*$DU$3)+1-$DU$3) -> 1.333801491 | DN20: =(IF($AH$46<DEGREES(CL20),0+$AJ$50,1-((TAN(CL20)/TAN($AG$48))*(1-$AJ$50))))*(('Surface Solar Azimuth Angles'!CQ19*$DU$3)+1-$DU$3) -> 1.321592789 | DO20: =(IF($AH$46<DEGREES(CM20),0+$AJ$50,1-((TAN(CM20)/TAN($AG$48))*(1-$AJ$50))))*(('Surface Solar Azimuth Angles'!CR19*$DU$3)+1-$DU$3) -> 1.373853507 | DP20: =(IF($AH$46<DEGREES(CN20),0+$AJ$50,1-((TAN(CN20)/TAN($AG$48))*(1-$AJ$50))))*(('Surface Solar Azimuth Angles'!CS19*$DU$3)+1-$DU$3) -> 1.385131963 | DQ20: =(IF($AH$46<DEGREES(CO20),0+$AJ$50,1-((TAN(CO20)/TAN($AG$48))*(1-$AJ$50))))*(('Surface Solar Azimuth Angles'!CT19*$DU$3)+1-$DU$3) -> 1.15568837 | DR20: =(IF($AH$46<DEGREES(CP20),0+$AJ$50,1-((TAN(CP20)/TAN($AG$48))*(1-$AJ$50))))*(('Surface Solar Azimuth Angles'!CU19*$DU$3)+1-$DU$3) -> 0.9785241494 | DS20: =(IF($AH$46<DEGREES(CQ20),0+$AJ$50,1-((TAN(CQ20)/TAN($AG$48))*(1-$AJ$50))))*(('Surface Solar Azimuth Angles'!CV19*$DU$3)+1-$DU$3) -> 0.8341901694 | DT20: =(IF($AH$46<DEGREES(CR20),0+$AJ$50,1-((TAN(CR20)/TAN($AG$48))*(1-$AJ$50))))*(('Surface Solar Azimuth Angles'!CW19*$DU$3)+1-$DU$3) -> 0.7733734187 | DW20: ='Profile angles'!AR20 -> 16 | DX20: ='Profile angles'!AS20 -> 20.03828173 | DY20: ='Profile angles'!AT20 -> 26.01664747 | DZ20: ='Profile angles'!AU20 -> 30.23387911 | EA20: ='Profile angles'!AV20 -> 33.41976754 | EB20: ='Profile angles'!AW20 -> 35.68264822 | EC20: ='Profile angles'!AX20 -> 37.56104623 | ED20: ='Profile angles'!AY20 -> 37.87625842 | EE20: ='Profile angles'!AZ20 -> 34.28864611 | EF20: ='Profile angles'!BA20 -> 26.93598583 | EG20: ='Profile angles'!BB20 -> 19.91351907 | EH20: ='Profile angles'!BC20 -> 15.25993157 | EI20: ='Profile angles'!BD20 -> 15.53045564 | EK20: 16 | EL20: 20.03828173 | EM20: 26.01664747 | EN20: 30.23387911 | EO20: 33.41976754 | EP20: 35.68264822 | EQ20: 37.56104623 | ER20: 37.87625842 | ES20: 34.28864611 | ET20: 26.93598583 | EU20: 19.91351907 | EV20: 15.25993157 | EW20: 15.53045564
B21: 17 | C21: =IF($T$36="y",'Dry Bulb'!D21-C352,'Dry Bulb'!D21-C236) -> -4.125820757 | D21: =IF($T$36="y",'Dry Bulb'!E21-D352,'Dry Bulb'!E21-D236) -> 4.965566266 | E21: =IF($T$36="y",'Dry Bulb'!F21-E352,'Dry Bulb'!F21-E236) -> 14.28851163 | F21: =IF($T$36="y",'Dry Bulb'!G21-F352,'Dry Bulb'!G21-F236) -> 23.49757233 | G21: =IF($T$36="y",'Dry Bulb'!H21-G352,'Dry Bulb'!H21-G236) -> 35.88661124 | H21: =IF($T$36="y",'Dry Bulb'!I21-H352,'Dry Bulb'!I21-H236) -> 43.00326258 | I21: =IF($T$36="y",'Dry Bulb'!J21-I352,'Dry Bulb'!J21-I236) -> 45.72137601 | J21: =IF($T$36="y",'Dry Bulb'!K21-J352,'Dry Bulb'!K21-J236) -> 45.42851885 | K21: =IF($T$36="y",'Dry Bulb'!L21-K352,'Dry Bulb'!L21-K236) -> 36.79106905 | L21: =IF($T$36="y",'Dry Bulb'!M21-L352,'Dry Bulb'!M21-L236) -> 24.61039959 | M21: =IF($T$36="y",'Dry Bulb'!N21-M352,'Dry Bulb'!N21-M236) -> 11.75333628 | N21: =IF($T$36="y",'Dry Bulb'!O21-N352,'Dry Bulb'!O21-N236) -> -4.927182096 | X21: 7 | AA21: 0 | AB21: 1 | AC21: 2 | AD21: 3 | AE21: 4 | AF21: 5 | AG21: 6 | AH21: 7 | AI21: 8 | AJ21: 9 | AK21: 10 | AP21: ='Incident angle'!BI21 -> 17 | AQ21: ='Incident angle'!BJ21 -> 0 | AR21: ='Incident angle'!BK21 -> 0 | AS21: ='Incident angle'!BL21 -> 0 | AT21: ='Incident angle'!BM21 -> 0 | AU21: ='Incident angle'!BN21 -> 0 | AV21: ='Incident angle'!BO21 -> 0 | AW21: ='Incident angle'!BP21 -> 0 | AX21: ='Incident angle'!BQ21 -> 0 | AY21: ='Incident angle'!BR21 -> 0 | AZ21: ='Incident angle'!BS21 -> 0 | BA21: ='Incident angle'!BT21 -> 0 | BB21: ='Incident angle'!BU21 -> 47.99356804 | BD21: ='Incident angle'!BW21 -> 17 | BE21: ='Incident angle'!BX21 -> 0 | BF21: ='Incident angle'!BY21 -> 0 | BG21: ='Incident angle'!BZ21 -> 0 | BH21: ='Incident angle'!CA21 -> 0 | BI21: ='Incident angle'!CB21 -> 0 | BJ21: ='Incident angle'!CC21 -> 0 | BK21: ='Incident angle'!CD21 -> 0 | BL21: ='Incident angle'!CE21 -> 0 | BM21: ='Incident angle'!CF21 -> 0 | BN21: ='Incident angle'!CG21 -> 0 | BO21: ='Incident angle'!CH21 -> 0 | BP21: ='Incident angle'!CI21 -> 0 | BR21: ='Profile angles'!B21 -> 17 | BS21: =RADIANS('Profile angles'!C21) -> 0.3158548102 | BT21: =RADIANS('Profile angles'!D21) -> 0.6441911187 | BU21: =RADIANS('Profile angles'!E21) -> 1.139700002 | BV21: =RADIANS('Profile angles'!F21) -> -1.363780501 | BW21: =RADIANS('Profile angles'!G21) -> -1.070266397 | BX21: =RADIANS('Profile angles'!H21) -> -1.027688304 | BY21: =RADIANS('Profile angles'!I21) -> -1.130510928 | BZ21: =RADIANS('Profile angles'!J21) -> -1.379476424 | CA21: =RADIANS('Profile angles'!K21) -> 1.139700002 | CB21: =RADIANS('Profile angles'!L21) -> 0.4385684258 | CC21: =RADIANS('Profile angles'!M21) -> 0.1361350053 | CD21: =RADIANS('Profile angles'!N21) -> 0.1454548207 | CE21: -0.2171544261 | CF21: ='Profile angles'!B50 -> 17 | CG21: =RADIANS('Profile angles'!C50) -> -0.1612424278 | CH21: =RADIANS('Profile angles'!D50) -> -0.2468209564 | CI21: =RADIANS('Profile angles'!E50) -> -0.2976624365 | CJ21: =RADIANS('Profile angles'!F50) -> -0.3465294725 | CK21: =RADIANS('Profile angles'!G50) -> -0.3981082952 | CL21: =RADIANS('Profile angles'!H50) -> -0.4391562564 | CM21: =RADIANS('Profile angles'!I50) -> -0.4357796376 | CN21: =RADIANS('Profile angles'!J50) -> -0.3616512747 | CO21: =RADIANS('Profile angles'!K50) -> -0.2373188383 | CP21: =RADIANS('Profile angles'!L50) -> -0.1269343544 | CQ21: =RADIANS('Profile angles'!M50) -> -0.05979292582 | CR21: =RADIANS('Profile angles'!N50) -> -0.07801100922 | CT21: ='Profile angles'!AD21 -> 17 | CU21: =(IF($AH$12<DEGREES(BS21),0+$AJ$16,1-((TAN(BS21)/TAN($AG$14))*(1-$AJ$16))))*(('Surface Solar Azimuth Angles'!BX20*$DU$3)+1-$DU$3) -> 0 | CV21: =(IF($AH$12<DEGREES(BT21),0+$AJ$16,1-((TAN(BT21)/TAN($AG$14))*(1-$AJ$16))))*(('Surface Solar Azimuth Angles'!BY20*$DU$3)+1-$DU$3) -> 0 | CW21: =(IF($AH$12<DEGREES(BU21),0+$AJ$16,1-((TAN(BU21)/TAN($AG$14))*(1-$AJ$16))))*(('Surface Solar Azimuth Angles'!BZ20*$DU$3)+1-$DU$3) -> 0 | CX21: =(IF($AH$12<DEGREES(BV21),0+$AJ$16,1-((TAN(BV21)/TAN($AG$14))*(1-$AJ$16))))*(('Surface Solar Azimuth Angles'!CA20*$DU$3)+1-$DU$3) -> 0 | CY21: =(IF($AH$12<DEGREES(BW21),0+$AJ$16,1-((TAN(BW21)/TAN($AG$14))*(1-$AJ$16))))*(('Surface Solar Azimuth Angles'!CB20*$DU$3)+1-$DU$3) -> 0 | CZ21: =(IF($AH$12<DEGREES(BX21),0+$AJ$16,1-((TAN(BX21)/TAN($AG$14))*(1-$AJ$16))))*(('Surface Solar Azimuth Angles'!CC20*$DU$3)+1-$DU$3) -> 0 | DA21: =(IF($AH$12<DEGREES(BY21),0+$AJ$16,1-((TAN(BY21)/TAN($AG$14))*(1-$AJ$16))))*(('Surface Solar Azimuth Angles'!CD20*$DU$3)+1-$DU$3) -> 0 | DB21: =(IF($AH$12<DEGREES(BZ21),0+$AJ$16,1-((TAN(BZ21)/TAN($AG$14))*(1-$AJ$16))))*(('Surface Solar Azimuth Angles'!CE20*$DU$3)+1-$DU$3) -> 0 | DC21: =(IF($AH$12<DEGREES(CA21),0+$AJ$16,1-((TAN(CA21)/TAN($AG$14))*(1-$AJ$16))))*(('Surface Solar Azimuth Angles'!CF20*$DU$3)+1-$DU$3) -> 0 | DD21: =(IF($AH$12<DEGREES(CB21),0+$AJ$16,1-((TAN(CB21)/TAN($AG$14))*(1-$AJ$16))))*(('Surface Solar Azimuth Angles'!CG20*$DU$3)+1-$DU$3) -> 0 | DE21: =(IF($AH$12<DEGREES(CC21),0+$AJ$16,1-((TAN(CC21)/TAN($AG$14))*(1-$AJ$16))))*(('Surface Solar Azimuth Angles'!CH20*$DU$3)+1-$DU$3) -> 0 | DF21: =(IF($AH$12<DEGREES(CD21),0+$AJ$16,1-((TAN(CD21)/TAN($AG$14))*(1-$AJ$16))))*(('Surface Solar Azimuth Angles'!CI20*$DU$3)+1-$DU$3) -> 0.05654291518 | DH21: 17 | DI21: =(IF($AH$46<DEGREES(CG21),0+$AJ$50,1-((TAN(CG21)/TAN($AG$48))*(1-$AJ$50))))*(('Surface Solar Azimuth Angles'!CL20*$DU$3)+1-$DU$3) -> 0.824442498 | DJ21: =(IF($AH$46<DEGREES(CH21),0+$AJ$50,1-((TAN(CH21)/TAN($AG$48))*(1-$AJ$50))))*(('Surface Solar Azimuth Angles'!CM20*$DU$3)+1-$DU$3) -> 0.9580872864 | DK21: =(IF($AH$46<DEGREES(CI21),0+$AJ$50,1-((TAN(CI21)/TAN($AG$48))*(1-$AJ$50))))*(('Surface Solar Azimuth Angles'!CN20*$DU$3)+1-$DU$3) -> 1.100529308 | DL21: =(IF($AH$46<DEGREES(CJ21),0+$AJ$50,1-((TAN(CJ21)/TAN($AG$48))*(1-$AJ$50))))*(('Surface Solar Azimuth Angles'!CO20*$DU$3)+1-$DU$3) -> 1.17052453 | DM21: =(IF($AH$46<DEGREES(CK21),0+$AJ$50,1-((TAN(CK21)/TAN($AG$48))*(1-$AJ$50))))*(('Surface Solar Azimuth Angles'!CP20*$DU$3)+1-$DU$3) -> 1.108291755 | DN21: =(IF($AH$46<DEGREES(CL21),0+$AJ$50,1-((TAN(CL21)/TAN($AG$48))*(1-$AJ$50))))*(('Surface Solar Azimuth Angles'!CQ20*$DU$3)+1-$DU$3) -> 1.100102686 | DO21: =(IF($AH$46<DEGREES(CM21),0+$AJ$50,1-((TAN(CM21)/TAN($AG$48))*(1-$AJ$50))))*(('Surface Solar Azimuth Angles'!CR20*$DU$3)+1-$DU$3) -> 1.139049367 | DP21: =(IF($AH$46<DEGREES(CN21),0+$AJ$50,1-((TAN(CN21)/TAN($AG$48))*(1-$AJ$50))))*(('Surface Solar Azimuth Angles'!CS20*$DU$3)+1-$DU$3) -> 1.18202311 | DQ21: =(IF($AH$46<DEGREES(CO21),0+$AJ$50,1-((TAN(CO21)/TAN($AG$48))*(1-$AJ$50))))*(('Surface Solar Azimuth Angles'!CT20*$DU$3)+1-$DU$3) -> 1.081427938 | DR21: =(IF($AH$46<DEGREES(CP21),0+$AJ$50,1-((TAN(CP21)/TAN($AG$48))*(1-$AJ$50))))*(('Surface Solar Azimuth Angles'!CU20*$DU$3)+1-$DU$3) -> 0.9301084598 | DS21: =(IF($AH$46<DEGREES(CQ21),0+$AJ$50,1-((TAN(CQ21)/TAN($AG$48))*(1-$AJ$50))))*(('Surface Solar Azimuth Angles'!CV20*$DU$3)+1-$DU$3) -> 0.8095588975 | DT21: =(IF($AH$46<DEGREES(CR21),0+$AJ$50,1-((TAN(CR21)/TAN($AG$48))*(1-$AJ$50))))*(('Surface Solar Azimuth Angles'!CW20*$DU$3)+1-$DU$3) -> 0.767577977 | DW21: ='Profile angles'!AR21 -> 17 | DX21: ='Profile angles'!AS21 -> 8.284885426 | DY21: ='Profile angles'!AT21 -> 13.43480782 | DZ21: ='Profile angles'!AU21 -> 16.89709245 | EA21: ='Profile angles'!AV21 -> 19.80224832 | EB21: ='Profile angles'!AW21 -> 22.28675636 | EC21: ='Profile angles'!AX21 -> 24.31968995 | ED21: ='Profile angles'!AY21 -> 24.45696496 | EE21: ='Profile angles'!AZ21 -> 20.67038214 | EF21: ='Profile angles'!BA21 -> 13.51706338 | EG21: ='Profile angles'!BB21 -> 7.020257232 | EH21: ='Profile angles'!BC21 -> 3.139797501 | EI21: ='Profile angles'!BD21 -> 3.945157288 | EK21: 17 | EL21: =DX21 -> 8.284885426 | EM21: =DY21 -> 13.43480782 | EN21: =DZ21 -> 16.89709245 | EO21: =EA21 -> 19.80224832 | EP21: =EB21 -> 22.28675636 | EQ21: =EC21 -> 24.31968995 | ER21: =ED21 -> 24.45696496 | ES21: =EE21 -> 20.67038214 | ET21: =EF21 -> 13.51706338 | EU21: =EG21 -> 7.020257232 | EV21: =EH21 -> 3.139797501 | EW21: 3.945157288
B22: 18 | C22: =IF($T$36="y",'Dry Bulb'!D22-C353,'Dry Bulb'!D22-C237) -> -6.659193206 | D22: =IF($T$36="y",'Dry Bulb'!E22-D353,'Dry Bulb'!E22-D237) -> -1.461430494 | E22: =IF($T$36="y",'Dry Bulb'!F22-E353,'Dry Bulb'!F22-E237) -> 7.699472741 | F22: =IF($T$36="y",'Dry Bulb'!G22-F353,'Dry Bulb'!G22-F237) -> 17.23734858 | G22: =IF($T$36="y",'Dry Bulb'!H22-G353,'Dry Bulb'!H22-G237) -> 30.02403057 | H22: =IF($T$36="y",'Dry Bulb'!I22-H353,'Dry Bulb'!I22-H237) -> 37.74446532 | I22: =IF($T$36="y",'Dry Bulb'!J22-I353,'Dry Bulb'!J22-I237) -> 39.77232757 | J22: =IF($T$36="y",'Dry Bulb'!K22-J353,'Dry Bulb'!K22-J237) -> 38.3673334 | K22: =IF($T$36="y",'Dry Bulb'!L22-K353,'Dry Bulb'!L22-K237) -> 29.16080679 | L22: =IF($T$36="y",'Dry Bulb'!M22-L353,'Dry Bulb'!M22-L237) -> 19.62080679 | M22: =IF($T$36="y",'Dry Bulb'!N22-M353,'Dry Bulb'!N22-M237) -> 8.586994055 | N22: =IF($T$36="y",'Dry Bulb'!O22-N353,'Dry Bulb'!O22-N237) -> -5.579193206 | P22: 65 | Q22: Natural Ventilation Low | X22: =X21*AC27 -> 7 | Y22: HEAD | AP22: ='Incident angle'!BI22 -> 18 | AQ22: ='Incident angle'!BJ22 -> 0 | AR22: ='Incident angle'!BK22 -> 0 | AS22: ='Incident angle'!BL22 -> 0 | AT22: ='Incident angle'!BM22 -> 0 | AU22: ='Incident angle'!BN22 -> 0 | AV22: ='Incident angle'!BO22 -> 0 | AW22: ='Incident angle'!BP22 -> 0 | AX22: ='Incident angle'!BQ22 -> 0 | AY22: ='Incident angle'!BR22 -> 0 | AZ22: ='Incident angle'!BS22 -> 0 | BA22: ='Incident angle'!BT22 -> 0 | BB22: ='Incident angle'!BU22 -> 0 | BD22: ='Incident angle'!BW22 -> 18 | BE22: ='Incident angle'!BX22 -> 0 | BF22: ='Incident angle'!BY22 -> 0 | BG22: ='Incident angle'!BZ22 -> 0 | BH22: ='Incident angle'!CA22 -> 0 | BI22: ='Incident angle'!CB22 -> 0 | BJ22: ='Incident angle'!CC22 -> 0 | BK22: ='Incident angle'!CD22 -> 0 | BL22: ='Incident angle'!CE22 -> 0 | BM22: ='Incident angle'!CF22 -> 0 | BN22: ='Incident angle'!CG22 -> 0 | BO22: ='Incident angle'!CH22 -> 0 | BP22: ='Incident angle'!CI22 -> 0 | BR22: ='Profile angles'!B22 -> 18 | BS22: =RADIANS('Profile angles'!C22) -> -0.2138344837 | BT22: =RADIANS('Profile angles'!D22) -> 0.02428422592 | BU22: =RADIANS('Profile angles'!E22) -> 1.139700002 | BV22: =RADIANS('Profile angles'!F22) -> -0.5553611928 | BW22: =RADIANS('Profile angles'!G22) -> -0.4762798916 | BX22: =RADIANS('Profile angles'!H22) -> -0.5167031461 | BY22: =RADIANS('Profile angles'!I22) -> -0.585375903 | BZ22: =RADIANS('Profile angles'!J22) -> -0.6226936786 | CA22: =RADIANS('Profile angles'!K22) -> 1.139700002 | CB22: =RADIANS('Profile angles'!L22) -> -0.6196827915 | CC22: =RADIANS('Profile angles'!M22) -> -0.511269752 | CD22: =RADIANS('Profile angles'!N22) -> -0.3754995516 | CE22: -1.24556022 | CF22: ='Profile angles'!B51 -> 18 | CG22: =RADIANS('Profile angles'!C51) -> 0.07875695115 | CH22: =RADIANS('Profile angles'!D51) -> -0.005081193609 | CI22: =RADIANS('Profile angles'!E51) -> -0.05802197175 | CJ22: =RADIANS('Profile angles'!F51) -> -0.1115463227 | CK22: =RADIANS('Profile angles'!G51) -> -0.1681885165 | CL22: =RADIANS('Profile angles'!H51) -> -0.2119948495 | CM22: =RADIANS('Profile angles'!I51) -> -0.2064303465 | CN22: =RADIANS('Profile angles'!J51) -> -0.1267897308 | CO22: =RADIANS('Profile angles'!K51) -> 0.001453508956 | CP22: =RADIANS('Profile angles'!L51) -> 0.1113301801 | CQ22: =RADIANS('Profile angles'!M51) -> 0.1759269262 | CR22: =RADIANS('Profile angles'!N51) -> 0.1580449746 | CT22: ='Profile angles'!AD22 -> 18 | CU22: =(IF($AH$12<DEGREES(BS22),0+$AJ$16,1-((TAN(BS22)/TAN($AG$14))*(1-$AJ$16))))*(('Surface Solar Azimuth Angles'!BX21*$DU$3)+1-$DU$3) -> 0 | CV22: =(IF($AH$12<DEGREES(BT22),0+$AJ$16,1-((TAN(BT22)/TAN($AG$14))*(1-$AJ$16))))*(('Surface Solar Azimuth Angles'!BY21*$DU$3)+1-$DU$3) -> 0 | CW22: =(IF($AH$12<DEGREES(BU22),0+$AJ$16,1-((TAN(BU22)/TAN($AG$14))*(1-$AJ$16))))*(('Surface Solar Azimuth Angles'!BZ21*$DU$3)+1-$DU$3) -> 0 | CX22: =(IF($AH$12<DEGREES(BV22),0+$AJ$16,1-((TAN(BV22)/TAN($AG$14))*(1-$AJ$16))))*(('Surface Solar Azimuth Angles'!CA21*$DU$3)+1-$DU$3) -> 0 | CY22: =(IF($AH$12<DEGREES(BW22),0+$AJ$16,1-((TAN(BW22)/TAN($AG$14))*(1-$AJ$16))))*(('Surface Solar Azimuth Angles'!CB21*$DU$3)+1-$DU$3) -> 0 | CZ22: =(IF($AH$12<DEGREES(BX22),0+$AJ$16,1-((TAN(BX22)/TAN($AG$14))*(1-$AJ$16))))*(('Surface Solar Azimuth Angles'!CC21*$DU$3)+1-$DU$3) -> 0 | DA22: =(IF($AH$12<DEGREES(BY22),0+$AJ$16,1-((TAN(BY22)/TAN($AG$14))*(1-$AJ$16))))*(('Surface Solar Azimuth Angles'!CD21*$DU$3)+1-$DU$3) -> 0 | DB22: =(IF($AH$12<DEGREES(BZ22),0+$AJ$16,1-((TAN(BZ22)/TAN($AG$14))*(1-$AJ$16))))*(('Surface Solar Azimuth Angles'!CE21*$DU$3)+1-$DU$3) -> 0 | DC22: =(IF($AH$12<DEGREES(CA22),0+$AJ$16,1-((TAN(CA22)/TAN($AG$14))*(1-$AJ$16))))*(('Surface Solar Azimuth Angles'!CF21*$DU$3)+1-$DU$3) -> 0 | DD22: =(IF($AH$12<DEGREES(CB22),0+$AJ$16,1-((TAN(CB22)/TAN($AG$14))*(1-$AJ$16))))*(('Surface Solar Azimuth Angles'!CG21*$DU$3)+1-$DU$3) -> 0 | DE22: =(IF($AH$12<DEGREES(CC22),0+$AJ$16,1-((TAN(CC22)/TAN($AG$14))*(1-$AJ$16))))*(('Surface Solar Azimuth Angles'!CH21*$DU$3)+1-$DU$3) -> 0 | DF22: =(IF($AH$12<DEGREES(CD22),0+$AJ$16,1-((TAN(CD22)/TAN($AG$14))*(1-$AJ$16))))*(('Surface Solar Azimuth Angles'!CI21*$DU$3)+1-$DU$3) -> 0 | DH22: 18 | DI22: =(IF($AH$46<DEGREES(CG22),0+$AJ$50,1-((TAN(CG22)/TAN($AG$48))*(1-$AJ$50))))*(('Surface Solar Azimuth Angles'!CL21*$DU$3)+1-$DU$3) -> 0.7795380078 | DJ22: =(IF($AH$46<DEGREES(CH22),0+$AJ$50,1-((TAN(CH22)/TAN($AG$48))*(1-$AJ$50))))*(('Surface Solar Azimuth Angles'!CM21*$DU$3)+1-$DU$3) -> 0.8981302901 | DK22: =(IF($AH$46<DEGREES(CI22),0+$AJ$50,1-((TAN(CI22)/TAN($AG$48))*(1-$AJ$50))))*(('Surface Solar Azimuth Angles'!CN21*$DU$3)+1-$DU$3) -> 1.021028169 | DL22: =(IF($AH$46<DEGREES(CJ22),0+$AJ$50,1-((TAN(CJ22)/TAN($AG$48))*(1-$AJ$50))))*(('Surface Solar Azimuth Angles'!CO21*$DU$3)+1-$DU$3) -> 0.9708828139 | DM22: =(IF($AH$46<DEGREES(CK22),0+$AJ$50,1-((TAN(CK22)/TAN($AG$48))*(1-$AJ$50))))*(('Surface Solar Azimuth Angles'!CP21*$DU$3)+1-$DU$3) -> 0.9205484258 | DN22: =(IF($AH$46<DEGREES(CL22),0+$AJ$50,1-((TAN(CL22)/TAN($AG$48))*(1-$AJ$50))))*(('Surface Solar Azimuth Angles'!CQ21*$DU$3)+1-$DU$3) -> 0.9152811438 | DO22: =(IF($AH$46<DEGREES(CM22),0+$AJ$50,1-((TAN(CM22)/TAN($AG$48))*(1-$AJ$50))))*(('Surface Solar Azimuth Angles'!CR21*$DU$3)+1-$DU$3) -> 0.9478435359 | DP22: =(IF($AH$46<DEGREES(CN22),0+$AJ$50,1-((TAN(CN22)/TAN($AG$48))*(1-$AJ$50))))*(('Surface Solar Azimuth Angles'!CS21*$DU$3)+1-$DU$3) -> 0.9809225555 | DQ22: =(IF($AH$46<DEGREES(CO22),0+$AJ$50,1-((TAN(CO22)/TAN($AG$48))*(1-$AJ$50))))*(('Surface Solar Azimuth Angles'!CT21*$DU$3)+1-$DU$3) -> 0.9987939156 | DR22: =(IF($AH$46<DEGREES(CP22),0+$AJ$50,1-((TAN(CP22)/TAN($AG$48))*(1-$AJ$50))))*(('Surface Solar Azimuth Angles'!CU21*$DU$3)+1-$DU$3) -> 0.8598312703 | DS22: =(IF($AH$46<DEGREES(CQ22),0+$AJ$50,1-((TAN(CQ22)/TAN($AG$48))*(1-$AJ$50))))*(('Surface Solar Azimuth Angles'!CV21*$DU$3)+1-$DU$3) -> 0.7518109937 | DT22: =(IF($AH$46<DEGREES(CR22),0+$AJ$50,1-((TAN(CR22)/TAN($AG$48))*(1-$AJ$50))))*(('Surface Solar Azimuth Angles'!CW21*$DU$3)+1-$DU$3) -> 0.7215587337 | DW22: ='Profile angles'!AR22 -> 18 | DX22: ='Profile angles'!AS22 -> -4.242067037 | DY22: ='Profile angles'!AT22 -> 0.2849622425 | DZ22: ='Profile angles'!AU22 -> 3.323230903 | EA22: ='Profile angles'!AV22 -> 6.290301748 | EB22: ='Profile angles'!AW22 -> 9.161872873 | EC22: ='Profile angles'!AX22 -> 11.38003299 | ED22: ='Profile angles'!AY22 -> 11.29262333 | EE22: ='Profile angles'!AZ22 -> 7.153826537 | EF22: ='Profile angles'!BA22 -> -0.08327991007 | EG22: ='Profile angles'!BB22 -> -6.302473422 | EH22: ='Profile angles'!BC22 -> -9.618046738 | EI22: ='Profile angles'!BD22 -> -8.404947959 | EK22: 18 | EL22: -4.242067037 | EM22: 0.2849622425 | EN22: 3.323230903 | EO22: 6.290301748 | EP22: 9.161872873 | EQ22: 11.38003299 | ER22: 11.29262333 | ES22: 7.153826537 | ET22: -0.08327991007 | EU22: -6.302473422 | EV22: -9.618046738 | EW22: -8.404947959
B23: 19 | C23: =IF($T$36="y",'Dry Bulb'!D23-C354,'Dry Bulb'!D23-C238) -> -8.459193206 | D23: =IF($T$36="y",'Dry Bulb'!E23-D354,'Dry Bulb'!E23-D238) -> -4.472629639 | E23: =IF($T$36="y",'Dry Bulb'!F23-E354,'Dry Bulb'!F23-E238) -> 4.160002972 | F23: =IF($T$36="y",'Dry Bulb'!G23-F354,'Dry Bulb'!G23-F238) -> 12.78080679 | G23: =IF($T$36="y",'Dry Bulb'!H23-G354,'Dry Bulb'!H23-G238) -> 25.74080679 | H23: =IF($T$36="y",'Dry Bulb'!I23-H354,'Dry Bulb'!I23-H238) -> 32.22080679 | I23: =IF($T$36="y",'Dry Bulb'!J23-I354,'Dry Bulb'!J23-I238) -> 33.66080679 | J23: =IF($T$36="y",'Dry Bulb'!K23-J354,'Dry Bulb'!K23-J238) -> 33.12080679 | K23: =IF($T$36="y",'Dry Bulb'!L23-K354,'Dry Bulb'!L23-K238) -> 27.36080679 | L23: =IF($T$36="y",'Dry Bulb'!M23-L354,'Dry Bulb'!M23-L238) -> 17.64080679 | M23: =IF($T$36="y",'Dry Bulb'!N23-M354,'Dry Bulb'!N23-M238) -> 6.15214896 | N23: =IF($T$36="y",'Dry Bulb'!O23-N354,'Dry Bulb'!O23-N238) -> -8.099193206 | P23: 80 | Q23: Natural Ventilation High | W23: 10 | AC23: OVERHANG | AP23: ='Incident angle'!BI23 -> 19 | AQ23: ='Incident angle'!BJ23 -> 0 | AR23: ='Incident angle'!BK23 -> 0 | AS23: ='Incident angle'!BL23 -> 0 | AT23: ='Incident angle'!BM23 -> 0 | AU23: ='Incident angle'!BN23 -> 0 | AV23: ='Incident angle'!BO23 -> 0 | AW23: ='Incident angle'!BP23 -> 0 | AX23: ='Incident angle'!BQ23 -> 0 | AY23: ='Incident angle'!BR23 -> 0 | AZ23: ='Incident angle'!BS23 -> 0 | BA23: ='Incident angle'!BT23 -> 0 | BB23: ='Incident angle'!BU23 -> 0 | BD23: ='Incident angle'!BW23 -> 19 | BE23: ='Incident angle'!BX23 -> 0 | BF23: ='Incident angle'!BY23 -> 0 | BG23: ='Incident angle'!BZ23 -> 0 | BH23: ='Incident angle'!CA23 -> 0 | BI23: ='Incident angle'!CB23 -> 0 | BJ23: ='Incident angle'!CC23 -> 0 | BK23: ='Incident angle'!CD23 -> 0 | BL23: ='Incident angle'!CE23 -> 0 | BM23: ='Incident angle'!CF23 -> 0 | BN23: ='Incident angle'!CG23 -> 0 | BO23: ='Incident angle'!CH23 -> 0 | BP23: ='Incident angle'!CI23 -> 0 | BR23: ='Profile angles'!B23 -> 19 | BS23: =RADIANS('Profile angles'!C23) -> -0.8943190286 | BT23: =RADIANS('Profile angles'!D23) -> -1.16619683 | BU23: =RADIANS('Profile angles'!E23) -> 1.139700002 | BV23: =RADIANS('Profile angles'!F23) -> 0.405089215 | BW23: =RADIANS('Profile angles'!G23) -> 0.1494204003 | BX23: =RADIANS('Profile angles'!H23) -> 0.04318241974 | BY23: =RADIANS('Profile angles'!I23) -> 0.06469903131 | BZ23: =RADIANS('Profile angles'!J23) -> 0.3636490954 | CA23: =RADIANS('Profile angles'!K23) -> 1.139700002 | CB23: =RADIANS('Profile angles'!L23) -> -1.429871876 | CC23: =RADIANS('Profile angles'!M23) -> -1.101115376 | CD23: =RADIANS('Profile angles'!N23) -> -0.9283445131 | CF23: ='Profile angles'!B52 -> 19 | CG23: =RADIANS('Profile angles'!C52) -> 0.3104431651 | CH23: =RADIANS('Profile angles'!D52) -> 0.2311152211 | CI23: =RADIANS('Profile angles'!E52) -> 0.1802472843 | CJ23: =RADIANS('Profile angles'!F52) -> 0.1267334364 | CK23: =RADIANS('Profile angles'!G52) -> 0.06777970834 | CL23: =RADIANS('Profile angles'!H52) -> 0.02158775348 | CM23: =RADIANS('Profile angles'!I52) -> 0.02805460133 | CN23: =RADIANS('Profile angles'!J52) -> 0.1110942286 | CO23: =RADIANS('Profile angles'!K52) -> 0.2402602615 | CP23: =RADIANS('Profile angles'!L52) -> 0.3468908594 | CQ23: =RADIANS('Profile angles'!M52) -> 0.4060041095 | CR23: =RADIANS('Profile angles'!N52) -> 0.3861602819 | CT23: ='Profile angles'!AD23 -> 19 | CU23: =(IF($AH$12<DEGREES(BS23),0+$AJ$16,1-((TAN(BS23)/TAN($AG$14))*(1-$AJ$16))))*(('Surface Solar Azimuth Angles'!BX22*$DU$3)+1-$DU$3) -> 0 | CV23: =(IF($AH$12<DEGREES(BT23),0+$AJ$16,1-((TAN(BT23)/TAN($AG$14))*(1-$AJ$16))))*(('Surface Solar Azimuth Angles'!BY22*$DU$3)+1-$DU$3) -> 0 | CW23: =(IF($AH$12<DEGREES(BU23),0+$AJ$16,1-((TAN(BU23)/TAN($AG$14))*(1-$AJ$16))))*(('Surface Solar Azimuth Angles'!BZ22*$DU$3)+1-$DU$3) -> 0 | CX23: =(IF($AH$12<DEGREES(BV23),0+$AJ$16,1-((TAN(BV23)/TAN($AG$14))*(1-$AJ$16))))*(('Surface Solar Azimuth Angles'!CA22*$DU$3)+1-$DU$3) -> 0 | CY23: =(IF($AH$12<DEGREES(BW23),0+$AJ$16,1-((TAN(BW23)/TAN($AG$14))*(1-$AJ$16))))*(('Surface Solar Azimuth Angles'!CB22*$DU$3)+1-$DU$3) -> 0 | CZ23: =(IF($AH$12<DEGREES(BX23),0+$AJ$16,1-((TAN(BX23)/TAN($AG$14))*(1-$AJ$16))))*(('Surface Solar Azimuth Angles'!CC22*$DU$3)+1-$DU$3) -> 0 | DA23: =(IF($AH$12<DEGREES(BY23),0+$AJ$16,1-((TAN(BY23)/TAN($AG$14))*(1-$AJ$16))))*(('Surface Solar Azimuth Angles'!CD22*$DU$3)+1-$DU$3) -> 0 | DB23: =(IF($AH$12<DEGREES(BZ23),0+$AJ$16,1-((TAN(BZ23)/TAN($AG$14))*(1-$AJ$16))))*(('Surface Solar Azimuth Angles'!CE22*$DU$3)+1-$DU$3) -> 0 | DC23: =(IF($AH$12<DEGREES(CA23),0+$AJ$16,1-((TAN(CA23)/TAN($AG$14))*(1-$AJ$16))))*(('Surface Solar Azimuth Angles'!CF22*$DU$3)+1-$DU$3) -> 0 | DD23: =(IF($AH$12<DEGREES(CB23),0+$AJ$16,1-((TAN(CB23)/TAN($AG$14))*(1-$AJ$16))))*(('Surface Solar Azimuth Angles'!CG22*$DU$3)+1-$DU$3) -> 0 | DE23: =(IF($AH$12<DEGREES(CC23),0+$AJ$16,1-((TAN(CC23)/TAN($AG$14))*(1-$AJ$16))))*(('Surface Solar Azimuth Angles'!CH22*$DU$3)+1-$DU$3) -> 0 | DF23: =(IF($AH$12<DEGREES(CD23),0+$AJ$16,1-((TAN(CD23)/TAN($AG$14))*(1-$AJ$16))))*(('Surface Solar Azimuth Angles'!CI22*$DU$3)+1-$DU$3) -> 0 | DH23: 19 | DI23: =(IF($AH$46<DEGREES(CG23),0+$AJ$50,1-((TAN(CG23)/TAN($AG$48))*(1-$AJ$50))))*(('Surface Solar Azimuth Angles'!CL22*$DU$3)+1-$DU$3) -> 0.703515948 | DJ23: =(IF($AH$46<DEGREES(CH23),0+$AJ$50,1-((TAN(CH23)/TAN($AG$48))*(1-$AJ$50))))*(('Surface Solar Azimuth Angles'!CM22*$DU$3)+1-$DU$3) -> 0.8155369253 | DK23: =(IF($AH$46<DEGREES(CI23),0+$AJ$50,1-((TAN(CI23)/TAN($AG$48))*(1-$AJ$50))))*(('Surface Solar Azimuth Angles'!CN22*$DU$3)+1-$DU$3) -> 0.8533398312 | DL23: =(IF($AH$46<DEGREES(CJ23),0+$AJ$50,1-((TAN(CJ23)/TAN($AG$48))*(1-$AJ$50))))*(('Surface Solar Azimuth Angles'!CO22*$DU$3)+1-$DU$3) -> 0.7863370908 | DM23: =(IF($AH$46<DEGREES(CK23),0+$AJ$50,1-((TAN(CK23)/TAN($AG$48))*(1-$AJ$50))))*(('Surface Solar Azimuth Angles'!CP22*$DU$3)+1-$DU$3) -> 0.7429893077 | DN23: =(IF($AH$46<DEGREES(CL23),0+$AJ$50,1-((TAN(CL23)/TAN($AG$48))*(1-$AJ$50))))*(('Surface Solar Azimuth Angles'!CQ22*$DU$3)+1-$DU$3) -> 0.7404385688 | DO23: =(IF($AH$46<DEGREES(CM23),0+$AJ$50,1-((TAN(CM23)/TAN($AG$48))*(1-$AJ$50))))*(('Surface Solar Azimuth Angles'!CR22*$DU$3)+1-$DU$3) -> 0.7702463986 | DP23: =(IF($AH$46<DEGREES(CN23),0+$AJ$50,1-((TAN(CN23)/TAN($AG$48))*(1-$AJ$50))))*(('Surface Solar Azimuth Angles'!CS22*$DU$3)+1-$DU$3) -> 0.7963180877 | DQ23: =(IF($AH$46<DEGREES(CO23),0+$AJ$50,1-((TAN(CO23)/TAN($AG$48))*(1-$AJ$50))))*(('Surface Solar Azimuth Angles'!CT22*$DU$3)+1-$DU$3) -> 0.8049444858 | DR23: =(IF($AH$46<DEGREES(CP23),0+$AJ$50,1-((TAN(CP23)/TAN($AG$48))*(1-$AJ$50))))*(('Surface Solar Azimuth Angles'!CU22*$DU$3)+1-$DU$3) -> 0.7630138988 | DS23: =(IF($AH$46<DEGREES(CQ23),0+$AJ$50,1-((TAN(CQ23)/TAN($AG$48))*(1-$AJ$50))))*(('Surface Solar Azimuth Angles'!CV22*$DU$3)+1-$DU$3) -> 0.6611086853 | DT23: =(IF($AH$46<DEGREES(CR23),0+$AJ$50,1-((TAN(CR23)/TAN($AG$48))*(1-$AJ$50))))*(('Surface Solar Azimuth Angles'!CW22*$DU$3)+1-$DU$3) -> 0.6410356073 | DW23: ='Profile angles'!AR23 -> 19 | DX23: ='Profile angles'!AS23 -> -17.25878476 | DY23: ='Profile angles'!AT23 -> -13.17753507 | DZ23: ='Profile angles'!AU23 -> -10.29209715 | EA23: ='Profile angles'!AV23 -> -6.963521247 | EB23: ='Profile angles'!AW23 -> -3.541125247 | EC23: ='Profile angles'!AX23 -> -1.106478428 | ED23: ='Profile angles'!AY23 -> -1.475061282 | EE23: ='Profile angles'!AZ23 -> -6.110216257 | EF23: ='Profile angles'!BA23 -> -13.68258886 | EG23: ='Profile angles'!BB23 -> -19.85133487 | EH23: ='Profile angles'!BC23 -> -22.78273478 | EI23: ='Profile angles'!BD23 -> -21.25440747 | EK23: 19 | EL23: -17.25878476 | EM23: -13.17753507 | EN23: -10.29209715 | EO23: -6.963521247 | EP23: -3.541125247 | EQ23: -1.106478428 | ER23: -1.475061282 | ES23: -6.110216257 | ET23: -13.68258886 | EU23: -19.85133487 | EV23: -22.78273478 | EW23: -21.25440747
B24: 20 | C24: =IF($T$36="y",'Dry Bulb'!D24-C355,'Dry Bulb'!D24-C239) -> -3.439193206 | D24: =IF($T$36="y",'Dry Bulb'!E24-D355,'Dry Bulb'!E24-D239) -> -5.039193206 | E24: =IF($T$36="y",'Dry Bulb'!F24-E355,'Dry Bulb'!F24-E239) -> 1.061109214 | F24: =IF($T$36="y",'Dry Bulb'!G24-F355,'Dry Bulb'!G24-F239) -> 11.16080679 | G24: =IF($T$36="y",'Dry Bulb'!H24-G355,'Dry Bulb'!H24-G239) -> 23.40080679 | H24: =IF($T$36="y",'Dry Bulb'!I24-H355,'Dry Bulb'!I24-H239) -> 29.70080679 | I24: =IF($T$36="y",'Dry Bulb'!J24-I355,'Dry Bulb'!J24-I239) -> 30.06080679 | J24: =IF($T$36="y",'Dry Bulb'!K24-J355,'Dry Bulb'!K24-J239) -> 30.24080679 | K24: =IF($T$36="y",'Dry Bulb'!L24-K355,'Dry Bulb'!L24-K239) -> 25.02080679 | L24: =IF($T$36="y",'Dry Bulb'!M24-L355,'Dry Bulb'!M24-L239) -> 14.58080679 | M24: =IF($T$36="y",'Dry Bulb'!N24-M355,'Dry Bulb'!N24-M239) -> 3.053255202 | N24: =IF($T$36="y",'Dry Bulb'!O24-N355,'Dry Bulb'!O24-N239) -> -9.899193206 | AP24: ='Incident angle'!BI24 -> 20 | AQ24: ='Incident angle'!BJ24 -> 0 | AR24: ='Incident angle'!BK24 -> 0 | AS24: ='Incident angle'!BL24 -> 0 | AT24: ='Incident angle'!BM24 -> 0 | AU24: ='Incident angle'!BN24 -> 0 | AV24: ='Incident angle'!BO24 -> 0 | AW24: ='Incident angle'!BP24 -> 0 | AX24: ='Incident angle'!BQ24 -> 0 | AY24: ='Incident angle'!BR24 -> 0 | AZ24: ='Incident angle'!BS24 -> 0 | BA24: ='Incident angle'!BT24 -> 0 | BB24: ='Incident angle'!BU24 -> 0 | BD24: ='Incident angle'!BW24 -> 20 | BE24: ='Incident angle'!BX24 -> 0 | BF24: ='Incident angle'!BY24 -> 0 | BG24: ='Incident angle'!BZ24 -> 0 | BH24: ='Incident angle'!CA24 -> 0 | BI24: ='Incident angle'!CB24 -> 0 | BJ24: ='Incident angle'!CC24 -> 0 | BK24: ='Incident angle'!CD24 -> 0 | BL24: ='Incident angle'!CE24 -> 0 | BM24: ='Incident angle'!CF24 -> 0 | BN24: ='Incident angle'!CG24 -> 0 | BO24: ='Incident angle'!CH24 -> 0 | BP24: ='Incident angle'!CI24 -> 0 | BR24: ='Profile angles'!B24 -> 20 | BS24: =RADIANS('Profile angles'!C24) -> -1.301229863 | BT24: =RADIANS('Profile angles'!D24) -> 1.560181887 | BU24: =RADIANS('Profile angles'!E24) -> 1.139700002 | BV24: =RADIANS('Profile angles'!F24) -> 0.7237197881 | BW24: =RADIANS('Profile angles'!G24) -> 0.4885607624 | BX24: =RADIANS('Profile angles'!H24) -> 0.3916134224 | BY24: =RADIANS('Profile angles'!I24) -> 0.4451124906 | BZ24: =RADIANS('Profile angles'!J24) -> 0.7065215301 | CA24: =RADIANS('Profile angles'!K24) -> 1.139700002 | CB24: =RADIANS('Profile angles'!L24) -> 1.481625658 | CC24: =RADIANS('Profile angles'!M24) -> -1.398218022 | CD24: =RADIANS('Profile angles'!N24) -> -1.265945769 | CF24: ='Profile angles'!B53 -> 20 | CG24: =RADIANS('Profile angles'!C53) -> 0.5398244065 | CH24: =RADIANS('Profile angles'!D53) -> 0.4674592435 | CI24: =RADIANS('Profile angles'!E53) -> 0.4227167631 | CJ24: =RADIANS('Profile angles'!F53) -> 0.3743841429 | CK24: =RADIANS('Profile angles'!G53) -> 0.3166309524 | CL24: =RADIANS('Profile angles'!H53) -> 0.2686608245 | CM24: =RADIANS('Profile angles'!I53) -> 0.2743431602 | CN24: =RADIANS('Profile angles'!J53) -> 0.3580617366 | CO24: =RADIANS('Profile angles'!K53) -> 0.4845965242 | CP24: =RADIANS('Profile angles'!L53) -> 0.5850024871 | CQ24: =RADIANS('Profile angles'!M53) -> 0.63584308 | CR24: =RADIANS('Profile angles'!N53) -> 0.6121749889 | CT24: ='Profile angles'!AD24 -> 20 | CU24: =(IF($AH$12<DEGREES(BS24),0+$AJ$16,1-((TAN(BS24)/TAN($AG$14))*(1-$AJ$16))))*(('Surface Solar Azimuth Angles'!BX23*$DU$3)+1-$DU$3) -> 0 | CV24: =(IF($AH$12<DEGREES(BT24),0+$AJ$16,1-((TAN(BT24)/TAN($AG$14))*(1-$AJ$16))))*(('Surface Solar Azimuth Angles'!BY23*$DU$3)+1-$DU$3) -> 0 | CW24: =(IF($AH$12<DEGREES(BU24),0+$AJ$16,1-((TAN(BU24)/TAN($AG$14))*(1-$AJ$16))))*(('Surface Solar Azimuth Angles'!BZ23*$DU$3)+1-$DU$3) -> 0 | CX24: =(IF($AH$12<DEGREES(BV24),0+$AJ$16,1-((TAN(BV24)/TAN($AG$14))*(1-$AJ$16))))*(('Surface Solar Azimuth Angles'!CA23*$DU$3)+1-$DU$3) -> 0 | CY24: =(IF($AH$12<DEGREES(BW24),0+$AJ$16,1-((TAN(BW24)/TAN($AG$14))*(1-$AJ$16))))*(('Surface Solar Azimuth Angles'!CB23*$DU$3)+1-$DU$3) -> 0.1185954918 | CZ24: =(IF($AH$12<DEGREES(BX24),0+$AJ$16,1-((TAN(BX24)/TAN($AG$14))*(1-$AJ$16))))*(('Surface Solar Azimuth Angles'!CC23*$DU$3)+1-$DU$3) -> 0.1777779469 | DA24: =(IF($AH$12<DEGREES(BY24),0+$AJ$16,1-((TAN(BY24)/TAN($AG$14))*(1-$AJ$16))))*(('Surface Solar Azimuth Angles'!CD23*$DU$3)+1-$DU$3) -> 0.1015745537 | DB24: =(IF($AH$12<DEGREES(BZ24),0+$AJ$16,1-((TAN(BZ24)/TAN($AG$14))*(1-$AJ$16))))*(('Surface Solar Azimuth Angles'!CE23*$DU$3)+1-$DU$3) -> 0 | DC24: =(IF($AH$12<DEGREES(CA24),0+$AJ$16,1-((TAN(CA24)/TAN($AG$14))*(1-$AJ$16))))*(('Surface Solar Azimuth Angles'!CF23*$DU$3)+1-$DU$3) -> 0 | DD24: =(IF($AH$12<DEGREES(CB24),0+$AJ$16,1-((TAN(CB24)/TAN($AG$14))*(1-$AJ$16))))*(('Surface Solar Azimuth Angles'!CG23*$DU$3)+1-$DU$3) -> 0 | DE24: =(IF($AH$12<DEGREES(CC24),0+$AJ$16,1-((TAN(CC24)/TAN($AG$14))*(1-$AJ$16))))*(('Surface Solar Azimuth Angles'!CH23*$DU$3)+1-$DU$3) -> 0 | DF24: =(IF($AH$12<DEGREES(CD24),0+$AJ$16,1-((TAN(CD24)/TAN($AG$14))*(1-$AJ$16))))*(('Surface Solar Azimuth Angles'!CI23*$DU$3)+1-$DU$3) -> 0 | DH24: 20 | DI24: =(IF($AH$46<DEGREES(CG24),0+$AJ$50,1-((TAN(CG24)/TAN($AG$48))*(1-$AJ$50))))*(('Surface Solar Azimuth Angles'!CL23*$DU$3)+1-$DU$3) -> 0.5874688135 | DJ24: =(IF($AH$46<DEGREES(CH24),0+$AJ$50,1-((TAN(CH24)/TAN($AG$48))*(1-$AJ$50))))*(('Surface Solar Azimuth Angles'!CM23*$DU$3)+1-$DU$3) -> 0.6952681431 | DK24: =(IF($AH$46<DEGREES(CI24),0+$AJ$50,1-((TAN(CI24)/TAN($AG$48))*(1-$AJ$50))))*(('Surface Solar Azimuth Angles'!CN23*$DU$3)+1-$DU$3) -> 0.654569849 | DL24: =(IF($AH$46<DEGREES(CJ24),0+$AJ$50,1-((TAN(CJ24)/TAN($AG$48))*(1-$AJ$50))))*(('Surface Solar Azimuth Angles'!CO23*$DU$3)+1-$DU$3) -> 0.5943424431 | DM24: =(IF($AH$46<DEGREES(CK24),0+$AJ$50,1-((TAN(CK24)/TAN($AG$48))*(1-$AJ$50))))*(('Surface Solar Azimuth Angles'!CP23*$DU$3)+1-$DU$3) -> 0.5557875282 | DN24: =(IF($AH$46<DEGREES(CL24),0+$AJ$50,1-((TAN(CL24)/TAN($AG$48))*(1-$AJ$50))))*(('Surface Solar Azimuth Angles'!CQ23*$DU$3)+1-$DU$3) -> 0.5565175435 | DO24: =(IF($AH$46<DEGREES(CM24),0+$AJ$50,1-((TAN(CM24)/TAN($AG$48))*(1-$AJ$50))))*(('Surface Solar Azimuth Angles'!CR23*$DU$3)+1-$DU$3) -> 0.5859638623 | DP24: =(IF($AH$46<DEGREES(CN24),0+$AJ$50,1-((TAN(CN24)/TAN($AG$48))*(1-$AJ$50))))*(('Surface Solar Azimuth Angles'!CS23*$DU$3)+1-$DU$3) -> 0.6054905872 | DQ24: =(IF($AH$46<DEGREES(CO24),0+$AJ$50,1-((TAN(CO24)/TAN($AG$48))*(1-$AJ$50))))*(('Surface Solar Azimuth Angles'!CT23*$DU$3)+1-$DU$3) -> 0.6012905913 | DR24: =(IF($AH$46<DEGREES(CP24),0+$AJ$50,1-((TAN(CP24)/TAN($AG$48))*(1-$AJ$50))))*(('Surface Solar Azimuth Angles'!CU23*$DU$3)+1-$DU$3) -> 0.5847525347 | DS24: =(IF($AH$46<DEGREES(CQ24),0+$AJ$50,1-((TAN(CQ24)/TAN($AG$48))*(1-$AJ$50))))*(('Surface Solar Azimuth Angles'!CV23*$DU$3)+1-$DU$3) -> 0.5212977303 | DT24: =(IF($AH$46<DEGREES(CR24),0+$AJ$50,1-((TAN(CR24)/TAN($AG$48))*(1-$AJ$50))))*(('Surface Solar Azimuth Angles'!CW23*$DU$3)+1-$DU$3) -> 0.5147735195 | DW24: ='Profile angles'!AR24 -> 20 | DX24: ='Profile angles'!AS24 -> -30.58923968 | DY24: ='Profile angles'!AT24 -> -26.7831109 | DZ24: ='Profile angles'!AU24 -> -23.77374519 | EA24: ='Profile angles'!AV24 -> -19.74938717 | EB24: ='Profile angles'!AW24 -> -15.58486172 | EC24: ='Profile angles'!AX24 -> -12.90224765 | ED24: ='Profile angles'!AY24 -> -13.6256052 | EE24: ='Profile angles'!AZ24 -> -18.91670864 | EF24: ='Profile angles'!BA24 -> -27.09790022 | EG24: ='Profile angles'!BB24 -> -33.47201928 | EH24: ='Profile angles'!BC24 -> -36.20667058 | EI24: ='Profile angles'!BD24 -> -34.43555554 | EK24: 20 | EL24: -30.58923968 | EM24: -26.7831109 | EN24: -23.77374519 | EO24: -19.74938717 | EP24: -15.58486172 | EQ24: -12.90224765 | ER24: -13.6256052 | ES24: -18.91670864 | ET24: -27.09790022 | EU24: -33.47201928 | EV24: -36.20667058 | EW24: -34.43555554
B25: 21 | C25: =IF($T$36="y",'Dry Bulb'!D25-C356,'Dry Bulb'!D25-C240) -> -4.699193206 | D25: =IF($T$36="y",'Dry Bulb'!E25-D356,'Dry Bulb'!E25-D240) -> -6.839193206 | E25: =IF($T$36="y",'Dry Bulb'!F25-E356,'Dry Bulb'!F25-E240) -> -0.7096872187 | F25: =IF($T$36="y",'Dry Bulb'!G25-F356,'Dry Bulb'!G25-F240) -> 10.57914004 | G25: =IF($T$36="y",'Dry Bulb'!H25-G356,'Dry Bulb'!H25-G240) -> 21.42080679 | H25: =IF($T$36="y",'Dry Bulb'!I25-H356,'Dry Bulb'!I25-H240) -> 27.00080679 | I25: =IF($T$36="y",'Dry Bulb'!J25-I356,'Dry Bulb'!J25-I240) -> 27.18080679 | J25: =IF($T$36="y",'Dry Bulb'!K25-J356,'Dry Bulb'!K25-J240) -> 28.26080679 | K25: =IF($T$36="y",'Dry Bulb'!L25-K356,'Dry Bulb'!L25-K240) -> 22.50080679 | L25: =IF($T$36="y",'Dry Bulb'!M25-L356,'Dry Bulb'!M25-L240) -> 12.60080679 | M25: =IF($T$36="y",'Dry Bulb'!N25-M356,'Dry Bulb'!N25-M240) -> 1.061109214 | N25: =IF($T$36="y",'Dry Bulb'!O25-N356,'Dry Bulb'!O25-N240) -> -4.159193206 | P25: =Q26/8 -> 0.5 | Q25: Nat Vent Air Changes | W25: Window Height | X25: 0 | AP25: ='Incident angle'!BI25 -> 21 | AQ25: ='Incident angle'!BJ25 -> 0 | AR25: ='Incident angle'!BK25 -> 0 | AS25: ='Incident angle'!BL25 -> 0 | AT25: ='Incident angle'!BM25 -> 0 | AU25: ='Incident angle'!BN25 -> 0 | AV25: ='Incident angle'!BO25 -> 0 | AW25: ='Incident angle'!BP25 -> 0 | AX25: ='Incident angle'!BQ25 -> 0 | AY25: ='Incident angle'!BR25 -> 0 | AZ25: ='Incident angle'!BS25 -> 0 | BA25: ='Incident angle'!BT25 -> 0 | BB25: ='Incident angle'!BU25 -> 0 | BD25: ='Incident angle'!BW25 -> 21 | BE25: ='Incident angle'!BX25 -> 0 | BF25: ='Incident angle'!BY25 -> 0 | BG25: ='Incident angle'!BZ25 -> 0 | BH25: ='Incident angle'!CA25 -> 0 | BI25: ='Incident angle'!CB25 -> 0 | BJ25: ='Incident angle'!CC25 -> 0 | BK25: ='Incident angle'!CD25 -> 0 | BL25: ='Incident angle'!CE25 -> 0 | BM25: ='Incident angle'!CF25 -> 0 | BN25: ='Incident angle'!CG25 -> 0 | BO25: ='Incident angle'!CH25 -> 0 | BP25: ='Incident angle'!CI25 -> 0 | BR25: ='Profile angles'!B25 -> 21 | BS25: =RADIANS('Profile angles'!C25) -> -1.492668914 | BT25: =RADIANS('Profile angles'!D25) -> 1.42446612 | BU25: =RADIANS('Profile angles'!E25) -> 1.139700002 | BV25: =RADIANS('Profile angles'!F25) -> 0.8425765901 | BW25: =RADIANS('Profile angles'!G25) -> 0.6506974781 | BX25: =RADIANS('Profile angles'!H25) -> 0.5720711137 | BY25: =RADIANS('Profile angles'!I25) -> 0.6273825267 | BZ25: =RADIANS('Profile angles'!J25) -> 0.8330645277 | CA25: =RADIANS('Profile angles'!K25) -> 1.139700002 | CB25: =RADIANS('Profile angles'!L25) -> 1.392268191 | CC25: =RADIANS('Profile angles'!M25) -> -1.540107577 | CD25: =RADIANS('Profile angles'!N25) -> -1.440555126 | CE25: =TAN($AG$14) -> 1.428571429 | CF25: ='Profile angles'!B54 -> 21 | CG25: =RADIANS('Profile angles'!C54) -> 0.7713740635 | CH25: =RADIANS('Profile angles'!D54) -> 0.7085877862 | CI25: =RADIANS('Profile angles'!E54) -> 0.6743232952 | CJ25: =RADIANS('Profile angles'!F54) -> 0.6374001422 | CK25: =RADIANS('Profile angles'!G54) -> 0.5858626531 | CL25: =RADIANS('Profile angles'!H54) -> 0.537434193 | CM25: =RADIANS('Profile angles'!I54) -> 0.539950194 | CN25: =RADIANS('Profile angles'!J54) -> 0.6201738527 | CO25: =RADIANS('Profile angles'!K54) -> 0.7390887077 | CP25: =RADIANS('Profile angles'!L54) -> 0.829551533 | CQ25: =RADIANS('Profile angles'!M54) -> 0.8691942163 | CR25: =RADIANS('Profile angles'!N54) -> 0.8401790138 | CT25: ='Profile angles'!AD25 -> 21 | CU25: =(IF($AH$12<DEGREES(BS25),0+$AJ$16,1-((TAN(BS25)/TAN($AG$14))*(1-$AJ$16))))*(('Surface Solar Azimuth Angles'!BX24*$DU$3)+1-$DU$3) -> 0 | CV25: =(IF($AH$12<DEGREES(BT25),0+$AJ$16,1-((TAN(BT25)/TAN($AG$14))*(1-$AJ$16))))*(('Surface Solar Azimuth Angles'!BY24*$DU$3)+1-$DU$3) -> 0 | CW25: =(IF($AH$12<DEGREES(BU25),0+$AJ$16,1-((TAN(BU25)/TAN($AG$14))*(1-$AJ$16))))*(('Surface Solar Azimuth Angles'!BZ24*$DU$3)+1-$DU$3) -> 0 | CX25: =(IF($AH$12<DEGREES(BV25),0+$AJ$16,1-((TAN(BV25)/TAN($AG$14))*(1-$AJ$16))))*(('Surface Solar Azimuth Angles'!CA24*$DU$3)+1-$DU$3) -> 0.05220083579 | CY25: =(IF($AH$12<DEGREES(BW25),0+$AJ$16,1-((TAN(BW25)/TAN($AG$14))*(1-$AJ$16))))*(('Surface Solar Azimuth Angles'!CB24*$DU$3)+1-$DU$3) -> 0.1991491441 | CZ25: =(IF($AH$12<DEGREES(BX25),0+$AJ$16,1-((TAN(BX25)/TAN($AG$14))*(1-$AJ$16))))*(('Surface Solar Azimuth Angles'!CC24*$DU$3)+1-$DU$3) -> 0.2525408941 | DA25: =(IF($AH$12<DEGREES(BY25),0+$AJ$16,1-((TAN(BY25)/TAN($AG$14))*(1-$AJ$16))))*(('Surface Solar Azimuth Angles'!CD24*$DU$3)+1-$DU$3) -> 0.1945531825 | DB25: =(IF($AH$12<DEGREES(BZ25),0+$AJ$16,1-((TAN(BZ25)/TAN($AG$14))*(1-$AJ$16))))*(('Surface Solar Azimuth Angles'!CE24*$DU$3)+1-$DU$3) -> 0.05281244894 | DC25: =(IF($AH$12<DEGREES(CA25),0+$AJ$16,1-((TAN(CA25)/TAN($AG$14))*(1-$AJ$16))))*(('Surface Solar Azimuth Angles'!CF24*$DU$3)+1-$DU$3) -> 0 | DD25: =(IF($AH$12<DEGREES(CB25),0+$AJ$16,1-((TAN(CB25)/TAN($AG$14))*(1-$AJ$16))))*(('Surface Solar Azimuth Angles'!CG24*$DU$3)+1-$DU$3) -> 0 | DE25: =(IF($AH$12<DEGREES(CC25),0+$AJ$16,1-((TAN(CC25)/TAN($AG$14))*(1-$AJ$16))))*(('Surface Solar Azimuth Angles'!CH24*$DU$3)+1-$DU$3) -> 0 | DF25: =(IF($AH$12<DEGREES(CD25),0+$AJ$16,1-((TAN(CD25)/TAN($AG$14))*(1-$AJ$16))))*(('Surface Solar Azimuth Angles'!CI24*$DU$3)+1-$DU$3) -> 0 | DH25: 21 | DI25: =(IF($AH$46<DEGREES(CG25),0+$AJ$50,1-((TAN(CG25)/TAN($AG$48))*(1-$AJ$50))))*(('Surface Solar Azimuth Angles'!CL24*$DU$3)+1-$DU$3) -> 0.4007413078 | DJ25: =(IF($AH$46<DEGREES(CH25),0+$AJ$50,1-((TAN(CH25)/TAN($AG$48))*(1-$AJ$50))))*(('Surface Solar Azimuth Angles'!CM24*$DU$3)+1-$DU$3) -> 0.455074336 | DK25: =(IF($AH$46<DEGREES(CI25),0+$AJ$50,1-((TAN(CI25)/TAN($AG$48))*(1-$AJ$50))))*(('Surface Solar Azimuth Angles'!CN24*$DU$3)+1-$DU$3) -> 0.4247478798 | DL25: =(IF($AH$46<DEGREES(CJ25),0+$AJ$50,1-((TAN(CJ25)/TAN($AG$48))*(1-$AJ$50))))*(('Surface Solar Azimuth Angles'!CO24*$DU$3)+1-$DU$3) -> 0.3722243125 | DM25: =(IF($AH$46<DEGREES(CK25),0+$AJ$50,1-((TAN(CK25)/TAN($AG$48))*(1-$AJ$50))))*(('Surface Solar Azimuth Angles'!CP24*$DU$3)+1-$DU$3) -> 0.3395545665 | DN25: =(IF($AH$46<DEGREES(CL25),0+$AJ$50,1-((TAN(CL25)/TAN($AG$48))*(1-$AJ$50))))*(('Surface Solar Azimuth Angles'!CQ24*$DU$3)+1-$DU$3) -> 0.3451349794 | DO25: =(IF($AH$46<DEGREES(CM25),0+$AJ$50,1-((TAN(CM25)/TAN($AG$48))*(1-$AJ$50))))*(('Surface Solar Azimuth Angles'!CR24*$DU$3)+1-$DU$3) -> 0.3757200447 | DP25: =(IF($AH$46<DEGREES(CN25),0+$AJ$50,1-((TAN(CN25)/TAN($AG$48))*(1-$AJ$50))))*(('Surface Solar Azimuth Angles'!CS24*$DU$3)+1-$DU$3) -> 0.3860067954 | DQ25: =(IF($AH$46<DEGREES(CO25),0+$AJ$50,1-((TAN(CO25)/TAN($AG$48))*(1-$AJ$50))))*(('Surface Solar Azimuth Angles'!CT24*$DU$3)+1-$DU$3) -> 0.358166821 | DR25: =(IF($AH$46<DEGREES(CP25),0+$AJ$50,1-((TAN(CP25)/TAN($AG$48))*(1-$AJ$50))))*(('Surface Solar Azimuth Angles'!CU24*$DU$3)+1-$DU$3) -> 0.3105717941 | DS25: =(IF($AH$46<DEGREES(CQ25),0+$AJ$50,1-((TAN(CQ25)/TAN($AG$48))*(1-$AJ$50))))*(('Surface Solar Azimuth Angles'!CV24*$DU$3)+1-$DU$3) -> 0.2846997441 | DT25: =(IF($AH$46<DEGREES(CR25),0+$AJ$50,1-((TAN(CR25)/TAN($AG$48))*(1-$AJ$50))))*(('Surface Solar Azimuth Angles'!CW24*$DU$3)+1-$DU$3) -> 0.3062318309 | DW25: ='Profile angles'!AR25 -> 21 | DX25: ='Profile angles'!AS25 -> -44.11375465 | DY25: ='Profile angles'!AT25 -> -40.37514228 | DZ25: ='Profile angles'!AU25 -> -36.87799851 | EA25: ='Profile angles'!AV25 -> -31.71376686 | EB25: ='Profile angles'!AW25 -> -26.57551522 | EC25: ='Profile angles'!AX25 -> -23.6230169 | ED25: ='Profile angles'!AY25 -> -24.79570874 | EE25: ='Profile angles'!AZ25 -> -30.92280248 | EF25: ='Profile angles'!BA25 -> -40.04875689 | EG25: ='Profile angles'!BB25 -> -46.98540715 | EH25: ='Profile angles'!BC25 -> -49.78253251 | EI25: ='Profile angles'!BD25 -> -47.83749622 | EK25: 21 | EL25: -44.11375465 | EM25: -40.37514228 | EN25: -36.87799851 | EO25: -31.71376686 | EP25: -26.57551522 | EQ25: -23.6230169 | ER25: -24.79570874 | ES25: -30.92280248 | ET25: -40.04875689 | EU25: -46.98540715 | EV25: -49.78253251 | EW25: -47.83749622
B26: 22 | C26: =IF($T$36="y",'Dry Bulb'!D26-C357,'Dry Bulb'!D26-C241) -> -6.139193206 | D26: =IF($T$36="y",'Dry Bulb'!E26-D357,'Dry Bulb'!E26-D241) -> -8.639193206 | E26: =IF($T$36="y",'Dry Bulb'!F26-E357,'Dry Bulb'!F26-E241) -> -2.701833206 | F26: =IF($T$36="y",'Dry Bulb'!G26-F357,'Dry Bulb'!G26-F241) -> 8.586994055 | G26: =IF($T$36="y",'Dry Bulb'!H26-G357,'Dry Bulb'!H26-G241) -> 19.62080679 | H26: =IF($T$36="y",'Dry Bulb'!I26-H357,'Dry Bulb'!I26-H241) -> 24.66080679 | I26: =IF($T$36="y",'Dry Bulb'!J26-I357,'Dry Bulb'!J26-I241) -> 24.48080679 | J26: =IF($T$36="y",'Dry Bulb'!K26-J357,'Dry Bulb'!K26-J241) -> 26.28080679 | K26: =IF($T$36="y",'Dry Bulb'!L26-K357,'Dry Bulb'!L26-K241) -> 20.70080679 | L26: =IF($T$36="y",'Dry Bulb'!M26-L357,'Dry Bulb'!M26-L241) -> 10.62080679 | M26: =IF($T$36="y",'Dry Bulb'!N26-M357,'Dry Bulb'!N26-M241) -> -1.373735881 | N26: =IF($T$36="y",'Dry Bulb'!O26-N357,'Dry Bulb'!O26-N241) -> -5.419193206 | Q26: 4 | T26: Occupant Density | X26: 1 | AC26: Lab Override | AP26: ='Incident angle'!BI26 -> 22 | AQ26: ='Incident angle'!BJ26 -> 0 | AR26: ='Incident angle'!BK26 -> 0 | AS26: ='Incident angle'!BL26 -> 0 | AT26: ='Incident angle'!BM26 -> 0 | AU26: ='Incident angle'!BN26 -> 0 | AV26: ='Incident angle'!BO26 -> 0 | AW26: ='Incident angle'!BP26 -> 0 | AX26: ='Incident angle'!BQ26 -> 0 | AY26: ='Incident angle'!BR26 -> 0 | AZ26: ='Incident angle'!BS26 -> 0 | BA26: ='Incident angle'!BT26 -> 0 | BB26: ='Incident angle'!BU26 -> 0 | BD26: ='Incident angle'!BW26 -> 22 | BE26: ='Incident angle'!BX26 -> 0 | BF26: ='Incident angle'!BY26 -> 0 | BG26: ='Incident angle'!BZ26 -> 0 | BH26: ='Incident angle'!CA26 -> 0 | BI26: ='Incident angle'!CB26 -> 0 | BJ26: ='Incident angle'!CC26 -> 0 | BK26: ='Incident angle'!CD26 -> 0 | BL26: ='Incident angle'!CE26 -> 0 | BM26: ='Incident angle'!CF26 -> 0 | BN26: ='Incident angle'!CG26 -> 0 | BO26: ='Incident angle'!CH26 -> 0 | BP26: ='Incident angle'!CI26 -> 0 | BR26: ='Profile angles'!B26 -> 22 | BS26: =RADIANS('Profile angles'!C26) -> 1.553944588 | BT26: =RADIANS('Profile angles'!D26) -> 1.364996711 | BU26: =RADIANS('Profile angles'!E26) -> 1.139700002 | BV26: =RADIANS('Profile angles'!F26) -> 0.8973813648 | BW26: =RADIANS('Profile angles'!G26) -> 0.7324526897 | BX26: =RADIANS('Profile angles'!H26) -> 0.6663048373 | BY26: =RADIANS('Profile angles'!I26) -> 0.7189231483 | BZ26: =RADIANS('Profile angles'!J26) -> 0.8910908442 | CA26: =RADIANS('Profile angles'!K26) -> 1.139700002 | CB26: =RADIANS('Profile angles'!L26) -> 1.350395037 | CC26: =RADIANS('Profile angles'!M26) -> 1.529878659 | CD26: =RADIANS('Profile angles'!N26) -> -1.53177771 | CF26: ='Profile angles'!B55 -> 22 | CG26: =RADIANS('Profile angles'!C55) -> 1.007748795 | CH26: =RADIANS('Profile angles'!D55) -> 0.95743317 | CI26: =RADIANS('Profile angles'!E55) -> 0.9383140971 | CJ26: =RADIANS('Profile angles'!F55) -> 0.9201136495 | CK26: =RADIANS('Profile angles'!G55) -> 0.8817647403 | CL26: =RADIANS('Profile angles'!H55) -> 0.8355223715 | CM26: =RADIANS('Profile angles'!I55) -> 0.8316234753 | CN26: =RADIANS('Profile angles'!J55) -> 0.9019578438 | CO26: =RADIANS('Profile angles'!K55) -> 1.006360069 | CP26: =RADIANS('Profile angles'!L55) -> 1.082387616 | CQ26: =RADIANS('Profile angles'!M55) -> 1.107878872 | CR26: =RADIANS('Profile angles'!N55) -> 1.072384456 | CT26: ='Profile angles'!AD26 -> 22 | CU26: =(IF($AH$12<DEGREES(BS26),0+$AJ$16,1-((TAN(BS26)/TAN($AG$14))*(1-$AJ$16))))*(('Surface Solar Azimuth Angles'!BX25*$DU$3)+1-$DU$3) -> 0 | CV26: =(IF($AH$12<DEGREES(BT26),0+$AJ$16,1-((TAN(BT26)/TAN($AG$14))*(1-$AJ$16))))*(('Surface Solar Azimuth Angles'!BY25*$DU$3)+1-$DU$3) -> 0 | CW26: =(IF($AH$12<DEGREES(BU26),0+$AJ$16,1-((TAN(BU26)/TAN($AG$14))*(1-$AJ$16))))*(('Surface Solar Azimuth Angles'!BZ25*$DU$3)+1-$DU$3) -> 0 | CX26: =(IF($AH$12<DEGREES(BV26),0+$AJ$16,1-((TAN(BV26)/TAN($AG$14))*(1-$AJ$16))))*(('Surface Solar Azimuth Angles'!CA25*$DU$3)+1-$DU$3) -> 0.06411711493 | CY26: =(IF($AH$12<DEGREES(BW26),0+$AJ$16,1-((TAN(BW26)/TAN($AG$14))*(1-$AJ$16))))*(('Surface Solar Azimuth Angles'!CB25*$DU$3)+1-$DU$3) -> 0.2332413279 | CZ26: =(IF($AH$12<DEGREES(BX26),0+$AJ$16,1-((TAN(BX26)/TAN($AG$14))*(1-$AJ$16))))*(('Surface Solar Azimuth Angles'!CC25*$DU$3)+1-$DU$3) -> 0.28974892 | DA26: =(IF($AH$12<DEGREES(BY26),0+$AJ$16,1-((TAN(BY26)/TAN($AG$14))*(1-$AJ$16))))*(('Surface Solar Azimuth Angles'!CD25*$DU$3)+1-$DU$3) -> 0.2328614768 | DB26: =(IF($AH$12<DEGREES(BZ26),0+$AJ$16,1-((TAN(BZ26)/TAN($AG$14))*(1-$AJ$16))))*(('Surface Solar Azimuth Angles'!CE25*$DU$3)+1-$DU$3) -> 0.06839991824 | DC26: =(IF($AH$12<DEGREES(CA26),0+$AJ$16,1-((TAN(CA26)/TAN($AG$14))*(1-$AJ$16))))*(('Surface Solar Azimuth Angles'!CF25*$DU$3)+1-$DU$3) -> 0 | DD26: =(IF($AH$12<DEGREES(CB26),0+$AJ$16,1-((TAN(CB26)/TAN($AG$14))*(1-$AJ$16))))*(('Surface Solar Azimuth Angles'!CG25*$DU$3)+1-$DU$3) -> 0 | DE26: =(IF($AH$12<DEGREES(CC26),0+$AJ$16,1-((TAN(CC26)/TAN($AG$14))*(1-$AJ$16))))*(('Surface Solar Azimuth Angles'!CH25*$DU$3)+1-$DU$3) -> 0 | DF26: =(IF($AH$12<DEGREES(CD26),0+$AJ$16,1-((TAN(CD26)/TAN($AG$14))*(1-$AJ$16))))*(('Surface Solar Azimuth Angles'!CI25*$DU$3)+1-$DU$3) -> 0 | DH26: 22 | DI26: =(IF($AH$46<DEGREES(CG26),0+$AJ$50,1-((TAN(CG26)/TAN($AG$48))*(1-$AJ$50))))*(('Surface Solar Azimuth Angles'!CL25*$DU$3)+1-$DU$3) -> 0.04877435168 | DJ26: =(IF($AH$46<DEGREES(CH26),0+$AJ$50,1-((TAN(CH26)/TAN($AG$48))*(1-$AJ$50))))*(('Surface Solar Azimuth Angles'!CM25*$DU$3)+1-$DU$3) -> 0.1257574445 | DK26: =(IF($AH$46<DEGREES(CI26),0+$AJ$50,1-((TAN(CI26)/TAN($AG$48))*(1-$AJ$50))))*(('Surface Solar Azimuth Angles'!CN25*$DU$3)+1-$DU$3) -> 0.1244538672 | DL26: =(IF($AH$46<DEGREES(CJ26),0+$AJ$50,1-((TAN(CJ26)/TAN($AG$48))*(1-$AJ$50))))*(('Surface Solar Azimuth Angles'!CO25*$DU$3)+1-$DU$3) -> 0.1008428813 | DM26: =(IF($AH$46<DEGREES(CK26),0+$AJ$50,1-((TAN(CK26)/TAN($AG$48))*(1-$AJ$50))))*(('Surface Solar Azimuth Angles'!CP25*$DU$3)+1-$DU$3) -> 0.08828023547 | DN26: =(IF($AH$46<DEGREES(CL26),0+$AJ$50,1-((TAN(CL26)/TAN($AG$48))*(1-$AJ$50))))*(('Surface Solar Azimuth Angles'!CQ25*$DU$3)+1-$DU$3) -> 0.09994349278 | DO26: =(IF($AH$46<DEGREES(CM26),0+$AJ$50,1-((TAN(CM26)/TAN($AG$48))*(1-$AJ$50))))*(('Surface Solar Azimuth Angles'!CR25*$DU$3)+1-$DU$3) -> 0.1275789228 | DP26: =(IF($AH$46<DEGREES(CN26),0+$AJ$50,1-((TAN(CN26)/TAN($AG$48))*(1-$AJ$50))))*(('Surface Solar Azimuth Angles'!CS25*$DU$3)+1-$DU$3) -> 0.1177151256 | DQ26: =(IF($AH$46<DEGREES(CO26),0+$AJ$50,1-((TAN(CO26)/TAN($AG$48))*(1-$AJ$50))))*(('Surface Solar Azimuth Angles'!CT25*$DU$3)+1-$DU$3) -> 0.03333679296 | DR26: =(IF($AH$46<DEGREES(CP26),0+$AJ$50,1-((TAN(CP26)/TAN($AG$48))*(1-$AJ$50))))*(('Surface Solar Azimuth Angles'!CU25*$DU$3)+1-$DU$3) -> 0 | DS26: =(IF($AH$46<DEGREES(CQ26),0+$AJ$50,1-((TAN(CQ26)/TAN($AG$48))*(1-$AJ$50))))*(('Surface Solar Azimuth Angles'!CV25*$DU$3)+1-$DU$3) -> 0 | DT26: =(IF($AH$46<DEGREES(CR26),0+$AJ$50,1-((TAN(CR26)/TAN($AG$48))*(1-$AJ$50))))*(('Surface Solar Azimuth Angles'!CW25*$DU$3)+1-$DU$3) -> 0 | DW26: ='Profile angles'!AR26 -> 22 | DX26: ='Profile angles'!AS26 -> -57.73053686 | DY26: ='Profile angles'!AT26 -> -53.71246655 | DZ26: ='Profile angles'!AU26 -> -49.13064045 | EA26: ='Profile angles'!AV26 -> -42.20223294 | EB26: ='Profile angles'!AW26 -> -35.85393309 | EC26: ='Profile angles'!AX26 -> -32.64996995 | ED26: ='Profile angles'!AY26 -> -34.37719592 | EE26: ='Profile angles'!AZ26 -> -41.49713128 | EF26: ='Profile angles'!BA26 -> -51.95406447 | EG26: ='Profile angles'!BB26 -> -60.03019451 | EH26: ='Profile angles'!BC26 -> -63.39993966 | EI26: ='Profile angles'!BD26 -> -61.38133008 | EK26: 22 | EL26: -57.73053686 | EM26: -53.71246655 | EN26: -49.13064045 | EO26: -42.20223294 | EP26: -35.85393309 | EQ26: -32.64996995 | ER26: -34.37719592 | ES26: -41.49713128 | ET26: -51.95406447 | EU26: -60.03019451 | EV26: -63.39993966 | EW26: -61.38133008
B27: 23 | C27: =IF($T$36="y",'Dry Bulb'!D27-C358,'Dry Bulb'!D27-C242) -> -7.399193206 | D27: =IF($T$36="y",'Dry Bulb'!E27-D358,'Dry Bulb'!E27-D242) -> -3.079193206 | E27: =IF($T$36="y",'Dry Bulb'!F27-E358,'Dry Bulb'!F27-E242) -> -4.472629639 | F27: =IF($T$36="y",'Dry Bulb'!G27-F358,'Dry Bulb'!G27-F242) -> 5.930799406 | G27: =IF($T$36="y",'Dry Bulb'!H27-G358,'Dry Bulb'!H27-G242) -> 17.82080679 | H27: =IF($T$36="y",'Dry Bulb'!I27-H358,'Dry Bulb'!I27-H242) -> 22.86080679 | I27: =IF($T$36="y",'Dry Bulb'!J27-I358,'Dry Bulb'!J27-I242) -> 23.04080679 | J27: =IF($T$36="y",'Dry Bulb'!K27-J358,'Dry Bulb'!K27-J242) -> 24.66080679 | K27: =IF($T$36="y",'Dry Bulb'!L27-K358,'Dry Bulb'!L27-K242) -> 18.90080679 | L27: =IF($T$36="y",'Dry Bulb'!M27-L358,'Dry Bulb'!M27-L242) -> 9.91509138 | M27: =IF($T$36="y",'Dry Bulb'!N27-M358,'Dry Bulb'!N27-M242) -> -3.808580977 | N27: =IF($T$36="y",'Dry Bulb'!O27-N358,'Dry Bulb'!O27-N242) -> -6.319193206 | T27: 200 | X27: 2 | AC27: ='HVAC Dashboard'!AC38 -> 1 | AF27: Tanδ = | AH27: =IF(X22>0,W23/X22,99999999) -> 1.428571429 | AP27: ='Incident angle'!BI27 -> 23 | AQ27: ='Incident angle'!BJ27 -> 0 | AR27: ='Incident angle'!BK27 -> 0 | AS27: ='Incident angle'!BL27 -> 0 | AT27: ='Incident angle'!BM27 -> 0 | AU27: ='Incident angle'!BN27 -> 0 | AV27: ='Incident angle'!BO27 -> 0 | AW27: ='Incident angle'!BP27 -> 0 | AX27: ='Incident angle'!BQ27 -> 0 | AY27: ='Incident angle'!BR27 -> 0 | AZ27: ='Incident angle'!BS27 -> 0 | BA27: ='Incident angle'!BT27 -> 0 | BB27: ='Incident angle'!BU27 -> 0 | BD27: ='Incident angle'!BW27 -> 23 | BE27: ='Incident angle'!BX27 -> 0 | BF27: ='Incident angle'!BY27 -> 0 | BG27: ='Incident angle'!BZ27 -> 0 | BH27: ='Incident angle'!CA27 -> 0 | BI27: ='Incident angle'!CB27 -> 0 | BJ27: ='Incident angle'!CC27 -> 0 | BK27: ='Incident angle'!CD27 -> 0 | BL27: ='Incident angle'!CE27 -> 0 | BM27: ='Incident angle'!CF27 -> 0 | BN27: ='Incident angle'!CG27 -> 0 | BO27: ='Incident angle'!CH27 -> 0 | BP27: ='Incident angle'!CI27 -> 0 | BR27: ='Profile angles'!B27 -> 23 | BS27: =RADIANS('Profile angles'!C27) -> 1.506529501 | BT27: =RADIANS('Profile angles'!D27) -> 1.336600175 | BU27: =RADIANS('Profile angles'!E27) -> 1.139700002 | BV27: =RADIANS('Profile angles'!F27) -> 0.9233468821 | BW27: =RADIANS('Profile angles'!G27) -> 0.7724190792 | BX27: =RADIANS('Profile angles'!H27) -> 0.7135916163 | BY27: =RADIANS('Profile angles'!I27) -> 0.7644833425 | BZ27: =RADIANS('Profile angles'!J27) -> 0.9187268971 | CA27: =RADIANS('Profile angles'!K27) -> 1.139700002 | CB27: =RADIANS('Profile angles'!L27) -> 1.331194661 | CC27: =RADIANS('Profile angles'!M27) -> 1.495858035 | CD27: =RADIANS('Profile angles'!N27) -> 1.564326745 | CF27: ='Profile angles'!B56 -> 23 | CG27: =RADIANS('Profile angles'!C56) -> 1.24954884 | CH27: =RADIANS('Profile angles'!D56) -> 1.214560567 | CI27: =RADIANS('Profile angles'!E56) -> 1.214942736 | CJ27: =RADIANS('Profile angles'!F56) -> 1.222671067 | CK27: =RADIANS('Profile angles'!G56) -> 1.205526688 | CL27: =RADIANS('Profile angles'!H56) -> 1.165661278 | CM27: =RADIANS('Profile angles'!I56) -> 1.151749738 | CN27: =RADIANS('Profile angles'!J56) -> 1.203901306 | CO27: =RADIANS('Profile angles'!K56) -> 1.285731003 | CP27: =RADIANS('Profile angles'!L56) -> 1.342758031 | CQ27: =RADIANS('Profile angles'!M56) -> 1.351618847 | CR27: =RADIANS('Profile angles'!N56) -> 1.309046407 | CT27: ='Profile angles'!AD27 -> 23 | CU27: =(IF($AH$12<DEGREES(BS27),0+$AJ$16,1-((TAN(BS27)/TAN($AG$14))*(1-$AJ$16))))*(('Surface Solar Azimuth Angles'!BX26*$DU$3)+1-$DU$3) -> 0 | CV27: =(IF($AH$12<DEGREES(BT27),0+$AJ$16,1-((TAN(BT27)/TAN($AG$14))*(1-$AJ$16))))*(('Surface Solar Azimuth Angles'!BY26*$DU$3)+1-$DU$3) -> 0 | CW27: =(IF($AH$12<DEGREES(BU27),0+$AJ$16,1-((TAN(BU27)/TAN($AG$14))*(1-$AJ$16))))*(('Surface Solar Azimuth Angles'!BZ26*$DU$3)+1-$DU$3) -> 0 | CX27: =(IF($AH$12<DEGREES(BV27),0+$AJ$16,1-((TAN(BV27)/TAN($AG$14))*(1-$AJ$16))))*(('Surface Solar Azimuth Angles'!CA26*$DU$3)+1-$DU$3) -> 0.05647408042 | CY27: =(IF($AH$12<DEGREES(BW27),0+$AJ$16,1-((TAN(BW27)/TAN($AG$14))*(1-$AJ$16))))*(('Surface Solar Azimuth Angles'!CB26*$DU$3)+1-$DU$3) -> 0.2587020234 | CZ27: =(IF($AH$12<DEGREES(BX27),0+$AJ$16,1-((TAN(BX27)/TAN($AG$14))*(1-$AJ$16))))*(('Surface Solar Azimuth Angles'!CC26*$DU$3)+1-$DU$3) -> 0.3208082834 | DA27: =(IF($AH$12<DEGREES(BY27),0+$AJ$16,1-((TAN(BY27)/TAN($AG$14))*(1-$AJ$16))))*(('Surface Solar Azimuth Angles'!CD26*$DU$3)+1-$DU$3) -> 0.2584817505 | DB27: =(IF($AH$12<DEGREES(BZ27),0+$AJ$16,1-((TAN(BZ27)/TAN($AG$14))*(1-$AJ$16))))*(('Surface Solar Azimuth Angles'!CE26*$DU$3)+1-$DU$3) -> 0.06221535311 | DC27: =(IF($AH$12<DEGREES(CA27),0+$AJ$16,1-((TAN(CA27)/TAN($AG$14))*(1-$AJ$16))))*(('Surface Solar Azimuth Angles'!CF26*$DU$3)+1-$DU$3) -> 0 | DD27: =(IF($AH$12<DEGREES(CB27),0+$AJ$16,1-((TAN(CB27)/TAN($AG$14))*(1-$AJ$16))))*(('Surface Solar Azimuth Angles'!CG26*$DU$3)+1-$DU$3) -> 0 | DE27: =(IF($AH$12<DEGREES(CC27),0+$AJ$16,1-((TAN(CC27)/TAN($AG$14))*(1-$AJ$16))))*(('Surface Solar Azimuth Angles'!CH26*$DU$3)+1-$DU$3) -> 0 | DF27: =(IF($AH$12<DEGREES(CD27),0+$AJ$16,1-((TAN(CD27)/TAN($AG$14))*(1-$AJ$16))))*(('Surface Solar Azimuth Angles'!CI26*$DU$3)+1-$DU$3) -> 0 | DH27: 23 | DI27: =(IF($AH$46<DEGREES(CG27),0+$AJ$50,1-((TAN(CG27)/TAN($AG$48))*(1-$AJ$50))))*(('Surface Solar Azimuth Angles'!CL26*$DU$3)+1-$DU$3) -> 0 | DJ27: =(IF($AH$46<DEGREES(CH27),0+$AJ$50,1-((TAN(CH27)/TAN($AG$48))*(1-$AJ$50))))*(('Surface Solar Azimuth Angles'!CM26*$DU$3)+1-$DU$3) -> 0 | DK27: =(IF($AH$46<DEGREES(CI27),0+$AJ$50,1-((TAN(CI27)/TAN($AG$48))*(1-$AJ$50))))*(('Surface Solar Azimuth Angles'!CN26*$DU$3)+1-$DU$3) -> 0 | DL27: =(IF($AH$46<DEGREES(CJ27),0+$AJ$50,1-((TAN(CJ27)/TAN($AG$48))*(1-$AJ$50))))*(('Surface Solar Azimuth Angles'!CO26*$DU$3)+1-$DU$3) -> 0 | DM27: =(IF($AH$46<DEGREES(CK27),0+$AJ$50,1-((TAN(CK27)/TAN($AG$48))*(1-$AJ$50))))*(('Surface Solar Azimuth Angles'!CP26*$DU$3)+1-$DU$3) -> 0 | DN27: =(IF($AH$46<DEGREES(CL27),0+$AJ$50,1-((TAN(CL27)/TAN($AG$48))*(1-$AJ$50))))*(('Surface Solar Azimuth Angles'!CQ26*$DU$3)+1-$DU$3) -> 0 | DO27: =(IF($AH$46<DEGREES(CM27),0+$AJ$50,1-((TAN(CM27)/TAN($AG$48))*(1-$AJ$50))))*(('Surface Solar Azimuth Angles'!CR26*$DU$3)+1-$DU$3) -> 0 | DP27: =(IF($AH$46<DEGREES(CN27),0+$AJ$50,1-((TAN(CN27)/TAN($AG$48))*(1-$AJ$50))))*(('Surface Solar Azimuth Angles'!CS26*$DU$3)+1-$DU$3) -> 0 | DQ27: =(IF($AH$46<DEGREES(CO27),0+$AJ$50,1-((TAN(CO27)/TAN($AG$48))*(1-$AJ$50))))*(('Surface Solar Azimuth Angles'!CT26*$DU$3)+1-$DU$3) -> 0 | DR27: =(IF($AH$46<DEGREES(CP27),0+$AJ$50,1-((TAN(CP27)/TAN($AG$48))*(1-$AJ$50))))*(('Surface Solar Azimuth Angles'!CU26*$DU$3)+1-$DU$3) -> 0 | DS27: =(IF($AH$46<DEGREES(CQ27),0+$AJ$50,1-((TAN(CQ27)/TAN($AG$48))*(1-$AJ$50))))*(('Surface Solar Azimuth Angles'!CV26*$DU$3)+1-$DU$3) -> 0 | DT27: =(IF($AH$46<DEGREES(CR27),0+$AJ$50,1-((TAN(CR27)/TAN($AG$48))*(1-$AJ$50))))*(('Surface Solar Azimuth Angles'!CW26*$DU$3)+1-$DU$3) -> 0 | DW27: ='Profile angles'!AR27 -> 23 | DX27: ='Profile angles'!AS27 -> -71.27641367 | DY27: ='Profile angles'!AT27 -> -66.15346599 | DZ27: ='Profile angles'!AU27 -> -59.40200953 | EA27: ='Profile angles'!AV27 -> -50.01138655 | EB27: ='Profile angles'!AW27 -> -42.39742803 | EC27: ='Profile angles'!AX27 -> -39.06449242 | ED27: ='Profile angles'!AY27 -> -41.4098646 | EE27: ='Profile angles'!AZ27 -> -49.4782338 | EF27: ='Profile angles'!BA27 -> -61.39325117 | EG27: ='Profile angles'!BB27 -> -71.37849968 | EH27: ='Profile angles'!BC27 -> -76.77174756 | EI27: ='Profile angles'!BD27 -> -74.99865869 | EK27: 23 | EL27: -71.27641367 | EM27: -66.15346599 | EN27: -59.40200953 | EO27: -50.01138655 | EP27: -42.39742803 | EQ27: -39.06449242 | ER27: -41.4098646 | ES27: -49.4782338 | ET27: -61.39325117 | EU27: -71.37849968 | EV27: -76.77174756 | EW27: -74.99865869
B28: 24 | C28: =IF($T$36="y",'Dry Bulb'!D28-C359,'Dry Bulb'!D28-C243) -> -8.299193206 | D28: =IF($T$36="y",'Dry Bulb'!E28-D359,'Dry Bulb'!E28-D243) -> -4.699193206 | E28: =IF($T$36="y",'Dry Bulb'!F28-E359,'Dry Bulb'!F28-E243) -> -6.243426072 | F28: =IF($T$36="y",'Dry Bulb'!G28-F359,'Dry Bulb'!G28-F243) -> 4.160002972 | G28: =IF($T$36="y",'Dry Bulb'!H28-G359,'Dry Bulb'!H28-G243) -> 16.20080679 | H28: =IF($T$36="y",'Dry Bulb'!I28-H359,'Dry Bulb'!I28-H243) -> 21.06080679 | I28: =IF($T$36="y",'Dry Bulb'!J28-I359,'Dry Bulb'!J28-I243) -> 21.78080679 | J28: =IF($T$36="y",'Dry Bulb'!K28-J359,'Dry Bulb'!K28-J243) -> 22.86080679 | K28: =IF($T$36="y",'Dry Bulb'!L28-K359,'Dry Bulb'!L28-K243) -> 17.28080679 | L28: =IF($T$36="y",'Dry Bulb'!M28-L359,'Dry Bulb'!M28-L243) -> 8.144294947 | M28: =IF($T$36="y",'Dry Bulb'!N28-M359,'Dry Bulb'!N28-M243) -> -5.358027856 | N28: =IF($T$36="y",'Dry Bulb'!O28-N359,'Dry Bulb'!O28-N243) -> -7.939193206 | P28: South Window | R28: Adiabatic? | T28: ft2/person | X28: 3 | AH28: δ= | AI28: =ATAN(AH27) -> 0.9600703624 | AP28: ='Incident angle'!BI28 -> 24 | AQ28: ='Incident angle'!BJ28 -> 0 | AR28: ='Incident angle'!BK28 -> 0 | AS28: ='Incident angle'!BL28 -> 0 | AT28: ='Incident angle'!BM28 -> 0 | AU28: ='Incident angle'!BN28 -> 0 | AV28: ='Incident angle'!BO28 -> 0 | AW28: ='Incident angle'!BP28 -> 0 | AX28: ='Incident angle'!BQ28 -> 0 | AY28: ='Incident angle'!BR28 -> 0 | AZ28: ='Incident angle'!BS28 -> 0 | BA28: ='Incident angle'!BT28 -> 0 | BB28: ='Incident angle'!BU28 -> 0 | BD28: ='Incident angle'!BW28 -> 24 | BE28: ='Incident angle'!BX28 -> 0 | BF28: ='Incident angle'!BY28 -> 0 | BG28: ='Incident angle'!BZ28 -> 0 | BH28: ='Incident angle'!CA28 -> 0 | BI28: ='Incident angle'!CB28 -> 0 | BJ28: ='Incident angle'!CC28 -> 0 | BK28: ='Incident angle'!CD28 -> 0 | BL28: ='Incident angle'!CE28 -> 0 | BM28: ='Incident angle'!CF28 -> 0 | BN28: ='Incident angle'!CG28 -> 0 | BO28: ='Incident angle'!CH28 -> 0 | BP28: ='Incident angle'!CI28 -> 0 | BR28: ='Profile angles'!B28 -> 24 | BS28: =RADIANS('Profile angles'!C28) -> 1.488046907 | BT28: =RADIANS('Profile angles'!D28) -> 1.325468938 | BU28: =RADIANS('Profile angles'!E28) -> 1.139700002 | BV28: =RADIANS('Profile angles'!F28) -> 0.9319358846 | BW28: =RADIANS('Profile angles'!G28) -> 0.7853526435 | BX28: =RADIANS('Profile angles'!H28) -> 0.7301671088 | BY28: =RADIANS('Profile angles'!I28) -> 0.7813517059 | BZ28: =RADIANS('Profile angles'!J28) -> 0.9283377172 | CA28: =RADIANS('Profile angles'!K28) -> 1.139700002 | CB28: =RADIANS('Profile angles'!L28) -> 1.326568974 | CC28: =RADIANS('Profile angles'!M28) -> 1.487155973 | CD28: =RADIANS('Profile angles'!N28) -> 1.549086138 | CF28: ='Profile angles'!B57 -> 24 | CG28: =RADIANS('Profile angles'!C57) -> 1.495330739 | CH28: =RADIANS('Profile angles'!D57) -> 1.477822995 | CI28: =RADIANS('Profile angles'!E57) -> 1.500536497 | CJ28: =RADIANS('Profile angles'!F57) -> 1.538712206 | CK28: =RADIANS('Profile angles'!G57) -> 1.548612213 | CL28: =RADIANS('Profile angles'!H57) -> 1.51961047 | CM28: =RADIANS('Profile angles'!I57) -> 1.493500307 | CN28: =RADIANS('Profile angles'!J57) -> 1.52001126 | CO28: =RADIANS('Profile angles'!K57) -> 1.569035325 | CP28: =RADIANS('Profile angles'!L57) -> 1.534270613 | CQ28: =RADIANS('Profile angles'!M57) -> 1.543348998 | CR28: =RADIANS('Profile angles'!N57) -> 1.548641813 | CT28: ='Profile angles'!AD28 -> 24 | CU28: =(IF($AH$12<DEGREES(BS28),0+$AJ$16,1-((TAN(BS28)/TAN($AG$14))*(1-$AJ$16))))*(('Surface Solar Azimuth Angles'!BX27*$DU$3)+1-$DU$3) -> 0 | CV28: =(IF($AH$12<DEGREES(BT28),0+$AJ$16,1-((TAN(BT28)/TAN($AG$14))*(1-$AJ$16))))*(('Surface Solar Azimuth Angles'!BY27*$DU$3)+1-$DU$3) -> 0 | CW28: =(IF($AH$12<DEGREES(BU28),0+$AJ$16,1-((TAN(BU28)/TAN($AG$14))*(1-$AJ$16))))*(('Surface Solar Azimuth Angles'!BZ27*$DU$3)+1-$DU$3) -> 0 | CX28: =(IF($AH$12<DEGREES(BV28),0+$AJ$16,1-((TAN(BV28)/TAN($AG$14))*(1-$AJ$16))))*(('Surface Solar Azimuth Angles'!CA27*$DU$3)+1-$DU$3) -> 0.05634274173 | CY28: =(IF($AH$12<DEGREES(BW28),0+$AJ$16,1-((TAN(BW28)/TAN($AG$14))*(1-$AJ$16))))*(('Surface Solar Azimuth Angles'!CB27*$DU$3)+1-$DU$3) -> 0.2967351581 | CZ28: =(IF($AH$12<DEGREES(BX28),0+$AJ$16,1-((TAN(BX28)/TAN($AG$14))*(1-$AJ$16))))*(('Surface Solar Azimuth Angles'!CC27*$DU$3)+1-$DU$3) -> 0.3647857078 | DA28: =(IF($AH$12<DEGREES(BY28),0+$AJ$16,1-((TAN(BY28)/TAN($AG$14))*(1-$AJ$16))))*(('Surface Solar Azimuth Angles'!CD27*$DU$3)+1-$DU$3) -> 0.2939015969 | DB28: =(IF($AH$12<DEGREES(BZ28),0+$AJ$16,1-((TAN(BZ28)/TAN($AG$14))*(1-$AJ$16))))*(('Surface Solar Azimuth Angles'!CE27*$DU$3)+1-$DU$3) -> 0.06244172737 | DC28: =(IF($AH$12<DEGREES(CA28),0+$AJ$16,1-((TAN(CA28)/TAN($AG$14))*(1-$AJ$16))))*(('Surface Solar Azimuth Angles'!CF27*$DU$3)+1-$DU$3) -> 0 | DD28: =(IF($AH$12<DEGREES(CB28),0+$AJ$16,1-((TAN(CB28)/TAN($AG$14))*(1-$AJ$16))))*(('Surface Solar Azimuth Angles'!CG27*$DU$3)+1-$DU$3) -> 0 | DE28: =(IF($AH$12<DEGREES(CC28),0+$AJ$16,1-((TAN(CC28)/TAN($AG$14))*(1-$AJ$16))))*(('Surface Solar Azimuth Angles'!CH27*$DU$3)+1-$DU$3) -> 0 | DF28: =(IF($AH$12<DEGREES(CD28),0+$AJ$16,1-((TAN(CD28)/TAN($AG$14))*(1-$AJ$16))))*(('Surface Solar Azimuth Angles'!CI27*$DU$3)+1-$DU$3) -> 0 | DH28: 24 | DI28: =(IF($AH$46<DEGREES(CG28),0+$AJ$50,1-((TAN(CG28)/TAN($AG$48))*(1-$AJ$50))))*(('Surface Solar Azimuth Angles'!CL27*$DU$3)+1-$DU$3) -> 0 | DJ28: =(IF($AH$46<DEGREES(CH28),0+$AJ$50,1-((TAN(CH28)/TAN($AG$48))*(1-$AJ$50))))*(('Surface Solar Azimuth Angles'!CM27*$DU$3)+1-$DU$3) -> 0 | DK28: =(IF($AH$46<DEGREES(CI28),0+$AJ$50,1-((TAN(CI28)/TAN($AG$48))*(1-$AJ$50))))*(('Surface Solar Azimuth Angles'!CN27*$DU$3)+1-$DU$3) -> 0 | DL28: =(IF($AH$46<DEGREES(CJ28),0+$AJ$50,1-((TAN(CJ28)/TAN($AG$48))*(1-$AJ$50))))*(('Surface Solar Azimuth Angles'!CO27*$DU$3)+1-$DU$3) -> 0 | DM28: =(IF($AH$46<DEGREES(CK28),0+$AJ$50,1-((TAN(CK28)/TAN($AG$48))*(1-$AJ$50))))*(('Surface Solar Azimuth Angles'!CP27*$DU$3)+1-$DU$3) -> 0 | DN28: =(IF($AH$46<DEGREES(CL28),0+$AJ$50,1-((TAN(CL28)/TAN($AG$48))*(1-$AJ$50))))*(('Surface Solar Azimuth Angles'!CQ27*$DU$3)+1-$DU$3) -> 0 | DO28: =(IF($AH$46<DEGREES(CM28),0+$AJ$50,1-((TAN(CM28)/TAN($AG$48))*(1-$AJ$50))))*(('Surface Solar Azimuth Angles'!CR27*$DU$3)+1-$DU$3) -> 0 | DP28: =(IF($AH$46<DEGREES(CN28),0+$AJ$50,1-((TAN(CN28)/TAN($AG$48))*(1-$AJ$50))))*(('Surface Solar Azimuth Angles'!CS27*$DU$3)+1-$DU$3) -> 0 | DQ28: =(IF($AH$46<DEGREES(CO28),0+$AJ$50,1-((TAN(CO28)/TAN($AG$48))*(1-$AJ$50))))*(('Surface Solar Azimuth Angles'!CT27*$DU$3)+1-$DU$3) -> 0 | DR28: =(IF($AH$46<DEGREES(CP28),0+$AJ$50,1-((TAN(CP28)/TAN($AG$48))*(1-$AJ$50))))*(('Surface Solar Azimuth Angles'!CU27*$DU$3)+1-$DU$3) -> 0 | DS28: =(IF($AH$46<DEGREES(CQ28),0+$AJ$50,1-((TAN(CQ28)/TAN($AG$48))*(1-$AJ$50))))*(('Surface Solar Azimuth Angles'!CV27*$DU$3)+1-$DU$3) -> 0 | DT28: =(IF($AH$46<DEGREES(CR28),0+$AJ$50,1-((TAN(CR28)/TAN($AG$48))*(1-$AJ$50))))*(('Surface Solar Azimuth Angles'!CW27*$DU$3)+1-$DU$3) -> 0 | DW28: ='Profile angles'!AR28 -> 24 | DX28: ='Profile angles'!AS28 -> -83.59648489 | DY28: ='Profile angles'!AT28 -> -75.04169158 | DZ28: ='Profile angles'!AU28 -> -65.04737181 | EA28: ='Profile angles'!AV28 -> -53.37040969 | EB28: ='Profile angles'!AW28 -> -44.99034329 | EC28: ='Profile angles'!AX28 -> -41.80558183 | ED28: ='Profile angles'!AY28 -> -44.68386408 | EE28: ='Profile angles'!AZ28 -> -53.12656382 | EF28: ='Profile angles'!BA28 -> -65.29984057 | EG28: ='Profile angles'!BB28 -> -75.86313193 | EH28: ='Profile angles'!BC28 -> -84.95860171 | EI28: ='Profile angles'!BD28 -> -88.22304877 | EK28: 24 | EL28: -83.59648489 | EM28: -75.04169158 | EN28: -65.04737181 | EO28: -53.37040969 | EP28: -44.99034329 | EQ28: -41.80558183 | ER28: -44.68386408 | ES28: -53.12656382 | ET28: -65.29984057 | EU28: -75.86313193 | EV28: -84.95860171 | EW28: -88.22304877
B29: Heating & Cooling Load(KBTUs) | P29: Area | Q29: =Q32*'Input Data'!F21*'Input Data'!F19 -> 270 | T29: =P3*P6*T9/T27 -> 4.5 | X29: 4 | AF29: Shade Angle δ= | AH29: =DEGREES(AI28) -> 55.0079798
B30: HR | C30: Jan | D30: Feb | E30: Mar | F30: Apr | G30: May | H30: Jun | I30: Jul | J30: Aug | K30: Sep | L30: Oct | M30: Nov | N30: Dec | P30: Glass SHGC | Q30: 0.22 | X30: 5 | AP30: ='Incident angle'!BI58 -> West Transmitted | BD30: ='Incident angle'!BW58 -> North Transmitted | BR30: West Profile | CF30: North Profile | CT30: =IF($P$17>45,"South SC","West SC") -> West SC | DH30: =IF($P$17>45,"West SC","North SC") -> North SC | DW30: =DW3 -> Altitude | DX30: =DX3 -> 0 | DY30: 0 | DZ30: 0 | EA30: 0 | EB30: 0 | EC30: 0 | ED30: 0 | EE30: 0 | EF30: 0 | EG30: 0 | EH30: 0 | EI30: 0 | EK30: =EK3 -> Altitude | EL30: =EL3 -> 0 | EM30: 0 | EN30: 0 | EO30: 0 | EP30: 0 | EQ30: 0 | ER30: 0 | ES30: 0 | ET30: 0 | EU30: 0 | EV30: 0 | EW30: 0
B31: 1 | C31: =IF('Dry Bulb'!D5<60,(('Input Data'!$F$44*('Dry Bulb'!D5-$T$15))+('Heat gain from airflow'!Q4)+((Occupancy!P4*'Input Data'!$F$47)+(Occupancy!B4*'Input Data'!$F$49)))/1000,(('Input Data'!$F$44*('Dry Bulb'!D5-$P$15))+('Heat gain from airflow'!Q4)+((Occupancy!P4*'Input Data'!$F$47)+(Occupancy!B4*'Input Data'!$F$49))))/1000 -> -0.00535131 | D31: =IF('Dry Bulb'!E5<60,(('Input Data'!$F$44*('Dry Bulb'!E5-$T$15))+('Heat gain from airflow'!R4)+((Occupancy!Q4*'Input Data'!$F$47)+(Occupancy!C4*'Input Data'!$F$49)))/1000,(('Input Data'!$F$44*('Dry Bulb'!E5-$P$15))+('Heat gain from airflow'!R4)+((Occupancy!Q4*'Input Data'!$F$47)+(Occupancy!C4*'Input Data'!$F$49))))/1000 -> -0.0029668725 | E31: =IF('Dry Bulb'!F5<60,(('Input Data'!$F$44*('Dry Bulb'!F5-$T$15))+('Heat gain from airflow'!S4)+((Occupancy!R4*'Input Data'!$F$47)+(Occupancy!D4*'Input Data'!$F$49)))/1000,(('Input Data'!$F$44*('Dry Bulb'!F5-$P$15))+('Heat gain from airflow'!S4)+((Occupancy!R4*'Input Data'!$F$47)+(Occupancy!D4*'Input Data'!$F$49))))/1000 -> -3.0516525 | F31: =IF('Dry Bulb'!G5<60,(('Input Data'!$F$44*('Dry Bulb'!G5-$T$15))+('Heat gain from airflow'!T4)+((Occupancy!S4*'Input Data'!$F$47)+(Occupancy!E4*'Input Data'!$F$49)))/1000,(('Input Data'!$F$44*('Dry Bulb'!G5-$P$15))+('Heat gain from airflow'!T4)+((Occupancy!S4*'Input Data'!$F$47)+(Occupancy!E4*'Input Data'!$F$49))))/1000 -> 1.38326841 | G31: =IF('Dry Bulb'!H5<60,(('Input Data'!$F$44*('Dry Bulb'!H5-$T$15))+('Heat gain from airflow'!U4)+((Occupancy!T4*'Input Data'!$F$47)+(Occupancy!F4*'Input Data'!$F$49)))/1000,(('Input Data'!$F$44*('Dry Bulb'!H5-$P$15))+('Heat gain from airflow'!U4)+((Occupancy!T4*'Input Data'!$F$47)+(Occupancy!F4*'Input Data'!$F$49))))/1000 -> 7.726005 | H31: =IF('Dry Bulb'!I5<60,(('Input Data'!$F$44*('Dry Bulb'!I5-$T$15))+('Heat gain from airflow'!V4)+((Occupancy!U4*'Input Data'!$F$47)+(Occupancy!G4*'Input Data'!$F$49)))/1000,(('Input Data'!$F$44*('Dry Bulb'!I5-$P$15))+('Heat gain from airflow'!V4)+((Occupancy!U4*'Input Data'!$F$47)+(Occupancy!G4*'Input Data'!$F$49))))/1000 -> 10.396575 | I31: =IF('Dry Bulb'!J5<60,(('Input Data'!$F$44*('Dry Bulb'!J5-$T$15))+('Heat gain from airflow'!W4)+((Occupancy!V4*'Input Data'!$F$47)+(Occupancy!H4*'Input Data'!$F$49)))/1000,(('Input Data'!$F$44*('Dry Bulb'!J5-$P$15))+('Heat gain from airflow'!W4)+((Occupancy!V4*'Input Data'!$F$47)+(Occupancy!H4*'Input Data'!$F$49))))/1000 -> 11.0642175 | J31: =IF('Dry Bulb'!K5<60,(('Input Data'!$F$44*('Dry Bulb'!K5-$T$15))+('Heat gain from airflow'!X4)+((Occupancy!W4*'Input Data'!$F$47)+(Occupancy!I4*'Input Data'!$F$49)))/1000,(('Input Data'!$F$44*('Dry Bulb'!K5-$P$15))+('Heat gain from airflow'!X4)+((Occupancy!W4*'Input Data'!$F$47)+(Occupancy!I4*'Input Data'!$F$49))))/1000 -> 11.35035 | K31: =IF('Dry Bulb'!L5<60,(('Input Data'!$F$44*('Dry Bulb'!L5-$T$15))+('Heat gain from airflow'!Y4)+((Occupancy!X4*'Input Data'!$F$47)+(Occupancy!J4*'Input Data'!$F$49)))/1000,(('Input Data'!$F$44*('Dry Bulb'!L5-$P$15))+('Heat gain from airflow'!Y4)+((Occupancy!X4*'Input Data'!$F$47)+(Occupancy!J4*'Input Data'!$F$49))))/1000 -> 8.3936475 | L31: =IF('Dry Bulb'!M5<60,(('Input Data'!$F$44*('Dry Bulb'!M5-$T$15))+('Heat gain from airflow'!Z4)+((Occupancy!Y4*'Input Data'!$F$47)+(Occupancy!K4*'Input Data'!$F$49)))/1000,(('Input Data'!$F$44*('Dry Bulb'!M5-$P$15))+('Heat gain from airflow'!Z4)+((Occupancy!Y4*'Input Data'!$F$47)+(Occupancy!K4*'Input Data'!$F$49))))/1000 -> 3.377157525 | M31: =IF('Dry Bulb'!N5<60,(('Input Data'!$F$44*('Dry Bulb'!N5-$T$15))+('Heat gain from airflow'!AA4)+((Occupancy!Z4*'Input Data'!$F$47)+(Occupancy!L4*'Input Data'!$F$49)))/1000,(('Input Data'!$F$44*('Dry Bulb'!N5-$P$15))+('Heat gain from airflow'!AA4)+((Occupancy!Z4*'Input Data'!$F$47)+(Occupancy!L4*'Input Data'!$F$49))))/1000 -> -3.77738577 | N31: =IF('Dry Bulb'!O5<60,(('Input Data'!$F$44*('Dry Bulb'!O5-$T$15))+('Heat gain from airflow'!AB4)+((Occupancy!AA4*'Input Data'!$F$47)+(Occupancy!M4*'Input Data'!$F$49)))/1000,(('Input Data'!$F$44*('Dry Bulb'!O5-$P$15))+('Heat gain from airflow'!AB4)+((Occupancy!AA4*'Input Data'!$F$47)+(Occupancy!M4*'Input Data'!$F$49))))/1000 -> -0.0043021575 | P31: U-Value | Q31: 0.4 | R31: FALSE | T31: Equipment | X31: 6 | AG31: =RADIANS(AH29) -> 0.9600703624 | AP31: ='Incident angle'!BI59 -> 0 | AQ31: ='Incident angle'!BJ59 -> Jan | AR31: ='Incident angle'!BK59 -> Feb | AS31: ='Incident angle'!BL59 -> Mar | AT31: ='Incident angle'!BM59 -> Apr | AU31: ='Incident angle'!BN59 -> May | AV31: ='Incident angle'!BO59 -> Jun | AW31: ='Incident angle'!BP59 -> Jul | AX31: ='Incident angle'!BQ59 -> Aug | AY31: ='Incident angle'!BR59 -> Sep | AZ31: ='Incident angle'!BS59 -> Oct | BA31: ='Incident angle'!BT59 -> Nov | BB31: ='Incident angle'!BU59 -> Dec | BC31: Average | BD31: ='Incident angle'!BW59 -> 0 | BE31: ='Incident angle'!BX59 -> Jan | BF31: ='Incident angle'!BY59 -> Feb | BG31: ='Incident angle'!BZ59 -> Mar | BH31: ='Incident angle'!CA59 -> Apr | BI31: ='Incident angle'!CB59 -> May | BJ31: ='Incident angle'!CC59 -> Jun | BK31: ='Incident angle'!CD59 -> Jul | BL31: ='Incident angle'!CE59 -> Aug | BM31: ='Incident angle'!CF59 -> Sep | BN31: ='Incident angle'!CG59 -> Oct | BO31: ='Incident angle'!CH59 -> Nov | BP31: ='Incident angle'!CI59 -> Dec | BQ31: Average | BR31: ='Profile angles'!P4 -> HR | BS31: ='Profile angles'!Q4 -> Jan | BT31: ='Profile angles'!R4 -> Feb | BU31: ='Profile angles'!S4 -> Mar | BV31: ='Profile angles'!T4 -> Apr | BW31: ='Profile angles'!U4 -> May | BX31: ='Profile angles'!V4 -> Jun | BY31: ='Profile angles'!W4 -> Jul | BZ31: ='Profile angles'!X4 -> Aug | CA31: ='Profile angles'!Y4 -> Sep | CB31: ='Profile angles'!Z4 -> Oct | CC31: ='Profile angles'!AA4 -> Nov | CD31: ='Profile angles'!AB4 -> Dec | CF31: ='Profile angles'!P33 -> HR | CG31: ='Profile angles'!Q33 -> Jan | CH31: ='Profile angles'!R33 -> Feb | CI31: ='Profile angles'!S33 -> Mar | CJ31: ='Profile angles'!T33 -> Apr | CK31: ='Profile angles'!U33 -> May | CL31: ='Profile angles'!V33 -> Jun | CM31: ='Profile angles'!W33 -> Jul | CN31: ='Profile angles'!X33 -> Aug | CO31: ='Profile angles'!Y33 -> Sep | CP31: ='Profile angles'!Z33 -> Oct | CQ31: ='Profile angles'!AA33 -> Nov | CR31: ='Profile angles'!AB33 -> Dec | CT31: =CT4 -> HR | CU31: ='Profile angles'!AS4 -> Jan | CV31: ='Profile angles'!AT4 -> Feb | CW31: ='Profile angles'!AU4 -> Mar | CX31: ='Profile angles'!AV4 -> Apr | CY31: ='Profile angles'!AW4 -> May | CZ31: ='Profile angles'!AX4 -> Jun | DA31: ='Profile angles'!AY4 -> Jul | DB31: ='Profile angles'!AZ4 -> Aug | DC31: ='Profile angles'!BA4 -> Sep | DD31: ='Profile angles'!BB4 -> Oct | DE31: ='Profile angles'!BC4 -> Nov | DF31: ='Profile angles'!BD4 -> Dec | DH31: =CT31 -> HR | DI31: =CU31 -> Jan | DJ31: Feb | DK31: Mar | DL31: Apr | DM31: May | DN31: Jun | DO31: Jul | DP31: Aug | DQ31: Sep | DR31: Oct | DS31: Nov | DT31: Dec | DW31: =DW4 -> 0 | DX31: Jan | DY31: Feb | DZ31: Mar | EA31: Apr | EB31: May | EC31: Jun | ED31: Jul | EE31: Aug | EF31: Sep | EG31: Oct | EH31: Nov | EI31: Dec | EK31: =EK4 -> 0 | EL31: 0 | EM31: 0 | EN31: 0 | EO31: 0 | EP31: 0 | EQ31: 0 | ER31: 0 | ES31: 0 | ET31: 0 | EU31: 0 | EV31: 0 | EW31: 0
B32: 2 | C32: =IF('Dry Bulb'!D6<60,(('Input Data'!$F$44*('Dry Bulb'!D6-$T$15))+('Heat gain from airflow'!Q5)+((Occupancy!P5*'Input Data'!$F$47)+(Occupancy!B5*'Input Data'!$F$49)))/1000,(('Input Data'!$F$44*('Dry Bulb'!D6-$P$15))+('Heat gain from airflow'!Q5)+((Occupancy!P5*'Input Data'!$F$47)+(Occupancy!B5*'Input Data'!$F$49))))/1000 -> -0.0058281975 | D32: =IF('Dry Bulb'!E6<60,(('Input Data'!$F$44*('Dry Bulb'!E6-$T$15))+('Heat gain from airflow'!R5)+((Occupancy!Q5*'Input Data'!$F$47)+(Occupancy!C5*'Input Data'!$F$49)))/1000,(('Input Data'!$F$44*('Dry Bulb'!E6-$P$15))+('Heat gain from airflow'!R5)+((Occupancy!Q5*'Input Data'!$F$47)+(Occupancy!C5*'Input Data'!$F$49))))/1000 -> -0.0035391375 | E32: =IF('Dry Bulb'!F6<60,(('Input Data'!$F$44*('Dry Bulb'!F6-$T$15))+('Heat gain from airflow'!S5)+((Occupancy!R5*'Input Data'!$F$47)+(Occupancy!D5*'Input Data'!$F$49)))/1000,(('Input Data'!$F$44*('Dry Bulb'!F6-$P$15))+('Heat gain from airflow'!S5)+((Occupancy!R5*'Input Data'!$F$47)+(Occupancy!D5*'Input Data'!$F$49))))/1000 -> -3.719295 | F32: =IF('Dry Bulb'!G6<60,(('Input Data'!$F$44*('Dry Bulb'!G6-$T$15))+('Heat gain from airflow'!T5)+((Occupancy!S5*'Input Data'!$F$47)+(Occupancy!E5*'Input Data'!$F$49)))/1000,(('Input Data'!$F$44*('Dry Bulb'!G6-$P$15))+('Heat gain from airflow'!T5)+((Occupancy!S5*'Input Data'!$F$47)+(Occupancy!E5*'Input Data'!$F$49))))/1000 -> 0.67954284 | G32: =IF('Dry Bulb'!H6<60,(('Input Data'!$F$44*('Dry Bulb'!H6-$T$15))+('Heat gain from airflow'!U5)+((Occupancy!T5*'Input Data'!$F$47)+(Occupancy!F5*'Input Data'!$F$49)))/1000,(('Input Data'!$F$44*('Dry Bulb'!H6-$P$15))+('Heat gain from airflow'!U5)+((Occupancy!T5*'Input Data'!$F$47)+(Occupancy!F5*'Input Data'!$F$49))))/1000 -> 6.962985 | H32: =IF('Dry Bulb'!I6<60,(('Input Data'!$F$44*('Dry Bulb'!I6-$T$15))+('Heat gain from airflow'!V5)+((Occupancy!U5*'Input Data'!$F$47)+(Occupancy!G5*'Input Data'!$F$49)))/1000,(('Input Data'!$F$44*('Dry Bulb'!I6-$P$15))+('Heat gain from airflow'!V5)+((Occupancy!U5*'Input Data'!$F$47)+(Occupancy!G5*'Input Data'!$F$49))))/1000 -> 9.4428 | I32: =IF('Dry Bulb'!J6<60,(('Input Data'!$F$44*('Dry Bulb'!J6-$T$15))+('Heat gain from airflow'!W5)+((Occupancy!V5*'Input Data'!$F$47)+(Occupancy!H5*'Input Data'!$F$49)))/1000,(('Input Data'!$F$44*('Dry Bulb'!J6-$P$15))+('Heat gain from airflow'!W5)+((Occupancy!V5*'Input Data'!$F$47)+(Occupancy!H5*'Input Data'!$F$49))))/1000 -> 10.20582 | J32: =IF('Dry Bulb'!K6<60,(('Input Data'!$F$44*('Dry Bulb'!K6-$T$15))+('Heat gain from airflow'!X5)+((Occupancy!W5*'Input Data'!$F$47)+(Occupancy!I5*'Input Data'!$F$49)))/1000,(('Input Data'!$F$44*('Dry Bulb'!K6-$P$15))+('Heat gain from airflow'!X5)+((Occupancy!W5*'Input Data'!$F$47)+(Occupancy!I5*'Input Data'!$F$49))))/1000 -> 10.4919525 | K32: =IF('Dry Bulb'!L6<60,(('Input Data'!$F$44*('Dry Bulb'!L6-$T$15))+('Heat gain from airflow'!Y5)+((Occupancy!X5*'Input Data'!$F$47)+(Occupancy!J5*'Input Data'!$F$49)))/1000,(('Input Data'!$F$44*('Dry Bulb'!L6-$P$15))+('Heat gain from airflow'!Y5)+((Occupancy!X5*'Input Data'!$F$47)+(Occupancy!J5*'Input Data'!$F$49))))/1000 -> 7.4398725 | L32: =IF('Dry Bulb'!M6<60,(('Input Data'!$F$44*('Dry Bulb'!M6-$T$15))+('Heat gain from airflow'!Z5)+((Occupancy!Y5*'Input Data'!$F$47)+(Occupancy!K5*'Input Data'!$F$49)))/1000,(('Input Data'!$F$44*('Dry Bulb'!M6-$P$15))+('Heat gain from airflow'!Z5)+((Occupancy!Y5*'Input Data'!$F$47)+(Occupancy!K5*'Input Data'!$F$49))))/1000 -> 2.55614436 | M32: =IF('Dry Bulb'!N6<60,(('Input Data'!$F$44*('Dry Bulb'!N6-$T$15))+('Heat gain from airflow'!AA5)+((Occupancy!Z5*'Input Data'!$F$47)+(Occupancy!L5*'Input Data'!$F$49)))/1000,(('Input Data'!$F$44*('Dry Bulb'!N6-$P$15))+('Heat gain from airflow'!AA5)+((Occupancy!Z5*'Input Data'!$F$47)+(Occupancy!L5*'Input Data'!$F$49))))/1000 -> -3.4331625 | N32: =IF('Dry Bulb'!O6<60,(('Input Data'!$F$44*('Dry Bulb'!O6-$T$15))+('Heat gain from airflow'!AB5)+((Occupancy!AA5*'Input Data'!$F$47)+(Occupancy!M5*'Input Data'!$F$49)))/1000,(('Input Data'!$F$44*('Dry Bulb'!O6-$P$15))+('Heat gain from airflow'!AB5)+((Occupancy!AA5*'Input Data'!$F$47)+(Occupancy!M5*'Input Data'!$F$49))))/1000 -> -0.0046836675 | P32: WWR | Q32: =(Q33/20)*R32 -> 0.6 | R32: =IF(R31,0,1) -> 1 | T32: & Lights (w/sf) | X32: 7 | AP32: ='Incident angle'!BI60 -> 1 | AQ32: ='Incident angle'!BJ60 -> 0 | AR32: ='Incident angle'!BK60 -> 0 | AS32: ='Incident angle'!BL60 -> 0 | AT32: ='Incident angle'!BM60 -> 0 | AU32: ='Incident angle'!BN60 -> 0 | AV32: ='Incident angle'!BO60 -> 0 | AW32: ='Incident angle'!BP60 -> 0 | AX32: ='Incident angle'!BQ60 -> 0 | AY32: ='Incident angle'!BR60 -> 0 | AZ32: ='Incident angle'!BS60 -> 0 | BA32: ='Incident angle'!BT60 -> 0 | BB32: ='Incident angle'!BU60 -> 0 | BC32: =AVERAGEIF(AS32:AZ55,">0") -> 3213.723468 | BD32: ='Incident angle'!BW60 -> 1 | BE32: ='Incident angle'!BX60 -> 0 | BF32: ='Incident angle'!BY60 -> 0 | BG32: ='Incident angle'!BZ60 -> 0 | BH32: ='Incident angle'!CA60 -> 0 | BI32: ='Incident angle'!CB60 -> 0 | BJ32: ='Incident angle'!CC60 -> 0 | BK32: ='Incident angle'!CD60 -> 0 | BL32: ='Incident angle'!CE60 -> 0 | BM32: ='Incident angle'!CF60 -> 0 | BN32: ='Incident angle'!CG60 -> 0 | BO32: ='Incident angle'!CH60 -> 0 | BP32: ='Incident angle'!CI60 -> 0 | BQ32: =AVERAGEIF(BG32:BN55,">0") ->  | BR32: ='Profile angles'!P5 -> 1 | BS32: =RADIANS('Profile angles'!Q5) -> 1.399441038 | BT32: =RADIANS('Profile angles'!R5) -> 1.398722443 | BU32: =RADIANS('Profile angles'!S5) -> 1.353506719 | BV32: =RADIANS('Profile angles'!T5) -> 1.285475101 | BW32: =RADIANS('Profile angles'!U5) -> 1.248594041 | BX32: =RADIANS('Profile angles'!V5) -> 1.264621229 | BY32: =RADIANS('Profile angles'!W5) -> 1.301791763 | BZ32: =RADIANS('Profile angles'!X5) -> 1.303298802 | CA32: =RADIANS('Profile angles'!Y5) -> 1.282258212 | CB32: =RADIANS('Profile angles'!Z5) -> 1.270409941 | CC32: =RADIANS('Profile angles'!AA5) -> 1.297104038 | CD32: =RADIANS('Profile angles'!AB5) -> 1.353086868 | CF32: ='Profile angles'!P34 -> 1 | CG32: =RADIANS('Profile angles'!Q34) -> -1.492373321 | CH32: =RADIANS('Profile angles'!R34) -> -1.327348921 | CI32: =RADIANS('Profile angles'!S34) -> -1.139700002 | CJ32: =RADIANS('Profile angles'!T34) -> -0.9262866187 | CK32: =RADIANS('Profile angles'!U34) -> -0.7754133292 | CL32: =RADIANS('Profile angles'!V34) -> -0.7210558079 | CM32: =RADIANS('Profile angles'!W34) -> -0.775005626 | CN32: =RADIANS('Profile angles'!X34) -> -0.9234490993 | CO32: =RADIANS('Profile angles'!Y34) -> -1.139700002 | CP32: =RADIANS('Profile angles'!Z34) -> -1.33484066 | CQ32: =RADIANS('Profile angles'!AA34) -> -1.500983956 | CR32: =RADIANS('Profile angles'!AB34) -> -1.559489451 | CT32: ='Profile angles'!AR5 -> 1 | CU32: =(IF($AH$29<DEGREES(BS32),0+$AJ$33,1-((TAN(BS32)/TAN($AG$31))*(1-$AJ$33))))*(('Surface Solar Azimuth Angles'!BX58*$DU$3)+1-$DU$3) -> 0 | CV32: =(IF($AH$29<DEGREES(BT32),0+$AJ$33,1-((TAN(BT32)/TAN($AG$31))*(1-$AJ$33))))*(('Surface Solar Azimuth Angles'!BY58*$DU$3)+1-$DU$3) -> 0 | CW32: =(IF($AH$29<DEGREES(BU32),0+$AJ$33,1-((TAN(BU32)/TAN($AG$31))*(1-$AJ$33))))*(('Surface Solar Azimuth Angles'!BZ58*$DU$3)+1-$DU$3) -> 0 | CX32: =(IF($AH$29<DEGREES(BV32),0+$AJ$33,1-((TAN(BV32)/TAN($AG$31))*(1-$AJ$33))))*(('Surface Solar Azimuth Angles'!CA58*$DU$3)+1-$DU$3) -> 0 | CY32: =(IF($AH$29<DEGREES(BW32),0+$AJ$33,1-((TAN(BW32)/TAN($AG$31))*(1-$AJ$33))))*(('Surface Solar Azimuth Angles'!CB58*$DU$3)+1-$DU$3) -> 0 | CZ32: =(IF($AH$29<DEGREES(BX32),0+$AJ$33,1-((TAN(BX32)/TAN($AG$31))*(1-$AJ$33))))*(('Surface Solar Azimuth Angles'!CC58*$DU$3)+1-$DU$3) -> 0 | DA32: =(IF($AH$29<DEGREES(BY32),0+$AJ$33,1-((TAN(BY32)/TAN($AG$31))*(1-$AJ$33))))*(('Surface Solar Azimuth Angles'!CD58*$DU$3)+1-$DU$3) -> 0 | DB32: =(IF($AH$29<DEGREES(BZ32),0+$AJ$33,1-((TAN(BZ32)/TAN($AG$31))*(1-$AJ$33))))*(('Surface Solar Azimuth Angles'!CE58*$DU$3)+1-$DU$3) -> 0 | DC32: =(IF($AH$29<DEGREES(CA32),0+$AJ$33,1-((TAN(CA32)/TAN($AG$31))*(1-$AJ$33))))*(('Surface Solar Azimuth Angles'!CF58*$DU$3)+1-$DU$3) -> 0 | DD32: =(IF($AH$29<DEGREES(CB32),0+$AJ$33,1-((TAN(CB32)/TAN($AG$31))*(1-$AJ$33))))*(('Surface Solar Azimuth Angles'!CG58*$DU$3)+1-$DU$3) -> 0 | DE32: =(IF($AH$29<DEGREES(CC32),0+$AJ$33,1-((TAN(CC32)/TAN($AG$31))*(1-$AJ$33))))*(('Surface Solar Azimuth Angles'!CH58*$DU$3)+1-$DU$3) -> 0 | DF32: =(IF($AH$29<DEGREES(CD32),0+$AJ$33,1-((TAN(CD32)/TAN($AG$31))*(1-$AJ$33))))*(('Surface Solar Azimuth Angles'!CI58*$DU$3)+1-$DU$3) -> 0 | DH32: =CT32 -> 1 | DI32: =(IF($AH$12<DEGREES(CG32),0+$AJ$16,1-((TAN(CG32)/TAN($AG$14))*(1-$AJ$16))))*(('Surface Solar Azimuth Angles'!CL58*$DU$3)+1-$DU$3) -> 0 | DJ32: =(IF($AH$12<DEGREES(CH32),0+$AJ$16,1-((TAN(CH32)/TAN($AG$14))*(1-$AJ$16))))*(('Surface Solar Azimuth Angles'!CM58*$DU$3)+1-$DU$3) -> 2.482447532 | DK32: =(IF($AH$12<DEGREES(CI32),0+$AJ$16,1-((TAN(CI32)/TAN($AG$14))*(1-$AJ$16))))*(('Surface Solar Azimuth Angles'!CN58*$DU$3)+1-$DU$3) -> 1.91665129 | DL32: =(IF($AH$12<DEGREES(CJ32),0+$AJ$16,1-((TAN(CJ32)/TAN($AG$14))*(1-$AJ$16))))*(('Surface Solar Azimuth Angles'!CO58*$DU$3)+1-$DU$3) -> 1.554487721 | DM32: =(IF($AH$12<DEGREES(CK32),0+$AJ$16,1-((TAN(CK32)/TAN($AG$14))*(1-$AJ$16))))*(('Surface Solar Azimuth Angles'!CP58*$DU$3)+1-$DU$3) -> 1.410274328 | DN32: =(IF($AH$12<DEGREES(CL32),0+$AJ$16,1-((TAN(CL32)/TAN($AG$14))*(1-$AJ$16))))*(('Surface Solar Azimuth Angles'!CQ58*$DU$3)+1-$DU$3) -> 1.390860398 | DO32: =(IF($AH$12<DEGREES(CM32),0+$AJ$16,1-((TAN(CM32)/TAN($AG$14))*(1-$AJ$16))))*(('Surface Solar Azimuth Angles'!CR58*$DU$3)+1-$DU$3) -> 1.458030733 | DP32: =(IF($AH$12<DEGREES(CN32),0+$AJ$16,1-((TAN(CN32)/TAN($AG$14))*(1-$AJ$16))))*(('Surface Solar Azimuth Angles'!CS58*$DU$3)+1-$DU$3) -> 1.576817078 | DQ32: =(IF($AH$12<DEGREES(CO32),0+$AJ$16,1-((TAN(CO32)/TAN($AG$14))*(1-$AJ$16))))*(('Surface Solar Azimuth Angles'!CT58*$DU$3)+1-$DU$3) -> 1.708169725 | DR32: =(IF($AH$12<DEGREES(CP32),0+$AJ$16,1-((TAN(CP32)/TAN($AG$14))*(1-$AJ$16))))*(('Surface Solar Azimuth Angles'!CU58*$DU$3)+1-$DU$3) -> 1.391805296 | DS32: =(IF($AH$12<DEGREES(CQ32),0+$AJ$16,1-((TAN(CQ32)/TAN($AG$14))*(1-$AJ$16))))*(('Surface Solar Azimuth Angles'!CV58*$DU$3)+1-$DU$3) -> 0 | DT32: =(IF($AH$12<DEGREES(CR32),0+$AJ$16,1-((TAN(CR32)/TAN($AG$14))*(1-$AJ$16))))*(('Surface Solar Azimuth Angles'!CW58*$DU$3)+1-$DU$3) -> 0 | DW32: 1 | DX32: -79.23874526 | DY32: -73.13589021 | DZ32: -62.96975399 | EA32: -51.10381574 | EB32: -42.97242076 | EC32: -40.25983897 | ED32: -43.39732666 | EE32: -51.19481394 | EF32: -61.30334442 | EG32: -68.58875693 | EH32: -73.86405782 | EI32: -77.51039292 | EK32: 1 | EL32: -79.23874526 | EM32: -73.13589021 | EN32: -62.96975399 | EO32: -51.10381574 | EP32: -42.97242076 | EQ32: -40.25983897 | ER32: -43.39732666 | ES32: -51.19481394 | ET32: -61.30334442 | EU32: -68.58875693 | EV32: -73.86405782 | EW32: -77.51039292
B33: 3 | C33: =IF('Dry Bulb'!D7<60,(('Input Data'!$F$44*('Dry Bulb'!D7-$T$15))+('Heat gain from airflow'!Q6)+((Occupancy!P6*'Input Data'!$F$47)+(Occupancy!B6*'Input Data'!$F$49)))/1000,(('Input Data'!$F$44*('Dry Bulb'!D7-$P$15))+('Heat gain from airflow'!Q6)+((Occupancy!P6*'Input Data'!$F$47)+(Occupancy!B6*'Input Data'!$F$49))))/1000 -> -0.00611433 | D33: =IF('Dry Bulb'!E7<60,(('Input Data'!$F$44*('Dry Bulb'!E7-$T$15))+('Heat gain from airflow'!R6)+((Occupancy!Q6*'Input Data'!$F$47)+(Occupancy!C6*'Input Data'!$F$49)))/1000,(('Input Data'!$F$44*('Dry Bulb'!E7-$P$15))+('Heat gain from airflow'!R6)+((Occupancy!Q6*'Input Data'!$F$47)+(Occupancy!C6*'Input Data'!$F$49))))/1000 -> -0.0041114025 | E33: =IF('Dry Bulb'!F7<60,(('Input Data'!$F$44*('Dry Bulb'!F7-$T$15))+('Heat gain from airflow'!S6)+((Occupancy!R6*'Input Data'!$F$47)+(Occupancy!D6*'Input Data'!$F$49)))/1000,(('Input Data'!$F$44*('Dry Bulb'!F7-$P$15))+('Heat gain from airflow'!S6)+((Occupancy!R6*'Input Data'!$F$47)+(Occupancy!D6*'Input Data'!$F$49))))/1000 -> -4.3869375 | F33: =IF('Dry Bulb'!G7<60,(('Input Data'!$F$44*('Dry Bulb'!G7-$T$15))+('Heat gain from airflow'!T6)+((Occupancy!S6*'Input Data'!$F$47)+(Occupancy!E6*'Input Data'!$F$49)))/1000,(('Input Data'!$F$44*('Dry Bulb'!G7-$P$15))+('Heat gain from airflow'!T6)+((Occupancy!S6*'Input Data'!$F$47)+(Occupancy!E6*'Input Data'!$F$49))))/1000 -> -0.02418273 | G33: =IF('Dry Bulb'!H7<60,(('Input Data'!$F$44*('Dry Bulb'!H7-$T$15))+('Heat gain from airflow'!U6)+((Occupancy!T6*'Input Data'!$F$47)+(Occupancy!F6*'Input Data'!$F$49)))/1000,(('Input Data'!$F$44*('Dry Bulb'!H7-$P$15))+('Heat gain from airflow'!U6)+((Occupancy!T6*'Input Data'!$F$47)+(Occupancy!F6*'Input Data'!$F$49))))/1000 -> 6.39072 | H33: =IF('Dry Bulb'!I7<60,(('Input Data'!$F$44*('Dry Bulb'!I7-$T$15))+('Heat gain from airflow'!V6)+((Occupancy!U6*'Input Data'!$F$47)+(Occupancy!G6*'Input Data'!$F$49)))/1000,(('Input Data'!$F$44*('Dry Bulb'!I7-$P$15))+('Heat gain from airflow'!V6)+((Occupancy!U6*'Input Data'!$F$47)+(Occupancy!G6*'Input Data'!$F$49))))/1000 -> 8.9659125 | I33: =IF('Dry Bulb'!J7<60,(('Input Data'!$F$44*('Dry Bulb'!J7-$T$15))+('Heat gain from airflow'!W6)+((Occupancy!V6*'Input Data'!$F$47)+(Occupancy!H6*'Input Data'!$F$49)))/1000,(('Input Data'!$F$44*('Dry Bulb'!J7-$P$15))+('Heat gain from airflow'!W6)+((Occupancy!V6*'Input Data'!$F$47)+(Occupancy!H6*'Input Data'!$F$49))))/1000 -> 9.633555 | J33: =IF('Dry Bulb'!K7<60,(('Input Data'!$F$44*('Dry Bulb'!K7-$T$15))+('Heat gain from airflow'!X6)+((Occupancy!W6*'Input Data'!$F$47)+(Occupancy!I6*'Input Data'!$F$49)))/1000,(('Input Data'!$F$44*('Dry Bulb'!K7-$P$15))+('Heat gain from airflow'!X6)+((Occupancy!W6*'Input Data'!$F$47)+(Occupancy!I6*'Input Data'!$F$49))))/1000 -> 9.633555 | K33: =IF('Dry Bulb'!L7<60,(('Input Data'!$F$44*('Dry Bulb'!L7-$T$15))+('Heat gain from airflow'!Y6)+((Occupancy!X6*'Input Data'!$F$47)+(Occupancy!J6*'Input Data'!$F$49)))/1000,(('Input Data'!$F$44*('Dry Bulb'!L7-$P$15))+('Heat gain from airflow'!Y6)+((Occupancy!X6*'Input Data'!$F$47)+(Occupancy!J6*'Input Data'!$F$49))))/1000 -> 6.581475 | L33: =IF('Dry Bulb'!M7<60,(('Input Data'!$F$44*('Dry Bulb'!M7-$T$15))+('Heat gain from airflow'!Z6)+((Occupancy!Y6*'Input Data'!$F$47)+(Occupancy!K6*'Input Data'!$F$49)))/1000,(('Input Data'!$F$44*('Dry Bulb'!M7-$P$15))+('Heat gain from airflow'!Z6)+((Occupancy!Y6*'Input Data'!$F$47)+(Occupancy!K6*'Input Data'!$F$49))))/1000 -> 1.500556005 | M33: =IF('Dry Bulb'!N7<60,(('Input Data'!$F$44*('Dry Bulb'!N7-$T$15))+('Heat gain from airflow'!AA6)+((Occupancy!Z6*'Input Data'!$F$47)+(Occupancy!L6*'Input Data'!$F$49)))/1000,(('Input Data'!$F$44*('Dry Bulb'!N7-$P$15))+('Heat gain from airflow'!AA6)+((Occupancy!Z6*'Input Data'!$F$47)+(Occupancy!L6*'Input Data'!$F$49))))/1000 -> -4.100805 | N33: =IF('Dry Bulb'!O7<60,(('Input Data'!$F$44*('Dry Bulb'!O7-$T$15))+('Heat gain from airflow'!AB6)+((Occupancy!AA6*'Input Data'!$F$47)+(Occupancy!M6*'Input Data'!$F$49)))/1000,(('Input Data'!$F$44*('Dry Bulb'!O7-$P$15))+('Heat gain from airflow'!AB6)+((Occupancy!AA6*'Input Data'!$F$47)+(Occupancy!M6*'Input Data'!$F$49))))/1000 -> -0.0050651775 | Q33: 12 | T33: 0.5 | X33: 8 | AB33: Transmittance of Shade Material | AJ33: 0 | AP33: ='Incident angle'!BI61 -> 2 | AQ33: ='Incident angle'!BJ61 -> 0 | AR33: ='Incident angle'!BK61 -> 0 | AS33: ='Incident angle'!BL61 -> 0 | AT33: ='Incident angle'!BM61 -> 0 | AU33: ='Incident angle'!BN61 -> 0 | AV33: ='Incident angle'!BO61 -> 0 | AW33: ='Incident angle'!BP61 -> 0 | AX33: ='Incident angle'!BQ61 -> 0 | AY33: ='Incident angle'!BR61 -> 0 | AZ33: ='Incident angle'!BS61 -> 0 | BA33: ='Incident angle'!BT61 -> 0 | BB33: ='Incident angle'!BU61 -> 0 | BC33: Max | BD33: ='Incident angle'!BW61 -> 2 | BE33: ='Incident angle'!BX61 -> 0 | BF33: ='Incident angle'!BY61 -> 0 | BG33: ='Incident angle'!BZ61 -> 0 | BH33: ='Incident angle'!CA61 -> 0 | BI33: ='Incident angle'!CB61 -> 0 | BJ33: ='Incident angle'!CC61 -> 0 | BK33: ='Incident angle'!CD61 -> 0 | BL33: ='Incident angle'!CE61 -> 0 | BM33: ='Incident angle'!CF61 -> 0 | BN33: ='Incident angle'!CG61 -> 0 | BO33: ='Incident angle'!CH61 -> 0 | BP33: ='Incident angle'!CI61 -> 0 | BQ33: Max | BR33: ='Profile angles'!P6 -> 2 | BS33: =RADIANS('Profile angles'!Q6) -> 1.154921006 | BT33: =RADIANS('Profile angles'!R6) -> 1.136916401 | BU33: =RADIANS('Profile angles'!S6) -> 1.071800834 | BV33: =RADIANS('Profile angles'!T6) -> 0.9794688004 | BW33: =RADIANS('Profile angles'!U6) -> 0.9216498219 | BX33: =RADIANS('Profile angles'!V6) -> 0.9262728412 | BY33: =RADIANS('Profile angles'!W6) -> 0.9705337535 | BZ33: =RADIANS('Profile angles'!X6) -> 0.9958647179 | CA33: =RADIANS('Profile angles'!Y6) -> 1.00301498 | CB33: =RADIANS('Profile angles'!Z6) -> 1.011882407 | CC33: =RADIANS('Profile angles'!AA6) -> 1.054358351 | CD33: =RADIANS('Profile angles'!AB6) -> 1.115723857 | CF33: ='Profile angles'!P35 -> 2 | CG33: =RADIANS('Profile angles'!Q35) -> -1.520884573 | CH33: =RADIANS('Profile angles'!R35) -> -1.342916043 | CI33: =RADIANS('Profile angles'!S35) -> -1.139700002 | CJ33: =RADIANS('Profile angles'!T35) -> -0.904369885 | CK33: =RADIANS('Profile angles'!U35) -> -0.7394311354 | CL33: =RADIANS('Profile angles'!V35) -> -0.6835402626 | CM33: =RADIANS('Profile angles'!W35) -> -0.7434435506 | CN33: =RADIANS('Profile angles'!X35) -> -0.9023151498 | CO33: =RADIANS('Profile angles'!Y35) -> -1.139700002 | CP33: =RADIANS('Profile angles'!Z35) -> -1.359081745 | CQ33: =RADIANS('Profile angles'!AA35) -> -1.541839674 | CR33: =RADIANS('Profile angles'!AB35) -> 1.542946372 | CT33: ='Profile angles'!AR6 -> 2 | CU33: =(IF($AH$29<DEGREES(BS33),0+$AJ$33,1-((TAN(BS33)/TAN($AG$31))*(1-$AJ$33))))*(('Surface Solar Azimuth Angles'!BX59*$DU$3)+1-$DU$3) -> 0 | CV33: =(IF($AH$29<DEGREES(BT33),0+$AJ$33,1-((TAN(BT33)/TAN($AG$31))*(1-$AJ$33))))*(('Surface Solar Azimuth Angles'!BY59*$DU$3)+1-$DU$3) -> 0 | CW33: =(IF($AH$29<DEGREES(BU33),0+$AJ$33,1-((TAN(BU33)/TAN($AG$31))*(1-$AJ$33))))*(('Surface Solar Azimuth Angles'!BZ59*$DU$3)+1-$DU$3) -> 0 | CX33: =(IF($AH$29<DEGREES(BV33),0+$AJ$33,1-((TAN(BV33)/TAN($AG$31))*(1-$AJ$33))))*(('Surface Solar Azimuth Angles'!CA59*$DU$3)+1-$DU$3) -> 0 | CY33: =(IF($AH$29<DEGREES(BW33),0+$AJ$33,1-((TAN(BW33)/TAN($AG$31))*(1-$AJ$33))))*(('Surface Solar Azimuth Angles'!CB59*$DU$3)+1-$DU$3) -> 0.02152935224 | CZ33: =(IF($AH$29<DEGREES(BX33),0+$AJ$33,1-((TAN(BX33)/TAN($AG$31))*(1-$AJ$33))))*(('Surface Solar Azimuth Angles'!CC59*$DU$3)+1-$DU$3) -> 0.01258228928 | DA33: =(IF($AH$29<DEGREES(BY33),0+$AJ$33,1-((TAN(BY33)/TAN($AG$31))*(1-$AJ$33))))*(('Surface Solar Azimuth Angles'!CD59*$DU$3)+1-$DU$3) -> 0 | DB33: =(IF($AH$29<DEGREES(BZ33),0+$AJ$33,1-((TAN(BZ33)/TAN($AG$31))*(1-$AJ$33))))*(('Surface Solar Azimuth Angles'!CE59*$DU$3)+1-$DU$3) -> 0 | DC33: =(IF($AH$29<DEGREES(CA33),0+$AJ$33,1-((TAN(CA33)/TAN($AG$31))*(1-$AJ$33))))*(('Surface Solar Azimuth Angles'!CF59*$DU$3)+1-$DU$3) -> 0 | DD33: =(IF($AH$29<DEGREES(CB33),0+$AJ$33,1-((TAN(CB33)/TAN($AG$31))*(1-$AJ$33))))*(('Surface Solar Azimuth Angles'!CG59*$DU$3)+1-$DU$3) -> 0 | DE33: =(IF($AH$29<DEGREES(CC33),0+$AJ$33,1-((TAN(CC33)/TAN($AG$31))*(1-$AJ$33))))*(('Surface Solar Azimuth Angles'!CH59*$DU$3)+1-$DU$3) -> 0 | DF33: =(IF($AH$29<DEGREES(CD33),0+$AJ$33,1-((TAN(CD33)/TAN($AG$31))*(1-$AJ$33))))*(('Surface Solar Azimuth Angles'!CI59*$DU$3)+1-$DU$3) -> 0 | DH33: 2 | DI33: =(IF($AH$12<DEGREES(CG33),0+$AJ$16,1-((TAN(CG33)/TAN($AG$14))*(1-$AJ$16))))*(('Surface Solar Azimuth Angles'!CL59*$DU$3)+1-$DU$3) -> 0 | DJ33: =(IF($AH$12<DEGREES(CH33),0+$AJ$16,1-((TAN(CH33)/TAN($AG$14))*(1-$AJ$16))))*(('Surface Solar Azimuth Angles'!CM59*$DU$3)+1-$DU$3) -> 0.004259683278 | DK33: =(IF($AH$12<DEGREES(CI33),0+$AJ$16,1-((TAN(CI33)/TAN($AG$14))*(1-$AJ$16))))*(('Surface Solar Azimuth Angles'!CN59*$DU$3)+1-$DU$3) -> 1.02778818 | DL33: =(IF($AH$12<DEGREES(CJ33),0+$AJ$16,1-((TAN(CJ33)/TAN($AG$14))*(1-$AJ$16))))*(('Surface Solar Azimuth Angles'!CO59*$DU$3)+1-$DU$3) -> 1.083193045 | DM33: =(IF($AH$12<DEGREES(CK33),0+$AJ$16,1-((TAN(CK33)/TAN($AG$14))*(1-$AJ$16))))*(('Surface Solar Azimuth Angles'!CP59*$DU$3)+1-$DU$3) -> 1.071441206 | DN33: =(IF($AH$12<DEGREES(CL33),0+$AJ$16,1-((TAN(CL33)/TAN($AG$14))*(1-$AJ$16))))*(('Surface Solar Azimuth Angles'!CQ59*$DU$3)+1-$DU$3) -> 1.089541535 | DO33: =(IF($AH$12<DEGREES(CM33),0+$AJ$16,1-((TAN(CM33)/TAN($AG$14))*(1-$AJ$16))))*(('Surface Solar Azimuth Angles'!CR59*$DU$3)+1-$DU$3) -> 1.126384601 | DP33: =(IF($AH$12<DEGREES(CN33),0+$AJ$16,1-((TAN(CN33)/TAN($AG$14))*(1-$AJ$16))))*(('Surface Solar Azimuth Angles'!CS59*$DU$3)+1-$DU$3) -> 1.112539389 | DQ33: =(IF($AH$12<DEGREES(CO33),0+$AJ$16,1-((TAN(CO33)/TAN($AG$14))*(1-$AJ$16))))*(('Surface Solar Azimuth Angles'!CT59*$DU$3)+1-$DU$3) -> 0.7732554721 | DR33: =(IF($AH$12<DEGREES(CP33),0+$AJ$16,1-((TAN(CP33)/TAN($AG$14))*(1-$AJ$16))))*(('Surface Solar Azimuth Angles'!CU59*$DU$3)+1-$DU$3) -> 0 | DS33: =(IF($AH$12<DEGREES(CQ33),0+$AJ$16,1-((TAN(CQ33)/TAN($AG$14))*(1-$AJ$16))))*(('Surface Solar Azimuth Angles'!CV59*$DU$3)+1-$DU$3) -> 0 | DT33: =(IF($AH$12<DEGREES(CR33),0+$AJ$16,1-((TAN(CR33)/TAN($AG$14))*(1-$AJ$16))))*(('Surface Solar Azimuth Angles'!CW59*$DU$3)+1-$DU$3) -> 0 | DW33: 2 | DX33: -66.03722188 | DY33: -62.61026212 | DZ33: -54.50560349 | EA33: -44.03913842 | EB33: -36.86790387 | EC33: -34.78729021 | ED33: -37.88788345 | EE33: -44.38878854 | EF33: -51.81913703 | EG33: -56.52177531 | EH33: -60.37830881 | EI33: -63.88965349 | EK33: 2 | EL33: -66.03722188 | EM33: -62.61026212 | EN33: -54.50560349 | EO33: -44.03913842 | EP33: -36.86790387 | EQ33: -34.78729021 | ER33: -37.88788345 | ES33: -44.38878854 | ET33: -51.81913703 | EU33: -56.52177531 | EV33: -60.37830881 | EW33: -63.88965349
B34: 4 | C34: =IF('Dry Bulb'!D8<60,(('Input Data'!$F$44*('Dry Bulb'!D8-$T$15))+('Heat gain from airflow'!Q7)+((Occupancy!P7*'Input Data'!$F$47)+(Occupancy!B7*'Input Data'!$F$49)))/1000,(('Input Data'!$F$44*('Dry Bulb'!D8-$P$15))+('Heat gain from airflow'!Q7)+((Occupancy!P7*'Input Data'!$F$47)+(Occupancy!B7*'Input Data'!$F$49))))/1000 -> -0.0065912175 | D34: =IF('Dry Bulb'!E8<60,(('Input Data'!$F$44*('Dry Bulb'!E8-$T$15))+('Heat gain from airflow'!R7)+((Occupancy!Q7*'Input Data'!$F$47)+(Occupancy!C7*'Input Data'!$F$49)))/1000,(('Input Data'!$F$44*('Dry Bulb'!E8-$P$15))+('Heat gain from airflow'!R7)+((Occupancy!Q7*'Input Data'!$F$47)+(Occupancy!C7*'Input Data'!$F$49))))/1000 -> -0.0046836675 | E34: =IF('Dry Bulb'!F8<60,(('Input Data'!$F$44*('Dry Bulb'!F8-$T$15))+('Heat gain from airflow'!S7)+((Occupancy!R7*'Input Data'!$F$47)+(Occupancy!D7*'Input Data'!$F$49)))/1000,(('Input Data'!$F$44*('Dry Bulb'!F8-$P$15))+('Heat gain from airflow'!S7)+((Occupancy!R7*'Input Data'!$F$47)+(Occupancy!D7*'Input Data'!$F$49))))/1000 -> -4.863825 | F34: =IF('Dry Bulb'!G8<60,(('Input Data'!$F$44*('Dry Bulb'!G8-$T$15))+('Heat gain from airflow'!T7)+((Occupancy!S7*'Input Data'!$F$47)+(Occupancy!E7*'Input Data'!$F$49)))/1000,(('Input Data'!$F$44*('Dry Bulb'!G8-$P$15))+('Heat gain from airflow'!T7)+((Occupancy!S7*'Input Data'!$F$47)+(Occupancy!E7*'Input Data'!$F$49))))/1000 -> -0.96248349 | G34: =IF('Dry Bulb'!H8<60,(('Input Data'!$F$44*('Dry Bulb'!H8-$T$15))+('Heat gain from airflow'!U7)+((Occupancy!T7*'Input Data'!$F$47)+(Occupancy!F7*'Input Data'!$F$49)))/1000,(('Input Data'!$F$44*('Dry Bulb'!H8-$P$15))+('Heat gain from airflow'!U7)+((Occupancy!T7*'Input Data'!$F$47)+(Occupancy!F7*'Input Data'!$F$49))))/1000 -> 6.1045875 | H34: =IF('Dry Bulb'!I8<60,(('Input Data'!$F$44*('Dry Bulb'!I8-$T$15))+('Heat gain from airflow'!V7)+((Occupancy!U7*'Input Data'!$F$47)+(Occupancy!G7*'Input Data'!$F$49)))/1000,(('Input Data'!$F$44*('Dry Bulb'!I8-$P$15))+('Heat gain from airflow'!V7)+((Occupancy!U7*'Input Data'!$F$47)+(Occupancy!G7*'Input Data'!$F$49))))/1000 -> 8.3936475 | I34: =IF('Dry Bulb'!J8<60,(('Input Data'!$F$44*('Dry Bulb'!J8-$T$15))+('Heat gain from airflow'!W7)+((Occupancy!V7*'Input Data'!$F$47)+(Occupancy!H7*'Input Data'!$F$49)))/1000,(('Input Data'!$F$44*('Dry Bulb'!J8-$P$15))+('Heat gain from airflow'!W7)+((Occupancy!V7*'Input Data'!$F$47)+(Occupancy!H7*'Input Data'!$F$49))))/1000 -> 8.870535 | J34: =IF('Dry Bulb'!K8<60,(('Input Data'!$F$44*('Dry Bulb'!K8-$T$15))+('Heat gain from airflow'!X7)+((Occupancy!W7*'Input Data'!$F$47)+(Occupancy!I7*'Input Data'!$F$49)))/1000,(('Input Data'!$F$44*('Dry Bulb'!K8-$P$15))+('Heat gain from airflow'!X7)+((Occupancy!W7*'Input Data'!$F$47)+(Occupancy!I7*'Input Data'!$F$49))))/1000 -> 8.9659125 | K34: =IF('Dry Bulb'!L8<60,(('Input Data'!$F$44*('Dry Bulb'!L8-$T$15))+('Heat gain from airflow'!Y7)+((Occupancy!X7*'Input Data'!$F$47)+(Occupancy!J7*'Input Data'!$F$49)))/1000,(('Input Data'!$F$44*('Dry Bulb'!L8-$P$15))+('Heat gain from airflow'!Y7)+((Occupancy!X7*'Input Data'!$F$47)+(Occupancy!J7*'Input Data'!$F$49))))/1000 -> 5.818455 | L34: =IF('Dry Bulb'!M8<60,(('Input Data'!$F$44*('Dry Bulb'!M8-$T$15))+('Heat gain from airflow'!Z7)+((Occupancy!Y7*'Input Data'!$F$47)+(Occupancy!K7*'Input Data'!$F$49)))/1000,(('Input Data'!$F$44*('Dry Bulb'!M8-$P$15))+('Heat gain from airflow'!Z7)+((Occupancy!Y7*'Input Data'!$F$47)+(Occupancy!K7*'Input Data'!$F$49))))/1000 -> 1.031405625 | M34: =IF('Dry Bulb'!N8<60,(('Input Data'!$F$44*('Dry Bulb'!N8-$T$15))+('Heat gain from airflow'!AA7)+((Occupancy!Z7*'Input Data'!$F$47)+(Occupancy!L7*'Input Data'!$F$49)))/1000,(('Input Data'!$F$44*('Dry Bulb'!N8-$P$15))+('Heat gain from airflow'!AA7)+((Occupancy!Z7*'Input Data'!$F$47)+(Occupancy!L7*'Input Data'!$F$49))))/1000 -> -4.7684475 | N34: =IF('Dry Bulb'!O8<60,(('Input Data'!$F$44*('Dry Bulb'!O8-$T$15))+('Heat gain from airflow'!AB7)+((Occupancy!AA7*'Input Data'!$F$47)+(Occupancy!M7*'Input Data'!$F$49)))/1000,(('Input Data'!$F$44*('Dry Bulb'!O8-$P$15))+('Heat gain from airflow'!AB7)+((Occupancy!AA7*'Input Data'!$F$47)+(Occupancy!M7*'Input Data'!$F$49))))/1000 -> -0.005542065 | X34: 9 | AP34: ='Incident angle'!BI62 -> 3 | AQ34: ='Incident angle'!BJ62 -> 0 | AR34: ='Incident angle'!BK62 -> 0 | AS34: ='Incident angle'!BL62 -> 0 | AT34: ='Incident angle'!BM62 -> 0 | AU34: ='Incident angle'!BN62 -> 0 | AV34: ='Incident angle'!BO62 -> 0 | AW34: ='Incident angle'!BP62 -> 0 | AX34: ='Incident angle'!BQ62 -> 0 | AY34: ='Incident angle'!BR62 -> 0 | AZ34: ='Incident angle'!BS62 -> 0 | BA34: ='Incident angle'!BT62 -> 0 | BB34: ='Incident angle'!BU62 -> 0 | BC34: =MAX(AS32:AZ55) -> 5622.39055 | BD34: ='Incident angle'!BW62 -> 3 | BE34: ='Incident angle'!BX62 -> 0 | BF34: ='Incident angle'!BY62 -> 0 | BG34: ='Incident angle'!BZ62 -> 0 | BH34: ='Incident angle'!CA62 -> 0 | BI34: ='Incident angle'!CB62 -> 0 | BJ34: ='Incident angle'!CC62 -> 0 | BK34: ='Incident angle'!CD62 -> 0 | BL34: ='Incident angle'!CE62 -> 0 | BM34: ='Incident angle'!CF62 -> 0 | BN34: ='Incident angle'!CG62 -> 0 | BO34: ='Incident angle'!CH62 -> 0 | BP34: ='Incident angle'!CI62 -> 0 | BQ34: =MAX(BG32:BN55) -> 0 | BR34: ='Profile angles'!P7 -> 3 | BS34: =RADIANS('Profile angles'!Q7) -> 0.9151663031 | BT34: =RADIANS('Profile angles'!R7) -> 0.8821622416 | BU34: =RADIANS('Profile angles'!S7) -> 0.8014439226 | BV34: =RADIANS('Profile angles'!T7) -> 0.6925909044 | BW34: =RADIANS('Profile angles'!U7) -> 0.6220903131 | BX34: =RADIANS('Profile angles'!V7) -> 0.6189789536 | BY34: =RADIANS('Profile angles'!W7) -> 0.6660665884 | BZ34: =RADIANS('Profile angles'!X7) -> 0.7074548258 | CA34: =RADIANS('Profile angles'!Y7) -> 0.7359036106 | CB34: =RADIANS('Profile angles'!Z7) -> 0.7613719877 | CC34: =RADIANS('Profile angles'!AA7) -> 0.8169092046 | CD34: =RADIANS('Profile angles'!AB7) -> 0.8826580763 | CF34: ='Profile angles'!P36 -> 3 | CG34: =RADIANS('Profile angles'!Q36) -> 1.558065211 | CH34: =RADIANS('Profile angles'!R36) -> -1.378440347 | CI34: =RADIANS('Profile angles'!S36) -> -1.139700002 | CJ34: =RADIANS('Profile angles'!T36) -> -0.8570033997 | CK34: =RADIANS('Profile angles'!U36) -> -0.6644417973 | CL34: =RADIANS('Profile angles'!V36) -> -0.6053095682 | CM34: =RADIANS('Profile angles'!W36) -> -0.6756539377 | CN34: =RADIANS('Profile angles'!X36) -> -0.8562266759 | CO34: =RADIANS('Profile angles'!Y36) -> -1.139700002 | CP34: =RADIANS('Profile angles'!Z36) -> -1.41029856 | CQ34: =RADIANS('Profile angles'!AA36) -> 1.516485014 | CR34: =RADIANS('Profile angles'!AB36) -> 1.462090505 | CT34: ='Profile angles'!AR7 -> 3 | CU34: =(IF($AH$29<DEGREES(BS34),0+$AJ$33,1-((TAN(BS34)/TAN($AG$31))*(1-$AJ$33))))*(('Surface Solar Azimuth Angles'!BX60*$DU$3)+1-$DU$3) -> 0.08913257065 | CV34: =(IF($AH$29<DEGREES(BT34),0+$AJ$33,1-((TAN(BT34)/TAN($AG$31))*(1-$AJ$33))))*(('Surface Solar Azimuth Angles'!BY60*$DU$3)+1-$DU$3) -> 0.1318085549 | CW34: =(IF($AH$29<DEGREES(BU34),0+$AJ$33,1-((TAN(BU34)/TAN($AG$31))*(1-$AJ$33))))*(('Surface Solar Azimuth Angles'!BZ60*$DU$3)+1-$DU$3) -> 0.2113470866 | CX34: =(IF($AH$29<DEGREES(BV34),0+$AJ$33,1-((TAN(BV34)/TAN($AG$31))*(1-$AJ$33))))*(('Surface Solar Azimuth Angles'!CA60*$DU$3)+1-$DU$3) -> 0.2685785204 | CY34: =(IF($AH$29<DEGREES(BW34),0+$AJ$33,1-((TAN(BW34)/TAN($AG$31))*(1-$AJ$33))))*(('Surface Solar Azimuth Angles'!CB60*$DU$3)+1-$DU$3) -> 0.2700661827 | CZ34: =(IF($AH$29<DEGREES(BX34),0+$AJ$33,1-((TAN(BX34)/TAN($AG$31))*(1-$AJ$33))))*(('Surface Solar Azimuth Angles'!CC60*$DU$3)+1-$DU$3) -> 0.2432776521 | DA34: =(IF($AH$29<DEGREES(BY34),0+$AJ$33,1-((TAN(BY34)/TAN($AG$31))*(1-$AJ$33))))*(('Surface Solar Azimuth Angles'!CD60*$DU$3)+1-$DU$3) -> 0.2293305951 | DB34: =(IF($AH$29<DEGREES(BZ34),0+$AJ$33,1-((TAN(BZ34)/TAN($AG$31))*(1-$AJ$33))))*(('Surface Solar Azimuth Angles'!CE60*$DU$3)+1-$DU$3) -> 0.2525309213 | DC34: =(IF($AH$29<DEGREES(CA34),0+$AJ$33,1-((TAN(CA34)/TAN($AG$31))*(1-$AJ$33))))*(('Surface Solar Azimuth Angles'!CF60*$DU$3)+1-$DU$3) -> 0.289834744 | DD34: =(IF($AH$29<DEGREES(CB34),0+$AJ$33,1-((TAN(CB34)/TAN($AG$31))*(1-$AJ$33))))*(('Surface Solar Azimuth Angles'!CG60*$DU$3)+1-$DU$3) -> 0.307175276 | DE34: =(IF($AH$29<DEGREES(CC34),0+$AJ$33,1-((TAN(CC34)/TAN($AG$31))*(1-$AJ$33))))*(('Surface Solar Azimuth Angles'!CH60*$DU$3)+1-$DU$3) -> 0.2470672988 | DF34: =(IF($AH$29<DEGREES(CD34),0+$AJ$33,1-((TAN(CD34)/TAN($AG$31))*(1-$AJ$33))))*(('Surface Solar Azimuth Angles'!CI60*$DU$3)+1-$DU$3) -> 0.1387723413 | DH34: 3 | DI34: =(IF($AH$12<DEGREES(CG34),0+$AJ$16,1-((TAN(CG34)/TAN($AG$14))*(1-$AJ$16))))*(('Surface Solar Azimuth Angles'!CL60*$DU$3)+1-$DU$3) -> 0 | DJ34: =(IF($AH$12<DEGREES(CH34),0+$AJ$16,1-((TAN(CH34)/TAN($AG$14))*(1-$AJ$16))))*(('Surface Solar Azimuth Angles'!CM60*$DU$3)+1-$DU$3) -> 0 | DK34: =(IF($AH$12<DEGREES(CI34),0+$AJ$16,1-((TAN(CI34)/TAN($AG$14))*(1-$AJ$16))))*(('Surface Solar Azimuth Angles'!CN60*$DU$3)+1-$DU$3) -> 0 | DL34: =(IF($AH$12<DEGREES(CJ34),0+$AJ$16,1-((TAN(CJ34)/TAN($AG$14))*(1-$AJ$16))))*(('Surface Solar Azimuth Angles'!CO60*$DU$3)+1-$DU$3) -> 0.5501259172 | DM34: =(IF($AH$12<DEGREES(CK34),0+$AJ$16,1-((TAN(CK34)/TAN($AG$14))*(1-$AJ$16))))*(('Surface Solar Azimuth Angles'!CP60*$DU$3)+1-$DU$3) -> 0.7026923117 | DN34: =(IF($AH$12<DEGREES(CL34),0+$AJ$16,1-((TAN(CL34)/TAN($AG$14))*(1-$AJ$16))))*(('Surface Solar Azimuth Angles'!CQ60*$DU$3)+1-$DU$3) -> 0.7634489448 | DO34: =(IF($AH$12<DEGREES(CM34),0+$AJ$16,1-((TAN(CM34)/TAN($AG$14))*(1-$AJ$16))))*(('Surface Solar Azimuth Angles'!CR60*$DU$3)+1-$DU$3) -> 0.7650041118 | DP34: =(IF($AH$12<DEGREES(CN34),0+$AJ$16,1-((TAN(CN34)/TAN($AG$14))*(1-$AJ$16))))*(('Surface Solar Azimuth Angles'!CS60*$DU$3)+1-$DU$3) -> 0.5890127539 | DQ34: =(IF($AH$12<DEGREES(CO34),0+$AJ$16,1-((TAN(CO34)/TAN($AG$14))*(1-$AJ$16))))*(('Surface Solar Azimuth Angles'!CT60*$DU$3)+1-$DU$3) -> 0 | DR34: =(IF($AH$12<DEGREES(CP34),0+$AJ$16,1-((TAN(CP34)/TAN($AG$14))*(1-$AJ$16))))*(('Surface Solar Azimuth Angles'!CU60*$DU$3)+1-$DU$3) -> 0 | DS34: =(IF($AH$12<DEGREES(CQ34),0+$AJ$16,1-((TAN(CQ34)/TAN($AG$14))*(1-$AJ$16))))*(('Surface Solar Azimuth Angles'!CV60*$DU$3)+1-$DU$3) -> 0 | DT34: =(IF($AH$12<DEGREES(CR34),0+$AJ$16,1-((TAN(CR34)/TAN($AG$14))*(1-$AJ$16))))*(('Surface Solar Azimuth Angles'!CW60*$DU$3)+1-$DU$3) -> 0 | DW34: 3 | DX34: -52.43137356 | DY34: -49.7763649 | DZ34: -43.00744409 | EA34: -33.97069761 | EB34: -27.87416662 | EC34: -26.39740624 | ED34: -29.29846158 | EE34: -34.48045872 | EF34: -39.89507499 | EG34: -43.2868923 | EH34: -46.7575969 | EI34: -50.32692672 | EK34: 3 | EL34: -52.43137356 | EM34: -49.7763649 | EN34: -43.00744409 | EO34: -33.97069761 | EP34: -27.87416662 | EQ34: -26.39740624 | ER34: -29.29846158 | ES34: -34.48045872 | ET34: -39.89507499 | EU34: -43.2868923 | EV34: -46.7575969 | EW34: -50.32692672
B35: 5 | C35: =IF('Dry Bulb'!D9<60,(('Input Data'!$F$44*('Dry Bulb'!D9-$T$15))+('Heat gain from airflow'!Q8)+((Occupancy!P8*'Input Data'!$F$47)+(Occupancy!B8*'Input Data'!$F$49)))/1000,(('Input Data'!$F$44*('Dry Bulb'!D9-$P$15))+('Heat gain from airflow'!Q8)+((Occupancy!P8*'Input Data'!$F$47)+(Occupancy!B8*'Input Data'!$F$49))))/1000 -> -0.0071634825 | D35: =IF('Dry Bulb'!E9<60,(('Input Data'!$F$44*('Dry Bulb'!E9-$T$15))+('Heat gain from airflow'!R8)+((Occupancy!Q8*'Input Data'!$F$47)+(Occupancy!C8*'Input Data'!$F$49)))/1000,(('Input Data'!$F$44*('Dry Bulb'!E9-$P$15))+('Heat gain from airflow'!R8)+((Occupancy!Q8*'Input Data'!$F$47)+(Occupancy!C8*'Input Data'!$F$49))))/1000 -> -0.0050651775 | E35: =IF('Dry Bulb'!F9<60,(('Input Data'!$F$44*('Dry Bulb'!F9-$T$15))+('Heat gain from airflow'!S8)+((Occupancy!R8*'Input Data'!$F$47)+(Occupancy!D8*'Input Data'!$F$49)))/1000,(('Input Data'!$F$44*('Dry Bulb'!F9-$P$15))+('Heat gain from airflow'!S8)+((Occupancy!R8*'Input Data'!$F$47)+(Occupancy!D8*'Input Data'!$F$49))))/1000 -> -0.0016315875 | F35: =IF('Dry Bulb'!G9<60,(('Input Data'!$F$44*('Dry Bulb'!G9-$T$15))+('Heat gain from airflow'!T8)+((Occupancy!S8*'Input Data'!$F$47)+(Occupancy!E8*'Input Data'!$F$49)))/1000,(('Input Data'!$F$44*('Dry Bulb'!G9-$P$15))+('Heat gain from airflow'!T8)+((Occupancy!S8*'Input Data'!$F$47)+(Occupancy!E8*'Input Data'!$F$49))))/1000 -> -1.66620906 | G35: =IF('Dry Bulb'!H9<60,(('Input Data'!$F$44*('Dry Bulb'!H9-$T$15))+('Heat gain from airflow'!U8)+((Occupancy!T8*'Input Data'!$F$47)+(Occupancy!F8*'Input Data'!$F$49)))/1000,(('Input Data'!$F$44*('Dry Bulb'!H9-$P$15))+('Heat gain from airflow'!U8)+((Occupancy!T8*'Input Data'!$F$47)+(Occupancy!F8*'Input Data'!$F$49))))/1000 -> 5.3415675 | H35: =IF('Dry Bulb'!I9<60,(('Input Data'!$F$44*('Dry Bulb'!I9-$T$15))+('Heat gain from airflow'!V8)+((Occupancy!U8*'Input Data'!$F$47)+(Occupancy!G8*'Input Data'!$F$49)))/1000,(('Input Data'!$F$44*('Dry Bulb'!I9-$P$15))+('Heat gain from airflow'!V8)+((Occupancy!U8*'Input Data'!$F$47)+(Occupancy!G8*'Input Data'!$F$49))))/1000 -> 7.726005 | I35: =IF('Dry Bulb'!J9<60,(('Input Data'!$F$44*('Dry Bulb'!J9-$T$15))+('Heat gain from airflow'!W8)+((Occupancy!V8*'Input Data'!$F$47)+(Occupancy!H8*'Input Data'!$F$49)))/1000,(('Input Data'!$F$44*('Dry Bulb'!J9-$P$15))+('Heat gain from airflow'!W8)+((Occupancy!V8*'Input Data'!$F$47)+(Occupancy!H8*'Input Data'!$F$49))))/1000 -> 8.489025 | J35: =IF('Dry Bulb'!K9<60,(('Input Data'!$F$44*('Dry Bulb'!K9-$T$15))+('Heat gain from airflow'!X8)+((Occupancy!W8*'Input Data'!$F$47)+(Occupancy!I8*'Input Data'!$F$49)))/1000,(('Input Data'!$F$44*('Dry Bulb'!K9-$P$15))+('Heat gain from airflow'!X8)+((Occupancy!W8*'Input Data'!$F$47)+(Occupancy!I8*'Input Data'!$F$49))))/1000 -> 8.3936475 | K35: =IF('Dry Bulb'!L9<60,(('Input Data'!$F$44*('Dry Bulb'!L9-$T$15))+('Heat gain from airflow'!Y8)+((Occupancy!X8*'Input Data'!$F$47)+(Occupancy!J8*'Input Data'!$F$49)))/1000,(('Input Data'!$F$44*('Dry Bulb'!L9-$P$15))+('Heat gain from airflow'!Y8)+((Occupancy!X8*'Input Data'!$F$47)+(Occupancy!J8*'Input Data'!$F$49))))/1000 -> 5.436945 | L35: =IF('Dry Bulb'!M9<60,(('Input Data'!$F$44*('Dry Bulb'!M9-$T$15))+('Heat gain from airflow'!Z8)+((Occupancy!Y8*'Input Data'!$F$47)+(Occupancy!K8*'Input Data'!$F$49)))/1000,(('Input Data'!$F$44*('Dry Bulb'!M9-$P$15))+('Heat gain from airflow'!Z8)+((Occupancy!Y8*'Input Data'!$F$47)+(Occupancy!K8*'Input Data'!$F$49))))/1000 -> 0.093104865 | M35: =IF('Dry Bulb'!N9<60,(('Input Data'!$F$44*('Dry Bulb'!N9-$T$15))+('Heat gain from airflow'!AA8)+((Occupancy!Z8*'Input Data'!$F$47)+(Occupancy!L8*'Input Data'!$F$49)))/1000,(('Input Data'!$F$44*('Dry Bulb'!N9-$P$15))+('Heat gain from airflow'!AA8)+((Occupancy!Z8*'Input Data'!$F$47)+(Occupancy!L8*'Input Data'!$F$49))))/1000 -> -0.0018223425 | N35: =IF('Dry Bulb'!O9<60,(('Input Data'!$F$44*('Dry Bulb'!O9-$T$15))+('Heat gain from airflow'!AB8)+((Occupancy!AA8*'Input Data'!$F$47)+(Occupancy!M8*'Input Data'!$F$49)))/1000,(('Input Data'!$F$44*('Dry Bulb'!O9-$P$15))+('Heat gain from airflow'!AB8)+((Occupancy!AA8*'Input Data'!$F$47)+(Occupancy!M8*'Input Data'!$F$49))))/1000 -> -0.0060189525 | P35: East Window | T35: Heavy Mass? | X35: 10 | AP35: ='Incident angle'!BI63 -> 4 | AQ35: ='Incident angle'!BJ63 -> 0 | AR35: ='Incident angle'!BK63 -> 0 | AS35: ='Incident angle'!BL63 -> 0 | AT35: ='Incident angle'!BM63 -> 0 | AU35: ='Incident angle'!BN63 -> 0 | AV35: ='Incident angle'!BO63 -> 0 | AW35: ='Incident angle'!BP63 -> 0 | AX35: ='Incident angle'!BQ63 -> 0 | AY35: ='Incident angle'!BR63 -> 0 | AZ35: ='Incident angle'!BS63 -> 0 | BA35: ='Incident angle'!BT63 -> 0 | BB35: ='Incident angle'!BU63 -> 0 | BC35: Av+Max/2 | BD35: ='Incident angle'!BW63 -> 4 | BE35: ='Incident angle'!BX63 -> 0 | BF35: ='Incident angle'!BY63 -> 0 | BG35: ='Incident angle'!BZ63 -> 0 | BH35: ='Incident angle'!CA63 -> 0 | BI35: ='Incident angle'!CB63 -> 0 | BJ35: ='Incident angle'!CC63 -> 0 | BK35: ='Incident angle'!CD63 -> 0 | BL35: ='Incident angle'!CE63 -> 0 | BM35: ='Incident angle'!CF63 -> 0 | BN35: ='Incident angle'!CG63 -> 0 | BO35: ='Incident angle'!CH63 -> 0 | BP35: ='Incident angle'!CI63 -> 0 | BQ35: Av+Max/2 | BR35: ='Profile angles'!P8 -> 4 | BS35: =RADIANS('Profile angles'!Q8) -> 0.6808562605 | BT35: =RADIANS('Profile angles'!R8) -> 0.635801516 | BU35: =RADIANS('Profile angles'!S8) -> 0.544048004 | BV35: =RADIANS('Profile angles'!T8) -> 0.4258683333 | BW35: =RADIANS('Profile angles'!U8) -> 0.3497417035 | BX35: =RADIANS('Profile angles'!V8) -> 0.3425360175 | BY35: =RADIANS('Profile angles'!W8) -> 0.3895575245 | BZ35: =RADIANS('Profile angles'!X8) -> 0.4394477548 | CA35: =RADIANS('Profile angles'!Y8) -> 0.4815568133 | CB35: =RADIANS('Profile angles'!Z8) -> 0.5188803882 | CC35: =RADIANS('Profile angles'!AA8) -> 0.5845679697 | CD35: =RADIANS('Profile angles'!AB8) -> 0.6539876585 | CF35: ='Profile angles'!P37 -> 4 | CG35: =RADIANS('Profile angles'!Q37) -> 1.434170631 | CH35: =RADIANS('Profile angles'!R37) -> -1.45320179 | CI35: =RADIANS('Profile angles'!S37) -> -1.139700002 | CJ35: =RADIANS('Profile angles'!T37) -> -0.7564189068 | CK35: =RADIANS('Profile angles'!U37) -> -0.516275439 | CL35: =RADIANS('Profile angles'!V37) -> -0.4555590077 | CM35: =RADIANS('Profile angles'!W37) -> -0.5422514004 | CN35: =RADIANS('Profile angles'!X37) -> -0.7589538864 | CO35: =RADIANS('Profile angles'!Y37) -> -1.139700002 | CP35: =RADIANS('Profile angles'!Z37) -> -1.523100368 | CQ35: =RADIANS('Profile angles'!AA37) -> 1.350289996 | CR35: =RADIANS('Profile angles'!AB37) -> 1.307372743 | CT35: ='Profile angles'!AR8 -> 4 | CU35: =(IF($AH$29<DEGREES(BS35),0+$AJ$33,1-((TAN(BS35)/TAN($AG$31))*(1-$AJ$33))))*(('Surface Solar Azimuth Angles'!BX61*$DU$3)+1-$DU$3) -> 0.4088361692 | CV35: =(IF($AH$29<DEGREES(BT35),0+$AJ$33,1-((TAN(BT35)/TAN($AG$31))*(1-$AJ$33))))*(('Surface Solar Azimuth Angles'!BY61*$DU$3)+1-$DU$3) -> 0.4623002127 | CW35: =(IF($AH$29<DEGREES(BU35),0+$AJ$33,1-((TAN(BU35)/TAN($AG$31))*(1-$AJ$33))))*(('Surface Solar Azimuth Angles'!BZ61*$DU$3)+1-$DU$3) -> 0.4963290155 | CX35: =(IF($AH$29<DEGREES(BV35),0+$AJ$33,1-((TAN(BV35)/TAN($AG$31))*(1-$AJ$33))))*(('Surface Solar Azimuth Angles'!CA61*$DU$3)+1-$DU$3) -> 0.518425355 | CY35: =(IF($AH$29<DEGREES(BW35),0+$AJ$33,1-((TAN(BW35)/TAN($AG$31))*(1-$AJ$33))))*(('Surface Solar Azimuth Angles'!CB61*$DU$3)+1-$DU$3) -> 0.5054315356 | CZ35: =(IF($AH$29<DEGREES(BX35),0+$AJ$33,1-((TAN(BX35)/TAN($AG$31))*(1-$AJ$33))))*(('Surface Solar Azimuth Angles'!CC61*$DU$3)+1-$DU$3) -> 0.4773031408 | DA35: =(IF($AH$29<DEGREES(BY35),0+$AJ$33,1-((TAN(BY35)/TAN($AG$31))*(1-$AJ$33))))*(('Surface Solar Azimuth Angles'!CD61*$DU$3)+1-$DU$3) -> 0.469833736 | DB35: =(IF($AH$29<DEGREES(BZ35),0+$AJ$33,1-((TAN(BZ35)/TAN($AG$31))*(1-$AJ$33))))*(('Surface Solar Azimuth Angles'!CE61*$DU$3)+1-$DU$3) -> 0.5046533278 | DC35: =(IF($AH$29<DEGREES(CA35),0+$AJ$33,1-((TAN(CA35)/TAN($AG$31))*(1-$AJ$33))))*(('Surface Solar Azimuth Angles'!CF61*$DU$3)+1-$DU$3) -> 0.5579680391 | DD35: =(IF($AH$29<DEGREES(CB35),0+$AJ$33,1-((TAN(CB35)/TAN($AG$31))*(1-$AJ$33))))*(('Surface Solar Azimuth Angles'!CG61*$DU$3)+1-$DU$3) -> 0.5920657365 | DE35: =(IF($AH$29<DEGREES(CC35),0+$AJ$33,1-((TAN(CC35)/TAN($AG$31))*(1-$AJ$33))))*(('Surface Solar Azimuth Angles'!CH61*$DU$3)+1-$DU$3) -> 0.4969880253 | DF35: =(IF($AH$29<DEGREES(CD35),0+$AJ$33,1-((TAN(CD35)/TAN($AG$31))*(1-$AJ$33))))*(('Surface Solar Azimuth Angles'!CI61*$DU$3)+1-$DU$3) -> 0.4155374202 | DH35: 4 | DI35: =(IF($AH$12<DEGREES(CG35),0+$AJ$16,1-((TAN(CG35)/TAN($AG$14))*(1-$AJ$16))))*(('Surface Solar Azimuth Angles'!CL61*$DU$3)+1-$DU$3) -> 0 | DJ35: =(IF($AH$12<DEGREES(CH35),0+$AJ$16,1-((TAN(CH35)/TAN($AG$14))*(1-$AJ$16))))*(('Surface Solar Azimuth Angles'!CM61*$DU$3)+1-$DU$3) -> 0 | DK35: =(IF($AH$12<DEGREES(CI35),0+$AJ$16,1-((TAN(CI35)/TAN($AG$14))*(1-$AJ$16))))*(('Surface Solar Azimuth Angles'!CN61*$DU$3)+1-$DU$3) -> 0 | DL35: =(IF($AH$12<DEGREES(CJ35),0+$AJ$16,1-((TAN(CJ35)/TAN($AG$14))*(1-$AJ$16))))*(('Surface Solar Azimuth Angles'!CO61*$DU$3)+1-$DU$3) -> 0 | DM35: =(IF($AH$12<DEGREES(CK35),0+$AJ$16,1-((TAN(CK35)/TAN($AG$14))*(1-$AJ$16))))*(('Surface Solar Azimuth Angles'!CP61*$DU$3)+1-$DU$3) -> 0.310021781 | DN35: =(IF($AH$12<DEGREES(CL35),0+$AJ$16,1-((TAN(CL35)/TAN($AG$14))*(1-$AJ$16))))*(('Surface Solar Azimuth Angles'!CQ61*$DU$3)+1-$DU$3) -> 0.420397736 | DO35: =(IF($AH$12<DEGREES(CM35),0+$AJ$16,1-((TAN(CM35)/TAN($AG$14))*(1-$AJ$16))))*(('Surface Solar Azimuth Angles'!CR61*$DU$3)+1-$DU$3) -> 0.3784879821 | DP35: =(IF($AH$12<DEGREES(CN35),0+$AJ$16,1-((TAN(CN35)/TAN($AG$14))*(1-$AJ$16))))*(('Surface Solar Azimuth Angles'!CS61*$DU$3)+1-$DU$3) -> 0 | DQ35: =(IF($AH$12<DEGREES(CO35),0+$AJ$16,1-((TAN(CO35)/TAN($AG$14))*(1-$AJ$16))))*(('Surface Solar Azimuth Angles'!CT61*$DU$3)+1-$DU$3) -> 0 | DR35: =(IF($AH$12<DEGREES(CP35),0+$AJ$16,1-((TAN(CP35)/TAN($AG$14))*(1-$AJ$16))))*(('Surface Solar Azimuth Angles'!CU61*$DU$3)+1-$DU$3) -> 0 | DS35: =(IF($AH$12<DEGREES(CQ35),0+$AJ$16,1-((TAN(CQ35)/TAN($AG$14))*(1-$AJ$16))))*(('Surface Solar Azimuth Angles'!CV61*$DU$3)+1-$DU$3) -> 0 | DT35: =(IF($AH$12<DEGREES(CR35),0+$AJ$16,1-((TAN(CR35)/TAN($AG$14))*(1-$AJ$16))))*(('Surface Solar Azimuth Angles'!CW61*$DU$3)+1-$DU$3) -> 0 | DW35: 4 | DX35: -38.83757178 | DY35: -36.32513697 | DZ35: -30.23387911 | EA35: -22.2368916 | EB35: -17.0585792 | EC35: -16.08285304 | ED35: -18.74022497 | EE35: -22.84111106 | EF35: -26.93598583 | EG35: -29.72049392 | EH35: -33.20698694 | EI35: -36.89352273 | EK35: 4 | EL35: -38.83757178 | EM35: -36.32513697 | EN35: -30.23387911 | EO35: -22.2368916 | EP35: -17.0585792 | EQ35: -16.08285304 | ER35: -18.74022497 | ES35: -22.84111106 | ET35: -26.93598583 | EU35: -29.72049392 | EV35: -33.20698694 | EW35: -36.89352273
B36: 6 | C36: =IF('Dry Bulb'!D10<60,(('Input Data'!$F$44*('Dry Bulb'!D10-$T$15))+('Heat gain from airflow'!Q9)+((Occupancy!P9*'Input Data'!$F$47)+(Occupancy!B9*'Input Data'!$F$49)))/1000,(('Input Data'!$F$44*('Dry Bulb'!D10-$P$15))+('Heat gain from airflow'!Q9)+((Occupancy!P9*'Input Data'!$F$47)+(Occupancy!B9*'Input Data'!$F$49))))/1000 -> -0.007449615 | D36: =IF('Dry Bulb'!E10<60,(('Input Data'!$F$44*('Dry Bulb'!E10-$T$15))+('Heat gain from airflow'!R9)+((Occupancy!Q9*'Input Data'!$F$47)+(Occupancy!C9*'Input Data'!$F$49)))/1000,(('Input Data'!$F$44*('Dry Bulb'!E10-$P$15))+('Heat gain from airflow'!R9)+((Occupancy!Q9*'Input Data'!$F$47)+(Occupancy!C9*'Input Data'!$F$49))))/1000 -> -0.0054466875 | E36: =IF('Dry Bulb'!F10<60,(('Input Data'!$F$44*('Dry Bulb'!F10-$T$15))+('Heat gain from airflow'!S9)+((Occupancy!R9*'Input Data'!$F$47)+(Occupancy!D9*'Input Data'!$F$49)))/1000,(('Input Data'!$F$44*('Dry Bulb'!F10-$P$15))+('Heat gain from airflow'!S9)+((Occupancy!R9*'Input Data'!$F$47)+(Occupancy!D9*'Input Data'!$F$49))))/1000 -> -0.00191772 | F36: =IF('Dry Bulb'!G10<60,(('Input Data'!$F$44*('Dry Bulb'!G10-$T$15))+('Heat gain from airflow'!T9)+((Occupancy!S9*'Input Data'!$F$47)+(Occupancy!E9*'Input Data'!$F$49)))/1000,(('Input Data'!$F$44*('Dry Bulb'!G10-$P$15))+('Heat gain from airflow'!T9)+((Occupancy!S9*'Input Data'!$F$47)+(Occupancy!E9*'Input Data'!$F$49))))/1000 -> -2.13535944 | G36: =IF('Dry Bulb'!H10<60,(('Input Data'!$F$44*('Dry Bulb'!H10-$T$15))+('Heat gain from airflow'!U9)+((Occupancy!T9*'Input Data'!$F$47)+(Occupancy!F9*'Input Data'!$F$49)))/1000,(('Input Data'!$F$44*('Dry Bulb'!H10-$P$15))+('Heat gain from airflow'!U9)+((Occupancy!T9*'Input Data'!$F$47)+(Occupancy!F9*'Input Data'!$F$49))))/1000 -> 5.13647145 | H36: =IF('Dry Bulb'!I10<60,(('Input Data'!$F$44*('Dry Bulb'!I10-$T$15))+('Heat gain from airflow'!V9)+((Occupancy!U9*'Input Data'!$F$47)+(Occupancy!G9*'Input Data'!$F$49)))/1000,(('Input Data'!$F$44*('Dry Bulb'!I10-$P$15))+('Heat gain from airflow'!V9)+((Occupancy!U9*'Input Data'!$F$47)+(Occupancy!G9*'Input Data'!$F$49))))/1000 -> 7.15374 | I36: =IF('Dry Bulb'!J10<60,(('Input Data'!$F$44*('Dry Bulb'!J10-$T$15))+('Heat gain from airflow'!W9)+((Occupancy!V9*'Input Data'!$F$47)+(Occupancy!H9*'Input Data'!$F$49)))/1000,(('Input Data'!$F$44*('Dry Bulb'!J10-$P$15))+('Heat gain from airflow'!W9)+((Occupancy!V9*'Input Data'!$F$47)+(Occupancy!H9*'Input Data'!$F$49))))/1000 -> 8.107515 | J36: =IF('Dry Bulb'!K10<60,(('Input Data'!$F$44*('Dry Bulb'!K10-$T$15))+('Heat gain from airflow'!X9)+((Occupancy!W9*'Input Data'!$F$47)+(Occupancy!I9*'Input Data'!$F$49)))/1000,(('Input Data'!$F$44*('Dry Bulb'!K10-$P$15))+('Heat gain from airflow'!X9)+((Occupancy!W9*'Input Data'!$F$47)+(Occupancy!I9*'Input Data'!$F$49))))/1000 -> 7.91676 | K36: =IF('Dry Bulb'!L10<60,(('Input Data'!$F$44*('Dry Bulb'!L10-$T$15))+('Heat gain from airflow'!Y9)+((Occupancy!X9*'Input Data'!$F$47)+(Occupancy!J9*'Input Data'!$F$49)))/1000,(('Input Data'!$F$44*('Dry Bulb'!L10-$P$15))+('Heat gain from airflow'!Y9)+((Occupancy!X9*'Input Data'!$F$47)+(Occupancy!J9*'Input Data'!$F$49))))/1000 -> 5.722909425 | L36: =IF('Dry Bulb'!M10<60,(('Input Data'!$F$44*('Dry Bulb'!M10-$T$15))+('Heat gain from airflow'!Z9)+((Occupancy!Y9*'Input Data'!$F$47)+(Occupancy!K9*'Input Data'!$F$49)))/1000,(('Input Data'!$F$44*('Dry Bulb'!M10-$P$15))+('Heat gain from airflow'!Z9)+((Occupancy!Y9*'Input Data'!$F$47)+(Occupancy!K9*'Input Data'!$F$49))))/1000 -> -0.49333311 | M36: =IF('Dry Bulb'!N10<60,(('Input Data'!$F$44*('Dry Bulb'!N10-$T$15))+('Heat gain from airflow'!AA9)+((Occupancy!Z9*'Input Data'!$F$47)+(Occupancy!L9*'Input Data'!$F$49)))/1000,(('Input Data'!$F$44*('Dry Bulb'!N10-$P$15))+('Heat gain from airflow'!AA9)+((Occupancy!Z9*'Input Data'!$F$47)+(Occupancy!L9*'Input Data'!$F$49))))/1000 -> -0.0020130975 | N36: =IF('Dry Bulb'!O10<60,(('Input Data'!$F$44*('Dry Bulb'!O10-$T$15))+('Heat gain from airflow'!AB9)+((Occupancy!AA9*'Input Data'!$F$47)+(Occupancy!M9*'Input Data'!$F$49)))/1000,(('Input Data'!$F$44*('Dry Bulb'!O10-$P$15))+('Heat gain from airflow'!AB9)+((Occupancy!AA9*'Input Data'!$F$47)+(Occupancy!M9*'Input Data'!$F$49))))/1000 -> -0.0060189525 | P36: Area | Q36: =Q39*'Input Data'!F23*'Input Data'!F19 -> 225 | R36: y | T36: n | AB36: SILL | AP36: ='Incident angle'!BI64 -> 5 | AQ36: ='Incident angle'!BJ64 -> 0 | AR36: ='Incident angle'!BK64 -> 0 | AS36: ='Incident angle'!BL64 -> 0 | AT36: ='Incident angle'!BM64 -> 0 | AU36: ='Incident angle'!BN64 -> 0 | AV36: ='Incident angle'!BO64 -> 0 | AW36: ='Incident angle'!BP64 -> 0 | AX36: ='Incident angle'!BQ64 -> 0 | AY36: ='Incident angle'!BR64 -> 0 | AZ36: ='Incident angle'!BS64 -> 0 | BA36: ='Incident angle'!BT64 -> 0 | BB36: ='Incident angle'!BU64 -> 0 | BC36: =AVERAGE(BC32,BC34) -> 4418.057009 | BD36: ='Incident angle'!BW64 -> 5 | BE36: ='Incident angle'!BX64 -> 0 | BF36: ='Incident angle'!BY64 -> 0 | BG36: ='Incident angle'!BZ64 -> 0 | BH36: ='Incident angle'!CA64 -> 0 | BI36: ='Incident angle'!CB64 -> 0 | BJ36: ='Incident angle'!CC64 -> 0 | BK36: ='Incident angle'!CD64 -> 0 | BL36: ='Incident angle'!CE64 -> 0 | BM36: ='Incident angle'!CF64 -> 0 | BN36: ='Incident angle'!CG64 -> 0 | BO36: ='Incident angle'!CH64 -> 0 | BP36: ='Incident angle'!CI64 -> 0 | BQ36: =AVERAGE(BQ32,BQ34) ->  | BR36: ='Profile angles'!P9 -> 5 | BS36: =RADIANS('Profile angles'!Q9) -> 0.4505717419 | BT36: =RADIANS('Profile angles'!R9) -> 0.3965008362 | BU36: =RADIANS('Profile angles'!S9) -> 0.2976624365 | BV36: =RADIANS('Profile angles'!T9) -> 0.1755847846 | BW36: =RADIANS('Profile angles'!U9) -> 0.09870439314 | BX36: =RADIANS('Profile angles'!V9) -> 0.09014937202 | BY36: =RADIANS('Profile angles'!W9) -> 0.135621009 | BZ36: =RADIANS('Profile angles'!X9) -> 0.1882915282 | CA36: =RADIANS('Profile angles'!Y9) -> 0.2373188383 | CB36: =RADIANS('Profile angles'!Z9) -> 0.2819294522 | CC36: =RADIANS('Profile angles'!AA9) -> 0.3550627459 | CD36: =RADIANS('Profile angles'!AB9) -> 0.427859685 | CF36: ='Profile angles'!P38 -> 5 | CG36: =RADIANS('Profile angles'!Q38) -> 1.178047461 | CH36: =RADIANS('Profile angles'!R38) -> 1.506383769 | CI36: =RADIANS('Profile angles'!S38) -> -1.139700002 | CJ36: =RADIANS('Profile angles'!T38) -> -0.5015878501 | CK36: =RADIANS('Profile angles'!U38) -> -0.2080737467 | CL36: =RADIANS('Profile angles'!V38) -> -0.1654956533 | CM36: =RADIANS('Profile angles'!W38) -> -0.2683182771 | CN36: =RADIANS('Profile angles'!X38) -> -0.517283773 | CO36: =RADIANS('Profile angles'!Y38) -> -1.139700002 | CP36: =RADIANS('Profile angles'!Z38) -> 1.300761076 | CQ36: =RADIANS('Profile angles'!AA38) -> 0.9983276558 | CR36: =RADIANS('Profile angles'!AB38) -> 1.007647471 | CT36: ='Profile angles'!AR9 -> 5 | CU36: =(IF($AH$29<DEGREES(BS36),0+$AJ$33,1-((TAN(BS36)/TAN($AG$31))*(1-$AJ$33))))*(('Surface Solar Azimuth Angles'!BX62*$DU$3)+1-$DU$3) -> 0.5950959075 | CV36: =(IF($AH$29<DEGREES(BT36),0+$AJ$33,1-((TAN(BT36)/TAN($AG$31))*(1-$AJ$33))))*(('Surface Solar Azimuth Angles'!BY62*$DU$3)+1-$DU$3) -> 0.6973823661 | CW36: =(IF($AH$29<DEGREES(BU36),0+$AJ$33,1-((TAN(BU36)/TAN($AG$31))*(1-$AJ$33))))*(('Surface Solar Azimuth Angles'!BZ62*$DU$3)+1-$DU$3) -> 0.7298557544 | CX36: =(IF($AH$29<DEGREES(BV36),0+$AJ$33,1-((TAN(BV36)/TAN($AG$31))*(1-$AJ$33))))*(('Surface Solar Azimuth Angles'!CA62*$DU$3)+1-$DU$3) -> 0.7341369749 | CY36: =(IF($AH$29<DEGREES(BW36),0+$AJ$33,1-((TAN(BW36)/TAN($AG$31))*(1-$AJ$33))))*(('Surface Solar Azimuth Angles'!CB62*$DU$3)+1-$DU$3) -> 0.7124225917 | CZ36: =(IF($AH$29<DEGREES(BX36),0+$AJ$33,1-((TAN(BX36)/TAN($AG$31))*(1-$AJ$33))))*(('Surface Solar Azimuth Angles'!CC62*$DU$3)+1-$DU$3) -> 0.6832425964 | DA36: =(IF($AH$29<DEGREES(BY36),0+$AJ$33,1-((TAN(BY36)/TAN($AG$31))*(1-$AJ$33))))*(('Surface Solar Azimuth Angles'!CD62*$DU$3)+1-$DU$3) -> 0.6800295978 | DB36: =(IF($AH$29<DEGREES(BZ36),0+$AJ$33,1-((TAN(BZ36)/TAN($AG$31))*(1-$AJ$33))))*(('Surface Solar Azimuth Angles'!CE62*$DU$3)+1-$DU$3) -> 0.7214981482 | DC36: =(IF($AH$29<DEGREES(CA36),0+$AJ$33,1-((TAN(CA36)/TAN($AG$31))*(1-$AJ$33))))*(('Surface Solar Azimuth Angles'!CF62*$DU$3)+1-$DU$3) -> 0.784478917 | DD36: =(IF($AH$29<DEGREES(CB36),0+$AJ$33,1-((TAN(CB36)/TAN($AG$31))*(1-$AJ$33))))*(('Surface Solar Azimuth Angles'!CG62*$DU$3)+1-$DU$3) -> 0.7652901618 | DE36: =(IF($AH$29<DEGREES(CC36),0+$AJ$33,1-((TAN(CC36)/TAN($AG$31))*(1-$AJ$33))))*(('Surface Solar Azimuth Angles'!CH62*$DU$3)+1-$DU$3) -> 0.6519905977 | DF36: =(IF($AH$29<DEGREES(CD36),0+$AJ$33,1-((TAN(CD36)/TAN($AG$31))*(1-$AJ$33))))*(('Surface Solar Azimuth Angles'!CI62*$DU$3)+1-$DU$3) -> 0.5827742266 | DH36: 5 | DI36: =(IF($AH$12<DEGREES(CG36),0+$AJ$16,1-((TAN(CG36)/TAN($AG$14))*(1-$AJ$16))))*(('Surface Solar Azimuth Angles'!CL62*$DU$3)+1-$DU$3) -> 0 | DJ36: =(IF($AH$12<DEGREES(CH36),0+$AJ$16,1-((TAN(CH36)/TAN($AG$14))*(1-$AJ$16))))*(('Surface Solar Azimuth Angles'!CM62*$DU$3)+1-$DU$3) -> 0 | DK36: =(IF($AH$12<DEGREES(CI36),0+$AJ$16,1-((TAN(CI36)/TAN($AG$14))*(1-$AJ$16))))*(('Surface Solar Azimuth Angles'!CN62*$DU$3)+1-$DU$3) -> 0 | DL36: =(IF($AH$12<DEGREES(CJ36),0+$AJ$16,1-((TAN(CJ36)/TAN($AG$14))*(1-$AJ$16))))*(('Surface Solar Azimuth Angles'!CO62*$DU$3)+1-$DU$3) -> 0 | DM36: =(IF($AH$12<DEGREES(CK36),0+$AJ$16,1-((TAN(CK36)/TAN($AG$14))*(1-$AJ$16))))*(('Surface Solar Azimuth Angles'!CP62*$DU$3)+1-$DU$3) -> 0 | DN36: =(IF($AH$12<DEGREES(CL36),0+$AJ$16,1-((TAN(CL36)/TAN($AG$14))*(1-$AJ$16))))*(('Surface Solar Azimuth Angles'!CQ62*$DU$3)+1-$DU$3) -> 0.08504326302 | DO36: =(IF($AH$12<DEGREES(CM36),0+$AJ$16,1-((TAN(CM36)/TAN($AG$14))*(1-$AJ$16))))*(('Surface Solar Azimuth Angles'!CR62*$DU$3)+1-$DU$3) -> 0 | DP36: =(IF($AH$12<DEGREES(CN36),0+$AJ$16,1-((TAN(CN36)/TAN($AG$14))*(1-$AJ$16))))*(('Surface Solar Azimuth Angles'!CS62*$DU$3)+1-$DU$3) -> 0 | DQ36: =(IF($AH$12<DEGREES(CO36),0+$AJ$16,1-((TAN(CO36)/TAN($AG$14))*(1-$AJ$16))))*(('Surface Solar Azimuth Angles'!CT62*$DU$3)+1-$DU$3) -> 0 | DR36: =(IF($AH$12<DEGREES(CP36),0+$AJ$16,1-((TAN(CP36)/TAN($AG$14))*(1-$AJ$16))))*(('Surface Solar Azimuth Angles'!CU62*$DU$3)+1-$DU$3) -> 0 | DS36: =(IF($AH$12<DEGREES(CQ36),0+$AJ$16,1-((TAN(CQ36)/TAN($AG$14))*(1-$AJ$16))))*(('Surface Solar Azimuth Angles'!CV62*$DU$3)+1-$DU$3) -> 0 | DT36: =(IF($AH$12<DEGREES(CR36),0+$AJ$16,1-((TAN(CR36)/TAN($AG$14))*(1-$AJ$16))))*(('Surface Solar Azimuth Angles'!CW62*$DU$3)+1-$DU$3) -> 0 | DW36: 5 | DX36: -25.37633392 | DY36: -22.71038561 | DZ36: -16.89709245 | EA36: -9.581069307 | EB36: -5.123126232 | EC36: -4.545358278 | ED36: -6.968831296 | EE36: -10.24198262 | EF36: -13.51706338 | EG36: -16.10438517 | EH36: -19.83052845 | EI36: -23.66453037 | EK36: 5 | EL36: -25.37633392 | EM36: -22.71038561 | EN36: -16.89709245 | EO36: -9.581069307 | EP36: -5.123126232 | EQ36: -4.545358278 | ER36: -6.968831296 | ES36: -10.24198262 | ET36: -13.51706338 | EU36: -16.10438517 | EV36: -19.83052845 | EW36: -23.66453037
B37: 7 | C37: =IF('Dry Bulb'!D11<60,(('Input Data'!$F$44*('Dry Bulb'!D11-$T$15))+('Heat gain from airflow'!Q10)+((Occupancy!P10*'Input Data'!$F$47)+(Occupancy!B10*'Input Data'!$F$49)))/1000,(('Input Data'!$F$44*('Dry Bulb'!D11-$P$15))+('Heat gain from airflow'!Q10)+((Occupancy!P10*'Input Data'!$F$47)+(Occupancy!B10*'Input Data'!$F$49))))/1000 -> -0.007449615 | D37: =IF('Dry Bulb'!E11<60,(('Input Data'!$F$44*('Dry Bulb'!E11-$T$15))+('Heat gain from airflow'!R10)+((Occupancy!Q10*'Input Data'!$F$47)+(Occupancy!C10*'Input Data'!$F$49)))/1000,(('Input Data'!$F$44*('Dry Bulb'!E11-$P$15))+('Heat gain from airflow'!R10)+((Occupancy!Q10*'Input Data'!$F$47)+(Occupancy!C10*'Input Data'!$F$49))))/1000 -> -0.0054466875 | E37: =IF('Dry Bulb'!F11<60,(('Input Data'!$F$44*('Dry Bulb'!F11-$T$15))+('Heat gain from airflow'!S10)+((Occupancy!R10*'Input Data'!$F$47)+(Occupancy!D10*'Input Data'!$F$49)))/1000,(('Input Data'!$F$44*('Dry Bulb'!F11-$P$15))+('Heat gain from airflow'!S10)+((Occupancy!R10*'Input Data'!$F$47)+(Occupancy!D10*'Input Data'!$F$49))))/1000 -> -0.00191772 | F37: =IF('Dry Bulb'!G11<60,(('Input Data'!$F$44*('Dry Bulb'!G11-$T$15))+('Heat gain from airflow'!T10)+((Occupancy!S10*'Input Data'!$F$47)+(Occupancy!E10*'Input Data'!$F$49)))/1000,(('Input Data'!$F$44*('Dry Bulb'!G11-$P$15))+('Heat gain from airflow'!T10)+((Occupancy!S10*'Input Data'!$F$47)+(Occupancy!E10*'Input Data'!$F$49))))/1000 -> -0.96248349 | G37: =IF('Dry Bulb'!H11<60,(('Input Data'!$F$44*('Dry Bulb'!H11-$T$15))+('Heat gain from airflow'!U10)+((Occupancy!T10*'Input Data'!$F$47)+(Occupancy!F10*'Input Data'!$F$49)))/1000,(('Input Data'!$F$44*('Dry Bulb'!H11-$P$15))+('Heat gain from airflow'!U10)+((Occupancy!T10*'Input Data'!$F$47)+(Occupancy!F10*'Input Data'!$F$49))))/1000 -> 5.7230775 | H37: =IF('Dry Bulb'!I11<60,(('Input Data'!$F$44*('Dry Bulb'!I11-$T$15))+('Heat gain from airflow'!V10)+((Occupancy!U10*'Input Data'!$F$47)+(Occupancy!G10*'Input Data'!$F$49)))/1000,(('Input Data'!$F$44*('Dry Bulb'!I11-$P$15))+('Heat gain from airflow'!V10)+((Occupancy!U10*'Input Data'!$F$47)+(Occupancy!G10*'Input Data'!$F$49))))/1000 -> 8.67978 | I37: =IF('Dry Bulb'!J11<60,(('Input Data'!$F$44*('Dry Bulb'!J11-$T$15))+('Heat gain from airflow'!W10)+((Occupancy!V10*'Input Data'!$F$47)+(Occupancy!H10*'Input Data'!$F$49)))/1000,(('Input Data'!$F$44*('Dry Bulb'!J11-$P$15))+('Heat gain from airflow'!W10)+((Occupancy!V10*'Input Data'!$F$47)+(Occupancy!H10*'Input Data'!$F$49))))/1000 -> 9.5381775 | J37: =IF('Dry Bulb'!K11<60,(('Input Data'!$F$44*('Dry Bulb'!K11-$T$15))+('Heat gain from airflow'!X10)+((Occupancy!W10*'Input Data'!$F$47)+(Occupancy!I10*'Input Data'!$F$49)))/1000,(('Input Data'!$F$44*('Dry Bulb'!K11-$P$15))+('Heat gain from airflow'!X10)+((Occupancy!W10*'Input Data'!$F$47)+(Occupancy!I10*'Input Data'!$F$49))))/1000 -> 9.252045 | K37: =IF('Dry Bulb'!L11<60,(('Input Data'!$F$44*('Dry Bulb'!L11-$T$15))+('Heat gain from airflow'!Y10)+((Occupancy!X10*'Input Data'!$F$47)+(Occupancy!J10*'Input Data'!$F$49)))/1000,(('Input Data'!$F$44*('Dry Bulb'!L11-$P$15))+('Heat gain from airflow'!Y10)+((Occupancy!X10*'Input Data'!$F$47)+(Occupancy!J10*'Input Data'!$F$49))))/1000 -> 6.199965 | L37: =IF('Dry Bulb'!M11<60,(('Input Data'!$F$44*('Dry Bulb'!M11-$T$15))+('Heat gain from airflow'!Z10)+((Occupancy!Y10*'Input Data'!$F$47)+(Occupancy!K10*'Input Data'!$F$49)))/1000,(('Input Data'!$F$44*('Dry Bulb'!M11-$P$15))+('Heat gain from airflow'!Z10)+((Occupancy!Y10*'Input Data'!$F$47)+(Occupancy!K10*'Input Data'!$F$49))))/1000 -> 0.093104865 | M37: =IF('Dry Bulb'!N11<60,(('Input Data'!$F$44*('Dry Bulb'!N11-$T$15))+('Heat gain from airflow'!AA10)+((Occupancy!Z10*'Input Data'!$F$47)+(Occupancy!L10*'Input Data'!$F$49)))/1000,(('Input Data'!$F$44*('Dry Bulb'!N11-$P$15))+('Heat gain from airflow'!AA10)+((Occupancy!Z10*'Input Data'!$F$47)+(Occupancy!L10*'Input Data'!$F$49))))/1000 -> -0.0022038525 | N37: =IF('Dry Bulb'!O11<60,(('Input Data'!$F$44*('Dry Bulb'!O11-$T$15))+('Heat gain from airflow'!AB10)+((Occupancy!AA10*'Input Data'!$F$47)+(Occupancy!M10*'Input Data'!$F$49)))/1000,(('Input Data'!$F$44*('Dry Bulb'!O11-$P$15))+('Heat gain from airflow'!AB10)+((Occupancy!AA10*'Input Data'!$F$47)+(Occupancy!M10*'Input Data'!$F$49))))/1000 -> -0.0062097075 | P37: Glass SHGC | Q37: 0.29 | R37: n | X37: EAST WINDOW SECTION | AP37: ='Incident angle'!BI65 -> 6 | AQ37: ='Incident angle'!BJ65 -> 0 | AR37: ='Incident angle'!BK65 -> 0 | AS37: ='Incident angle'!BL65 -> 0 | AT37: ='Incident angle'!BM65 -> 0 | AU37: ='Incident angle'!BN65 -> 0 | AV37: ='Incident angle'!BO65 -> 0 | AW37: ='Incident angle'!BP65 -> 0 | AX37: ='Incident angle'!BQ65 -> 0 | AY37: ='Incident angle'!BR65 -> 0 | AZ37: ='Incident angle'!BS65 -> 0 | BA37: ='Incident angle'!BT65 -> 0 | BB37: ='Incident angle'!BU65 -> 0 | BD37: ='Incident angle'!BW65 -> 6 | BE37: ='Incident angle'!BX65 -> 0 | BF37: ='Incident angle'!BY65 -> 0 | BG37: ='Incident angle'!BZ65 -> 0 | BH37: ='Incident angle'!CA65 -> 0 | BI37: ='Incident angle'!CB65 -> 0 | BJ37: ='Incident angle'!CC65 -> 0 | BK37: ='Incident angle'!CD65 -> 0 | BL37: ='Incident angle'!CE65 -> 0 | BM37: ='Incident angle'!CF65 -> 0 | BN37: ='Incident angle'!CG65 -> 0 | BO37: ='Incident angle'!CH65 -> 0 | BP37: ='Incident angle'!CI65 -> 0 | BR37: ='Profile angles'!P10 -> 6 | BS37: =RADIANS('Profile angles'!Q10) -> 0.2209164505 | BT37: =RADIANS('Profile angles'!R10) -> 0.1607466225 | BU37: =RADIANS('Profile angles'!S10) -> 0.05802197175 | BV37: =RADIANS('Profile angles'!T10) -> -0.06407872559 | BW37: =RADIANS('Profile angles'!U10) -> -0.1385056203 | BX37: =RADIANS('Profile angles'!V10) -> -0.1464864482 | BY37: =RADIANS('Profile angles'!W10) -> -0.1032161832 | BZ37: =RADIANS('Profile angles'!X10) -> -0.05180107506 | CA37: =RADIANS('Profile angles'!Y10) -> -0.001453508956 | CB37: =RADIANS('Profile angles'!Z10) -> 0.04619108081 | CC37: =RADIANS('Profile angles'!AA10) -> 0.1242515111 | CD37: =RADIANS('Profile angles'!AB10) -> 0.2005207227 | CF37: ='Profile angles'!P39 -> 6 | CG37: =RADIANS('Profile angles'!Q39) -> 0.6483581668 | CH37: =RADIANS('Profile angles'!R39) -> 0.8864768764 | CI37: =RADIANS('Profile angles'!S39) -> -1.139700002 | CJ37: =RADIANS('Profile angles'!T39) -> 0.3068314577 | CK37: =RADIANS('Profile angles'!U39) -> 0.3859127589 | CL37: =RADIANS('Profile angles'!V39) -> 0.3454895043 | CM37: =RADIANS('Profile angles'!W39) -> 0.2768167475 | CN37: =RADIANS('Profile angles'!X39) -> 0.2394989719 | CO37: =RADIANS('Profile angles'!Y39) -> -1.139700002 | CP37: =RADIANS('Profile angles'!Z39) -> 0.2425098589 | CQ37: =RADIANS('Profile angles'!AA39) -> 0.3509228985 | CR37: =RADIANS('Profile angles'!AB39) -> 0.4866930989 | CT37: ='Profile angles'!AR10 -> 6 | CU37: =(IF($AH$29<DEGREES(BS37),0+$AJ$33,1-((TAN(BS37)/TAN($AG$31))*(1-$AJ$33))))*(('Surface Solar Azimuth Angles'!BX63*$DU$3)+1-$DU$3) -> 0.7178773207 | CV37: =(IF($AH$29<DEGREES(BT37),0+$AJ$33,1-((TAN(BT37)/TAN($AG$31))*(1-$AJ$33))))*(('Surface Solar Azimuth Angles'!BY63*$DU$3)+1-$DU$3) -> 0.8278635991 | CW37: =(IF($AH$29<DEGREES(BU37),0+$AJ$33,1-((TAN(BU37)/TAN($AG$31))*(1-$AJ$33))))*(('Surface Solar Azimuth Angles'!BZ63*$DU$3)+1-$DU$3) -> 0.9465235962 | CX37: =(IF($AH$29<DEGREES(BV37),0+$AJ$33,1-((TAN(BV37)/TAN($AG$31))*(1-$AJ$33))))*(('Surface Solar Azimuth Angles'!CA63*$DU$3)+1-$DU$3) -> 0.9391072422 | CY37: =(IF($AH$29<DEGREES(BW37),0+$AJ$33,1-((TAN(BW37)/TAN($AG$31))*(1-$AJ$33))))*(('Surface Solar Azimuth Angles'!CB63*$DU$3)+1-$DU$3) -> 0.9092867116 | CZ37: =(IF($AH$29<DEGREES(BX37),0+$AJ$33,1-((TAN(BX37)/TAN($AG$31))*(1-$AJ$33))))*(('Surface Solar Azimuth Angles'!CC63*$DU$3)+1-$DU$3) -> 0.8771478435 | DA37: =(IF($AH$29<DEGREES(BY37),0+$AJ$33,1-((TAN(BY37)/TAN($AG$31))*(1-$AJ$33))))*(('Surface Solar Azimuth Angles'!CD63*$DU$3)+1-$DU$3) -> 0.8769954779 | DB37: =(IF($AH$29<DEGREES(BZ37),0+$AJ$33,1-((TAN(BZ37)/TAN($AG$31))*(1-$AJ$33))))*(('Surface Solar Azimuth Angles'!CE63*$DU$3)+1-$DU$3) -> 0.9262762094 | DC37: =(IF($AH$29<DEGREES(CA37),0+$AJ$33,1-((TAN(CA37)/TAN($AG$31))*(1-$AJ$33))))*(('Surface Solar Azimuth Angles'!CF63*$DU$3)+1-$DU$3) -> 1.000682847 | DD37: =(IF($AH$29<DEGREES(CB37),0+$AJ$33,1-((TAN(CB37)/TAN($AG$31))*(1-$AJ$33))))*(('Surface Solar Azimuth Angles'!CG63*$DU$3)+1-$DU$3) -> 0.8772386442 | DE37: =(IF($AH$29<DEGREES(CC37),0+$AJ$33,1-((TAN(CC37)/TAN($AG$31))*(1-$AJ$33))))*(('Surface Solar Azimuth Angles'!CH63*$DU$3)+1-$DU$3) -> 0.7569007246 | DF37: =(IF($AH$29<DEGREES(CD37),0+$AJ$33,1-((TAN(CD37)/TAN($AG$31))*(1-$AJ$33))))*(('Surface Solar Azimuth Angles'!CI63*$DU$3)+1-$DU$3) -> 0.6929923865 | DH37: 6 | DI37: =(IF($AH$12<DEGREES(CG37),0+$AJ$16,1-((TAN(CG37)/TAN($AG$14))*(1-$AJ$16))))*(('Surface Solar Azimuth Angles'!CL63*$DU$3)+1-$DU$3) -> 0 | DJ37: =(IF($AH$12<DEGREES(CH37),0+$AJ$16,1-((TAN(CH37)/TAN($AG$14))*(1-$AJ$16))))*(('Surface Solar Azimuth Angles'!CM63*$DU$3)+1-$DU$3) -> 0 | DK37: =(IF($AH$12<DEGREES(CI37),0+$AJ$16,1-((TAN(CI37)/TAN($AG$14))*(1-$AJ$16))))*(('Surface Solar Azimuth Angles'!CN63*$DU$3)+1-$DU$3) -> 0 | DL37: =(IF($AH$12<DEGREES(CJ37),0+$AJ$16,1-((TAN(CJ37)/TAN($AG$14))*(1-$AJ$16))))*(('Surface Solar Azimuth Angles'!CO63*$DU$3)+1-$DU$3) -> 0 | DM37: =(IF($AH$12<DEGREES(CK37),0+$AJ$16,1-((TAN(CK37)/TAN($AG$14))*(1-$AJ$16))))*(('Surface Solar Azimuth Angles'!CP63*$DU$3)+1-$DU$3) -> 0 | DN37: =(IF($AH$12<DEGREES(CL37),0+$AJ$16,1-((TAN(CL37)/TAN($AG$14))*(1-$AJ$16))))*(('Surface Solar Azimuth Angles'!CQ63*$DU$3)+1-$DU$3) -> 0 | DO37: =(IF($AH$12<DEGREES(CM37),0+$AJ$16,1-((TAN(CM37)/TAN($AG$14))*(1-$AJ$16))))*(('Surface Solar Azimuth Angles'!CR63*$DU$3)+1-$DU$3) -> 0 | DP37: =(IF($AH$12<DEGREES(CN37),0+$AJ$16,1-((TAN(CN37)/TAN($AG$14))*(1-$AJ$16))))*(('Surface Solar Azimuth Angles'!CS63*$DU$3)+1-$DU$3) -> 0 | DQ37: =(IF($AH$12<DEGREES(CO37),0+$AJ$16,1-((TAN(CO37)/TAN($AG$14))*(1-$AJ$16))))*(('Surface Solar Azimuth Angles'!CT63*$DU$3)+1-$DU$3) -> 0 | DR37: =(IF($AH$12<DEGREES(CP37),0+$AJ$16,1-((TAN(CP37)/TAN($AG$14))*(1-$AJ$16))))*(('Surface Solar Azimuth Angles'!CU63*$DU$3)+1-$DU$3) -> 0 | DS37: =(IF($AH$12<DEGREES(CQ37),0+$AJ$16,1-((TAN(CQ37)/TAN($AG$14))*(1-$AJ$16))))*(('Surface Solar Azimuth Angles'!CV63*$DU$3)+1-$DU$3) -> 0 | DT37: =(IF($AH$12<DEGREES(CR37),0+$AJ$16,1-((TAN(CR37)/TAN($AG$14))*(1-$AJ$16))))*(('Surface Solar Azimuth Angles'!CW63*$DU$3)+1-$DU$3) -> 0 | DW37: 6 | DX37: -12.15144409 | DY37: -9.131908056 | DZ37: -3.323230903 | EA37: 3.598581669 | EB37: 7.511298722 | EC37: 7.773859784 | ED37: 5.558405394 | EE37: 2.903372302 | EF37: 0.08327991007 | EG37: -2.601590035 | EH37: -6.741352257 | EI37: -10.74339626 | EK37: 6 | EL37: -12.15144409 | EM37: -9.131908056 | EN37: -3.323230903 | EO37: 3.598581669 | EP37: 7.511298722 | EQ37: 7.773859784 | ER37: 5.558405394 | ES37: 2.903372302 | ET37: 0.08327991007 | EU37: -2.601590035 | EV37: -6.741352257 | EW37: -10.74339626
